Workbook

Sheet Lits NSA-LPH
A2: RLS | B2: Site | C2: No chambre | D2: Catégorie | E2: Statut | F2: Nom | G2: Prénom | H2: Numéro dossier | I2: Date de naissance | J2: Âge | K2: Groupe d'âge | L2: Date dépôt demande | M2: Période (demande) | N2: Année (demande) | O2: Motif de la demande | P2: Provenance | Q2: Date d'admission | R2: Période (admission) | S2: Année (admission) | T2: Période/année (admission) | U2: Fin période (admission) | V2: Séjour 1 | W2: Classif. à planifier | X2: Durée prévue (en jours) | Y2: Profil à l'arrivée | Z2: ISO SMAF arrivée | AA2: Usager actif au SAD | AB2: Justification admission | AC2: Date rencontre familiale | AD2: Rencontre familiale | AE2: Délai adm./recontre familiale | AF2: Date de fin Soins actifs | AG2: Soins actifs | AH2: Date congé prévu | AI2: Date congé | AJ2: Période (congé) | AK2: Année (congé) | AL2: Période/année (congé) | AM2: Fin période (congé) | AN2: Séjour 2 | AO2: Durée séjour estimé | AP2: Durée séjour totale | AQ2: NSA | AR2: Durée NSA | AS2: Orientation au congé | AT2: Profil au congé | AU2: ISO SMAF congé | AV2: Référence au SAD | AW2: Date vaccin 1 | AX2: Date vaccin 2 | AY2: Temps attente (dépôt/adm.) | AZ2: Durée séjour (Actif) | BA2: Date dépôt MAH | BB2: Délai adm./dépôt MAH | BC2: Délai congé/dépôt MAH | BD2: Date orientation | BE2: Temps attente orientation vs sortie | BF2: Bloquant 1 | BG2: Bloquant 2 | BH2: Bloquant 3 | BI2: Commentaires
A3: Drummond | B3: CFGH | C3: 1059 | D3: =IFERROR(VLOOKUP(C3,Chambres,3,FALSE),"") -> 1NC | E3: =IF(AND(Tableau1[[#This Row],[Date d''admission]]<>"",Tableau1[[#This Row],[Date congé]]=""),"Occupée",IF(Tableau1[[#This Row],[Date congé]]<>"","Congé","Libre")) -> Congé | H3: P081048 | I3: 17377 | J3: =(IF(Tableau1[[#This Row],[Date de naissance]]<>"",DATEDIF(Tableau1[[#This Row],[Date de naissance]],TODAY(),"Y"),"")) -> 74 | K3: =IF(Tableau1[[#This Row],[Âge]]<=60,"60 et -",IF(Tableau1[[#This Row],[Âge]]<=65,"61-65",IF(Tableau1[[#This Row],[Âge]]<=70,"66-70",IF(Tableau1[[#This Row],[Âge]]<=75,"71-75",IF(Tableau1[[#This Row],[Âge]]<=80,"76-80",IF(Tableau1[[#This Row],[Âge]]<=85,"81-85",IF(Tableau1[[#This Row],[Âge]]<=110,"86 et +",""))))))) -> 71-75 | L3: 44195 | M3: =IFERROR(VLOOKUP(Tableau1[[#This Row],[Date dépôt demande]],Tableau1618[],4,1),"") -> P10 | N3: =IFERROR(VLOOKUP(Tableau1[[#This Row],[Date dépôt demande]],Tableau1618[],5,1),"") -> 2020-2021 | O3: Éval-ori | P3: Autre | Q3: 44200 | R3: =IFERROR(VLOOKUP(Tableau1[[#This Row],[Date d''admission]],Tableau1618[],4,1),"") -> P11 | S3: =IFERROR(VLOOKUP(Tableau1[[#This Row],[Date d''admission]],Tableau1618[],5,1),"") -> 2020-2021 | T3: =CONCATENATE(Tableau1[[#This Row],[Période (admission)]]," ",Tableau1[[#This Row],[Année (admission)]]) -> P11 2020-2021 | U3: =IFERROR(VLOOKUP(Tableau1[[#This Row],[Période/année (admission)]],Tableau1618[[Période année]:[Fin]],3,0),"") -> 44226 | V3: =IF(AND(Tableau1[[#This Row],[Statut]]="Congé",Tableau1[[#This Row],[Date d''admission]]<>""),IF(Tableau1[[#This Row],[Date congé]]<=Tableau1[[#This Row],[Fin période (admission)]],Tableau1[[#This Row],[Date congé]]-Tableau1[[#This Row],[Date d''admission]],Tableau1[[#This Row],[Fin période (admission)]]-Tableau1[[#This Row],[Date d''admission]]),0) -> 26 | W3: =IFERROR(IF(Tableau1[[#This Row],[Date d''admission]]<>"",IF(Tableau1[[#This Row],[Site]]="René_Léosa",Tableau1[[#This Row],[Date d''admission]]+45,"")),"") ->  | Y3: 210 | AA3: Oui | AD3: =IF(Tableau1[[#This Row],[Date rencontre familiale]]="","Non","Oui") -> Non | AE3: =IF(Tableau1[[#This Row],[Date rencontre familiale]]="","",Tableau1[[#This Row],[Date rencontre familiale]]-Tableau1[[#This Row],[Date d''admission]]) ->  | AF3: =IF(Tableau1[[#This Row],[Date congé]]<>"",Tableau1[[#This Row],[Date congé]],"") -> 44230 | AG3: =IF(Tableau1[[#This Row],[Date de fin Soins actifs]]<>"","Non","Oui") -> Non | AI3: 44230 | AJ3: =IFERROR(VLOOKUP(Tableau1[[#This Row],[Date congé]],Tableau1618[],4,1),"") -> P12 | AK3: =IFERROR(VLOOKUP(Tableau1[[#This Row],[Date congé]],Tableau1618[],5,1),"") -> 2020-2021 | AL3: =CONCATENATE(Tableau1[[#This Row],[Période (congé)]]," ",Tableau1[[#This Row],[Année (congé)]]) -> P12 2020-2021 | AM3: =IFERROR(VLOOKUP(Tableau1[[#This Row],[Période/année (congé)]],Tableau1618[[Période année]:[Fin]],3,0),"") -> 44254 | AN3: =IF(AND(Tableau1[[#This Row],[Statut]]="Congé",Tableau1[[#This Row],[Date d''admission]]<>""),IF(Tableau1[[#This Row],[Date congé]]>=Tableau1[[#This Row],[Fin période (admission)]],Tableau1[[#This Row],[Date congé]]-Tableau1[[#This Row],[Fin période (admission)]],0),0) -> 4 | AO3: =IF(AND(Tableau1[[#This Row],[Date congé prévu]]<>"",Tableau1[[#This Row],[Date congé]]<>""),Tableau1[[#This Row],[Date congé]]-Tableau1[[#This Row],[Date congé prévu]],"") ->  | AP3: =SUM(Tableau1[[#This Row],[Séjour 1]]+Tableau1[[#This Row],[Séjour 2]]) -> 30 | AQ3: =IF(AND(Tableau1[[#This Row],[Date de fin Soins actifs]]<>"",Tableau1[[#This Row],[Date congé]]<>""),IF(Tableau1[[#This Row],[Date de fin Soins actifs]]<>Tableau1[[#This Row],[Date congé]],"Devient NSA durant séjour","Quitte avant de devenir NSA"),"") -> Quitte avant de devenir NSA | AR3: =IF(Tableau1[[#This Row],[NSA]]="Devient NSA durant PEC",Tableau1[[#This Row],[Date congé]]-Tableau1[[#This Row],[Date de fin Soins actifs]],"") ->  | AS3: Retour à domicile | AT3: 210 | AY3: =IFERROR(DATEDIF(Tableau1[[#This Row],[Date dépôt demande]],Tableau1[[#This Row],[Date d''admission]],"D"),"") -> 5 | AZ3: =IFERROR(IF(AND(Tableau1[[#This Row],[Date de fin Soins actifs]]<>"",Tableau1[[#This Row],[Date congé]]<>""),DATEDIF(Tableau1[[#This Row],[Date de fin Soins actifs]],Tableau1[[#This Row],[Date congé]],"D"),""),"") -> 0 | BB3: =IF(Tableau1[[#This Row],[Date dépôt MAH]]="","",Tableau1[[#This Row],[Date dépôt MAH]]-Tableau1[[#This Row],[Date d''admission]]) ->  | BC3: =IF(Tableau1[[#This Row],[Date dépôt MAH]]="","",Tableau1[[#This Row],[Date congé]]-Tableau1[[#This Row],[Date dépôt MAH]]) ->  | BE3: =IFERROR(DATEDIF(Tableau1[[#This Row],[Date orientation]],Tableau1[[#This Row],[Date congé]],"D"),"") -> 44230
A4: Drummond | B4: _600_Bousquet_NSA | C4: 279 | D4: =IFERROR(VLOOKUP(C4,Chambres,3,FALSE),"") -> Prothétique | E4: =IF(AND(Tableau1[[#This Row],[Date d''admission]]<>"",Tableau1[[#This Row],[Date congé]]=""),"Occupée",IF(Tableau1[[#This Row],[Date congé]]<>"","Congé","Libre")) -> Congé | H4: P001671 | I4: 25282 | J4: =(IF(Tableau1[[#This Row],[Date de naissance]]<>"",DATEDIF(Tableau1[[#This Row],[Date de naissance]],TODAY(),"Y"),"")) -> 52 | K4: =IF(Tableau1[[#This Row],[Âge]]<=60,"60 et -",IF(Tableau1[[#This Row],[Âge]]<=65,"61-65",IF(Tableau1[[#This Row],[Âge]]<=70,"66-70",IF(Tableau1[[#This Row],[Âge]]<=75,"71-75",IF(Tableau1[[#This Row],[Âge]]<=80,"76-80",IF(Tableau1[[#This Row],[Âge]]<=85,"81-85",IF(Tableau1[[#This Row],[Âge]]<=110,"86 et +",""))))))) -> 60 et - | L4: 44210 | M4: =IFERROR(VLOOKUP(Tableau1[[#This Row],[Date dépôt demande]],Tableau1618[],4,1),"") -> P11 | N4: =IFERROR(VLOOKUP(Tableau1[[#This Row],[Date dépôt demande]],Tableau1618[],5,1),"") -> 2020-2021 | O4: Conval | P4: HSC | Q4: 44218 | R4: =IFERROR(VLOOKUP(Tableau1[[#This Row],[Date d''admission]],Tableau1618[],4,1),"") -> P11 | S4: =IFERROR(VLOOKUP(Tableau1[[#This Row],[Date d''admission]],Tableau1618[],5,1),"") -> 2020-2021 | T4: =CONCATENATE(Tableau1[[#This Row],[Période (admission)]]," ",Tableau1[[#This Row],[Année (admission)]]) -> P11 2020-2021 | U4: =IFERROR(VLOOKUP(Tableau1[[#This Row],[Période/année (admission)]],Tableau1618[[Période année]:[Fin]],3,0),"") -> 44226 | V4: =IF(AND(Tableau1[[#This Row],[Statut]]="Congé",Tableau1[[#This Row],[Date d''admission]]<>""),IF(Tableau1[[#This Row],[Date congé]]<=Tableau1[[#This Row],[Fin période (admission)]],Tableau1[[#This Row],[Date congé]]-Tableau1[[#This Row],[Date d''admission]],Tableau1[[#This Row],[Fin période (admission)]]-Tableau1[[#This Row],[Date d''admission]]),0) -> 8 | W4: =IFERROR(IF(Tableau1[[#This Row],[Date d''admission]]<>"",IF(Tableau1[[#This Row],[Site]]="René_Léosa",Tableau1[[#This Row],[Date d''admission]]+45,"")),"") ->  | Y4: 191 | AA4: Oui | AD4: =IF(Tableau1[[#This Row],[Date rencontre familiale]]="","Non","Oui") -> Non | AE4: =IF(Tableau1[[#This Row],[Date rencontre familiale]]="","",Tableau1[[#This Row],[Date rencontre familiale]]-Tableau1[[#This Row],[Date d''admission]]) ->  | AF4: =IF(Tableau1[[#This Row],[Date congé]]<>"",Tableau1[[#This Row],[Date congé]],"") -> 44355 | AG4: =IF(Tableau1[[#This Row],[Date de fin Soins actifs]]<>"","Non","Oui") -> Non | AI4: 44355 | AJ4: =IFERROR(VLOOKUP(Tableau1[[#This Row],[Date congé]],Tableau1618[],4,1),"") -> P03 | AK4: =IFERROR(VLOOKUP(Tableau1[[#This Row],[Date congé]],Tableau1618[],5,1),"") -> 2021-2022 | AL4: =CONCATENATE(Tableau1[[#This Row],[Période (congé)]]," ",Tableau1[[#This Row],[Année (congé)]]) -> P03 2021-2022 | AM4: =IFERROR(VLOOKUP(Tableau1[[#This Row],[Période/année (congé)]],Tableau1618[[Période année]:[Fin]],3,0),"") -> 44366 | AN4: =IF(AND(Tableau1[[#This Row],[Statut]]="Congé",Tableau1[[#This Row],[Date d''admission]]<>""),IF(Tableau1[[#This Row],[Date congé]]>=Tableau1[[#This Row],[Fin période (admission)]],Tableau1[[#This Row],[Date congé]]-Tableau1[[#This Row],[Fin période (admission)]],0),0) -> 129 | AO4: =IF(AND(Tableau1[[#This Row],[Date congé prévu]]<>"",Tableau1[[#This Row],[Date congé]]<>""),Tableau1[[#This Row],[Date congé]]-Tableau1[[#This Row],[Date congé prévu]],"") ->  | AP4: =SUM(Tableau1[[#This Row],[Séjour 1]]+Tableau1[[#This Row],[Séjour 2]]) -> 137 | AQ4: =IF(AND(Tableau1[[#This Row],[Date de fin Soins actifs]]<>"",Tableau1[[#This Row],[Date congé]]<>""),IF(Tableau1[[#This Row],[Date de fin Soins actifs]]<>Tableau1[[#This Row],[Date congé]],"Devient NSA durant séjour","Quitte avant de devenir NSA"),"") -> Quitte avant de devenir NSA | AR4: =IF(Tableau1[[#This Row],[NSA]]="Devient NSA durant PEC",Tableau1[[#This Row],[Date congé]]-Tableau1[[#This Row],[Date de fin Soins actifs]],"") ->  | AS4: Relocalisation RPA | AV4: Soins infirmiers | AY4: =IFERROR(DATEDIF(Tableau1[[#This Row],[Date dépôt demande]],Tableau1[[#This Row],[Date d''admission]],"D"),"") -> 8 | AZ4: =IFERROR(IF(AND(Tableau1[[#This Row],[Date de fin Soins actifs]]<>"",Tableau1[[#This Row],[Date congé]]<>""),DATEDIF(Tableau1[[#This Row],[Date de fin Soins actifs]],Tableau1[[#This Row],[Date congé]],"D"),""),"") -> 0 | BB4: =IF(Tableau1[[#This Row],[Date dépôt MAH]]="","",Tableau1[[#This Row],[Date dépôt MAH]]-Tableau1[[#This Row],[Date d''admission]]) ->  | BC4: =IF(Tableau1[[#This Row],[Date dépôt MAH]]="","",Tableau1[[#This Row],[Date congé]]-Tableau1[[#This Row],[Date dépôt MAH]]) ->  | BE4: =IFERROR(DATEDIF(Tableau1[[#This Row],[Date orientation]],Tableau1[[#This Row],[Date congé]],"D"),"") -> 44355 | BF4: attendons DI
A5: Drummond | B5: _600_Bousquet_NSA | C5: 276 | D5: =IFERROR(VLOOKUP(C5,Chambres,3,FALSE),"") -> Prothétique | E5: =IF(AND(Tableau1[[#This Row],[Date d''admission]]<>"",Tableau1[[#This Row],[Date congé]]=""),"Occupée",IF(Tableau1[[#This Row],[Date congé]]<>"","Congé","Libre")) -> Congé | H5: P007073 | I5: 15388 | J5: =(IF(Tableau1[[#This Row],[Date de naissance]]<>"",DATEDIF(Tableau1[[#This Row],[Date de naissance]],TODAY(),"Y"),"")) -> 79 | K5: =IF(Tableau1[[#This Row],[Âge]]<=60,"60 et -",IF(Tableau1[[#This Row],[Âge]]<=65,"61-65",IF(Tableau1[[#This Row],[Âge]]<=70,"66-70",IF(Tableau1[[#This Row],[Âge]]<=75,"71-75",IF(Tableau1[[#This Row],[Âge]]<=80,"76-80",IF(Tableau1[[#This Row],[Âge]]<=85,"81-85",IF(Tableau1[[#This Row],[Âge]]<=110,"86 et +",""))))))) -> 76-80 | L5: 43976 | M5: =IFERROR(VLOOKUP(Tableau1[[#This Row],[Date dépôt demande]],Tableau1618[],4,1),"") -> P03 | N5: =IFERROR(VLOOKUP(Tableau1[[#This Row],[Date dépôt demande]],Tableau1618[],5,1),"") -> 2020-2021 | O5: UTRF | P5: Autre | Q5: 43978 | R5: =IFERROR(VLOOKUP(Tableau1[[#This Row],[Date d''admission]],Tableau1618[],4,1),"") -> P03 | S5: =IFERROR(VLOOKUP(Tableau1[[#This Row],[Date d''admission]],Tableau1618[],5,1),"") -> 2020-2021 | T5: =CONCATENATE(Tableau1[[#This Row],[Période (admission)]]," ",Tableau1[[#This Row],[Année (admission)]]) -> P03 2020-2021 | U5: =IFERROR(VLOOKUP(Tableau1[[#This Row],[Période/année (admission)]],Tableau1618[[Période année]:[Fin]],3,0),"") -> 44002 | V5: =IF(AND(Tableau1[[#This Row],[Statut]]="Congé",Tableau1[[#This Row],[Date d''admission]]<>""),IF(Tableau1[[#This Row],[Date congé]]<=Tableau1[[#This Row],[Fin période (admission)]],Tableau1[[#This Row],[Date congé]]-Tableau1[[#This Row],[Date d''admission]],Tableau1[[#This Row],[Fin période (admission)]]-Tableau1[[#This Row],[Date d''admission]]),0) -> 24 | W5: =IFERROR(IF(Tableau1[[#This Row],[Date d''admission]]<>"",IF(Tableau1[[#This Row],[Site]]="René_Léosa",Tableau1[[#This Row],[Date d''admission]]+45,"")),"") ->  | Y5: 710 | AA5: Oui | AD5: =IF(Tableau1[[#This Row],[Date rencontre familiale]]="","Non","Oui") -> Non | AE5: =IF(Tableau1[[#This Row],[Date rencontre familiale]]="","",Tableau1[[#This Row],[Date rencontre familiale]]-Tableau1[[#This Row],[Date d''admission]]) ->  | AF5: =IF(Tableau1[[#This Row],[Date congé]]<>"",Tableau1[[#This Row],[Date congé]],"") -> 44018 | AG5: =IF(Tableau1[[#This Row],[Date de fin Soins actifs]]<>"","Non","Oui") -> Non | AI5: 44018 | AJ5: =IFERROR(VLOOKUP(Tableau1[[#This Row],[Date congé]],Tableau1618[],4,1),"") -> P04 | AK5: =IFERROR(VLOOKUP(Tableau1[[#This Row],[Date congé]],Tableau1618[],5,1),"") -> 2020-2021 | AL5: =CONCATENATE(Tableau1[[#This Row],[Période (congé)]]," ",Tableau1[[#This Row],[Année (congé)]]) -> P04 2020-2021 | AM5: =IFERROR(VLOOKUP(Tableau1[[#This Row],[Période/année (congé)]],Tableau1618[[Période année]:[Fin]],3,0),"") -> 44030 | AN5: =IF(AND(Tableau1[[#This Row],[Statut]]="Congé",Tableau1[[#This Row],[Date d''admission]]<>""),IF(Tableau1[[#This Row],[Date congé]]>=Tableau1[[#This Row],[Fin période (admission)]],Tableau1[[#This Row],[Date congé]]-Tableau1[[#This Row],[Fin période (admission)]],0),0) -> 16 | AO5: =IF(AND(Tableau1[[#This Row],[Date congé prévu]]<>"",Tableau1[[#This Row],[Date congé]]<>""),Tableau1[[#This Row],[Date congé]]-Tableau1[[#This Row],[Date congé prévu]],"") ->  | AP5: =SUM(Tableau1[[#This Row],[Séjour 1]]+Tableau1[[#This Row],[Séjour 2]]) -> 40 | AQ5: =IF(AND(Tableau1[[#This Row],[Date de fin Soins actifs]]<>"",Tableau1[[#This Row],[Date congé]]<>""),IF(Tableau1[[#This Row],[Date de fin Soins actifs]]<>Tableau1[[#This Row],[Date congé]],"Devient NSA durant séjour","Quitte avant de devenir NSA"),"") -> Quitte avant de devenir NSA | AR5: =IF(Tableau1[[#This Row],[NSA]]="Devient NSA durant PEC",Tableau1[[#This Row],[Date congé]]-Tableau1[[#This Row],[Date de fin Soins actifs]],"") ->  | AS5: CHSLD | AT5: 710 | AU5: 10 | AY5: =IFERROR(DATEDIF(Tableau1[[#This Row],[Date dépôt demande]],Tableau1[[#This Row],[Date d''admission]],"D"),"") -> 2 | AZ5: =IFERROR(IF(AND(Tableau1[[#This Row],[Date de fin Soins actifs]]<>"",Tableau1[[#This Row],[Date congé]]<>""),DATEDIF(Tableau1[[#This Row],[Date de fin Soins actifs]],Tableau1[[#This Row],[Date congé]],"D"),""),"") -> 0 | BA5: 44013 | BB5: =IF(Tableau1[[#This Row],[Date dépôt MAH]]="","",Tableau1[[#This Row],[Date dépôt MAH]]-Tableau1[[#This Row],[Date d''admission]]) -> 35 | BC5: =IF(Tableau1[[#This Row],[Date dépôt MAH]]="","",Tableau1[[#This Row],[Date congé]]-Tableau1[[#This Row],[Date dépôt MAH]]) -> 5 | BD5: 44014 | BE5: =IFERROR(DATEDIF(Tableau1[[#This Row],[Date orientation]],Tableau1[[#This Row],[Date congé]],"D"),"") -> 4
A6: Drummond | B6: CFGH | C6: 1064 | D6: =IFERROR(VLOOKUP(C6,Chambres,3,FALSE),"") -> 1NC | E6: =IF(AND(Tableau1[[#This Row],[Date d''admission]]<>"",Tableau1[[#This Row],[Date congé]]=""),"Occupée",IF(Tableau1[[#This Row],[Date congé]]<>"","Congé","Libre")) -> Congé | H6: P132033 | I6: 12360 | J6: =(IF(Tableau1[[#This Row],[Date de naissance]]<>"",DATEDIF(Tableau1[[#This Row],[Date de naissance]],TODAY(),"Y"),"")) -> 87 | K6: =IF(Tableau1[[#This Row],[Âge]]<=60,"60 et -",IF(Tableau1[[#This Row],[Âge]]<=65,"61-65",IF(Tableau1[[#This Row],[Âge]]<=70,"66-70",IF(Tableau1[[#This Row],[Âge]]<=75,"71-75",IF(Tableau1[[#This Row],[Âge]]<=80,"76-80",IF(Tableau1[[#This Row],[Âge]]<=85,"81-85",IF(Tableau1[[#This Row],[Âge]]<=110,"86 et +",""))))))) -> 86 et + | L6: 44258 | M6: =IFERROR(VLOOKUP(Tableau1[[#This Row],[Date dépôt demande]],Tableau1618[],4,1),"") -> P13 | N6: =IFERROR(VLOOKUP(Tableau1[[#This Row],[Date dépôt demande]],Tableau1618[],5,1),"") -> 2020-2021 | O6: Éval-ori | P6: HSC | Q6: 44259 | R6: =IFERROR(VLOOKUP(Tableau1[[#This Row],[Date d''admission]],Tableau1618[],4,1),"") -> P13 | S6: =IFERROR(VLOOKUP(Tableau1[[#This Row],[Date d''admission]],Tableau1618[],5,1),"") -> 2020-2021 | T6: =CONCATENATE(Tableau1[[#This Row],[Période (admission)]]," ",Tableau1[[#This Row],[Année (admission)]]) -> P13 2020-2021 | U6: =IFERROR(VLOOKUP(Tableau1[[#This Row],[Période/année (admission)]],Tableau1618[[Période année]:[Fin]],3,0),"") -> 44286 | V6: =IF(AND(Tableau1[[#This Row],[Statut]]="Congé",Tableau1[[#This Row],[Date d''admission]]<>""),IF(Tableau1[[#This Row],[Date congé]]<=Tableau1[[#This Row],[Fin période (admission)]],Tableau1[[#This Row],[Date congé]]-Tableau1[[#This Row],[Date d''admission]],Tableau1[[#This Row],[Fin période (admission)]]-Tableau1[[#This Row],[Date d''admission]]),0) -> 12 | W6: =IFERROR(IF(Tableau1[[#This Row],[Date d''admission]]<>"",IF(Tableau1[[#This Row],[Site]]="René_Léosa",Tableau1[[#This Row],[Date d''admission]]+45,"")),"") ->  | Y6: 710 | AA6: Oui | AD6: =IF(Tableau1[[#This Row],[Date rencontre familiale]]="","Non","Oui") -> Non | AE6: =IF(Tableau1[[#This Row],[Date rencontre familiale]]="","",Tableau1[[#This Row],[Date rencontre familiale]]-Tableau1[[#This Row],[Date d''admission]]) ->  | AF6: =IF(Tableau1[[#This Row],[Date congé]]<>"",Tableau1[[#This Row],[Date congé]],"") -> 44271 | AG6: =IF(Tableau1[[#This Row],[Date de fin Soins actifs]]<>"","Non","Oui") -> Non | AI6: 44271 | AJ6: =IFERROR(VLOOKUP(Tableau1[[#This Row],[Date congé]],Tableau1618[],4,1),"") -> P13 | AK6: =IFERROR(VLOOKUP(Tableau1[[#This Row],[Date congé]],Tableau1618[],5,1),"") -> 2020-2021 | AL6: =CONCATENATE(Tableau1[[#This Row],[Période (congé)]]," ",Tableau1[[#This Row],[Année (congé)]]) -> P13 2020-2021 | AM6: =IFERROR(VLOOKUP(Tableau1[[#This Row],[Période/année (congé)]],Tableau1618[[Période année]:[Fin]],3,0),"") -> 44286 | AN6: =IF(AND(Tableau1[[#This Row],[Statut]]="Congé",Tableau1[[#This Row],[Date d''admission]]<>""),IF(Tableau1[[#This Row],[Date congé]]>=Tableau1[[#This Row],[Fin période (admission)]],Tableau1[[#This Row],[Date congé]]-Tableau1[[#This Row],[Fin période (admission)]],0),0) -> 0 | AO6: =IF(AND(Tableau1[[#This Row],[Date congé prévu]]<>"",Tableau1[[#This Row],[Date congé]]<>""),Tableau1[[#This Row],[Date congé]]-Tableau1[[#This Row],[Date congé prévu]],"") ->  | AP6: =SUM(Tableau1[[#This Row],[Séjour 1]]+Tableau1[[#This Row],[Séjour 2]]) -> 12 | AQ6: =IF(AND(Tableau1[[#This Row],[Date de fin Soins actifs]]<>"",Tableau1[[#This Row],[Date congé]]<>""),IF(Tableau1[[#This Row],[Date de fin Soins actifs]]<>Tableau1[[#This Row],[Date congé]],"Devient NSA durant séjour","Quitte avant de devenir NSA"),"") -> Quitte avant de devenir NSA | AR6: =IF(Tableau1[[#This Row],[NSA]]="Devient NSA durant PEC",Tableau1[[#This Row],[Date congé]]-Tableau1[[#This Row],[Date de fin Soins actifs]],"") ->  | AS6: Décès | AU6: 8 | AY6: =IFERROR(DATEDIF(Tableau1[[#This Row],[Date dépôt demande]],Tableau1[[#This Row],[Date d''admission]],"D"),"") -> 1 | AZ6: =IFERROR(IF(AND(Tableau1[[#This Row],[Date de fin Soins actifs]]<>"",Tableau1[[#This Row],[Date congé]]<>""),DATEDIF(Tableau1[[#This Row],[Date de fin Soins actifs]],Tableau1[[#This Row],[Date congé]],"D"),""),"") -> 0 | BB6: =IF(Tableau1[[#This Row],[Date dépôt MAH]]="","",Tableau1[[#This Row],[Date dépôt MAH]]-Tableau1[[#This Row],[Date d''admission]]) ->  | BC6: =IF(Tableau1[[#This Row],[Date dépôt MAH]]="","",Tableau1[[#This Row],[Date congé]]-Tableau1[[#This Row],[Date dépôt MAH]]) ->  | BE6: =IFERROR(DATEDIF(Tableau1[[#This Row],[Date orientation]],Tableau1[[#This Row],[Date congé]],"D"),"") -> 44271
A7: Drummond | B7: CFGH | C7: 1064 | D7: =IFERROR(VLOOKUP(C7,Chambres,3,FALSE),"") -> 1NC | E7: =IF(AND(Tableau1[[#This Row],[Date d''admission]]<>"",Tableau1[[#This Row],[Date congé]]=""),"Occupée",IF(Tableau1[[#This Row],[Date congé]]<>"","Congé","Libre")) -> Congé | H7: P034513 | I7: 14511 | J7: =(IF(Tableau1[[#This Row],[Date de naissance]]<>"",DATEDIF(Tableau1[[#This Row],[Date de naissance]],TODAY(),"Y"),"")) -> 81 | K7: =IF(Tableau1[[#This Row],[Âge]]<=60,"60 et -",IF(Tableau1[[#This Row],[Âge]]<=65,"61-65",IF(Tableau1[[#This Row],[Âge]]<=70,"66-70",IF(Tableau1[[#This Row],[Âge]]<=75,"71-75",IF(Tableau1[[#This Row],[Âge]]<=80,"76-80",IF(Tableau1[[#This Row],[Âge]]<=85,"81-85",IF(Tableau1[[#This Row],[Âge]]<=110,"86 et +",""))))))) -> 81-85 | L7: 44288 | M7: =IFERROR(VLOOKUP(Tableau1[[#This Row],[Date dépôt demande]],Tableau1618[],4,1),"") -> P01 | N7: =IFERROR(VLOOKUP(Tableau1[[#This Row],[Date dépôt demande]],Tableau1618[],5,1),"") -> 2021-2022 | O7: Éval-ori | P7: HSC | Q7: 44292 | R7: =IFERROR(VLOOKUP(Tableau1[[#This Row],[Date d''admission]],Tableau1618[],4,1),"") -> P01 | S7: =IFERROR(VLOOKUP(Tableau1[[#This Row],[Date d''admission]],Tableau1618[],5,1),"") -> 2021-2022 | T7: =CONCATENATE(Tableau1[[#This Row],[Période (admission)]]," ",Tableau1[[#This Row],[Année (admission)]]) -> P01 2021-2022 | U7: =IFERROR(VLOOKUP(Tableau1[[#This Row],[Période/année (admission)]],Tableau1618[[Période année]:[Fin]],3,0),"") -> 44310 | V7: =IF(AND(Tableau1[[#This Row],[Statut]]="Congé",Tableau1[[#This Row],[Date d''admission]]<>""),IF(Tableau1[[#This Row],[Date congé]]<=Tableau1[[#This Row],[Fin période (admission)]],Tableau1[[#This Row],[Date congé]]-Tableau1[[#This Row],[Date d''admission]],Tableau1[[#This Row],[Fin période (admission)]]-Tableau1[[#This Row],[Date d''admission]]),0) -> 18 | W7: =IFERROR(IF(Tableau1[[#This Row],[Date d''admission]]<>"",IF(Tableau1[[#This Row],[Site]]="René_Léosa",Tableau1[[#This Row],[Date d''admission]]+45,"")),"") ->  | Y7: 710 | AA7: Oui | AD7: =IF(Tableau1[[#This Row],[Date rencontre familiale]]="","Non","Oui") -> Non | AE7: =IF(Tableau1[[#This Row],[Date rencontre familiale]]="","",Tableau1[[#This Row],[Date rencontre familiale]]-Tableau1[[#This Row],[Date d''admission]]) ->  | AF7: =IF(Tableau1[[#This Row],[Date congé]]<>"",Tableau1[[#This Row],[Date congé]],"") -> 44356 | AG7: =IF(Tableau1[[#This Row],[Date de fin Soins actifs]]<>"","Non","Oui") -> Non | AI7: 44356 | AJ7: =IFERROR(VLOOKUP(Tableau1[[#This Row],[Date congé]],Tableau1618[],4,1),"") -> P03 | AK7: =IFERROR(VLOOKUP(Tableau1[[#This Row],[Date congé]],Tableau1618[],5,1),"") -> 2021-2022 | AL7: =CONCATENATE(Tableau1[[#This Row],[Période (congé)]]," ",Tableau1[[#This Row],[Année (congé)]]) -> P03 2021-2022 | AM7: =IFERROR(VLOOKUP(Tableau1[[#This Row],[Période/année (congé)]],Tableau1618[[Période année]:[Fin]],3,0),"") -> 44366 | AN7: =IF(AND(Tableau1[[#This Row],[Statut]]="Congé",Tableau1[[#This Row],[Date d''admission]]<>""),IF(Tableau1[[#This Row],[Date congé]]>=Tableau1[[#This Row],[Fin période (admission)]],Tableau1[[#This Row],[Date congé]]-Tableau1[[#This Row],[Fin période (admission)]],0),0) -> 46 | AO7: =IF(AND(Tableau1[[#This Row],[Date congé prévu]]<>"",Tableau1[[#This Row],[Date congé]]<>""),Tableau1[[#This Row],[Date congé]]-Tableau1[[#This Row],[Date congé prévu]],"") ->  | AP7: =SUM(Tableau1[[#This Row],[Séjour 1]]+Tableau1[[#This Row],[Séjour 2]]) -> 64 | AQ7: =IF(AND(Tableau1[[#This Row],[Date de fin Soins actifs]]<>"",Tableau1[[#This Row],[Date congé]]<>""),IF(Tableau1[[#This Row],[Date de fin Soins actifs]]<>Tableau1[[#This Row],[Date congé]],"Devient NSA durant séjour","Quitte avant de devenir NSA"),"") -> Quitte avant de devenir NSA | AR7: =IF(Tableau1[[#This Row],[NSA]]="Devient NSA durant PEC",Tableau1[[#This Row],[Date congé]]-Tableau1[[#This Row],[Date de fin Soins actifs]],"") ->  | AS7: Relocalisation RPA | AT7: 710 | AU7: 3 | AV7: Soins infirmiers | AY7: =IFERROR(DATEDIF(Tableau1[[#This Row],[Date dépôt demande]],Tableau1[[#This Row],[Date d''admission]],"D"),"") -> 4 | AZ7: =IFERROR(IF(AND(Tableau1[[#This Row],[Date de fin Soins actifs]]<>"",Tableau1[[#This Row],[Date congé]]<>""),DATEDIF(Tableau1[[#This Row],[Date de fin Soins actifs]],Tableau1[[#This Row],[Date congé]],"D"),""),"") -> 0 | BB7: =IF(Tableau1[[#This Row],[Date dépôt MAH]]="","",Tableau1[[#This Row],[Date dépôt MAH]]-Tableau1[[#This Row],[Date d''admission]]) ->  | BC7: =IF(Tableau1[[#This Row],[Date dépôt MAH]]="","",Tableau1[[#This Row],[Date congé]]-Tableau1[[#This Row],[Date dépôt MAH]]) ->  | BE7: =IFERROR(DATEDIF(Tableau1[[#This Row],[Date orientation]],Tableau1[[#This Row],[Date congé]],"D"),"") -> 44356
A8: Drummond | B8: CFGH | C8: 1079A | D8: =IFERROR(VLOOKUP(C8,Chambres,3,FALSE),"") -> 1NP | E8: =IF(AND(Tableau1[[#This Row],[Date d''admission]]<>"",Tableau1[[#This Row],[Date congé]]=""),"Occupée",IF(Tableau1[[#This Row],[Date congé]]<>"","Congé","Libre")) -> Congé | H8: P136412 | I8: 11166 | J8: =(IF(Tableau1[[#This Row],[Date de naissance]]<>"",DATEDIF(Tableau1[[#This Row],[Date de naissance]],TODAY(),"Y"),"")) -> 91 | K8: =IF(Tableau1[[#This Row],[Âge]]<=60,"60 et -",IF(Tableau1[[#This Row],[Âge]]<=65,"61-65",IF(Tableau1[[#This Row],[Âge]]<=70,"66-70",IF(Tableau1[[#This Row],[Âge]]<=75,"71-75",IF(Tableau1[[#This Row],[Âge]]<=80,"76-80",IF(Tableau1[[#This Row],[Âge]]<=85,"81-85",IF(Tableau1[[#This Row],[Âge]]<=110,"86 et +",""))))))) -> 86 et + | L8: 44278 | M8: =IFERROR(VLOOKUP(Tableau1[[#This Row],[Date dépôt demande]],Tableau1618[],4,1),"") -> P13 | N8: =IFERROR(VLOOKUP(Tableau1[[#This Row],[Date dépôt demande]],Tableau1618[],5,1),"") -> 2020-2021 | O8: Éval-ori | P8: HSC | Q8: 44280 | R8: =IFERROR(VLOOKUP(Tableau1[[#This Row],[Date d''admission]],Tableau1618[],4,1),"") -> P13 | S8: =IFERROR(VLOOKUP(Tableau1[[#This Row],[Date d''admission]],Tableau1618[],5,1),"") -> 2020-2021 | T8: =CONCATENATE(Tableau1[[#This Row],[Période (admission)]]," ",Tableau1[[#This Row],[Année (admission)]]) -> P13 2020-2021 | U8: =IFERROR(VLOOKUP(Tableau1[[#This Row],[Période/année (admission)]],Tableau1618[[Période année]:[Fin]],3,0),"") -> 44286 | V8: =IF(AND(Tableau1[[#This Row],[Statut]]="Congé",Tableau1[[#This Row],[Date d''admission]]<>""),IF(Tableau1[[#This Row],[Date congé]]<=Tableau1[[#This Row],[Fin période (admission)]],Tableau1[[#This Row],[Date congé]]-Tableau1[[#This Row],[Date d''admission]],Tableau1[[#This Row],[Fin période (admission)]]-Tableau1[[#This Row],[Date d''admission]]),0) -> 6 | W8: =IFERROR(IF(Tableau1[[#This Row],[Date d''admission]]<>"",IF(Tableau1[[#This Row],[Site]]="René_Léosa",Tableau1[[#This Row],[Date d''admission]]+45,"")),"") ->  | Y8: 710 | AA8: Oui | AD8: =IF(Tableau1[[#This Row],[Date rencontre familiale]]="","Non","Oui") -> Non | AE8: =IF(Tableau1[[#This Row],[Date rencontre familiale]]="","",Tableau1[[#This Row],[Date rencontre familiale]]-Tableau1[[#This Row],[Date d''admission]]) ->  | AF8: =IF(Tableau1[[#This Row],[Date congé]]<>"",Tableau1[[#This Row],[Date congé]],"") -> 44368 | AG8: =IF(Tableau1[[#This Row],[Date de fin Soins actifs]]<>"","Non","Oui") -> Non | AI8: 44368 | AJ8: =IFERROR(VLOOKUP(Tableau1[[#This Row],[Date congé]],Tableau1618[],4,1),"") -> P04 | AK8: =IFERROR(VLOOKUP(Tableau1[[#This Row],[Date congé]],Tableau1618[],5,1),"") -> 2021-2022 | AL8: =CONCATENATE(Tableau1[[#This Row],[Période (congé)]]," ",Tableau1[[#This Row],[Année (congé)]]) -> P04 2021-2022 | AM8: =IFERROR(VLOOKUP(Tableau1[[#This Row],[Période/année (congé)]],Tableau1618[[Période année]:[Fin]],3,0),"") -> 44394 | AN8: =IF(AND(Tableau1[[#This Row],[Statut]]="Congé",Tableau1[[#This Row],[Date d''admission]]<>""),IF(Tableau1[[#This Row],[Date congé]]>=Tableau1[[#This Row],[Fin période (admission)]],Tableau1[[#This Row],[Date congé]]-Tableau1[[#This Row],[Fin période (admission)]],0),0) -> 82 | AO8: =IF(AND(Tableau1[[#This Row],[Date congé prévu]]<>"",Tableau1[[#This Row],[Date congé]]<>""),Tableau1[[#This Row],[Date congé]]-Tableau1[[#This Row],[Date congé prévu]],"") ->  | AP8: =SUM(Tableau1[[#This Row],[Séjour 1]]+Tableau1[[#This Row],[Séjour 2]]) -> 88 | AQ8: =IF(AND(Tableau1[[#This Row],[Date de fin Soins actifs]]<>"",Tableau1[[#This Row],[Date congé]]<>""),IF(Tableau1[[#This Row],[Date de fin Soins actifs]]<>Tableau1[[#This Row],[Date congé]],"Devient NSA durant séjour","Quitte avant de devenir NSA"),"") -> Quitte avant de devenir NSA | AR8: =IF(Tableau1[[#This Row],[NSA]]="Devient NSA durant PEC",Tableau1[[#This Row],[Date congé]]-Tableau1[[#This Row],[Date de fin Soins actifs]],"") ->  | AS8: Relocalisation RPA | AT8: 710 | AU8: 11 | AV8: Service social s.inf | AW8: 2021-02-23 | AY8: =IFERROR(DATEDIF(Tableau1[[#This Row],[Date dépôt demande]],Tableau1[[#This Row],[Date d''admission]],"D"),"") -> 2 | AZ8: =IFERROR(IF(AND(Tableau1[[#This Row],[Date de fin Soins actifs]]<>"",Tableau1[[#This Row],[Date congé]]<>""),DATEDIF(Tableau1[[#This Row],[Date de fin Soins actifs]],Tableau1[[#This Row],[Date congé]],"D"),""),"") -> 0 | BB8: =IF(Tableau1[[#This Row],[Date dépôt MAH]]="","",Tableau1[[#This Row],[Date dépôt MAH]]-Tableau1[[#This Row],[Date d''admission]]) ->  | BC8: =IF(Tableau1[[#This Row],[Date dépôt MAH]]="","",Tableau1[[#This Row],[Date congé]]-Tableau1[[#This Row],[Date dépôt MAH]]) ->  | BE8: =IFERROR(DATEDIF(Tableau1[[#This Row],[Date orientation]],Tableau1[[#This Row],[Date congé]],"D"),"") -> 44368
A9: Drummond | B9: René_Léosa | C9: 15 | D9: =IFERROR(VLOOKUP(C9,Chambres,3,FALSE),"") -> Régulière | E9: =IF(AND(Tableau1[[#This Row],[Date d''admission]]<>"",Tableau1[[#This Row],[Date congé]]=""),"Occupée",IF(Tableau1[[#This Row],[Date congé]]<>"","Congé","Libre")) -> Congé | H9: P086417 | I9: 16954 | J9: =(IF(Tableau1[[#This Row],[Date de naissance]]<>"",DATEDIF(Tableau1[[#This Row],[Date de naissance]],TODAY(),"Y"),"")) -> 75 | K9: =IF(Tableau1[[#This Row],[Âge]]<=60,"60 et -",IF(Tableau1[[#This Row],[Âge]]<=65,"61-65",IF(Tableau1[[#This Row],[Âge]]<=70,"66-70",IF(Tableau1[[#This Row],[Âge]]<=75,"71-75",IF(Tableau1[[#This Row],[Âge]]<=80,"76-80",IF(Tableau1[[#This Row],[Âge]]<=85,"81-85",IF(Tableau1[[#This Row],[Âge]]<=110,"86 et +",""))))))) -> 71-75 | L9: 44341 | M9: =IFERROR(VLOOKUP(Tableau1[[#This Row],[Date dépôt demande]],Tableau1618[],4,1),"") -> P03 | N9: =IFERROR(VLOOKUP(Tableau1[[#This Row],[Date dépôt demande]],Tableau1618[],5,1),"") -> 2021-2022 | O9: Autre | P9: HSC | Q9: 44361 | R9: =IFERROR(VLOOKUP(Tableau1[[#This Row],[Date d''admission]],Tableau1618[],4,1),"") -> P03 | S9: =IFERROR(VLOOKUP(Tableau1[[#This Row],[Date d''admission]],Tableau1618[],5,1),"") -> 2021-2022 | T9: =CONCATENATE(Tableau1[[#This Row],[Période (admission)]]," ",Tableau1[[#This Row],[Année (admission)]]) -> P03 2021-2022 | U9: =IFERROR(VLOOKUP(Tableau1[[#This Row],[Période/année (admission)]],Tableau1618[[Période année]:[Fin]],3,0),"") -> 44366 | V9: =IF(AND(Tableau1[[#This Row],[Statut]]="Congé",Tableau1[[#This Row],[Date d''admission]]<>""),IF(Tableau1[[#This Row],[Date congé]]<=Tableau1[[#This Row],[Fin période (admission)]],Tableau1[[#This Row],[Date congé]]-Tableau1[[#This Row],[Date d''admission]],Tableau1[[#This Row],[Fin période (admission)]]-Tableau1[[#This Row],[Date d''admission]]),0) -> 5 | W9: =IFERROR(IF(Tableau1[[#This Row],[Date d''admission]]<>"",IF(Tableau1[[#This Row],[Site]]="René_Léosa",Tableau1[[#This Row],[Date d''admission]]+45,"")),"") -> 44406 | X9: 60 | Y9: 110 | AA9: Oui | AD9: =IF(Tableau1[[#This Row],[Date rencontre familiale]]="","Non","Oui") -> Non | AE9: =IF(Tableau1[[#This Row],[Date rencontre familiale]]="","",Tableau1[[#This Row],[Date rencontre familiale]]-Tableau1[[#This Row],[Date d''admission]]) ->  | AF9: =IF(Tableau1[[#This Row],[Date congé]]<>"",Tableau1[[#This Row],[Date congé]],"") -> 44407 | AG9: =IF(Tableau1[[#This Row],[Date de fin Soins actifs]]<>"","Non","Oui") -> Non | AH9: 44438 | AI9: 44407 | AJ9: =IFERROR(VLOOKUP(Tableau1[[#This Row],[Date congé]],Tableau1618[],4,1),"") -> P05 | AK9: =IFERROR(VLOOKUP(Tableau1[[#This Row],[Date congé]],Tableau1618[],5,1),"") -> 2021-2022 | AL9: =CONCATENATE(Tableau1[[#This Row],[Période (congé)]]," ",Tableau1[[#This Row],[Année (congé)]]) -> P05 2021-2022 | AM9: =IFERROR(VLOOKUP(Tableau1[[#This Row],[Période/année (congé)]],Tableau1618[[Période année]:[Fin]],3,0),"") -> 44422 | AN9: =IF(AND(Tableau1[[#This Row],[Statut]]="Congé",Tableau1[[#This Row],[Date d''admission]]<>""),IF(Tableau1[[#This Row],[Date congé]]>=Tableau1[[#This Row],[Fin période (admission)]],Tableau1[[#This Row],[Date congé]]-Tableau1[[#This Row],[Fin période (admission)]],0),0) -> 41 | AO9: =IF(AND(Tableau1[[#This Row],[Date congé prévu]]<>"",Tableau1[[#This Row],[Date congé]]<>""),Tableau1[[#This Row],[Date congé]]-Tableau1[[#This Row],[Date congé prévu]],"") -> -31 | AP9: =SUM(Tableau1[[#This Row],[Séjour 1]]+Tableau1[[#This Row],[Séjour 2]]) -> 46 | AQ9: =IF(AND(Tableau1[[#This Row],[Date de fin Soins actifs]]<>"",Tableau1[[#This Row],[Date congé]]<>""),IF(Tableau1[[#This Row],[Date de fin Soins actifs]]<>Tableau1[[#This Row],[Date congé]],"Devient NSA durant séjour","Quitte avant de devenir NSA"),"") -> Quitte avant de devenir NSA | AR9: =IF(Tableau1[[#This Row],[NSA]]="Devient NSA durant PEC",Tableau1[[#This Row],[Date congé]]-Tableau1[[#This Row],[Date de fin Soins actifs]],"") ->  | AS9: Retour à domicile | AT9: 110 | AV9: Physiothérapie | AW9: refuse | AY9: =IFERROR(DATEDIF(Tableau1[[#This Row],[Date dépôt demande]],Tableau1[[#This Row],[Date d''admission]],"D"),"") -> 20 | AZ9: =IFERROR(IF(AND(Tableau1[[#This Row],[Date de fin Soins actifs]]<>"",Tableau1[[#This Row],[Date congé]]<>""),DATEDIF(Tableau1[[#This Row],[Date de fin Soins actifs]],Tableau1[[#This Row],[Date congé]],"D"),""),"") -> 0 | BB9: =IF(Tableau1[[#This Row],[Date dépôt MAH]]="","",Tableau1[[#This Row],[Date dépôt MAH]]-Tableau1[[#This Row],[Date d''admission]]) ->  | BC9: =IF(Tableau1[[#This Row],[Date dépôt MAH]]="","",Tableau1[[#This Row],[Date congé]]-Tableau1[[#This Row],[Date dépôt MAH]]) ->  | BE9: =IFERROR(DATEDIF(Tableau1[[#This Row],[Date orientation]],Tableau1[[#This Row],[Date congé]],"D"),"") -> 44407 | BF9: Externe
A10: Drummond | B10: René_Léosa | C10: 28 | D10: =IFERROR(VLOOKUP(C10,Chambres,3,FALSE),"") ->  | E10: =IF(AND(Tableau1[[#This Row],[Date d''admission]]<>"",Tableau1[[#This Row],[Date congé]]=""),"Occupée",IF(Tableau1[[#This Row],[Date congé]]<>"","Congé","Libre")) -> Congé | H10: P164919 | I10: 21421 | J10: =(IF(Tableau1[[#This Row],[Date de naissance]]<>"",DATEDIF(Tableau1[[#This Row],[Date de naissance]],TODAY(),"Y"),"")) -> 62 | K10: =IF(Tableau1[[#This Row],[Âge]]<=60,"60 et -",IF(Tableau1[[#This Row],[Âge]]<=65,"61-65",IF(Tableau1[[#This Row],[Âge]]<=70,"66-70",IF(Tableau1[[#This Row],[Âge]]<=75,"71-75",IF(Tableau1[[#This Row],[Âge]]<=80,"76-80",IF(Tableau1[[#This Row],[Âge]]<=85,"81-85",IF(Tableau1[[#This Row],[Âge]]<=110,"86 et +",""))))))) -> 61-65 | L10: 43951 | M10: =IFERROR(VLOOKUP(Tableau1[[#This Row],[Date dépôt demande]],Tableau1618[],4,1),"") -> P02 | N10: =IFERROR(VLOOKUP(Tableau1[[#This Row],[Date dépôt demande]],Tableau1618[],5,1),"") -> 2020-2021 | O10: UTRF | P10: HSC | Q10: 43952 | R10: =IFERROR(VLOOKUP(Tableau1[[#This Row],[Date d''admission]],Tableau1618[],4,1),"") -> P02 | S10: =IFERROR(VLOOKUP(Tableau1[[#This Row],[Date d''admission]],Tableau1618[],5,1),"") -> 2020-2021 | T10: =CONCATENATE(Tableau1[[#This Row],[Période (admission)]]," ",Tableau1[[#This Row],[Année (admission)]]) -> P02 2020-2021 | U10: =IFERROR(VLOOKUP(Tableau1[[#This Row],[Période/année (admission)]],Tableau1618[[Période année]:[Fin]],3,0),"") -> 43974 | V10: =IF(AND(Tableau1[[#This Row],[Statut]]="Congé",Tableau1[[#This Row],[Date d''admission]]<>""),IF(Tableau1[[#This Row],[Date congé]]<=Tableau1[[#This Row],[Fin période (admission)]],Tableau1[[#This Row],[Date congé]]-Tableau1[[#This Row],[Date d''admission]],Tableau1[[#This Row],[Fin période (admission)]]-Tableau1[[#This Row],[Date d''admission]]),0) -> 22 | W10: =IFERROR(IF(Tableau1[[#This Row],[Date d''admission]]<>"",IF(Tableau1[[#This Row],[Site]]="René_Léosa",Tableau1[[#This Row],[Date d''admission]]+45,"")),"") -> 43997 | Y10: 191 | AA10: Non | AB10: r-oh, consomm. Avec site IV | AD10: =IF(Tableau1[[#This Row],[Date rencontre familiale]]="","Non","Oui") -> Non | AE10: =IF(Tableau1[[#This Row],[Date rencontre familiale]]="","",Tableau1[[#This Row],[Date rencontre familiale]]-Tableau1[[#This Row],[Date d''admission]]) ->  | AF10: =IF(Tableau1[[#This Row],[Date congé]]<>"",Tableau1[[#This Row],[Date congé]],"") -> 43977 | AG10: =IF(Tableau1[[#This Row],[Date de fin Soins actifs]]<>"","Non","Oui") -> Non | AI10: 43977 | AJ10: =IFERROR(VLOOKUP(Tableau1[[#This Row],[Date congé]],Tableau1618[],4,1),"") -> P03 | AK10: =IFERROR(VLOOKUP(Tableau1[[#This Row],[Date congé]],Tableau1618[],5,1),"") -> 2020-2021 | AL10: =CONCATENATE(Tableau1[[#This Row],[Période (congé)]]," ",Tableau1[[#This Row],[Année (congé)]]) -> P03 2020-2021 | AM10: =IFERROR(VLOOKUP(Tableau1[[#This Row],[Période/année (congé)]],Tableau1618[[Période année]:[Fin]],3,0),"") -> 44002 | AN10: =IF(AND(Tableau1[[#This Row],[Statut]]="Congé",Tableau1[[#This Row],[Date d''admission]]<>""),IF(Tableau1[[#This Row],[Date congé]]>=Tableau1[[#This Row],[Fin période (admission)]],Tableau1[[#This Row],[Date congé]]-Tableau1[[#This Row],[Fin période (admission)]],0),0) -> 3 | AO10: =IF(AND(Tableau1[[#This Row],[Date congé prévu]]<>"",Tableau1[[#This Row],[Date congé]]<>""),Tableau1[[#This Row],[Date congé]]-Tableau1[[#This Row],[Date congé prévu]],"") ->  | AP10: =SUM(Tableau1[[#This Row],[Séjour 1]]+Tableau1[[#This Row],[Séjour 2]]) -> 25 | AQ10: =IF(AND(Tableau1[[#This Row],[Date de fin Soins actifs]]<>"",Tableau1[[#This Row],[Date congé]]<>""),IF(Tableau1[[#This Row],[Date de fin Soins actifs]]<>Tableau1[[#This Row],[Date congé]],"Devient NSA durant séjour","Quitte avant de devenir NSA"),"") -> Quitte avant de devenir NSA | AR10: =IF(Tableau1[[#This Row],[NSA]]="Devient NSA durant PEC",Tableau1[[#This Row],[Date congé]]-Tableau1[[#This Row],[Date de fin Soins actifs]],"") ->  | AS10: Retour à domicile | AY10: =IFERROR(DATEDIF(Tableau1[[#This Row],[Date dépôt demande]],Tableau1[[#This Row],[Date d''admission]],"D"),"") -> 1 | AZ10: =IFERROR(IF(AND(Tableau1[[#This Row],[Date de fin Soins actifs]]<>"",Tableau1[[#This Row],[Date congé]]<>""),DATEDIF(Tableau1[[#This Row],[Date de fin Soins actifs]],Tableau1[[#This Row],[Date congé]],"D"),""),"") -> 0 | BB10: =IF(Tableau1[[#This Row],[Date dépôt MAH]]="","",Tableau1[[#This Row],[Date dépôt MAH]]-Tableau1[[#This Row],[Date d''admission]]) ->  | BC10: =IF(Tableau1[[#This Row],[Date dépôt MAH]]="","",Tableau1[[#This Row],[Date congé]]-Tableau1[[#This Row],[Date dépôt MAH]]) ->  | BE10: =IFERROR(DATEDIF(Tableau1[[#This Row],[Date orientation]],Tableau1[[#This Row],[Date congé]],"D"),"") -> 43977
A11: Drummond | B11: CFGH | C11: 1049 | D11: =IFERROR(VLOOKUP(C11,Chambres,3,FALSE),"") -> 1NC | E11: =IF(AND(Tableau1[[#This Row],[Date d''admission]]<>"",Tableau1[[#This Row],[Date congé]]=""),"Occupée",IF(Tableau1[[#This Row],[Date congé]]<>"","Congé","Libre")) -> Congé | H11: P052826 | I11: 8698 | J11: =(IF(Tableau1[[#This Row],[Date de naissance]]<>"",DATEDIF(Tableau1[[#This Row],[Date de naissance]],TODAY(),"Y"),"")) -> 97 | K11: =IF(Tableau1[[#This Row],[Âge]]<=60,"60 et -",IF(Tableau1[[#This Row],[Âge]]<=65,"61-65",IF(Tableau1[[#This Row],[Âge]]<=70,"66-70",IF(Tableau1[[#This Row],[Âge]]<=75,"71-75",IF(Tableau1[[#This Row],[Âge]]<=80,"76-80",IF(Tableau1[[#This Row],[Âge]]<=85,"81-85",IF(Tableau1[[#This Row],[Âge]]<=110,"86 et +",""))))))) -> 86 et + | L11: 44001 | M11: =IFERROR(VLOOKUP(Tableau1[[#This Row],[Date dépôt demande]],Tableau1618[],4,1),"") -> P03 | N11: =IFERROR(VLOOKUP(Tableau1[[#This Row],[Date dépôt demande]],Tableau1618[],5,1),"") -> 2020-2021 | O11: Conval | P11: CHUS | Q11: 44004 | R11: =IFERROR(VLOOKUP(Tableau1[[#This Row],[Date d''admission]],Tableau1618[],4,1),"") -> P04 | S11: =IFERROR(VLOOKUP(Tableau1[[#This Row],[Date d''admission]],Tableau1618[],5,1),"") -> 2020-2021 | T11: =CONCATENATE(Tableau1[[#This Row],[Période (admission)]]," ",Tableau1[[#This Row],[Année (admission)]]) -> P04 2020-2021 | U11: =IFERROR(VLOOKUP(Tableau1[[#This Row],[Période/année (admission)]],Tableau1618[[Période année]:[Fin]],3,0),"") -> 44030 | V11: =IF(AND(Tableau1[[#This Row],[Statut]]="Congé",Tableau1[[#This Row],[Date d''admission]]<>""),IF(Tableau1[[#This Row],[Date congé]]<=Tableau1[[#This Row],[Fin période (admission)]],Tableau1[[#This Row],[Date congé]]-Tableau1[[#This Row],[Date d''admission]],Tableau1[[#This Row],[Fin période (admission)]]-Tableau1[[#This Row],[Date d''admission]]),0) -> 26 | W11: =IFERROR(IF(Tableau1[[#This Row],[Date d''admission]]<>"",IF(Tableau1[[#This Row],[Site]]="René_Léosa",Tableau1[[#This Row],[Date d''admission]]+45,"")),"") ->  | Y11: 710 | AA11: Oui | AD11: =IF(Tableau1[[#This Row],[Date rencontre familiale]]="","Non","Oui") -> Non | AE11: =IF(Tableau1[[#This Row],[Date rencontre familiale]]="","",Tableau1[[#This Row],[Date rencontre familiale]]-Tableau1[[#This Row],[Date d''admission]]) ->  | AF11: =IF(Tableau1[[#This Row],[Date congé]]<>"",Tableau1[[#This Row],[Date congé]],"") -> 44049 | AG11: =IF(Tableau1[[#This Row],[Date de fin Soins actifs]]<>"","Non","Oui") -> Non | AI11: 44049 | AJ11: =IFERROR(VLOOKUP(Tableau1[[#This Row],[Date congé]],Tableau1618[],4,1),"") -> P05 | AK11: =IFERROR(VLOOKUP(Tableau1[[#This Row],[Date congé]],Tableau1618[],5,1),"") -> 2020-2021 | AL11: =CONCATENATE(Tableau1[[#This Row],[Période (congé)]]," ",Tableau1[[#This Row],[Année (congé)]]) -> P05 2020-2021 | AM11: =IFERROR(VLOOKUP(Tableau1[[#This Row],[Période/année (congé)]],Tableau1618[[Période année]:[Fin]],3,0),"") -> 44058 | AN11: =IF(AND(Tableau1[[#This Row],[Statut]]="Congé",Tableau1[[#This Row],[Date d''admission]]<>""),IF(Tableau1[[#This Row],[Date congé]]>=Tableau1[[#This Row],[Fin période (admission)]],Tableau1[[#This Row],[Date congé]]-Tableau1[[#This Row],[Fin période (admission)]],0),0) -> 19 | AO11: =IF(AND(Tableau1[[#This Row],[Date congé prévu]]<>"",Tableau1[[#This Row],[Date congé]]<>""),Tableau1[[#This Row],[Date congé]]-Tableau1[[#This Row],[Date congé prévu]],"") ->  | AP11: =SUM(Tableau1[[#This Row],[Séjour 1]]+Tableau1[[#This Row],[Séjour 2]]) -> 45 | AQ11: =IF(AND(Tableau1[[#This Row],[Date de fin Soins actifs]]<>"",Tableau1[[#This Row],[Date congé]]<>""),IF(Tableau1[[#This Row],[Date de fin Soins actifs]]<>Tableau1[[#This Row],[Date congé]],"Devient NSA durant séjour","Quitte avant de devenir NSA"),"") -> Quitte avant de devenir NSA | AR11: =IF(Tableau1[[#This Row],[NSA]]="Devient NSA durant PEC",Tableau1[[#This Row],[Date congé]]-Tableau1[[#This Row],[Date de fin Soins actifs]],"") ->  | AS11: Retour à domicile | AT11: 710 | AU11: 8 | AY11: =IFERROR(DATEDIF(Tableau1[[#This Row],[Date dépôt demande]],Tableau1[[#This Row],[Date d''admission]],"D"),"") -> 3 | AZ11: =IFERROR(IF(AND(Tableau1[[#This Row],[Date de fin Soins actifs]]<>"",Tableau1[[#This Row],[Date congé]]<>""),DATEDIF(Tableau1[[#This Row],[Date de fin Soins actifs]],Tableau1[[#This Row],[Date congé]],"D"),""),"") -> 0 | BB11: =IF(Tableau1[[#This Row],[Date dépôt MAH]]="","",Tableau1[[#This Row],[Date dépôt MAH]]-Tableau1[[#This Row],[Date d''admission]]) ->  | BC11: =IF(Tableau1[[#This Row],[Date dépôt MAH]]="","",Tableau1[[#This Row],[Date congé]]-Tableau1[[#This Row],[Date dépôt MAH]]) ->  | BE11: =IFERROR(DATEDIF(Tableau1[[#This Row],[Date orientation]],Tableau1[[#This Row],[Date congé]],"D"),"") -> 44049
A12: Drummond | B12: _600_Bousquet_NSA | C12: 279 | D12: =IFERROR(VLOOKUP(C12,Chambres,3,FALSE),"") -> Prothétique | E12: =IF(AND(Tableau1[[#This Row],[Date d''admission]]<>"",Tableau1[[#This Row],[Date congé]]=""),"Occupée",IF(Tableau1[[#This Row],[Date congé]]<>"","Congé","Libre")) -> Congé | H12: P087278 | I12: 9941 | J12: =(IF(Tableau1[[#This Row],[Date de naissance]]<>"",DATEDIF(Tableau1[[#This Row],[Date de naissance]],TODAY(),"Y"),"")) -> 94 | K12: =IF(Tableau1[[#This Row],[Âge]]<=60,"60 et -",IF(Tableau1[[#This Row],[Âge]]<=65,"61-65",IF(Tableau1[[#This Row],[Âge]]<=70,"66-70",IF(Tableau1[[#This Row],[Âge]]<=75,"71-75",IF(Tableau1[[#This Row],[Âge]]<=80,"76-80",IF(Tableau1[[#This Row],[Âge]]<=85,"81-85",IF(Tableau1[[#This Row],[Âge]]<=110,"86 et +",""))))))) -> 86 et + | L12: 44197 | M12: =IFERROR(VLOOKUP(Tableau1[[#This Row],[Date dépôt demande]],Tableau1618[],4,1),"") -> P10 | N12: =IFERROR(VLOOKUP(Tableau1[[#This Row],[Date dépôt demande]],Tableau1618[],5,1),"") -> 2020-2021 | O12: Conval | P12: HSC | Q12: 44231 | R12: =IFERROR(VLOOKUP(Tableau1[[#This Row],[Date d''admission]],Tableau1618[],4,1),"") -> P12 | S12: =IFERROR(VLOOKUP(Tableau1[[#This Row],[Date d''admission]],Tableau1618[],5,1),"") -> 2020-2021 | T12: =CONCATENATE(Tableau1[[#This Row],[Période (admission)]]," ",Tableau1[[#This Row],[Année (admission)]]) -> P12 2020-2021 | U12: =IFERROR(VLOOKUP(Tableau1[[#This Row],[Période/année (admission)]],Tableau1618[[Période année]:[Fin]],3,0),"") -> 44254 | V12: =IF(AND(Tableau1[[#This Row],[Statut]]="Congé",Tableau1[[#This Row],[Date d''admission]]<>""),IF(Tableau1[[#This Row],[Date congé]]<=Tableau1[[#This Row],[Fin période (admission)]],Tableau1[[#This Row],[Date congé]]-Tableau1[[#This Row],[Date d''admission]],Tableau1[[#This Row],[Fin période (admission)]]-Tableau1[[#This Row],[Date d''admission]]),0) -> 23 | W12: =IFERROR(IF(Tableau1[[#This Row],[Date d''admission]]<>"",IF(Tableau1[[#This Row],[Site]]="René_Léosa",Tableau1[[#This Row],[Date d''admission]]+45,"")),"") ->  | Y12: 710 | AA12: Non | AD12: =IF(Tableau1[[#This Row],[Date rencontre familiale]]="","Non","Oui") -> Non | AE12: =IF(Tableau1[[#This Row],[Date rencontre familiale]]="","",Tableau1[[#This Row],[Date rencontre familiale]]-Tableau1[[#This Row],[Date d''admission]]) ->  | AF12: =IF(Tableau1[[#This Row],[Date congé]]<>"",Tableau1[[#This Row],[Date congé]],"") -> 44265 | AG12: =IF(Tableau1[[#This Row],[Date de fin Soins actifs]]<>"","Non","Oui") -> Non | AI12: 44265 | AJ12: =IFERROR(VLOOKUP(Tableau1[[#This Row],[Date congé]],Tableau1618[],4,1),"") -> P13 | AK12: =IFERROR(VLOOKUP(Tableau1[[#This Row],[Date congé]],Tableau1618[],5,1),"") -> 2020-2021 | AL12: =CONCATENATE(Tableau1[[#This Row],[Période (congé)]]," ",Tableau1[[#This Row],[Année (congé)]]) -> P13 2020-2021 | AM12: =IFERROR(VLOOKUP(Tableau1[[#This Row],[Période/année (congé)]],Tableau1618[[Période année]:[Fin]],3,0),"") -> 44286 | AN12: =IF(AND(Tableau1[[#This Row],[Statut]]="Congé",Tableau1[[#This Row],[Date d''admission]]<>""),IF(Tableau1[[#This Row],[Date congé]]>=Tableau1[[#This Row],[Fin période (admission)]],Tableau1[[#This Row],[Date congé]]-Tableau1[[#This Row],[Fin période (admission)]],0),0) -> 11 | AO12: =IF(AND(Tableau1[[#This Row],[Date congé prévu]]<>"",Tableau1[[#This Row],[Date congé]]<>""),Tableau1[[#This Row],[Date congé]]-Tableau1[[#This Row],[Date congé prévu]],"") ->  | AP12: =SUM(Tableau1[[#This Row],[Séjour 1]]+Tableau1[[#This Row],[Séjour 2]]) -> 34 | AQ12: =IF(AND(Tableau1[[#This Row],[Date de fin Soins actifs]]<>"",Tableau1[[#This Row],[Date congé]]<>""),IF(Tableau1[[#This Row],[Date de fin Soins actifs]]<>Tableau1[[#This Row],[Date congé]],"Devient NSA durant séjour","Quitte avant de devenir NSA"),"") -> Quitte avant de devenir NSA | AR12: =IF(Tableau1[[#This Row],[NSA]]="Devient NSA durant PEC",Tableau1[[#This Row],[Date congé]]-Tableau1[[#This Row],[Date de fin Soins actifs]],"") ->  | AS12: Relocalisation RPA | AT12: 191 | AU12: 8 | AV12: Service social | AY12: =IFERROR(DATEDIF(Tableau1[[#This Row],[Date dépôt demande]],Tableau1[[#This Row],[Date d''admission]],"D"),"") -> 34 | AZ12: =IFERROR(IF(AND(Tableau1[[#This Row],[Date de fin Soins actifs]]<>"",Tableau1[[#This Row],[Date congé]]<>""),DATEDIF(Tableau1[[#This Row],[Date de fin Soins actifs]],Tableau1[[#This Row],[Date congé]],"D"),""),"") -> 0 | BB12: =IF(Tableau1[[#This Row],[Date dépôt MAH]]="","",Tableau1[[#This Row],[Date dépôt MAH]]-Tableau1[[#This Row],[Date d''admission]]) ->  | BC12: =IF(Tableau1[[#This Row],[Date dépôt MAH]]="","",Tableau1[[#This Row],[Date congé]]-Tableau1[[#This Row],[Date dépôt MAH]]) ->  | BE12: =IFERROR(DATEDIF(Tableau1[[#This Row],[Date orientation]],Tableau1[[#This Row],[Date congé]],"D"),"") -> 44265
A13: Drummond | B13: CFGH | C13: 1051 | D13: =IFERROR(VLOOKUP(C13,Chambres,3,FALSE),"") -> 1NC | E13: =IF(AND(Tableau1[[#This Row],[Date d''admission]]<>"",Tableau1[[#This Row],[Date congé]]=""),"Occupée",IF(Tableau1[[#This Row],[Date congé]]<>"","Congé","Libre")) -> Congé | H13: P066377 | I13: 14526 | J13: =(IF(Tableau1[[#This Row],[Date de naissance]]<>"",DATEDIF(Tableau1[[#This Row],[Date de naissance]],TODAY(),"Y"),"")) -> 81 | K13: =IF(Tableau1[[#This Row],[Âge]]<=60,"60 et -",IF(Tableau1[[#This Row],[Âge]]<=65,"61-65",IF(Tableau1[[#This Row],[Âge]]<=70,"66-70",IF(Tableau1[[#This Row],[Âge]]<=75,"71-75",IF(Tableau1[[#This Row],[Âge]]<=80,"76-80",IF(Tableau1[[#This Row],[Âge]]<=85,"81-85",IF(Tableau1[[#This Row],[Âge]]<=110,"86 et +",""))))))) -> 81-85 | L13: 44024 | M13: =IFERROR(VLOOKUP(Tableau1[[#This Row],[Date dépôt demande]],Tableau1618[],4,1),"") -> P04 | N13: =IFERROR(VLOOKUP(Tableau1[[#This Row],[Date dépôt demande]],Tableau1618[],5,1),"") -> 2020-2021 | Q13: 44025 | R13: =IFERROR(VLOOKUP(Tableau1[[#This Row],[Date d''admission]],Tableau1618[],4,1),"") -> P04 | S13: =IFERROR(VLOOKUP(Tableau1[[#This Row],[Date d''admission]],Tableau1618[],5,1),"") -> 2020-2021 | T13: =CONCATENATE(Tableau1[[#This Row],[Période (admission)]]," ",Tableau1[[#This Row],[Année (admission)]]) -> P04 2020-2021 | U13: =IFERROR(VLOOKUP(Tableau1[[#This Row],[Période/année (admission)]],Tableau1618[[Période année]:[Fin]],3,0),"") -> 44030 | V13: =IF(AND(Tableau1[[#This Row],[Statut]]="Congé",Tableau1[[#This Row],[Date d''admission]]<>""),IF(Tableau1[[#This Row],[Date congé]]<=Tableau1[[#This Row],[Fin période (admission)]],Tableau1[[#This Row],[Date congé]]-Tableau1[[#This Row],[Date d''admission]],Tableau1[[#This Row],[Fin période (admission)]]-Tableau1[[#This Row],[Date d''admission]]),0) -> 5 | W13: =IFERROR(IF(Tableau1[[#This Row],[Date d''admission]]<>"",IF(Tableau1[[#This Row],[Site]]="René_Léosa",Tableau1[[#This Row],[Date d''admission]]+45,"")),"") ->  | Y13: 710 | AD13: =IF(Tableau1[[#This Row],[Date rencontre familiale]]="","Non","Oui") -> Non | AE13: =IF(Tableau1[[#This Row],[Date rencontre familiale]]="","",Tableau1[[#This Row],[Date rencontre familiale]]-Tableau1[[#This Row],[Date d''admission]]) ->  | AF13: =IF(Tableau1[[#This Row],[Date congé]]<>"",Tableau1[[#This Row],[Date congé]],"") -> 44042 | AG13: =IF(Tableau1[[#This Row],[Date de fin Soins actifs]]<>"","Non","Oui") -> Non | AI13: 44042 | AJ13: =IFERROR(VLOOKUP(Tableau1[[#This Row],[Date congé]],Tableau1618[],4,1),"") -> P05 | AK13: =IFERROR(VLOOKUP(Tableau1[[#This Row],[Date congé]],Tableau1618[],5,1),"") -> 2020-2021 | AL13: =CONCATENATE(Tableau1[[#This Row],[Période (congé)]]," ",Tableau1[[#This Row],[Année (congé)]]) -> P05 2020-2021 | AM13: =IFERROR(VLOOKUP(Tableau1[[#This Row],[Période/année (congé)]],Tableau1618[[Période année]:[Fin]],3,0),"") -> 44058 | AN13: =IF(AND(Tableau1[[#This Row],[Statut]]="Congé",Tableau1[[#This Row],[Date d''admission]]<>""),IF(Tableau1[[#This Row],[Date congé]]>=Tableau1[[#This Row],[Fin période (admission)]],Tableau1[[#This Row],[Date congé]]-Tableau1[[#This Row],[Fin période (admission)]],0),0) -> 12 | AO13: =IF(AND(Tableau1[[#This Row],[Date congé prévu]]<>"",Tableau1[[#This Row],[Date congé]]<>""),Tableau1[[#This Row],[Date congé]]-Tableau1[[#This Row],[Date congé prévu]],"") ->  | AP13: =SUM(Tableau1[[#This Row],[Séjour 1]]+Tableau1[[#This Row],[Séjour 2]]) -> 17 | AQ13: =IF(AND(Tableau1[[#This Row],[Date de fin Soins actifs]]<>"",Tableau1[[#This Row],[Date congé]]<>""),IF(Tableau1[[#This Row],[Date de fin Soins actifs]]<>Tableau1[[#This Row],[Date congé]],"Devient NSA durant séjour","Quitte avant de devenir NSA"),"") -> Quitte avant de devenir NSA | AR13: =IF(Tableau1[[#This Row],[NSA]]="Devient NSA durant PEC",Tableau1[[#This Row],[Date congé]]-Tableau1[[#This Row],[Date de fin Soins actifs]],"") ->  | AS13: Retour à domicile | AT13: 710 | AU13: 8 | AV13: Ergothérapie | AY13: =IFERROR(DATEDIF(Tableau1[[#This Row],[Date dépôt demande]],Tableau1[[#This Row],[Date d''admission]],"D"),"") -> 1 | AZ13: =IFERROR(IF(AND(Tableau1[[#This Row],[Date de fin Soins actifs]]<>"",Tableau1[[#This Row],[Date congé]]<>""),DATEDIF(Tableau1[[#This Row],[Date de fin Soins actifs]],Tableau1[[#This Row],[Date congé]],"D"),""),"") -> 0 | BB13: =IF(Tableau1[[#This Row],[Date dépôt MAH]]="","",Tableau1[[#This Row],[Date dépôt MAH]]-Tableau1[[#This Row],[Date d''admission]]) ->  | BC13: =IF(Tableau1[[#This Row],[Date dépôt MAH]]="","",Tableau1[[#This Row],[Date congé]]-Tableau1[[#This Row],[Date dépôt MAH]]) ->  | BE13: =IFERROR(DATEDIF(Tableau1[[#This Row],[Date orientation]],Tableau1[[#This Row],[Date congé]],"D"),"") -> 44042
A14: Drummond | B14: _600_Bousquet_NSA | C14: 258 | D14: =IFERROR(VLOOKUP(C14,Chambres,3,FALSE),"") ->  | E14: =IF(AND(Tableau1[[#This Row],[Date d''admission]]<>"",Tableau1[[#This Row],[Date congé]]=""),"Occupée",IF(Tableau1[[#This Row],[Date congé]]<>"","Congé","Libre")) -> Congé | H14: P090547 | I14: 15570 | J14: =(IF(Tableau1[[#This Row],[Date de naissance]]<>"",DATEDIF(Tableau1[[#This Row],[Date de naissance]],TODAY(),"Y"),"")) -> 78 | K14: =IF(Tableau1[[#This Row],[Âge]]<=60,"60 et -",IF(Tableau1[[#This Row],[Âge]]<=65,"61-65",IF(Tableau1[[#This Row],[Âge]]<=70,"66-70",IF(Tableau1[[#This Row],[Âge]]<=75,"71-75",IF(Tableau1[[#This Row],[Âge]]<=80,"76-80",IF(Tableau1[[#This Row],[Âge]]<=85,"81-85",IF(Tableau1[[#This Row],[Âge]]<=110,"86 et +",""))))))) -> 76-80 | L14: 44033 | M14: =IFERROR(VLOOKUP(Tableau1[[#This Row],[Date dépôt demande]],Tableau1618[],4,1),"") -> P05 | N14: =IFERROR(VLOOKUP(Tableau1[[#This Row],[Date dépôt demande]],Tableau1618[],5,1),"") -> 2020-2021 | O14: Éval-ori | P14: HSC | Q14: 44034 | R14: =IFERROR(VLOOKUP(Tableau1[[#This Row],[Date d''admission]],Tableau1618[],4,1),"") -> P05 | S14: =IFERROR(VLOOKUP(Tableau1[[#This Row],[Date d''admission]],Tableau1618[],5,1),"") -> 2020-2021 | T14: =CONCATENATE(Tableau1[[#This Row],[Période (admission)]]," ",Tableau1[[#This Row],[Année (admission)]]) -> P05 2020-2021 | U14: =IFERROR(VLOOKUP(Tableau1[[#This Row],[Période/année (admission)]],Tableau1618[[Période année]:[Fin]],3,0),"") -> 44058 | V14: =IF(AND(Tableau1[[#This Row],[Statut]]="Congé",Tableau1[[#This Row],[Date d''admission]]<>""),IF(Tableau1[[#This Row],[Date congé]]<=Tableau1[[#This Row],[Fin période (admission)]],Tableau1[[#This Row],[Date congé]]-Tableau1[[#This Row],[Date d''admission]],Tableau1[[#This Row],[Fin période (admission)]]-Tableau1[[#This Row],[Date d''admission]]),0) -> 5 | W14: =IFERROR(IF(Tableau1[[#This Row],[Date d''admission]]<>"",IF(Tableau1[[#This Row],[Site]]="René_Léosa",Tableau1[[#This Row],[Date d''admission]]+45,"")),"") ->  | Y14: 710 | AA14: Non | AD14: =IF(Tableau1[[#This Row],[Date rencontre familiale]]="","Non","Oui") -> Non | AE14: =IF(Tableau1[[#This Row],[Date rencontre familiale]]="","",Tableau1[[#This Row],[Date rencontre familiale]]-Tableau1[[#This Row],[Date d''admission]]) ->  | AF14: =IF(Tableau1[[#This Row],[Date congé]]<>"",Tableau1[[#This Row],[Date congé]],"") -> 44039 | AG14: =IF(Tableau1[[#This Row],[Date de fin Soins actifs]]<>"","Non","Oui") -> Non | AI14: 44039 | AJ14: =IFERROR(VLOOKUP(Tableau1[[#This Row],[Date congé]],Tableau1618[],4,1),"") -> P05 | AK14: =IFERROR(VLOOKUP(Tableau1[[#This Row],[Date congé]],Tableau1618[],5,1),"") -> 2020-2021 | AL14: =CONCATENATE(Tableau1[[#This Row],[Période (congé)]]," ",Tableau1[[#This Row],[Année (congé)]]) -> P05 2020-2021 | AM14: =IFERROR(VLOOKUP(Tableau1[[#This Row],[Période/année (congé)]],Tableau1618[[Période année]:[Fin]],3,0),"") -> 44058 | AN14: =IF(AND(Tableau1[[#This Row],[Statut]]="Congé",Tableau1[[#This Row],[Date d''admission]]<>""),IF(Tableau1[[#This Row],[Date congé]]>=Tableau1[[#This Row],[Fin période (admission)]],Tableau1[[#This Row],[Date congé]]-Tableau1[[#This Row],[Fin période (admission)]],0),0) -> 0 | AO14: =IF(AND(Tableau1[[#This Row],[Date congé prévu]]<>"",Tableau1[[#This Row],[Date congé]]<>""),Tableau1[[#This Row],[Date congé]]-Tableau1[[#This Row],[Date congé prévu]],"") ->  | AP14: =SUM(Tableau1[[#This Row],[Séjour 1]]+Tableau1[[#This Row],[Séjour 2]]) -> 5 | AQ14: =IF(AND(Tableau1[[#This Row],[Date de fin Soins actifs]]<>"",Tableau1[[#This Row],[Date congé]]<>""),IF(Tableau1[[#This Row],[Date de fin Soins actifs]]<>Tableau1[[#This Row],[Date congé]],"Devient NSA durant séjour","Quitte avant de devenir NSA"),"") -> Quitte avant de devenir NSA | AR14: =IF(Tableau1[[#This Row],[NSA]]="Devient NSA durant PEC",Tableau1[[#This Row],[Date congé]]-Tableau1[[#This Row],[Date de fin Soins actifs]],"") ->  | AS14: Retour au CH | AT14: 710 | AY14: =IFERROR(DATEDIF(Tableau1[[#This Row],[Date dépôt demande]],Tableau1[[#This Row],[Date d''admission]],"D"),"") -> 1 | AZ14: =IFERROR(IF(AND(Tableau1[[#This Row],[Date de fin Soins actifs]]<>"",Tableau1[[#This Row],[Date congé]]<>""),DATEDIF(Tableau1[[#This Row],[Date de fin Soins actifs]],Tableau1[[#This Row],[Date congé]],"D"),""),"") -> 0 | BB14: =IF(Tableau1[[#This Row],[Date dépôt MAH]]="","",Tableau1[[#This Row],[Date dépôt MAH]]-Tableau1[[#This Row],[Date d''admission]]) ->  | BC14: =IF(Tableau1[[#This Row],[Date dépôt MAH]]="","",Tableau1[[#This Row],[Date congé]]-Tableau1[[#This Row],[Date dépôt MAH]]) ->  | BE14: =IFERROR(DATEDIF(Tableau1[[#This Row],[Date orientation]],Tableau1[[#This Row],[Date congé]],"D"),"") -> 44039
A15: Drummond | B15: CFGH | C15: 1051 | D15: =IFERROR(VLOOKUP(C15,Chambres,3,FALSE),"") -> 1NC | E15: =IF(AND(Tableau1[[#This Row],[Date d''admission]]<>"",Tableau1[[#This Row],[Date congé]]=""),"Occupée",IF(Tableau1[[#This Row],[Date congé]]<>"","Congé","Libre")) -> Congé | H15: P162931 | I15: 13337 | J15: 84 | K15: =IF(Tableau1[[#This Row],[Âge]]<=60,"60 et -",IF(Tableau1[[#This Row],[Âge]]<=65,"61-65",IF(Tableau1[[#This Row],[Âge]]<=70,"66-70",IF(Tableau1[[#This Row],[Âge]]<=75,"71-75",IF(Tableau1[[#This Row],[Âge]]<=80,"76-80",IF(Tableau1[[#This Row],[Âge]]<=85,"81-85",IF(Tableau1[[#This Row],[Âge]]<=110,"86 et +",""))))))) -> 81-85 | L15: 44047 | M15: =IFERROR(VLOOKUP(Tableau1[[#This Row],[Date dépôt demande]],Tableau1618[],4,1),"") -> P05 | N15: =IFERROR(VLOOKUP(Tableau1[[#This Row],[Date dépôt demande]],Tableau1618[],5,1),"") -> 2020-2021 | O15: UTRF | P15: HSC | Q15: 44047 | R15: =IFERROR(VLOOKUP(Tableau1[[#This Row],[Date d''admission]],Tableau1618[],4,1),"") -> P05 | S15: =IFERROR(VLOOKUP(Tableau1[[#This Row],[Date d''admission]],Tableau1618[],5,1),"") -> 2020-2021 | T15: =CONCATENATE(Tableau1[[#This Row],[Période (admission)]]," ",Tableau1[[#This Row],[Année (admission)]]) -> P05 2020-2021 | U15: =IFERROR(VLOOKUP(Tableau1[[#This Row],[Période/année (admission)]],Tableau1618[[Période année]:[Fin]],3,0),"") -> 44058 | V15: =IF(AND(Tableau1[[#This Row],[Statut]]="Congé",Tableau1[[#This Row],[Date d''admission]]<>""),IF(Tableau1[[#This Row],[Date congé]]<=Tableau1[[#This Row],[Fin période (admission)]],Tableau1[[#This Row],[Date congé]]-Tableau1[[#This Row],[Date d''admission]],Tableau1[[#This Row],[Fin période (admission)]]-Tableau1[[#This Row],[Date d''admission]]),0) -> 11 | W15: =IFERROR(IF(Tableau1[[#This Row],[Date d''admission]]<>"",IF(Tableau1[[#This Row],[Site]]="René_Léosa",Tableau1[[#This Row],[Date d''admission]]+45,"")),"") ->  | Y15: 710 | AA15: Oui | AD15: =IF(Tableau1[[#This Row],[Date rencontre familiale]]="","Non","Oui") -> Non | AE15: =IF(Tableau1[[#This Row],[Date rencontre familiale]]="","",Tableau1[[#This Row],[Date rencontre familiale]]-Tableau1[[#This Row],[Date d''admission]]) ->  | AF15: =IF(Tableau1[[#This Row],[Date congé]]<>"",Tableau1[[#This Row],[Date congé]],"") -> 44132 | AG15: =IF(Tableau1[[#This Row],[Date de fin Soins actifs]]<>"","Non","Oui") -> Non | AI15: 44132 | AJ15: =IFERROR(VLOOKUP(Tableau1[[#This Row],[Date congé]],Tableau1618[],4,1),"") -> P08 | AK15: =IFERROR(VLOOKUP(Tableau1[[#This Row],[Date congé]],Tableau1618[],5,1),"") -> 2020-2021 | AL15: =CONCATENATE(Tableau1[[#This Row],[Période (congé)]]," ",Tableau1[[#This Row],[Année (congé)]]) -> P08 2020-2021 | AM15: =IFERROR(VLOOKUP(Tableau1[[#This Row],[Période/année (congé)]],Tableau1618[[Période année]:[Fin]],3,0),"") -> 44142 | AN15: =IF(AND(Tableau1[[#This Row],[Statut]]="Congé",Tableau1[[#This Row],[Date d''admission]]<>""),IF(Tableau1[[#This Row],[Date congé]]>=Tableau1[[#This Row],[Fin période (admission)]],Tableau1[[#This Row],[Date congé]]-Tableau1[[#This Row],[Fin période (admission)]],0),0) -> 74 | AO15: =IF(AND(Tableau1[[#This Row],[Date congé prévu]]<>"",Tableau1[[#This Row],[Date congé]]<>""),Tableau1[[#This Row],[Date congé]]-Tableau1[[#This Row],[Date congé prévu]],"") ->  | AP15: =SUM(Tableau1[[#This Row],[Séjour 1]]+Tableau1[[#This Row],[Séjour 2]]) -> 85 | AQ15: =IF(AND(Tableau1[[#This Row],[Date de fin Soins actifs]]<>"",Tableau1[[#This Row],[Date congé]]<>""),IF(Tableau1[[#This Row],[Date de fin Soins actifs]]<>Tableau1[[#This Row],[Date congé]],"Devient NSA durant séjour","Quitte avant de devenir NSA"),"") -> Quitte avant de devenir NSA | AR15: =IF(Tableau1[[#This Row],[NSA]]="Devient NSA durant PEC",Tableau1[[#This Row],[Date congé]]-Tableau1[[#This Row],[Date de fin Soins actifs]],"") ->  | AS15: Retour à domicile | AT15: 710 | AV15: Service social | AY15: =IFERROR(DATEDIF(Tableau1[[#This Row],[Date dépôt demande]],Tableau1[[#This Row],[Date d''admission]],"D"),"") -> 0 | AZ15: =IFERROR(IF(AND(Tableau1[[#This Row],[Date de fin Soins actifs]]<>"",Tableau1[[#This Row],[Date congé]]<>""),DATEDIF(Tableau1[[#This Row],[Date de fin Soins actifs]],Tableau1[[#This Row],[Date congé]],"D"),""),"") -> 0 | BB15: =IF(Tableau1[[#This Row],[Date dépôt MAH]]="","",Tableau1[[#This Row],[Date dépôt MAH]]-Tableau1[[#This Row],[Date d''admission]]) ->  | BC15: =IF(Tableau1[[#This Row],[Date dépôt MAH]]="","",Tableau1[[#This Row],[Date congé]]-Tableau1[[#This Row],[Date dépôt MAH]]) ->  | BE15: =IFERROR(DATEDIF(Tableau1[[#This Row],[Date orientation]],Tableau1[[#This Row],[Date congé]],"D"),"") -> 44132
A16: Drummond | B16: CFGH | C16: 1052 | D16: =IFERROR(VLOOKUP(C16,Chambres,3,FALSE),"") -> 1NC | E16: =IF(AND(Tableau1[[#This Row],[Date d''admission]]<>"",Tableau1[[#This Row],[Date congé]]=""),"Occupée",IF(Tableau1[[#This Row],[Date congé]]<>"","Congé","Libre")) -> Congé | H16: P167073 | I16: 12235 | J16: =(IF(Tableau1[[#This Row],[Date de naissance]]<>"",DATEDIF(Tableau1[[#This Row],[Date de naissance]],TODAY(),"Y"),"")) -> 88 | K16: =IF(Tableau1[[#This Row],[Âge]]<=60,"60 et -",IF(Tableau1[[#This Row],[Âge]]<=65,"61-65",IF(Tableau1[[#This Row],[Âge]]<=70,"66-70",IF(Tableau1[[#This Row],[Âge]]<=75,"71-75",IF(Tableau1[[#This Row],[Âge]]<=80,"76-80",IF(Tableau1[[#This Row],[Âge]]<=85,"81-85",IF(Tableau1[[#This Row],[Âge]]<=110,"86 et +",""))))))) -> 86 et + | L16: 43977 | M16: =IFERROR(VLOOKUP(Tableau1[[#This Row],[Date dépôt demande]],Tableau1618[],4,1),"") -> P03 | N16: =IFERROR(VLOOKUP(Tableau1[[#This Row],[Date dépôt demande]],Tableau1618[],5,1),"") -> 2020-2021 | O16: Éval-ori | P16: CH ext. | Q16: 43986 | R16: =IFERROR(VLOOKUP(Tableau1[[#This Row],[Date d''admission]],Tableau1618[],4,1),"") -> P03 | S16: =IFERROR(VLOOKUP(Tableau1[[#This Row],[Date d''admission]],Tableau1618[],5,1),"") -> 2020-2021 | T16: =CONCATENATE(Tableau1[[#This Row],[Période (admission)]]," ",Tableau1[[#This Row],[Année (admission)]]) -> P03 2020-2021 | U16: =IFERROR(VLOOKUP(Tableau1[[#This Row],[Période/année (admission)]],Tableau1618[[Période année]:[Fin]],3,0),"") -> 44002 | V16: =IF(AND(Tableau1[[#This Row],[Statut]]="Congé",Tableau1[[#This Row],[Date d''admission]]<>""),IF(Tableau1[[#This Row],[Date congé]]<=Tableau1[[#This Row],[Fin période (admission)]],Tableau1[[#This Row],[Date congé]]-Tableau1[[#This Row],[Date d''admission]],Tableau1[[#This Row],[Fin période (admission)]]-Tableau1[[#This Row],[Date d''admission]]),0) -> 16 | W16: =IFERROR(IF(Tableau1[[#This Row],[Date d''admission]]<>"",IF(Tableau1[[#This Row],[Site]]="René_Léosa",Tableau1[[#This Row],[Date d''admission]]+45,"")),"") ->  | Y16: 710 | AA16: Non | AD16: =IF(Tableau1[[#This Row],[Date rencontre familiale]]="","Non","Oui") -> Non | AE16: =IF(Tableau1[[#This Row],[Date rencontre familiale]]="","",Tableau1[[#This Row],[Date rencontre familiale]]-Tableau1[[#This Row],[Date d''admission]]) ->  | AF16: =IF(Tableau1[[#This Row],[Date congé]]<>"",Tableau1[[#This Row],[Date congé]],"") -> 44032 | AG16: =IF(Tableau1[[#This Row],[Date de fin Soins actifs]]<>"","Non","Oui") -> Non | AH16: 44032 | AI16: 44032 | AJ16: =IFERROR(VLOOKUP(Tableau1[[#This Row],[Date congé]],Tableau1618[],4,1),"") -> P05 | AK16: =IFERROR(VLOOKUP(Tableau1[[#This Row],[Date congé]],Tableau1618[],5,1),"") -> 2020-2021 | AL16: =CONCATENATE(Tableau1[[#This Row],[Période (congé)]]," ",Tableau1[[#This Row],[Année (congé)]]) -> P05 2020-2021 | AM16: =IFERROR(VLOOKUP(Tableau1[[#This Row],[Période/année (congé)]],Tableau1618[[Période année]:[Fin]],3,0),"") -> 44058 | AN16: =IF(AND(Tableau1[[#This Row],[Statut]]="Congé",Tableau1[[#This Row],[Date d''admission]]<>""),IF(Tableau1[[#This Row],[Date congé]]>=Tableau1[[#This Row],[Fin période (admission)]],Tableau1[[#This Row],[Date congé]]-Tableau1[[#This Row],[Fin période (admission)]],0),0) -> 30 | AO16: =IF(AND(Tableau1[[#This Row],[Date congé prévu]]<>"",Tableau1[[#This Row],[Date congé]]<>""),Tableau1[[#This Row],[Date congé]]-Tableau1[[#This Row],[Date congé prévu]],"") -> 0 | AP16: =SUM(Tableau1[[#This Row],[Séjour 1]]+Tableau1[[#This Row],[Séjour 2]]) -> 46 | AQ16: =IF(AND(Tableau1[[#This Row],[Date de fin Soins actifs]]<>"",Tableau1[[#This Row],[Date congé]]<>""),IF(Tableau1[[#This Row],[Date de fin Soins actifs]]<>Tableau1[[#This Row],[Date congé]],"Devient NSA durant séjour","Quitte avant de devenir NSA"),"") -> Quitte avant de devenir NSA | AR16: =IF(Tableau1[[#This Row],[NSA]]="Devient NSA durant PEC",Tableau1[[#This Row],[Date congé]]-Tableau1[[#This Row],[Date de fin Soins actifs]],"") ->  | AS16: Relocalisation RPA | AT16: 710 | AU16: 4 | AY16: =IFERROR(DATEDIF(Tableau1[[#This Row],[Date dépôt demande]],Tableau1[[#This Row],[Date d''admission]],"D"),"") -> 9 | AZ16: =IFERROR(IF(AND(Tableau1[[#This Row],[Date de fin Soins actifs]]<>"",Tableau1[[#This Row],[Date congé]]<>""),DATEDIF(Tableau1[[#This Row],[Date de fin Soins actifs]],Tableau1[[#This Row],[Date congé]],"D"),""),"") -> 0 | BB16: =IF(Tableau1[[#This Row],[Date dépôt MAH]]="","",Tableau1[[#This Row],[Date dépôt MAH]]-Tableau1[[#This Row],[Date d''admission]]) ->  | BC16: =IF(Tableau1[[#This Row],[Date dépôt MAH]]="","",Tableau1[[#This Row],[Date congé]]-Tableau1[[#This Row],[Date dépôt MAH]]) ->  | BE16: =IFERROR(DATEDIF(Tableau1[[#This Row],[Date orientation]],Tableau1[[#This Row],[Date congé]],"D"),"") -> 44032
A17: Drummond | B17: CFGH | C17: 1057 | D17: =IFERROR(VLOOKUP(C17,Chambres,3,FALSE),"") -> 1NC | E17: =IF(AND(Tableau1[[#This Row],[Date d''admission]]<>"",Tableau1[[#This Row],[Date congé]]=""),"Occupée",IF(Tableau1[[#This Row],[Date congé]]<>"","Congé","Libre")) -> Congé | H17: P037788 | I17: 11562 | J17: =(IF(Tableau1[[#This Row],[Date de naissance]]<>"",DATEDIF(Tableau1[[#This Row],[Date de naissance]],TODAY(),"Y"),"")) -> 89 | K17: =IF(Tableau1[[#This Row],[Âge]]<=60,"60 et -",IF(Tableau1[[#This Row],[Âge]]<=65,"61-65",IF(Tableau1[[#This Row],[Âge]]<=70,"66-70",IF(Tableau1[[#This Row],[Âge]]<=75,"71-75",IF(Tableau1[[#This Row],[Âge]]<=80,"76-80",IF(Tableau1[[#This Row],[Âge]]<=85,"81-85",IF(Tableau1[[#This Row],[Âge]]<=110,"86 et +",""))))))) -> 86 et + | L17: 44092 | M17: =IFERROR(VLOOKUP(Tableau1[[#This Row],[Date dépôt demande]],Tableau1618[],4,1),"") -> P07 | N17: =IFERROR(VLOOKUP(Tableau1[[#This Row],[Date dépôt demande]],Tableau1618[],5,1),"") -> 2020-2021 | O17: Éval-ori | P17: CHUS | Q17: 44095 | R17: =IFERROR(VLOOKUP(Tableau1[[#This Row],[Date d''admission]],Tableau1618[],4,1),"") -> P07 | S17: =IFERROR(VLOOKUP(Tableau1[[#This Row],[Date d''admission]],Tableau1618[],5,1),"") -> 2020-2021 | T17: =CONCATENATE(Tableau1[[#This Row],[Période (admission)]]," ",Tableau1[[#This Row],[Année (admission)]]) -> P07 2020-2021 | U17: =IFERROR(VLOOKUP(Tableau1[[#This Row],[Période/année (admission)]],Tableau1618[[Période année]:[Fin]],3,0),"") -> 44114 | V17: =IF(AND(Tableau1[[#This Row],[Statut]]="Congé",Tableau1[[#This Row],[Date d''admission]]<>""),IF(Tableau1[[#This Row],[Date congé]]<=Tableau1[[#This Row],[Fin période (admission)]],Tableau1[[#This Row],[Date congé]]-Tableau1[[#This Row],[Date d''admission]],Tableau1[[#This Row],[Fin période (admission)]]-Tableau1[[#This Row],[Date d''admission]]),0) -> 19 | W17: =IFERROR(IF(Tableau1[[#This Row],[Date d''admission]]<>"",IF(Tableau1[[#This Row],[Site]]="René_Léosa",Tableau1[[#This Row],[Date d''admission]]+45,"")),"") ->  | Y17: 710 | AA17: Oui | AD17: =IF(Tableau1[[#This Row],[Date rencontre familiale]]="","Non","Oui") -> Non | AE17: =IF(Tableau1[[#This Row],[Date rencontre familiale]]="","",Tableau1[[#This Row],[Date rencontre familiale]]-Tableau1[[#This Row],[Date d''admission]]) ->  | AF17: =IF(Tableau1[[#This Row],[Date congé]]<>"",Tableau1[[#This Row],[Date congé]],"") -> 44181 | AG17: =IF(Tableau1[[#This Row],[Date de fin Soins actifs]]<>"","Non","Oui") -> Non | AI17: 44181 | AJ17: =IFERROR(VLOOKUP(Tableau1[[#This Row],[Date congé]],Tableau1618[],4,1),"") -> P10 | AK17: =IFERROR(VLOOKUP(Tableau1[[#This Row],[Date congé]],Tableau1618[],5,1),"") -> 2020-2021 | AL17: =CONCATENATE(Tableau1[[#This Row],[Période (congé)]]," ",Tableau1[[#This Row],[Année (congé)]]) -> P10 2020-2021 | AM17: =IFERROR(VLOOKUP(Tableau1[[#This Row],[Période/année (congé)]],Tableau1618[[Période année]:[Fin]],3,0),"") -> 44198 | AN17: =IF(AND(Tableau1[[#This Row],[Statut]]="Congé",Tableau1[[#This Row],[Date d''admission]]<>""),IF(Tableau1[[#This Row],[Date congé]]>=Tableau1[[#This Row],[Fin période (admission)]],Tableau1[[#This Row],[Date congé]]-Tableau1[[#This Row],[Fin période (admission)]],0),0) -> 67 | AO17: =IF(AND(Tableau1[[#This Row],[Date congé prévu]]<>"",Tableau1[[#This Row],[Date congé]]<>""),Tableau1[[#This Row],[Date congé]]-Tableau1[[#This Row],[Date congé prévu]],"") ->  | AP17: =SUM(Tableau1[[#This Row],[Séjour 1]]+Tableau1[[#This Row],[Séjour 2]]) -> 86 | AQ17: =IF(AND(Tableau1[[#This Row],[Date de fin Soins actifs]]<>"",Tableau1[[#This Row],[Date congé]]<>""),IF(Tableau1[[#This Row],[Date de fin Soins actifs]]<>Tableau1[[#This Row],[Date congé]],"Devient NSA durant séjour","Quitte avant de devenir NSA"),"") -> Quitte avant de devenir NSA | AR17: =IF(Tableau1[[#This Row],[NSA]]="Devient NSA durant PEC",Tableau1[[#This Row],[Date congé]]-Tableau1[[#This Row],[Date de fin Soins actifs]],"") ->  | AS17: TR NSA | AT17: 710 | AU17: 8 | AY17: =IFERROR(DATEDIF(Tableau1[[#This Row],[Date dépôt demande]],Tableau1[[#This Row],[Date d''admission]],"D"),"") -> 3 | AZ17: =IFERROR(IF(AND(Tableau1[[#This Row],[Date de fin Soins actifs]]<>"",Tableau1[[#This Row],[Date congé]]<>""),DATEDIF(Tableau1[[#This Row],[Date de fin Soins actifs]],Tableau1[[#This Row],[Date congé]],"D"),""),"") -> 0 | BA17: 44174 | BB17: =IF(Tableau1[[#This Row],[Date dépôt MAH]]="","",Tableau1[[#This Row],[Date dépôt MAH]]-Tableau1[[#This Row],[Date d''admission]]) -> 79 | BC17: =IF(Tableau1[[#This Row],[Date dépôt MAH]]="","",Tableau1[[#This Row],[Date congé]]-Tableau1[[#This Row],[Date dépôt MAH]]) -> 7 | BE17: =IFERROR(DATEDIF(Tableau1[[#This Row],[Date orientation]],Tableau1[[#This Row],[Date congé]],"D"),"") -> 44181
A18: Drummond | B18: _600_Bousquet_NSA | C18: 282 | D18: =IFERROR(VLOOKUP(C18,Chambres,3,FALSE),"") -> Prothétique | E18: =IF(AND(Tableau1[[#This Row],[Date d''admission]]<>"",Tableau1[[#This Row],[Date congé]]=""),"Occupée",IF(Tableau1[[#This Row],[Date congé]]<>"","Congé","Libre")) -> Congé | H18: P037708 | I18: 11562 | J18: =(IF(Tableau1[[#This Row],[Date de naissance]]<>"",DATEDIF(Tableau1[[#This Row],[Date de naissance]],TODAY(),"Y"),"")) -> 89 | K18: =IF(Tableau1[[#This Row],[Âge]]<=60,"60 et -",IF(Tableau1[[#This Row],[Âge]]<=65,"61-65",IF(Tableau1[[#This Row],[Âge]]<=70,"66-70",IF(Tableau1[[#This Row],[Âge]]<=75,"71-75",IF(Tableau1[[#This Row],[Âge]]<=80,"76-80",IF(Tableau1[[#This Row],[Âge]]<=85,"81-85",IF(Tableau1[[#This Row],[Âge]]<=110,"86 et +",""))))))) -> 86 et + | L18: 44179 | M18: =IFERROR(VLOOKUP(Tableau1[[#This Row],[Date dépôt demande]],Tableau1618[],4,1),"") -> P10 | N18: =IFERROR(VLOOKUP(Tableau1[[#This Row],[Date dépôt demande]],Tableau1618[],5,1),"") -> 2020-2021 | O18: Autre | P18: Autre | Q18: 44181 | R18: =IFERROR(VLOOKUP(Tableau1[[#This Row],[Date d''admission]],Tableau1618[],4,1),"") -> P10 | S18: =IFERROR(VLOOKUP(Tableau1[[#This Row],[Date d''admission]],Tableau1618[],5,1),"") -> 2020-2021 | T18: =CONCATENATE(Tableau1[[#This Row],[Période (admission)]]," ",Tableau1[[#This Row],[Année (admission)]]) -> P10 2020-2021 | U18: =IFERROR(VLOOKUP(Tableau1[[#This Row],[Période/année (admission)]],Tableau1618[[Période année]:[Fin]],3,0),"") -> 44198 | V18: =IF(AND(Tableau1[[#This Row],[Statut]]="Congé",Tableau1[[#This Row],[Date d''admission]]<>""),IF(Tableau1[[#This Row],[Date congé]]<=Tableau1[[#This Row],[Fin période (admission)]],Tableau1[[#This Row],[Date congé]]-Tableau1[[#This Row],[Date d''admission]],Tableau1[[#This Row],[Fin période (admission)]]-Tableau1[[#This Row],[Date d''admission]]),0) -> 17 | W18: =IFERROR(IF(Tableau1[[#This Row],[Date d''admission]]<>"",IF(Tableau1[[#This Row],[Site]]="René_Léosa",Tableau1[[#This Row],[Date d''admission]]+45,"")),"") ->  | Y18: 710 | Z18: 8 | AA18: Oui | AB18: attente reloc RI | AD18: =IF(Tableau1[[#This Row],[Date rencontre familiale]]="","Non","Oui") -> Non | AE18: =IF(Tableau1[[#This Row],[Date rencontre familiale]]="","",Tableau1[[#This Row],[Date rencontre familiale]]-Tableau1[[#This Row],[Date d''admission]]) ->  | AF18: =IF(Tableau1[[#This Row],[Date congé]]<>"",Tableau1[[#This Row],[Date congé]],"") -> 44217 | AG18: =IF(Tableau1[[#This Row],[Date de fin Soins actifs]]<>"","Non","Oui") -> Non | AI18: 44217 | AJ18: =IFERROR(VLOOKUP(Tableau1[[#This Row],[Date congé]],Tableau1618[],4,1),"") -> P11 | AK18: =IFERROR(VLOOKUP(Tableau1[[#This Row],[Date congé]],Tableau1618[],5,1),"") -> 2020-2021 | AL18: =CONCATENATE(Tableau1[[#This Row],[Période (congé)]]," ",Tableau1[[#This Row],[Année (congé)]]) -> P11 2020-2021 | AM18: =IFERROR(VLOOKUP(Tableau1[[#This Row],[Période/année (congé)]],Tableau1618[[Période année]:[Fin]],3,0),"") -> 44226 | AN18: =IF(AND(Tableau1[[#This Row],[Statut]]="Congé",Tableau1[[#This Row],[Date d''admission]]<>""),IF(Tableau1[[#This Row],[Date congé]]>=Tableau1[[#This Row],[Fin période (admission)]],Tableau1[[#This Row],[Date congé]]-Tableau1[[#This Row],[Fin période (admission)]],0),0) -> 19 | AO18: =IF(AND(Tableau1[[#This Row],[Date congé prévu]]<>"",Tableau1[[#This Row],[Date congé]]<>""),Tableau1[[#This Row],[Date congé]]-Tableau1[[#This Row],[Date congé prévu]],"") ->  | AP18: =SUM(Tableau1[[#This Row],[Séjour 1]]+Tableau1[[#This Row],[Séjour 2]]) -> 36 | AQ18: =IF(AND(Tableau1[[#This Row],[Date de fin Soins actifs]]<>"",Tableau1[[#This Row],[Date congé]]<>""),IF(Tableau1[[#This Row],[Date de fin Soins actifs]]<>Tableau1[[#This Row],[Date congé]],"Devient NSA durant séjour","Quitte avant de devenir NSA"),"") -> Quitte avant de devenir NSA | AR18: =IF(Tableau1[[#This Row],[NSA]]="Devient NSA durant PEC",Tableau1[[#This Row],[Date congé]]-Tableau1[[#This Row],[Date de fin Soins actifs]],"") ->  | AS18: Relocalisation RPA | AV18: Service social | AY18: =IFERROR(DATEDIF(Tableau1[[#This Row],[Date dépôt demande]],Tableau1[[#This Row],[Date d''admission]],"D"),"") -> 2 | AZ18: =IFERROR(IF(AND(Tableau1[[#This Row],[Date de fin Soins actifs]]<>"",Tableau1[[#This Row],[Date congé]]<>""),DATEDIF(Tableau1[[#This Row],[Date de fin Soins actifs]],Tableau1[[#This Row],[Date congé]],"D"),""),"") -> 0 | BB18: =IF(Tableau1[[#This Row],[Date dépôt MAH]]="","",Tableau1[[#This Row],[Date dépôt MAH]]-Tableau1[[#This Row],[Date d''admission]]) ->  | BC18: =IF(Tableau1[[#This Row],[Date dépôt MAH]]="","",Tableau1[[#This Row],[Date congé]]-Tableau1[[#This Row],[Date dépôt MAH]]) ->  | BE18: =IFERROR(DATEDIF(Tableau1[[#This Row],[Date orientation]],Tableau1[[#This Row],[Date congé]],"D"),"") -> 44217
A19: Drummond | B19: René_Léosa | C19: 13 | D19: =IFERROR(VLOOKUP(C19,Chambres,3,FALSE),"") -> Régulière | E19: =IF(AND(Tableau1[[#This Row],[Date d''admission]]<>"",Tableau1[[#This Row],[Date congé]]=""),"Occupée",IF(Tableau1[[#This Row],[Date congé]]<>"","Congé","Libre")) -> Congé | H19: P077803 | I19: 12619 | J19: =(IF(Tableau1[[#This Row],[Date de naissance]]<>"",DATEDIF(Tableau1[[#This Row],[Date de naissance]],TODAY(),"Y"),"")) -> 87 | K19: =IF(Tableau1[[#This Row],[Âge]]<=60,"60 et -",IF(Tableau1[[#This Row],[Âge]]<=65,"61-65",IF(Tableau1[[#This Row],[Âge]]<=70,"66-70",IF(Tableau1[[#This Row],[Âge]]<=75,"71-75",IF(Tableau1[[#This Row],[Âge]]<=80,"76-80",IF(Tableau1[[#This Row],[Âge]]<=85,"81-85",IF(Tableau1[[#This Row],[Âge]]<=110,"86 et +",""))))))) -> 86 et + | L19: 43973 | M19: =IFERROR(VLOOKUP(Tableau1[[#This Row],[Date dépôt demande]],Tableau1618[],4,1),"") -> P02 | N19: =IFERROR(VLOOKUP(Tableau1[[#This Row],[Date dépôt demande]],Tableau1618[],5,1),"") -> 2020-2021 | O19: Conval | P19: HSC | Q19: 43976 | R19: =IFERROR(VLOOKUP(Tableau1[[#This Row],[Date d''admission]],Tableau1618[],4,1),"") -> P03 | S19: =IFERROR(VLOOKUP(Tableau1[[#This Row],[Date d''admission]],Tableau1618[],5,1),"") -> 2020-2021 | T19: =CONCATENATE(Tableau1[[#This Row],[Période (admission)]]," ",Tableau1[[#This Row],[Année (admission)]]) -> P03 2020-2021 | U19: =IFERROR(VLOOKUP(Tableau1[[#This Row],[Période/année (admission)]],Tableau1618[[Période année]:[Fin]],3,0),"") -> 44002 | V19: =IF(AND(Tableau1[[#This Row],[Statut]]="Congé",Tableau1[[#This Row],[Date d''admission]]<>""),IF(Tableau1[[#This Row],[Date congé]]<=Tableau1[[#This Row],[Fin période (admission)]],Tableau1[[#This Row],[Date congé]]-Tableau1[[#This Row],[Date d''admission]],Tableau1[[#This Row],[Fin période (admission)]]-Tableau1[[#This Row],[Date d''admission]]),0) -> 26 | W19: =IFERROR(IF(Tableau1[[#This Row],[Date d''admission]]<>"",IF(Tableau1[[#This Row],[Site]]="René_Léosa",Tableau1[[#This Row],[Date d''admission]]+45,"")),"") -> 44021 | Y19: 110 | AA19: Non | AD19: =IF(Tableau1[[#This Row],[Date rencontre familiale]]="","Non","Oui") -> Non | AE19: =IF(Tableau1[[#This Row],[Date rencontre familiale]]="","",Tableau1[[#This Row],[Date rencontre familiale]]-Tableau1[[#This Row],[Date d''admission]]) ->  | AF19: =IF(Tableau1[[#This Row],[Date congé]]<>"",Tableau1[[#This Row],[Date congé]],"") -> 44029 | AG19: =IF(Tableau1[[#This Row],[Date de fin Soins actifs]]<>"","Non","Oui") -> Non | AI19: 44029 | AJ19: =IFERROR(VLOOKUP(Tableau1[[#This Row],[Date congé]],Tableau1618[],4,1),"") -> P04 | AK19: =IFERROR(VLOOKUP(Tableau1[[#This Row],[Date congé]],Tableau1618[],5,1),"") -> 2020-2021 | AL19: =CONCATENATE(Tableau1[[#This Row],[Période (congé)]]," ",Tableau1[[#This Row],[Année (congé)]]) -> P04 2020-2021 | AM19: =IFERROR(VLOOKUP(Tableau1[[#This Row],[Période/année (congé)]],Tableau1618[[Période année]:[Fin]],3,0),"") -> 44030 | AN19: =IF(AND(Tableau1[[#This Row],[Statut]]="Congé",Tableau1[[#This Row],[Date d''admission]]<>""),IF(Tableau1[[#This Row],[Date congé]]>=Tableau1[[#This Row],[Fin période (admission)]],Tableau1[[#This Row],[Date congé]]-Tableau1[[#This Row],[Fin période (admission)]],0),0) -> 27 | AO19: =IF(AND(Tableau1[[#This Row],[Date congé prévu]]<>"",Tableau1[[#This Row],[Date congé]]<>""),Tableau1[[#This Row],[Date congé]]-Tableau1[[#This Row],[Date congé prévu]],"") ->  | AP19: =SUM(Tableau1[[#This Row],[Séjour 1]]+Tableau1[[#This Row],[Séjour 2]]) -> 53 | AQ19: =IF(AND(Tableau1[[#This Row],[Date de fin Soins actifs]]<>"",Tableau1[[#This Row],[Date congé]]<>""),IF(Tableau1[[#This Row],[Date de fin Soins actifs]]<>Tableau1[[#This Row],[Date congé]],"Devient NSA durant séjour","Quitte avant de devenir NSA"),"") -> Quitte avant de devenir NSA | AR19: =IF(Tableau1[[#This Row],[NSA]]="Devient NSA durant PEC",Tableau1[[#This Row],[Date congé]]-Tableau1[[#This Row],[Date de fin Soins actifs]],"") ->  | AS19: Retour à domicile | AT19: 710 | AV19: Service social | AY19: =IFERROR(DATEDIF(Tableau1[[#This Row],[Date dépôt demande]],Tableau1[[#This Row],[Date d''admission]],"D"),"") -> 3 | AZ19: =IFERROR(IF(AND(Tableau1[[#This Row],[Date de fin Soins actifs]]<>"",Tableau1[[#This Row],[Date congé]]<>""),DATEDIF(Tableau1[[#This Row],[Date de fin Soins actifs]],Tableau1[[#This Row],[Date congé]],"D"),""),"") -> 0 | BB19: =IF(Tableau1[[#This Row],[Date dépôt MAH]]="","",Tableau1[[#This Row],[Date dépôt MAH]]-Tableau1[[#This Row],[Date d''admission]]) ->  | BC19: =IF(Tableau1[[#This Row],[Date dépôt MAH]]="","",Tableau1[[#This Row],[Date congé]]-Tableau1[[#This Row],[Date dépôt MAH]]) ->  | BE19: =IFERROR(DATEDIF(Tableau1[[#This Row],[Date orientation]],Tableau1[[#This Row],[Date congé]],"D"),"") -> 44029
A20: Drummond | B20: _600_Bousquet_NSA | C20: 385 | D20: =IFERROR(VLOOKUP(C20,Chambres,3,FALSE),"") ->  | E20: =IF(AND(Tableau1[[#This Row],[Date d''admission]]<>"",Tableau1[[#This Row],[Date congé]]=""),"Occupée",IF(Tableau1[[#This Row],[Date congé]]<>"","Congé","Libre")) -> Congé | H20: P054396 | I20: 17911 | J20: =(IF(Tableau1[[#This Row],[Date de naissance]]<>"",DATEDIF(Tableau1[[#This Row],[Date de naissance]],TODAY(),"Y"),"")) -> 72 | K20: =IF(Tableau1[[#This Row],[Âge]]<=60,"60 et -",IF(Tableau1[[#This Row],[Âge]]<=65,"61-65",IF(Tableau1[[#This Row],[Âge]]<=70,"66-70",IF(Tableau1[[#This Row],[Âge]]<=75,"71-75",IF(Tableau1[[#This Row],[Âge]]<=80,"76-80",IF(Tableau1[[#This Row],[Âge]]<=85,"81-85",IF(Tableau1[[#This Row],[Âge]]<=110,"86 et +",""))))))) -> 71-75 | L20: 44195 | M20: =IFERROR(VLOOKUP(Tableau1[[#This Row],[Date dépôt demande]],Tableau1618[],4,1),"") -> P10 | N20: =IFERROR(VLOOKUP(Tableau1[[#This Row],[Date dépôt demande]],Tableau1618[],5,1),"") -> 2020-2021 | O20: Conval | P20: Autre | Q20: 44196 | R20: =IFERROR(VLOOKUP(Tableau1[[#This Row],[Date d''admission]],Tableau1618[],4,1),"") -> P10 | S20: =IFERROR(VLOOKUP(Tableau1[[#This Row],[Date d''admission]],Tableau1618[],5,1),"") -> 2020-2021 | T20: =CONCATENATE(Tableau1[[#This Row],[Période (admission)]]," ",Tableau1[[#This Row],[Année (admission)]]) -> P10 2020-2021 | U20: =IFERROR(VLOOKUP(Tableau1[[#This Row],[Période/année (admission)]],Tableau1618[[Période année]:[Fin]],3,0),"") -> 44198 | V20: =IF(AND(Tableau1[[#This Row],[Statut]]="Congé",Tableau1[[#This Row],[Date d''admission]]<>""),IF(Tableau1[[#This Row],[Date congé]]<=Tableau1[[#This Row],[Fin période (admission)]],Tableau1[[#This Row],[Date congé]]-Tableau1[[#This Row],[Date d''admission]],Tableau1[[#This Row],[Fin période (admission)]]-Tableau1[[#This Row],[Date d''admission]]),0) -> 2 | W20: =IFERROR(IF(Tableau1[[#This Row],[Date d''admission]]<>"",IF(Tableau1[[#This Row],[Site]]="René_Léosa",Tableau1[[#This Row],[Date d''admission]]+45,"")),"") ->  | Y20: 710 | AA20: Oui | AD20: =IF(Tableau1[[#This Row],[Date rencontre familiale]]="","Non","Oui") -> Non | AE20: =IF(Tableau1[[#This Row],[Date rencontre familiale]]="","",Tableau1[[#This Row],[Date rencontre familiale]]-Tableau1[[#This Row],[Date d''admission]]) ->  | AF20: =IF(Tableau1[[#This Row],[Date congé]]<>"",Tableau1[[#This Row],[Date congé]],"") -> 44211 | AG20: =IF(Tableau1[[#This Row],[Date de fin Soins actifs]]<>"","Non","Oui") -> Non | AI20: 44211 | AJ20: =IFERROR(VLOOKUP(Tableau1[[#This Row],[Date congé]],Tableau1618[],4,1),"") -> P11 | AK20: =IFERROR(VLOOKUP(Tableau1[[#This Row],[Date congé]],Tableau1618[],5,1),"") -> 2020-2021 | AL20: =CONCATENATE(Tableau1[[#This Row],[Période (congé)]]," ",Tableau1[[#This Row],[Année (congé)]]) -> P11 2020-2021 | AM20: =IFERROR(VLOOKUP(Tableau1[[#This Row],[Période/année (congé)]],Tableau1618[[Période année]:[Fin]],3,0),"") -> 44226 | AN20: =IF(AND(Tableau1[[#This Row],[Statut]]="Congé",Tableau1[[#This Row],[Date d''admission]]<>""),IF(Tableau1[[#This Row],[Date congé]]>=Tableau1[[#This Row],[Fin période (admission)]],Tableau1[[#This Row],[Date congé]]-Tableau1[[#This Row],[Fin période (admission)]],0),0) -> 13 | AO20: =IF(AND(Tableau1[[#This Row],[Date congé prévu]]<>"",Tableau1[[#This Row],[Date congé]]<>""),Tableau1[[#This Row],[Date congé]]-Tableau1[[#This Row],[Date congé prévu]],"") ->  | AP20: =SUM(Tableau1[[#This Row],[Séjour 1]]+Tableau1[[#This Row],[Séjour 2]]) -> 15 | AQ20: =IF(AND(Tableau1[[#This Row],[Date de fin Soins actifs]]<>"",Tableau1[[#This Row],[Date congé]]<>""),IF(Tableau1[[#This Row],[Date de fin Soins actifs]]<>Tableau1[[#This Row],[Date congé]],"Devient NSA durant séjour","Quitte avant de devenir NSA"),"") -> Quitte avant de devenir NSA | AR20: =IF(Tableau1[[#This Row],[NSA]]="Devient NSA durant PEC",Tableau1[[#This Row],[Date congé]]-Tableau1[[#This Row],[Date de fin Soins actifs]],"") ->  | AS20: Retour à domicile | AV20: Physiothérapie | AY20: =IFERROR(DATEDIF(Tableau1[[#This Row],[Date dépôt demande]],Tableau1[[#This Row],[Date d''admission]],"D"),"") -> 1 | AZ20: =IFERROR(IF(AND(Tableau1[[#This Row],[Date de fin Soins actifs]]<>"",Tableau1[[#This Row],[Date congé]]<>""),DATEDIF(Tableau1[[#This Row],[Date de fin Soins actifs]],Tableau1[[#This Row],[Date congé]],"D"),""),"") -> 0 | BB20: =IF(Tableau1[[#This Row],[Date dépôt MAH]]="","",Tableau1[[#This Row],[Date dépôt MAH]]-Tableau1[[#This Row],[Date d''admission]]) ->  | BC20: =IF(Tableau1[[#This Row],[Date dépôt MAH]]="","",Tableau1[[#This Row],[Date congé]]-Tableau1[[#This Row],[Date dépôt MAH]]) ->  | BE20: =IFERROR(DATEDIF(Tableau1[[#This Row],[Date orientation]],Tableau1[[#This Row],[Date congé]],"D"),"") -> 44211
A21: Drummond | B21: CFGH | C21: 1053 | D21: =IFERROR(VLOOKUP(C21,Chambres,3,FALSE),"") -> 1NC | E21: =IF(AND(Tableau1[[#This Row],[Date d''admission]]<>"",Tableau1[[#This Row],[Date congé]]=""),"Occupée",IF(Tableau1[[#This Row],[Date congé]]<>"","Congé","Libre")) -> Congé | H21: P150190 | I21: 12124 | J21: =(IF(Tableau1[[#This Row],[Date de naissance]]<>"",DATEDIF(Tableau1[[#This Row],[Date de naissance]],TODAY(),"Y"),"")) -> 88 | K21: =IF(Tableau1[[#This Row],[Âge]]<=60,"60 et -",IF(Tableau1[[#This Row],[Âge]]<=65,"61-65",IF(Tableau1[[#This Row],[Âge]]<=70,"66-70",IF(Tableau1[[#This Row],[Âge]]<=75,"71-75",IF(Tableau1[[#This Row],[Âge]]<=80,"76-80",IF(Tableau1[[#This Row],[Âge]]<=85,"81-85",IF(Tableau1[[#This Row],[Âge]]<=110,"86 et +",""))))))) -> 86 et + | L21: 43993 | M21: =IFERROR(VLOOKUP(Tableau1[[#This Row],[Date dépôt demande]],Tableau1618[],4,1),"") -> P03 | N21: =IFERROR(VLOOKUP(Tableau1[[#This Row],[Date dépôt demande]],Tableau1618[],5,1),"") -> 2020-2021 | O21: Éval-ori | P21: HSC | Q21: 43997 | R21: =IFERROR(VLOOKUP(Tableau1[[#This Row],[Date d''admission]],Tableau1618[],4,1),"") -> P03 | S21: =IFERROR(VLOOKUP(Tableau1[[#This Row],[Date d''admission]],Tableau1618[],5,1),"") -> 2020-2021 | T21: =CONCATENATE(Tableau1[[#This Row],[Période (admission)]]," ",Tableau1[[#This Row],[Année (admission)]]) -> P03 2020-2021 | U21: =IFERROR(VLOOKUP(Tableau1[[#This Row],[Période/année (admission)]],Tableau1618[[Période année]:[Fin]],3,0),"") -> 44002 | V21: =IF(AND(Tableau1[[#This Row],[Statut]]="Congé",Tableau1[[#This Row],[Date d''admission]]<>""),IF(Tableau1[[#This Row],[Date congé]]<=Tableau1[[#This Row],[Fin période (admission)]],Tableau1[[#This Row],[Date congé]]-Tableau1[[#This Row],[Date d''admission]],Tableau1[[#This Row],[Fin période (admission)]]-Tableau1[[#This Row],[Date d''admission]]),0) -> 5 | W21: =IFERROR(IF(Tableau1[[#This Row],[Date d''admission]]<>"",IF(Tableau1[[#This Row],[Site]]="René_Léosa",Tableau1[[#This Row],[Date d''admission]]+45,"")),"") ->  | Y21: 710 | AA21: Oui | AD21: =IF(Tableau1[[#This Row],[Date rencontre familiale]]="","Non","Oui") -> Non | AE21: =IF(Tableau1[[#This Row],[Date rencontre familiale]]="","",Tableau1[[#This Row],[Date rencontre familiale]]-Tableau1[[#This Row],[Date d''admission]]) ->  | AF21: =IF(Tableau1[[#This Row],[Date congé]]<>"",Tableau1[[#This Row],[Date congé]],"") -> 44014 | AG21: =IF(Tableau1[[#This Row],[Date de fin Soins actifs]]<>"","Non","Oui") -> Non | AI21: 44014 | AJ21: =IFERROR(VLOOKUP(Tableau1[[#This Row],[Date congé]],Tableau1618[],4,1),"") -> P04 | AK21: =IFERROR(VLOOKUP(Tableau1[[#This Row],[Date congé]],Tableau1618[],5,1),"") -> 2020-2021 | AL21: =CONCATENATE(Tableau1[[#This Row],[Période (congé)]]," ",Tableau1[[#This Row],[Année (congé)]]) -> P04 2020-2021 | AM21: =IFERROR(VLOOKUP(Tableau1[[#This Row],[Période/année (congé)]],Tableau1618[[Période année]:[Fin]],3,0),"") -> 44030 | AN21: =IF(AND(Tableau1[[#This Row],[Statut]]="Congé",Tableau1[[#This Row],[Date d''admission]]<>""),IF(Tableau1[[#This Row],[Date congé]]>=Tableau1[[#This Row],[Fin période (admission)]],Tableau1[[#This Row],[Date congé]]-Tableau1[[#This Row],[Fin période (admission)]],0),0) -> 12 | AO21: =IF(AND(Tableau1[[#This Row],[Date congé prévu]]<>"",Tableau1[[#This Row],[Date congé]]<>""),Tableau1[[#This Row],[Date congé]]-Tableau1[[#This Row],[Date congé prévu]],"") ->  | AP21: =SUM(Tableau1[[#This Row],[Séjour 1]]+Tableau1[[#This Row],[Séjour 2]]) -> 17 | AQ21: =IF(AND(Tableau1[[#This Row],[Date de fin Soins actifs]]<>"",Tableau1[[#This Row],[Date congé]]<>""),IF(Tableau1[[#This Row],[Date de fin Soins actifs]]<>Tableau1[[#This Row],[Date congé]],"Devient NSA durant séjour","Quitte avant de devenir NSA"),"") -> Quitte avant de devenir NSA | AR21: =IF(Tableau1[[#This Row],[NSA]]="Devient NSA durant PEC",Tableau1[[#This Row],[Date congé]]-Tableau1[[#This Row],[Date de fin Soins actifs]],"") ->  | AS21: Retour au CH | AY21: =IFERROR(DATEDIF(Tableau1[[#This Row],[Date dépôt demande]],Tableau1[[#This Row],[Date d''admission]],"D"),"") -> 4 | AZ21: =IFERROR(IF(AND(Tableau1[[#This Row],[Date de fin Soins actifs]]<>"",Tableau1[[#This Row],[Date congé]]<>""),DATEDIF(Tableau1[[#This Row],[Date de fin Soins actifs]],Tableau1[[#This Row],[Date congé]],"D"),""),"") -> 0 | BB21: =IF(Tableau1[[#This Row],[Date dépôt MAH]]="","",Tableau1[[#This Row],[Date dépôt MAH]]-Tableau1[[#This Row],[Date d''admission]]) ->  | BC21: =IF(Tableau1[[#This Row],[Date dépôt MAH]]="","",Tableau1[[#This Row],[Date congé]]-Tableau1[[#This Row],[Date dépôt MAH]]) ->  | BE21: =IFERROR(DATEDIF(Tableau1[[#This Row],[Date orientation]],Tableau1[[#This Row],[Date congé]],"D"),"") -> 44014
A22: Drummond | B22: René_Léosa | C22: 11 | D22: =IFERROR(VLOOKUP(C22,Chambres,3,FALSE),"") -> Régulière | E22: =IF(AND(Tableau1[[#This Row],[Date d''admission]]<>"",Tableau1[[#This Row],[Date congé]]=""),"Occupée",IF(Tableau1[[#This Row],[Date congé]]<>"","Congé","Libre")) -> Congé | H22: P 59316 | I22: 11026 | J22: =(IF(Tableau1[[#This Row],[Date de naissance]]<>"",DATEDIF(Tableau1[[#This Row],[Date de naissance]],TODAY(),"Y"),"")) -> 91 | K22: =IF(Tableau1[[#This Row],[Âge]]<=60,"60 et -",IF(Tableau1[[#This Row],[Âge]]<=65,"61-65",IF(Tableau1[[#This Row],[Âge]]<=70,"66-70",IF(Tableau1[[#This Row],[Âge]]<=75,"71-75",IF(Tableau1[[#This Row],[Âge]]<=80,"76-80",IF(Tableau1[[#This Row],[Âge]]<=85,"81-85",IF(Tableau1[[#This Row],[Âge]]<=110,"86 et +",""))))))) -> 86 et + | L22: 44367 | M22: =IFERROR(VLOOKUP(Tableau1[[#This Row],[Date dépôt demande]],Tableau1618[],4,1),"") -> P04 | N22: =IFERROR(VLOOKUP(Tableau1[[#This Row],[Date dépôt demande]],Tableau1618[],5,1),"") -> 2021-2022 | O22: Conval | P22: CHUS | Q22: 44369 | R22: =IFERROR(VLOOKUP(Tableau1[[#This Row],[Date d''admission]],Tableau1618[],4,1),"") -> P04 | S22: =IFERROR(VLOOKUP(Tableau1[[#This Row],[Date d''admission]],Tableau1618[],5,1),"") -> 2021-2022 | T22: =CONCATENATE(Tableau1[[#This Row],[Période (admission)]]," ",Tableau1[[#This Row],[Année (admission)]]) -> P04 2021-2022 | U22: =IFERROR(VLOOKUP(Tableau1[[#This Row],[Période/année (admission)]],Tableau1618[[Période année]:[Fin]],3,0),"") -> 44394 | V22: =IF(AND(Tableau1[[#This Row],[Statut]]="Congé",Tableau1[[#This Row],[Date d''admission]]<>""),IF(Tableau1[[#This Row],[Date congé]]<=Tableau1[[#This Row],[Fin période (admission)]],Tableau1[[#This Row],[Date congé]]-Tableau1[[#This Row],[Date d''admission]],Tableau1[[#This Row],[Fin période (admission)]]-Tableau1[[#This Row],[Date d''admission]]),0) -> 13 | W22: =IFERROR(IF(Tableau1[[#This Row],[Date d''admission]]<>"",IF(Tableau1[[#This Row],[Site]]="René_Léosa",Tableau1[[#This Row],[Date d''admission]]+45,"")),"") -> 44414 | X22: 30 | Y22: 710 | AA22: Non | AD22: =IF(Tableau1[[#This Row],[Date rencontre familiale]]="","Non","Oui") -> Non | AE22: =IF(Tableau1[[#This Row],[Date rencontre familiale]]="","",Tableau1[[#This Row],[Date rencontre familiale]]-Tableau1[[#This Row],[Date d''admission]]) ->  | AF22: =IF(Tableau1[[#This Row],[Date congé]]<>"",Tableau1[[#This Row],[Date congé]],"") -> 44382 | AG22: =IF(Tableau1[[#This Row],[Date de fin Soins actifs]]<>"","Non","Oui") -> Non | AH22: 44392 | AI22: 44382 | AJ22: =IFERROR(VLOOKUP(Tableau1[[#This Row],[Date congé]],Tableau1618[],4,1),"") -> P04 | AK22: =IFERROR(VLOOKUP(Tableau1[[#This Row],[Date congé]],Tableau1618[],5,1),"") -> 2021-2022 | AL22: =CONCATENATE(Tableau1[[#This Row],[Période (congé)]]," ",Tableau1[[#This Row],[Année (congé)]]) -> P04 2021-2022 | AM22: =IFERROR(VLOOKUP(Tableau1[[#This Row],[Période/année (congé)]],Tableau1618[[Période année]:[Fin]],3,0),"") -> 44394 | AN22: =IF(AND(Tableau1[[#This Row],[Statut]]="Congé",Tableau1[[#This Row],[Date d''admission]]<>""),IF(Tableau1[[#This Row],[Date congé]]>=Tableau1[[#This Row],[Fin période (admission)]],Tableau1[[#This Row],[Date congé]]-Tableau1[[#This Row],[Fin période (admission)]],0),0) -> 0 | AO22: =IF(AND(Tableau1[[#This Row],[Date congé prévu]]<>"",Tableau1[[#This Row],[Date congé]]<>""),Tableau1[[#This Row],[Date congé]]-Tableau1[[#This Row],[Date congé prévu]],"") -> -10 | AP22: =IFERROR(IF(AND(Tableau1[[#This Row],[Date d''admission]]<>"",Tableau1[[#This Row],[Date congé]]<>""),DATEDIF(Tableau1[[#This Row],[Date d''admission]],Tableau1[[#This Row],[Date congé]],"D"),""),"") -> 13 | AQ22: =IF(AND(Tableau1[[#This Row],[Date de fin Soins actifs]]<>"",Tableau1[[#This Row],[Date congé]]<>""),IF(Tableau1[[#This Row],[Date de fin Soins actifs]]<>Tableau1[[#This Row],[Date congé]],"Devient NSA durant séjour","Quitte avant de devenir NSA"),"") -> Quitte avant de devenir NSA | AR22: =IF(Tableau1[[#This Row],[NSA]]="Devient NSA durant PEC",Tableau1[[#This Row],[Date congé]]-Tableau1[[#This Row],[Date de fin Soins actifs]],"") ->  | AS22: Retour à domicile | AT22: 191 | AV22: Physiothérapie ASSS | AW22: 2021-02-27 | AX22: 2021-05-31 | AY22: =IFERROR(DATEDIF(Tableau1[[#This Row],[Date dépôt demande]],Tableau1[[#This Row],[Date d''admission]],"D"),"") -> 2 | AZ22: =IFERROR(IF(AND(Tableau1[[#This Row],[Date de fin Soins actifs]]<>"",Tableau1[[#This Row],[Date congé]]<>""),DATEDIF(Tableau1[[#This Row],[Date de fin Soins actifs]],Tableau1[[#This Row],[Date congé]],"D"),""),"") -> 0 | BB22: =IF(Tableau1[[#This Row],[Date dépôt MAH]]="","",Tableau1[[#This Row],[Date dépôt MAH]]-Tableau1[[#This Row],[Date d''admission]]) ->  | BC22: =IF(Tableau1[[#This Row],[Date dépôt MAH]]="","",Tableau1[[#This Row],[Date congé]]-Tableau1[[#This Row],[Date dépôt MAH]]) ->  | BE22: =IFERROR(DATEDIF(Tableau1[[#This Row],[Date orientation]],Tableau1[[#This Row],[Date congé]],"D"),"") -> 44382
A23: Drummond | B23: CFGH | C23: 1053 | D23: =IFERROR(VLOOKUP(C23,Chambres,3,FALSE),"") -> 1NC | E23: =IF(AND(Tableau1[[#This Row],[Date d''admission]]<>"",Tableau1[[#This Row],[Date congé]]=""),"Occupée",IF(Tableau1[[#This Row],[Date congé]]<>"","Congé","Libre")) -> Congé | H23: P150190 | I23: 12124 | J23: =(IF(Tableau1[[#This Row],[Date de naissance]]<>"",DATEDIF(Tableau1[[#This Row],[Date de naissance]],TODAY(),"Y"),"")) -> 88 | K23: =IF(Tableau1[[#This Row],[Âge]]<=60,"60 et -",IF(Tableau1[[#This Row],[Âge]]<=65,"61-65",IF(Tableau1[[#This Row],[Âge]]<=70,"66-70",IF(Tableau1[[#This Row],[Âge]]<=75,"71-75",IF(Tableau1[[#This Row],[Âge]]<=80,"76-80",IF(Tableau1[[#This Row],[Âge]]<=85,"81-85",IF(Tableau1[[#This Row],[Âge]]<=110,"86 et +",""))))))) -> 86 et + | L23: 43984 | M23: =IFERROR(VLOOKUP(Tableau1[[#This Row],[Date dépôt demande]],Tableau1618[],4,1),"") -> P03 | N23: =IFERROR(VLOOKUP(Tableau1[[#This Row],[Date dépôt demande]],Tableau1618[],5,1),"") -> 2020-2021 | O23: Éval-ori | P23: HSC | Q23: 43997 | R23: =IFERROR(VLOOKUP(Tableau1[[#This Row],[Date d''admission]],Tableau1618[],4,1),"") -> P03 | S23: =IFERROR(VLOOKUP(Tableau1[[#This Row],[Date d''admission]],Tableau1618[],5,1),"") -> 2020-2021 | T23: =CONCATENATE(Tableau1[[#This Row],[Période (admission)]]," ",Tableau1[[#This Row],[Année (admission)]]) -> P03 2020-2021 | U23: =IFERROR(VLOOKUP(Tableau1[[#This Row],[Période/année (admission)]],Tableau1618[[Période année]:[Fin]],3,0),"") -> 44002 | V23: =IF(AND(Tableau1[[#This Row],[Statut]]="Congé",Tableau1[[#This Row],[Date d''admission]]<>""),IF(Tableau1[[#This Row],[Date congé]]<=Tableau1[[#This Row],[Fin période (admission)]],Tableau1[[#This Row],[Date congé]]-Tableau1[[#This Row],[Date d''admission]],Tableau1[[#This Row],[Fin période (admission)]]-Tableau1[[#This Row],[Date d''admission]]),0) -> 5 | W23: =IFERROR(IF(Tableau1[[#This Row],[Date d''admission]]<>"",IF(Tableau1[[#This Row],[Site]]="René_Léosa",Tableau1[[#This Row],[Date d''admission]]+45,"")),"") ->  | Y23: 710 | AD23: =IF(Tableau1[[#This Row],[Date rencontre familiale]]="","Non","Oui") -> Non | AE23: =IF(Tableau1[[#This Row],[Date rencontre familiale]]="","",Tableau1[[#This Row],[Date rencontre familiale]]-Tableau1[[#This Row],[Date d''admission]]) ->  | AF23: =IF(Tableau1[[#This Row],[Date congé]]<>"",Tableau1[[#This Row],[Date congé]],"") -> 44014 | AG23: =IF(Tableau1[[#This Row],[Date de fin Soins actifs]]<>"","Non","Oui") -> Non | AI23: 44014 | AJ23: =IFERROR(VLOOKUP(Tableau1[[#This Row],[Date congé]],Tableau1618[],4,1),"") -> P04 | AK23: =IFERROR(VLOOKUP(Tableau1[[#This Row],[Date congé]],Tableau1618[],5,1),"") -> 2020-2021 | AL23: =CONCATENATE(Tableau1[[#This Row],[Période (congé)]]," ",Tableau1[[#This Row],[Année (congé)]]) -> P04 2020-2021 | AM23: =IFERROR(VLOOKUP(Tableau1[[#This Row],[Période/année (congé)]],Tableau1618[[Période année]:[Fin]],3,0),"") -> 44030 | AN23: =IF(AND(Tableau1[[#This Row],[Statut]]="Congé",Tableau1[[#This Row],[Date d''admission]]<>""),IF(Tableau1[[#This Row],[Date congé]]>=Tableau1[[#This Row],[Fin période (admission)]],Tableau1[[#This Row],[Date congé]]-Tableau1[[#This Row],[Fin période (admission)]],0),0) -> 12 | AO23: =IF(AND(Tableau1[[#This Row],[Date congé prévu]]<>"",Tableau1[[#This Row],[Date congé]]<>""),Tableau1[[#This Row],[Date congé]]-Tableau1[[#This Row],[Date congé prévu]],"") ->  | AP23: =SUM(Tableau1[[#This Row],[Séjour 1]]+Tableau1[[#This Row],[Séjour 2]]) -> 17 | AQ23: =IF(AND(Tableau1[[#This Row],[Date de fin Soins actifs]]<>"",Tableau1[[#This Row],[Date congé]]<>""),IF(Tableau1[[#This Row],[Date de fin Soins actifs]]<>Tableau1[[#This Row],[Date congé]],"Devient NSA durant séjour","Quitte avant de devenir NSA"),"") -> Quitte avant de devenir NSA | AR23: =IF(Tableau1[[#This Row],[NSA]]="Devient NSA durant PEC",Tableau1[[#This Row],[Date congé]]-Tableau1[[#This Row],[Date de fin Soins actifs]],"") ->  | AS23: Retour au CH | AY23: =IFERROR(DATEDIF(Tableau1[[#This Row],[Date dépôt demande]],Tableau1[[#This Row],[Date d''admission]],"D"),"") -> 13 | AZ23: =IFERROR(IF(AND(Tableau1[[#This Row],[Date de fin Soins actifs]]<>"",Tableau1[[#This Row],[Date congé]]<>""),DATEDIF(Tableau1[[#This Row],[Date de fin Soins actifs]],Tableau1[[#This Row],[Date congé]],"D"),""),"") -> 0 | BB23: =IF(Tableau1[[#This Row],[Date dépôt MAH]]="","",Tableau1[[#This Row],[Date dépôt MAH]]-Tableau1[[#This Row],[Date d''admission]]) ->  | BC23: =IF(Tableau1[[#This Row],[Date dépôt MAH]]="","",Tableau1[[#This Row],[Date congé]]-Tableau1[[#This Row],[Date dépôt MAH]]) ->  | BE23: =IFERROR(DATEDIF(Tableau1[[#This Row],[Date orientation]],Tableau1[[#This Row],[Date congé]],"D"),"") -> 44014
A24: Drummond | B24: CFGH | C24: 1056 | D24: =IFERROR(VLOOKUP(C24,Chambres,3,FALSE),"") -> 1NC | E24: =IF(AND(Tableau1[[#This Row],[Date d''admission]]<>"",Tableau1[[#This Row],[Date congé]]=""),"Occupée",IF(Tableau1[[#This Row],[Date congé]]<>"","Congé","Libre")) -> Congé | H24: P037213 | I24: 18670 | J24: =(IF(Tableau1[[#This Row],[Date de naissance]]<>"",DATEDIF(Tableau1[[#This Row],[Date de naissance]],TODAY(),"Y"),"")) -> 70 | K24: =IF(Tableau1[[#This Row],[Âge]]<=60,"60 et -",IF(Tableau1[[#This Row],[Âge]]<=65,"61-65",IF(Tableau1[[#This Row],[Âge]]<=70,"66-70",IF(Tableau1[[#This Row],[Âge]]<=75,"71-75",IF(Tableau1[[#This Row],[Âge]]<=80,"76-80",IF(Tableau1[[#This Row],[Âge]]<=85,"81-85",IF(Tableau1[[#This Row],[Âge]]<=110,"86 et +",""))))))) -> 66-70 | L24: 44183 | M24: =IFERROR(VLOOKUP(Tableau1[[#This Row],[Date dépôt demande]],Tableau1618[],4,1),"") -> P10 | N24: =IFERROR(VLOOKUP(Tableau1[[#This Row],[Date dépôt demande]],Tableau1618[],5,1),"") -> 2020-2021 | O24: Éval-ori | P24: HSC | Q24: 44188 | R24: =IFERROR(VLOOKUP(Tableau1[[#This Row],[Date d''admission]],Tableau1618[],4,1),"") -> P10 | S24: =IFERROR(VLOOKUP(Tableau1[[#This Row],[Date d''admission]],Tableau1618[],5,1),"") -> 2020-2021 | T24: =CONCATENATE(Tableau1[[#This Row],[Période (admission)]]," ",Tableau1[[#This Row],[Année (admission)]]) -> P10 2020-2021 | U24: =IFERROR(VLOOKUP(Tableau1[[#This Row],[Période/année (admission)]],Tableau1618[[Période année]:[Fin]],3,0),"") -> 44198 | V24: =IF(AND(Tableau1[[#This Row],[Statut]]="Congé",Tableau1[[#This Row],[Date d''admission]]<>""),IF(Tableau1[[#This Row],[Date congé]]<=Tableau1[[#This Row],[Fin période (admission)]],Tableau1[[#This Row],[Date congé]]-Tableau1[[#This Row],[Date d''admission]],Tableau1[[#This Row],[Fin période (admission)]]-Tableau1[[#This Row],[Date d''admission]]),0) -> 10 | W24: =IFERROR(IF(Tableau1[[#This Row],[Date d''admission]]<>"",IF(Tableau1[[#This Row],[Site]]="René_Léosa",Tableau1[[#This Row],[Date d''admission]]+45,"")),"") ->  | Y24: 110 | AA24: Non | AD24: =IF(Tableau1[[#This Row],[Date rencontre familiale]]="","Non","Oui") -> Non | AE24: =IF(Tableau1[[#This Row],[Date rencontre familiale]]="","",Tableau1[[#This Row],[Date rencontre familiale]]-Tableau1[[#This Row],[Date d''admission]]) ->  | AF24: =IF(Tableau1[[#This Row],[Date congé]]<>"",Tableau1[[#This Row],[Date congé]],"") -> 44253 | AG24: =IF(Tableau1[[#This Row],[Date de fin Soins actifs]]<>"","Non","Oui") -> Non | AI24: 44253 | AJ24: =IFERROR(VLOOKUP(Tableau1[[#This Row],[Date congé]],Tableau1618[],4,1),"") -> P12 | AK24: =IFERROR(VLOOKUP(Tableau1[[#This Row],[Date congé]],Tableau1618[],5,1),"") -> 2020-2021 | AL24: =CONCATENATE(Tableau1[[#This Row],[Période (congé)]]," ",Tableau1[[#This Row],[Année (congé)]]) -> P12 2020-2021 | AM24: =IFERROR(VLOOKUP(Tableau1[[#This Row],[Période/année (congé)]],Tableau1618[[Période année]:[Fin]],3,0),"") -> 44254 | AN24: =IF(AND(Tableau1[[#This Row],[Statut]]="Congé",Tableau1[[#This Row],[Date d''admission]]<>""),IF(Tableau1[[#This Row],[Date congé]]>=Tableau1[[#This Row],[Fin période (admission)]],Tableau1[[#This Row],[Date congé]]-Tableau1[[#This Row],[Fin période (admission)]],0),0) -> 55 | AO24: =IF(AND(Tableau1[[#This Row],[Date congé prévu]]<>"",Tableau1[[#This Row],[Date congé]]<>""),Tableau1[[#This Row],[Date congé]]-Tableau1[[#This Row],[Date congé prévu]],"") ->  | AP24: =SUM(Tableau1[[#This Row],[Séjour 1]]+Tableau1[[#This Row],[Séjour 2]]) -> 65 | AQ24: =IF(AND(Tableau1[[#This Row],[Date de fin Soins actifs]]<>"",Tableau1[[#This Row],[Date congé]]<>""),IF(Tableau1[[#This Row],[Date de fin Soins actifs]]<>Tableau1[[#This Row],[Date congé]],"Devient NSA durant séjour","Quitte avant de devenir NSA"),"") -> Quitte avant de devenir NSA | AR24: =IF(Tableau1[[#This Row],[NSA]]="Devient NSA durant PEC",Tableau1[[#This Row],[Date congé]]-Tableau1[[#This Row],[Date de fin Soins actifs]],"") ->  | AS24: Retour à domicile | AT24: 710 | AV24: Service social | AY24: =IFERROR(DATEDIF(Tableau1[[#This Row],[Date dépôt demande]],Tableau1[[#This Row],[Date d''admission]],"D"),"") -> 5 | AZ24: =IFERROR(IF(AND(Tableau1[[#This Row],[Date de fin Soins actifs]]<>"",Tableau1[[#This Row],[Date congé]]<>""),DATEDIF(Tableau1[[#This Row],[Date de fin Soins actifs]],Tableau1[[#This Row],[Date congé]],"D"),""),"") -> 0 | BB24: =IF(Tableau1[[#This Row],[Date dépôt MAH]]="","",Tableau1[[#This Row],[Date dépôt MAH]]-Tableau1[[#This Row],[Date d''admission]]) ->  | BC24: =IF(Tableau1[[#This Row],[Date dépôt MAH]]="","",Tableau1[[#This Row],[Date congé]]-Tableau1[[#This Row],[Date dépôt MAH]]) ->  | BE24: =IFERROR(DATEDIF(Tableau1[[#This Row],[Date orientation]],Tableau1[[#This Row],[Date congé]],"D"),"") -> 44253
A25: Drummond | B25: _600_Bousquet_NSA | C25: 372 | D25: =IFERROR(VLOOKUP(C25,Chambres,3,FALSE),"") ->  | E25: =IF(AND(Tableau1[[#This Row],[Date d''admission]]<>"",Tableau1[[#This Row],[Date congé]]=""),"Occupée",IF(Tableau1[[#This Row],[Date congé]]<>"","Congé","Libre")) -> Congé | H25: P154020 | J25: =(IF(Tableau1[[#This Row],[Date de naissance]]<>"",DATEDIF(Tableau1[[#This Row],[Date de naissance]],TODAY(),"Y"),"")) ->  | K25: =IF(Tableau1[[#This Row],[Âge]]<=60,"60 et -",IF(Tableau1[[#This Row],[Âge]]<=65,"61-65",IF(Tableau1[[#This Row],[Âge]]<=70,"66-70",IF(Tableau1[[#This Row],[Âge]]<=75,"71-75",IF(Tableau1[[#This Row],[Âge]]<=80,"76-80",IF(Tableau1[[#This Row],[Âge]]<=85,"81-85",IF(Tableau1[[#This Row],[Âge]]<=110,"86 et +",""))))))) ->  | M25: =IFERROR(VLOOKUP(Tableau1[[#This Row],[Date dépôt demande]],Tableau1618[],4,1),"") ->  | N25: =IFERROR(VLOOKUP(Tableau1[[#This Row],[Date dépôt demande]],Tableau1618[],5,1),"") ->  | O25: Éval-ori | P25: HSC | R25: =IFERROR(VLOOKUP(Tableau1[[#This Row],[Date d''admission]],Tableau1618[],4,1),"") ->  | S25: =IFERROR(VLOOKUP(Tableau1[[#This Row],[Date d''admission]],Tableau1618[],5,1),"") ->  | T25: =CONCATENATE(Tableau1[[#This Row],[Période (admission)]]," ",Tableau1[[#This Row],[Année (admission)]]) ->  | U25: =IFERROR(VLOOKUP(Tableau1[[#This Row],[Période/année (admission)]],Tableau1618[[Période année]:[Fin]],3,0),"") ->  | V25: =IF(AND(Tableau1[[#This Row],[Statut]]="Congé",Tableau1[[#This Row],[Date d''admission]]<>""),IF(Tableau1[[#This Row],[Date congé]]<=Tableau1[[#This Row],[Fin période (admission)]],Tableau1[[#This Row],[Date congé]]-Tableau1[[#This Row],[Date d''admission]],Tableau1[[#This Row],[Fin période (admission)]]-Tableau1[[#This Row],[Date d''admission]]),0) -> 0 | W25: =IFERROR(IF(Tableau1[[#This Row],[Date d''admission]]<>"",IF(Tableau1[[#This Row],[Site]]="René_Léosa",Tableau1[[#This Row],[Date d''admission]]+45,"")),"") -> FALSE | Y25: 710 | AA25: Non | AD25: =IF(Tableau1[[#This Row],[Date rencontre familiale]]="","Non","Oui") -> Non | AE25: =IF(Tableau1[[#This Row],[Date rencontre familiale]]="","",Tableau1[[#This Row],[Date rencontre familiale]]-Tableau1[[#This Row],[Date d''admission]]) ->  | AF25: =IF(Tableau1[[#This Row],[Date congé]]<>"",Tableau1[[#This Row],[Date congé]],"") -> 44168 | AG25: =IF(Tableau1[[#This Row],[Date de fin Soins actifs]]<>"","Non","Oui") -> Non | AI25: 44168 | AJ25: =IFERROR(VLOOKUP(Tableau1[[#This Row],[Date congé]],Tableau1618[],4,1),"") -> P09 | AK25: =IFERROR(VLOOKUP(Tableau1[[#This Row],[Date congé]],Tableau1618[],5,1),"") -> 2020-2021 | AL25: =CONCATENATE(Tableau1[[#This Row],[Période (congé)]]," ",Tableau1[[#This Row],[Année (congé)]]) -> P09 2020-2021 | AM25: =IFERROR(VLOOKUP(Tableau1[[#This Row],[Période/année (congé)]],Tableau1618[[Période année]:[Fin]],3,0),"") -> 44170 | AN25: =IF(AND(Tableau1[[#This Row],[Statut]]="Congé",Tableau1[[#This Row],[Date d''admission]]<>""),IF(Tableau1[[#This Row],[Date congé]]>=Tableau1[[#This Row],[Fin période (admission)]],Tableau1[[#This Row],[Date congé]]-Tableau1[[#This Row],[Fin période (admission)]],0),0) -> 0 | AO25: =IF(AND(Tableau1[[#This Row],[Date congé prévu]]<>"",Tableau1[[#This Row],[Date congé]]<>""),Tableau1[[#This Row],[Date congé]]-Tableau1[[#This Row],[Date congé prévu]],"") ->  | AP25: =IFERROR(IF(AND(Tableau1[[#This Row],[Date d''admission]]<>"",Tableau1[[#This Row],[Date congé]]<>""),DATEDIF(Tableau1[[#This Row],[Date d''admission]],Tableau1[[#This Row],[Date congé]],"D"),""),"") ->  | AQ25: =IF(AND(Tableau1[[#This Row],[Date de fin Soins actifs]]<>"",Tableau1[[#This Row],[Date congé]]<>""),IF(Tableau1[[#This Row],[Date de fin Soins actifs]]<>Tableau1[[#This Row],[Date congé]],"Devient NSA durant séjour","Quitte avant de devenir NSA"),"") -> Quitte avant de devenir NSA | AR25: =IF(Tableau1[[#This Row],[NSA]]="Devient NSA durant PEC",Tableau1[[#This Row],[Date congé]]-Tableau1[[#This Row],[Date de fin Soins actifs]],"") ->  | AS25: Retour à domicile | AT25: 710 | AU25: 1 | AV25: Ergothérapie | AY25: =IFERROR(DATEDIF(Tableau1[[#This Row],[Date dépôt demande]],Tableau1[[#This Row],[Date d''admission]],"D"),"") -> 0 | AZ25: =IFERROR(IF(AND(Tableau1[[#This Row],[Date de fin Soins actifs]]<>"",Tableau1[[#This Row],[Date congé]]<>""),DATEDIF(Tableau1[[#This Row],[Date de fin Soins actifs]],Tableau1[[#This Row],[Date congé]],"D"),""),"") -> 0 | BB25: =IF(Tableau1[[#This Row],[Date dépôt MAH]]="","",Tableau1[[#This Row],[Date dépôt MAH]]-Tableau1[[#This Row],[Date d''admission]]) ->  | BC25: =IF(Tableau1[[#This Row],[Date dépôt MAH]]="","",Tableau1[[#This Row],[Date congé]]-Tableau1[[#This Row],[Date dépôt MAH]]) ->  | BE25: =IFERROR(DATEDIF(Tableau1[[#This Row],[Date orientation]],Tableau1[[#This Row],[Date congé]],"D"),"") -> 44168
A26: Drummond | B26: _600_Bousquet_NSA | C26: 232 | D26: =IFERROR(VLOOKUP(C26,Chambres,3,FALSE),"") ->  | E26: =IF(AND(Tableau1[[#This Row],[Date d''admission]]<>"",Tableau1[[#This Row],[Date congé]]=""),"Occupée",IF(Tableau1[[#This Row],[Date congé]]<>"","Congé","Libre")) -> Congé | H26: P073472 | I26: 10289 | J26: =(IF(Tableau1[[#This Row],[Date de naissance]]<>"",DATEDIF(Tableau1[[#This Row],[Date de naissance]],TODAY(),"Y"),"")) -> 93 | K26: =IF(Tableau1[[#This Row],[Âge]]<=60,"60 et -",IF(Tableau1[[#This Row],[Âge]]<=65,"61-65",IF(Tableau1[[#This Row],[Âge]]<=70,"66-70",IF(Tableau1[[#This Row],[Âge]]<=75,"71-75",IF(Tableau1[[#This Row],[Âge]]<=80,"76-80",IF(Tableau1[[#This Row],[Âge]]<=85,"81-85",IF(Tableau1[[#This Row],[Âge]]<=110,"86 et +",""))))))) -> 86 et + | L26: 43970 | M26: =IFERROR(VLOOKUP(Tableau1[[#This Row],[Date dépôt demande]],Tableau1618[],4,1),"") -> P02 | N26: =IFERROR(VLOOKUP(Tableau1[[#This Row],[Date dépôt demande]],Tableau1618[],5,1),"") -> 2020-2021 | O26: Éval-ori | P26: Autre | Q26: 43971 | R26: =IFERROR(VLOOKUP(Tableau1[[#This Row],[Date d''admission]],Tableau1618[],4,1),"") -> P02 | S26: =IFERROR(VLOOKUP(Tableau1[[#This Row],[Date d''admission]],Tableau1618[],5,1),"") -> 2020-2021 | T26: =CONCATENATE(Tableau1[[#This Row],[Période (admission)]]," ",Tableau1[[#This Row],[Année (admission)]]) -> P02 2020-2021 | U26: =IFERROR(VLOOKUP(Tableau1[[#This Row],[Période/année (admission)]],Tableau1618[[Période année]:[Fin]],3,0),"") -> 43974 | V26: =IF(AND(Tableau1[[#This Row],[Statut]]="Congé",Tableau1[[#This Row],[Date d''admission]]<>""),IF(Tableau1[[#This Row],[Date congé]]<=Tableau1[[#This Row],[Fin période (admission)]],Tableau1[[#This Row],[Date congé]]-Tableau1[[#This Row],[Date d''admission]],Tableau1[[#This Row],[Fin période (admission)]]-Tableau1[[#This Row],[Date d''admission]]),0) -> 3 | W26: =IFERROR(IF(Tableau1[[#This Row],[Date d''admission]]<>"",IF(Tableau1[[#This Row],[Site]]="René_Léosa",Tableau1[[#This Row],[Date d''admission]]+45,"")),"") ->  | Y26: 710 | AA26: Oui | AD26: =IF(Tableau1[[#This Row],[Date rencontre familiale]]="","Non","Oui") -> Non | AE26: =IF(Tableau1[[#This Row],[Date rencontre familiale]]="","",Tableau1[[#This Row],[Date rencontre familiale]]-Tableau1[[#This Row],[Date d''admission]]) ->  | AF26: =IF(Tableau1[[#This Row],[Date congé]]<>"",Tableau1[[#This Row],[Date congé]],"") -> 44018 | AG26: =IF(Tableau1[[#This Row],[Date de fin Soins actifs]]<>"","Non","Oui") -> Non | AI26: 44018 | AJ26: =IFERROR(VLOOKUP(Tableau1[[#This Row],[Date congé]],Tableau1618[],4,1),"") -> P04 | AK26: =IFERROR(VLOOKUP(Tableau1[[#This Row],[Date congé]],Tableau1618[],5,1),"") -> 2020-2021 | AL26: =CONCATENATE(Tableau1[[#This Row],[Période (congé)]]," ",Tableau1[[#This Row],[Année (congé)]]) -> P04 2020-2021 | AM26: =IFERROR(VLOOKUP(Tableau1[[#This Row],[Période/année (congé)]],Tableau1618[[Période année]:[Fin]],3,0),"") -> 44030 | AN26: =IF(AND(Tableau1[[#This Row],[Statut]]="Congé",Tableau1[[#This Row],[Date d''admission]]<>""),IF(Tableau1[[#This Row],[Date congé]]>=Tableau1[[#This Row],[Fin période (admission)]],Tableau1[[#This Row],[Date congé]]-Tableau1[[#This Row],[Fin période (admission)]],0),0) -> 44 | AO26: =IF(AND(Tableau1[[#This Row],[Date congé prévu]]<>"",Tableau1[[#This Row],[Date congé]]<>""),Tableau1[[#This Row],[Date congé]]-Tableau1[[#This Row],[Date congé prévu]],"") ->  | AP26: =SUM(Tableau1[[#This Row],[Séjour 1]]+Tableau1[[#This Row],[Séjour 2]]) -> 47 | AQ26: =IF(AND(Tableau1[[#This Row],[Date de fin Soins actifs]]<>"",Tableau1[[#This Row],[Date congé]]<>""),IF(Tableau1[[#This Row],[Date de fin Soins actifs]]<>Tableau1[[#This Row],[Date congé]],"Devient NSA durant séjour","Quitte avant de devenir NSA"),"") -> Quitte avant de devenir NSA | AR26: =IF(Tableau1[[#This Row],[NSA]]="Devient NSA durant PEC",Tableau1[[#This Row],[Date congé]]-Tableau1[[#This Row],[Date de fin Soins actifs]],"") ->  | AS26: Retour au CH | AT26: 710 | AY26: =IFERROR(DATEDIF(Tableau1[[#This Row],[Date dépôt demande]],Tableau1[[#This Row],[Date d''admission]],"D"),"") -> 1 | AZ26: =IFERROR(IF(AND(Tableau1[[#This Row],[Date de fin Soins actifs]]<>"",Tableau1[[#This Row],[Date congé]]<>""),DATEDIF(Tableau1[[#This Row],[Date de fin Soins actifs]],Tableau1[[#This Row],[Date congé]],"D"),""),"") -> 0 | BB26: =IF(Tableau1[[#This Row],[Date dépôt MAH]]="","",Tableau1[[#This Row],[Date dépôt MAH]]-Tableau1[[#This Row],[Date d''admission]]) ->  | BC26: =IF(Tableau1[[#This Row],[Date dépôt MAH]]="","",Tableau1[[#This Row],[Date congé]]-Tableau1[[#This Row],[Date dépôt MAH]]) ->  | BE26: =IFERROR(DATEDIF(Tableau1[[#This Row],[Date orientation]],Tableau1[[#This Row],[Date congé]],"D"),"") -> 44018
A27: Drummond | B27: René_Léosa | C27: 14 | D27: =IFERROR(VLOOKUP(C27,Chambres,3,FALSE),"") -> Régulière | E27: =IF(AND(Tableau1[[#This Row],[Date d''admission]]<>"",Tableau1[[#This Row],[Date congé]]=""),"Occupée",IF(Tableau1[[#This Row],[Date congé]]<>"","Congé","Libre")) -> Congé | H27: P082785 | I27: 15287 | J27: =(IF(Tableau1[[#This Row],[Date de naissance]]<>"",DATEDIF(Tableau1[[#This Row],[Date de naissance]],TODAY(),"Y"),"")) -> 79 | K27: =IF(Tableau1[[#This Row],[Âge]]<=60,"60 et -",IF(Tableau1[[#This Row],[Âge]]<=65,"61-65",IF(Tableau1[[#This Row],[Âge]]<=70,"66-70",IF(Tableau1[[#This Row],[Âge]]<=75,"71-75",IF(Tableau1[[#This Row],[Âge]]<=80,"76-80",IF(Tableau1[[#This Row],[Âge]]<=85,"81-85",IF(Tableau1[[#This Row],[Âge]]<=110,"86 et +",""))))))) -> 76-80 | L27: 44076 | M27: =IFERROR(VLOOKUP(Tableau1[[#This Row],[Date dépôt demande]],Tableau1618[],4,1),"") -> P06 | N27: =IFERROR(VLOOKUP(Tableau1[[#This Row],[Date dépôt demande]],Tableau1618[],5,1),"") -> 2020-2021 | O27: Éval-ori | P27: HSC | Q27: 44082 | R27: =IFERROR(VLOOKUP(Tableau1[[#This Row],[Date d''admission]],Tableau1618[],4,1),"") -> P06 | S27: =IFERROR(VLOOKUP(Tableau1[[#This Row],[Date d''admission]],Tableau1618[],5,1),"") -> 2020-2021 | T27: =CONCATENATE(Tableau1[[#This Row],[Période (admission)]]," ",Tableau1[[#This Row],[Année (admission)]]) -> P06 2020-2021 | U27: =IFERROR(VLOOKUP(Tableau1[[#This Row],[Période/année (admission)]],Tableau1618[[Période année]:[Fin]],3,0),"") -> 44086 | V27: =IF(AND(Tableau1[[#This Row],[Statut]]="Congé",Tableau1[[#This Row],[Date d''admission]]<>""),IF(Tableau1[[#This Row],[Date congé]]<=Tableau1[[#This Row],[Fin période (admission)]],Tableau1[[#This Row],[Date congé]]-Tableau1[[#This Row],[Date d''admission]],Tableau1[[#This Row],[Fin période (admission)]]-Tableau1[[#This Row],[Date d''admission]]),0) -> 4 | W27: =IFERROR(IF(Tableau1[[#This Row],[Date d''admission]]<>"",IF(Tableau1[[#This Row],[Site]]="René_Léosa",Tableau1[[#This Row],[Date d''admission]]+45,"")),"") -> 44127 | Y27: 710 | AA27: Non | AD27: =IF(Tableau1[[#This Row],[Date rencontre familiale]]="","Non","Oui") -> Non | AE27: =IF(Tableau1[[#This Row],[Date rencontre familiale]]="","",Tableau1[[#This Row],[Date rencontre familiale]]-Tableau1[[#This Row],[Date d''admission]]) ->  | AF27: =IF(Tableau1[[#This Row],[Date congé]]<>"",Tableau1[[#This Row],[Date congé]],"") -> 44106 | AG27: =IF(Tableau1[[#This Row],[Date de fin Soins actifs]]<>"","Non","Oui") -> Non | AI27: 44106 | AJ27: =IFERROR(VLOOKUP(Tableau1[[#This Row],[Date congé]],Tableau1618[],4,1),"") -> P07 | AK27: =IFERROR(VLOOKUP(Tableau1[[#This Row],[Date congé]],Tableau1618[],5,1),"") -> 2020-2021 | AL27: =CONCATENATE(Tableau1[[#This Row],[Période (congé)]]," ",Tableau1[[#This Row],[Année (congé)]]) -> P07 2020-2021 | AM27: =IFERROR(VLOOKUP(Tableau1[[#This Row],[Période/année (congé)]],Tableau1618[[Période année]:[Fin]],3,0),"") -> 44114 | AN27: =IF(AND(Tableau1[[#This Row],[Statut]]="Congé",Tableau1[[#This Row],[Date d''admission]]<>""),IF(Tableau1[[#This Row],[Date congé]]>=Tableau1[[#This Row],[Fin période (admission)]],Tableau1[[#This Row],[Date congé]]-Tableau1[[#This Row],[Fin période (admission)]],0),0) -> 20 | AO27: =IF(AND(Tableau1[[#This Row],[Date congé prévu]]<>"",Tableau1[[#This Row],[Date congé]]<>""),Tableau1[[#This Row],[Date congé]]-Tableau1[[#This Row],[Date congé prévu]],"") ->  | AP27: =SUM(Tableau1[[#This Row],[Séjour 1]]+Tableau1[[#This Row],[Séjour 2]]) -> 24 | AQ27: =IF(AND(Tableau1[[#This Row],[Date de fin Soins actifs]]<>"",Tableau1[[#This Row],[Date congé]]<>""),IF(Tableau1[[#This Row],[Date de fin Soins actifs]]<>Tableau1[[#This Row],[Date congé]],"Devient NSA durant séjour","Quitte avant de devenir NSA"),"") -> Quitte avant de devenir NSA | AR27: =IF(Tableau1[[#This Row],[NSA]]="Devient NSA durant PEC",Tableau1[[#This Row],[Date congé]]-Tableau1[[#This Row],[Date de fin Soins actifs]],"") ->  | AS27: Retour à domicile | AT27: 710 | AV27: Ergothérapie | AY27: =IFERROR(DATEDIF(Tableau1[[#This Row],[Date dépôt demande]],Tableau1[[#This Row],[Date d''admission]],"D"),"") -> 6 | AZ27: =IFERROR(IF(AND(Tableau1[[#This Row],[Date de fin Soins actifs]]<>"",Tableau1[[#This Row],[Date congé]]<>""),DATEDIF(Tableau1[[#This Row],[Date de fin Soins actifs]],Tableau1[[#This Row],[Date congé]],"D"),""),"") -> 0 | BB27: =IF(Tableau1[[#This Row],[Date dépôt MAH]]="","",Tableau1[[#This Row],[Date dépôt MAH]]-Tableau1[[#This Row],[Date d''admission]]) ->  | BC27: =IF(Tableau1[[#This Row],[Date dépôt MAH]]="","",Tableau1[[#This Row],[Date congé]]-Tableau1[[#This Row],[Date dépôt MAH]]) ->  | BE27: =IFERROR(DATEDIF(Tableau1[[#This Row],[Date orientation]],Tableau1[[#This Row],[Date congé]],"D"),"") -> 44106
A28: Drummond | B28: _600_Bousquet_NSA | C28: 276 | D28: =IFERROR(VLOOKUP(C28,Chambres,3,FALSE),"") -> Prothétique | E28: =IF(AND(Tableau1[[#This Row],[Date d''admission]]<>"",Tableau1[[#This Row],[Date congé]]=""),"Occupée",IF(Tableau1[[#This Row],[Date congé]]<>"","Congé","Libre")) -> Congé | H28: P170089 | I28: 23532 | J28: =(IF(Tableau1[[#This Row],[Date de naissance]]<>"",DATEDIF(Tableau1[[#This Row],[Date de naissance]],TODAY(),"Y"),"")) -> 57 | K28: =IF(Tableau1[[#This Row],[Âge]]<=60,"60 et -",IF(Tableau1[[#This Row],[Âge]]<=65,"61-65",IF(Tableau1[[#This Row],[Âge]]<=70,"66-70",IF(Tableau1[[#This Row],[Âge]]<=75,"71-75",IF(Tableau1[[#This Row],[Âge]]<=80,"76-80",IF(Tableau1[[#This Row],[Âge]]<=85,"81-85",IF(Tableau1[[#This Row],[Âge]]<=110,"86 et +",""))))))) -> 60 et - | L28: 44311 | M28: =IFERROR(VLOOKUP(Tableau1[[#This Row],[Date dépôt demande]],Tableau1618[],4,1),"") -> P02 | N28: =IFERROR(VLOOKUP(Tableau1[[#This Row],[Date dépôt demande]],Tableau1618[],5,1),"") -> 2021-2022 | O28: Urgence sociale | P28: HSC | Q28: 44312 | R28: =IFERROR(VLOOKUP(Tableau1[[#This Row],[Date d''admission]],Tableau1618[],4,1),"") -> P02 | S28: =IFERROR(VLOOKUP(Tableau1[[#This Row],[Date d''admission]],Tableau1618[],5,1),"") -> 2021-2022 | T28: =CONCATENATE(Tableau1[[#This Row],[Période (admission)]]," ",Tableau1[[#This Row],[Année (admission)]]) -> P02 2021-2022 | U28: =IFERROR(VLOOKUP(Tableau1[[#This Row],[Période/année (admission)]],Tableau1618[[Période année]:[Fin]],3,0),"") -> 44338 | V28: =IF(AND(Tableau1[[#This Row],[Statut]]="Congé",Tableau1[[#This Row],[Date d''admission]]<>""),IF(Tableau1[[#This Row],[Date congé]]<=Tableau1[[#This Row],[Fin période (admission)]],Tableau1[[#This Row],[Date congé]]-Tableau1[[#This Row],[Date d''admission]],Tableau1[[#This Row],[Fin période (admission)]]-Tableau1[[#This Row],[Date d''admission]]),0) -> 15 | W28: =IFERROR(IF(Tableau1[[#This Row],[Date d''admission]]<>"",IF(Tableau1[[#This Row],[Site]]="René_Léosa",Tableau1[[#This Row],[Date d''admission]]+45,"")),"") ->  | AD28: =IF(Tableau1[[#This Row],[Date rencontre familiale]]="","Non","Oui") -> Non | AE28: =IF(Tableau1[[#This Row],[Date rencontre familiale]]="","",Tableau1[[#This Row],[Date rencontre familiale]]-Tableau1[[#This Row],[Date d''admission]]) ->  | AF28: =IF(Tableau1[[#This Row],[Date congé]]<>"",Tableau1[[#This Row],[Date congé]],"") -> 44327 | AG28: =IF(Tableau1[[#This Row],[Date de fin Soins actifs]]<>"","Non","Oui") -> Non | AI28: 44327 | AJ28: =IFERROR(VLOOKUP(Tableau1[[#This Row],[Date congé]],Tableau1618[],4,1),"") -> P02 | AK28: =IFERROR(VLOOKUP(Tableau1[[#This Row],[Date congé]],Tableau1618[],5,1),"") -> 2021-2022 | AL28: =CONCATENATE(Tableau1[[#This Row],[Période (congé)]]," ",Tableau1[[#This Row],[Année (congé)]]) -> P02 2021-2022 | AM28: =IFERROR(VLOOKUP(Tableau1[[#This Row],[Période/année (congé)]],Tableau1618[[Période année]:[Fin]],3,0),"") -> 44338 | AN28: =IF(AND(Tableau1[[#This Row],[Statut]]="Congé",Tableau1[[#This Row],[Date d''admission]]<>""),IF(Tableau1[[#This Row],[Date congé]]>=Tableau1[[#This Row],[Fin période (admission)]],Tableau1[[#This Row],[Date congé]]-Tableau1[[#This Row],[Fin période (admission)]],0),0) -> 0 | AO28: =IF(AND(Tableau1[[#This Row],[Date congé prévu]]<>"",Tableau1[[#This Row],[Date congé]]<>""),Tableau1[[#This Row],[Date congé]]-Tableau1[[#This Row],[Date congé prévu]],"") ->  | AP28: =SUM(Tableau1[[#This Row],[Séjour 1]]+Tableau1[[#This Row],[Séjour 2]]) -> 15 | AQ28: =IF(AND(Tableau1[[#This Row],[Date de fin Soins actifs]]<>"",Tableau1[[#This Row],[Date congé]]<>""),IF(Tableau1[[#This Row],[Date de fin Soins actifs]]<>Tableau1[[#This Row],[Date congé]],"Devient NSA durant séjour","Quitte avant de devenir NSA"),"") -> Quitte avant de devenir NSA | AR28: =IF(Tableau1[[#This Row],[NSA]]="Devient NSA durant PEC",Tableau1[[#This Row],[Date congé]]-Tableau1[[#This Row],[Date de fin Soins actifs]],"") ->  | AS28: Relocalisation RTF | AT28: 191 | AU28: 13 | AY28: =IFERROR(DATEDIF(Tableau1[[#This Row],[Date dépôt demande]],Tableau1[[#This Row],[Date d''admission]],"D"),"") -> 1 | AZ28: =IFERROR(IF(AND(Tableau1[[#This Row],[Date de fin Soins actifs]]<>"",Tableau1[[#This Row],[Date congé]]<>""),DATEDIF(Tableau1[[#This Row],[Date de fin Soins actifs]],Tableau1[[#This Row],[Date congé]],"D"),""),"") -> 0 | BB28: =IF(Tableau1[[#This Row],[Date dépôt MAH]]="","",Tableau1[[#This Row],[Date dépôt MAH]]-Tableau1[[#This Row],[Date d''admission]]) ->  | BC28: =IF(Tableau1[[#This Row],[Date dépôt MAH]]="","",Tableau1[[#This Row],[Date congé]]-Tableau1[[#This Row],[Date dépôt MAH]]) ->  | BE28: =IFERROR(DATEDIF(Tableau1[[#This Row],[Date orientation]],Tableau1[[#This Row],[Date congé]],"D"),"") -> 44327
A29: Drummond | B29: CFGH | C29: 1053 | D29: =IFERROR(VLOOKUP(C29,Chambres,3,FALSE),"") -> 1NC | E29: =IF(AND(Tableau1[[#This Row],[Date d''admission]]<>"",Tableau1[[#This Row],[Date congé]]=""),"Occupée",IF(Tableau1[[#This Row],[Date congé]]<>"","Congé","Libre")) -> Congé | H29: P082788 | I29: 14584 | J29: =(IF(Tableau1[[#This Row],[Date de naissance]]<>"",DATEDIF(Tableau1[[#This Row],[Date de naissance]],TODAY(),"Y"),"")) -> 81 | K29: =IF(Tableau1[[#This Row],[Âge]]<=60,"60 et -",IF(Tableau1[[#This Row],[Âge]]<=65,"61-65",IF(Tableau1[[#This Row],[Âge]]<=70,"66-70",IF(Tableau1[[#This Row],[Âge]]<=75,"71-75",IF(Tableau1[[#This Row],[Âge]]<=80,"76-80",IF(Tableau1[[#This Row],[Âge]]<=85,"81-85",IF(Tableau1[[#This Row],[Âge]]<=110,"86 et +",""))))))) -> 81-85 | L29: 44029 | M29: =IFERROR(VLOOKUP(Tableau1[[#This Row],[Date dépôt demande]],Tableau1618[],4,1),"") -> P04 | N29: =IFERROR(VLOOKUP(Tableau1[[#This Row],[Date dépôt demande]],Tableau1618[],5,1),"") -> 2020-2021 | O29: Éval-ori | P29: HSC | Q29: 44041 | R29: =IFERROR(VLOOKUP(Tableau1[[#This Row],[Date d''admission]],Tableau1618[],4,1),"") -> P05 | S29: =IFERROR(VLOOKUP(Tableau1[[#This Row],[Date d''admission]],Tableau1618[],5,1),"") -> 2020-2021 | T29: =CONCATENATE(Tableau1[[#This Row],[Période (admission)]]," ",Tableau1[[#This Row],[Année (admission)]]) -> P05 2020-2021 | U29: =IFERROR(VLOOKUP(Tableau1[[#This Row],[Période/année (admission)]],Tableau1618[[Période année]:[Fin]],3,0),"") -> 44058 | V29: =IF(AND(Tableau1[[#This Row],[Statut]]="Congé",Tableau1[[#This Row],[Date d''admission]]<>""),IF(Tableau1[[#This Row],[Date congé]]<=Tableau1[[#This Row],[Fin période (admission)]],Tableau1[[#This Row],[Date congé]]-Tableau1[[#This Row],[Date d''admission]],Tableau1[[#This Row],[Fin période (admission)]]-Tableau1[[#This Row],[Date d''admission]]),0) -> 17 | W29: =IFERROR(IF(Tableau1[[#This Row],[Date d''admission]]<>"",IF(Tableau1[[#This Row],[Site]]="René_Léosa",Tableau1[[#This Row],[Date d''admission]]+45,"")),"") ->  | Y29: 710 | AA29: Oui | AD29: =IF(Tableau1[[#This Row],[Date rencontre familiale]]="","Non","Oui") -> Non | AE29: =IF(Tableau1[[#This Row],[Date rencontre familiale]]="","",Tableau1[[#This Row],[Date rencontre familiale]]-Tableau1[[#This Row],[Date d''admission]]) ->  | AF29: =IF(Tableau1[[#This Row],[Date congé]]<>"",Tableau1[[#This Row],[Date congé]],"") -> 44088 | AG29: =IF(Tableau1[[#This Row],[Date de fin Soins actifs]]<>"","Non","Oui") -> Non | AH29: 44088 | AI29: 44088 | AJ29: =IFERROR(VLOOKUP(Tableau1[[#This Row],[Date congé]],Tableau1618[],4,1),"") -> P07 | AK29: =IFERROR(VLOOKUP(Tableau1[[#This Row],[Date congé]],Tableau1618[],5,1),"") -> 2020-2021 | AL29: =CONCATENATE(Tableau1[[#This Row],[Période (congé)]]," ",Tableau1[[#This Row],[Année (congé)]]) -> P07 2020-2021 | AM29: =IFERROR(VLOOKUP(Tableau1[[#This Row],[Période/année (congé)]],Tableau1618[[Période année]:[Fin]],3,0),"") -> 44114 | AN29: =IF(AND(Tableau1[[#This Row],[Statut]]="Congé",Tableau1[[#This Row],[Date d''admission]]<>""),IF(Tableau1[[#This Row],[Date congé]]>=Tableau1[[#This Row],[Fin période (admission)]],Tableau1[[#This Row],[Date congé]]-Tableau1[[#This Row],[Fin période (admission)]],0),0) -> 30 | AO29: =IF(AND(Tableau1[[#This Row],[Date congé prévu]]<>"",Tableau1[[#This Row],[Date congé]]<>""),Tableau1[[#This Row],[Date congé]]-Tableau1[[#This Row],[Date congé prévu]],"") -> 0 | AP29: =SUM(Tableau1[[#This Row],[Séjour 1]]+Tableau1[[#This Row],[Séjour 2]]) -> 47 | AQ29: =IF(AND(Tableau1[[#This Row],[Date de fin Soins actifs]]<>"",Tableau1[[#This Row],[Date congé]]<>""),IF(Tableau1[[#This Row],[Date de fin Soins actifs]]<>Tableau1[[#This Row],[Date congé]],"Devient NSA durant séjour","Quitte avant de devenir NSA"),"") -> Quitte avant de devenir NSA | AR29: =IF(Tableau1[[#This Row],[NSA]]="Devient NSA durant PEC",Tableau1[[#This Row],[Date congé]]-Tableau1[[#This Row],[Date de fin Soins actifs]],"") ->  | AS29: Relocalisation RPA | AT29: 710 | AU29: 9 | AY29: =IFERROR(DATEDIF(Tableau1[[#This Row],[Date dépôt demande]],Tableau1[[#This Row],[Date d''admission]],"D"),"") -> 12 | AZ29: =IFERROR(IF(AND(Tableau1[[#This Row],[Date de fin Soins actifs]]<>"",Tableau1[[#This Row],[Date congé]]<>""),DATEDIF(Tableau1[[#This Row],[Date de fin Soins actifs]],Tableau1[[#This Row],[Date congé]],"D"),""),"") -> 0 | BB29: =IF(Tableau1[[#This Row],[Date dépôt MAH]]="","",Tableau1[[#This Row],[Date dépôt MAH]]-Tableau1[[#This Row],[Date d''admission]]) ->  | BC29: =IF(Tableau1[[#This Row],[Date dépôt MAH]]="","",Tableau1[[#This Row],[Date congé]]-Tableau1[[#This Row],[Date dépôt MAH]]) ->  | BE29: =IFERROR(DATEDIF(Tableau1[[#This Row],[Date orientation]],Tableau1[[#This Row],[Date congé]],"D"),"") -> 44088
A30: Drummond | B30: _600_Bousquet_HT | C30: 276 | D30: =IFERROR(VLOOKUP(C30,Chambres,3,FALSE),"") -> Prothétique | E30: Annulée | H30: P156433 | I30: 10732 | J30: =(IF(Tableau1[[#This Row],[Date de naissance]]<>"",DATEDIF(Tableau1[[#This Row],[Date de naissance]],TODAY(),"Y"),"")) -> 92 | K30: =IF(Tableau1[[#This Row],[Âge]]<=60,"60 et -",IF(Tableau1[[#This Row],[Âge]]<=65,"61-65",IF(Tableau1[[#This Row],[Âge]]<=70,"66-70",IF(Tableau1[[#This Row],[Âge]]<=75,"71-75",IF(Tableau1[[#This Row],[Âge]]<=80,"76-80",IF(Tableau1[[#This Row],[Âge]]<=85,"81-85",IF(Tableau1[[#This Row],[Âge]]<=110,"86 et +",""))))))) -> 86 et + | L30: 44039 | M30: =IFERROR(VLOOKUP(Tableau1[[#This Row],[Date dépôt demande]],Tableau1618[],4,1),"") -> P05 | N30: =IFERROR(VLOOKUP(Tableau1[[#This Row],[Date dépôt demande]],Tableau1618[],5,1),"") -> 2020-2021 | O30: Autre | P30: Autre | Q30: 44042 | R30: =IFERROR(VLOOKUP(Tableau1[[#This Row],[Date d''admission]],Tableau1618[],4,1),"") -> P05 | S30: =IFERROR(VLOOKUP(Tableau1[[#This Row],[Date d''admission]],Tableau1618[],5,1),"") -> 2020-2021 | T30: =CONCATENATE(Tableau1[[#This Row],[Période (admission)]]," ",Tableau1[[#This Row],[Année (admission)]]) -> P05 2020-2021 | U30: =IFERROR(VLOOKUP(Tableau1[[#This Row],[Période/année (admission)]],Tableau1618[[Période année]:[Fin]],3,0),"") -> 44058 | V30: =IF(AND(Tableau1[[#This Row],[Statut]]="Congé",Tableau1[[#This Row],[Date d''admission]]<>""),IF(Tableau1[[#This Row],[Date congé]]<=Tableau1[[#This Row],[Fin période (admission)]],Tableau1[[#This Row],[Date congé]]-Tableau1[[#This Row],[Date d''admission]],Tableau1[[#This Row],[Fin période (admission)]]-Tableau1[[#This Row],[Date d''admission]]),0) -> 0 | W30: =IFERROR(IF(Tableau1[[#This Row],[Date d''admission]]<>"",IF(Tableau1[[#This Row],[Site]]="René_Léosa",Tableau1[[#This Row],[Date d''admission]]+45,"")),"") ->  | AA30: Oui | AD30: =IF(Tableau1[[#This Row],[Date rencontre familiale]]="","Non","Oui") -> Non | AE30: =IF(Tableau1[[#This Row],[Date rencontre familiale]]="","",Tableau1[[#This Row],[Date rencontre familiale]]-Tableau1[[#This Row],[Date d''admission]]) ->  | AF30: =IF(Tableau1[[#This Row],[Date congé]]<>"",Tableau1[[#This Row],[Date congé]],"") ->  | AG30: =IF(Tableau1[[#This Row],[Date de fin Soins actifs]]<>"","Non","Oui") -> Oui | AJ30: =IFERROR(VLOOKUP(Tableau1[[#This Row],[Date congé]],Tableau1618[],4,1),"") ->  | AK30: =IFERROR(VLOOKUP(Tableau1[[#This Row],[Date congé]],Tableau1618[],5,1),"") ->  | AL30: =CONCATENATE(Tableau1[[#This Row],[Période (congé)]]," ",Tableau1[[#This Row],[Année (congé)]]) ->  | AM30: =IFERROR(VLOOKUP(Tableau1[[#This Row],[Période/année (congé)]],Tableau1618[[Période année]:[Fin]],3,0),"") ->  | AN30: =IF(AND(Tableau1[[#This Row],[Statut]]="Congé",Tableau1[[#This Row],[Date d''admission]]<>""),IF(Tableau1[[#This Row],[Date congé]]>=Tableau1[[#This Row],[Fin période (admission)]],Tableau1[[#This Row],[Date congé]]-Tableau1[[#This Row],[Fin période (admission)]],0),0) -> 0 | AO30: =IF(AND(Tableau1[[#This Row],[Date congé prévu]]<>"",Tableau1[[#This Row],[Date congé]]<>""),Tableau1[[#This Row],[Date congé]]-Tableau1[[#This Row],[Date congé prévu]],"") ->  | AP30: =SUM(Tableau1[[#This Row],[Séjour 1]]+Tableau1[[#This Row],[Séjour 2]]) -> 0 | AQ30: =IF(AND(Tableau1[[#This Row],[Date de fin Soins actifs]]<>"",Tableau1[[#This Row],[Date congé]]<>""),IF(Tableau1[[#This Row],[Date de fin Soins actifs]]<>Tableau1[[#This Row],[Date congé]],"Devient NSA durant séjour","Quitte avant de devenir NSA"),"") ->  | AR30: =IF(Tableau1[[#This Row],[NSA]]="Devient NSA durant PEC",Tableau1[[#This Row],[Date congé]]-Tableau1[[#This Row],[Date de fin Soins actifs]],"") ->  | AY30: =IFERROR(DATEDIF(Tableau1[[#This Row],[Date dépôt demande]],Tableau1[[#This Row],[Date d''admission]],"D"),"") -> 3 | AZ30: =IFERROR(IF(AND(Tableau1[[#This Row],[Date de fin Soins actifs]]<>"",Tableau1[[#This Row],[Date congé]]<>""),DATEDIF(Tableau1[[#This Row],[Date de fin Soins actifs]],Tableau1[[#This Row],[Date congé]],"D"),""),"") ->  | BB30: =IF(Tableau1[[#This Row],[Date dépôt MAH]]="","",Tableau1[[#This Row],[Date dépôt MAH]]-Tableau1[[#This Row],[Date d''admission]]) ->  | BC30: =IF(Tableau1[[#This Row],[Date dépôt MAH]]="","",Tableau1[[#This Row],[Date congé]]-Tableau1[[#This Row],[Date dépôt MAH]]) ->  | BE30: =IFERROR(DATEDIF(Tableau1[[#This Row],[Date orientation]],Tableau1[[#This Row],[Date congé]],"D"),"") -> 0
A31: Drummond | B31: René_Léosa | C31: 14 | D31: =IFERROR(VLOOKUP(C31,Chambres,3,FALSE),"") -> Régulière | E31: =IF(AND(Tableau1[[#This Row],[Date d''admission]]<>"",Tableau1[[#This Row],[Date congé]]=""),"Occupée",IF(Tableau1[[#This Row],[Date congé]]<>"","Congé","Libre")) -> Congé | H31: P026833 | I31: 14924 | J31: =(IF(Tableau1[[#This Row],[Date de naissance]]<>"",DATEDIF(Tableau1[[#This Row],[Date de naissance]],TODAY(),"Y"),"")) -> 80 | K31: =IF(Tableau1[[#This Row],[Âge]]<=60,"60 et -",IF(Tableau1[[#This Row],[Âge]]<=65,"61-65",IF(Tableau1[[#This Row],[Âge]]<=70,"66-70",IF(Tableau1[[#This Row],[Âge]]<=75,"71-75",IF(Tableau1[[#This Row],[Âge]]<=80,"76-80",IF(Tableau1[[#This Row],[Âge]]<=85,"81-85",IF(Tableau1[[#This Row],[Âge]]<=110,"86 et +",""))))))) -> 76-80 | L31: 44246 | M31: =IFERROR(VLOOKUP(Tableau1[[#This Row],[Date dépôt demande]],Tableau1618[],4,1),"") -> P12 | N31: =IFERROR(VLOOKUP(Tableau1[[#This Row],[Date dépôt demande]],Tableau1618[],5,1),"") -> 2020-2021 | O31: Éval-ori | P31: HSC | Q31: 44249 | R31: =IFERROR(VLOOKUP(Tableau1[[#This Row],[Date d''admission]],Tableau1618[],4,1),"") -> P12 | S31: =IFERROR(VLOOKUP(Tableau1[[#This Row],[Date d''admission]],Tableau1618[],5,1),"") -> 2020-2021 | T31: =CONCATENATE(Tableau1[[#This Row],[Période (admission)]]," ",Tableau1[[#This Row],[Année (admission)]]) -> P12 2020-2021 | U31: =IFERROR(VLOOKUP(Tableau1[[#This Row],[Période/année (admission)]],Tableau1618[[Période année]:[Fin]],3,0),"") -> 44254 | V31: =IF(AND(Tableau1[[#This Row],[Statut]]="Congé",Tableau1[[#This Row],[Date d''admission]]<>""),IF(Tableau1[[#This Row],[Date congé]]<=Tableau1[[#This Row],[Fin période (admission)]],Tableau1[[#This Row],[Date congé]]-Tableau1[[#This Row],[Date d''admission]],Tableau1[[#This Row],[Fin période (admission)]]-Tableau1[[#This Row],[Date d''admission]]),0) -> 5 | W31: =IFERROR(IF(Tableau1[[#This Row],[Date d''admission]]<>"",IF(Tableau1[[#This Row],[Site]]="René_Léosa",Tableau1[[#This Row],[Date d''admission]]+45,"")),"") -> 44294 | Y31: 121 | AA31: Oui | AD31: =IF(Tableau1[[#This Row],[Date rencontre familiale]]="","Non","Oui") -> Non | AE31: =IF(Tableau1[[#This Row],[Date rencontre familiale]]="","",Tableau1[[#This Row],[Date rencontre familiale]]-Tableau1[[#This Row],[Date d''admission]]) ->  | AF31: =IF(Tableau1[[#This Row],[Date congé]]<>"",Tableau1[[#This Row],[Date congé]],"") -> 44277 | AG31: =IF(Tableau1[[#This Row],[Date de fin Soins actifs]]<>"","Non","Oui") -> Non | AI31: 44277 | AJ31: =IFERROR(VLOOKUP(Tableau1[[#This Row],[Date congé]],Tableau1618[],4,1),"") -> P13 | AK31: =IFERROR(VLOOKUP(Tableau1[[#This Row],[Date congé]],Tableau1618[],5,1),"") -> 2020-2021 | AL31: =CONCATENATE(Tableau1[[#This Row],[Période (congé)]]," ",Tableau1[[#This Row],[Année (congé)]]) -> P13 2020-2021 | AM31: =IFERROR(VLOOKUP(Tableau1[[#This Row],[Période/année (congé)]],Tableau1618[[Période année]:[Fin]],3,0),"") -> 44286 | AN31: =IF(AND(Tableau1[[#This Row],[Statut]]="Congé",Tableau1[[#This Row],[Date d''admission]]<>""),IF(Tableau1[[#This Row],[Date congé]]>=Tableau1[[#This Row],[Fin période (admission)]],Tableau1[[#This Row],[Date congé]]-Tableau1[[#This Row],[Fin période (admission)]],0),0) -> 23 | AO31: =IF(AND(Tableau1[[#This Row],[Date congé prévu]]<>"",Tableau1[[#This Row],[Date congé]]<>""),Tableau1[[#This Row],[Date congé]]-Tableau1[[#This Row],[Date congé prévu]],"") ->  | AP31: =SUM(Tableau1[[#This Row],[Séjour 1]]+Tableau1[[#This Row],[Séjour 2]]) -> 28 | AQ31: =IF(AND(Tableau1[[#This Row],[Date de fin Soins actifs]]<>"",Tableau1[[#This Row],[Date congé]]<>""),IF(Tableau1[[#This Row],[Date de fin Soins actifs]]<>Tableau1[[#This Row],[Date congé]],"Devient NSA durant séjour","Quitte avant de devenir NSA"),"") -> Quitte avant de devenir NSA | AR31: =IF(Tableau1[[#This Row],[NSA]]="Devient NSA durant PEC",Tableau1[[#This Row],[Date congé]]-Tableau1[[#This Row],[Date de fin Soins actifs]],"") ->  | AS31: Retour au CH | AY31: =IFERROR(DATEDIF(Tableau1[[#This Row],[Date dépôt demande]],Tableau1[[#This Row],[Date d''admission]],"D"),"") -> 3 | AZ31: =IFERROR(IF(AND(Tableau1[[#This Row],[Date de fin Soins actifs]]<>"",Tableau1[[#This Row],[Date congé]]<>""),DATEDIF(Tableau1[[#This Row],[Date de fin Soins actifs]],Tableau1[[#This Row],[Date congé]],"D"),""),"") -> 0 | BB31: =IF(Tableau1[[#This Row],[Date dépôt MAH]]="","",Tableau1[[#This Row],[Date dépôt MAH]]-Tableau1[[#This Row],[Date d''admission]]) ->  | BC31: =IF(Tableau1[[#This Row],[Date dépôt MAH]]="","",Tableau1[[#This Row],[Date congé]]-Tableau1[[#This Row],[Date dépôt MAH]]) ->  | BE31: =IFERROR(DATEDIF(Tableau1[[#This Row],[Date orientation]],Tableau1[[#This Row],[Date congé]],"D"),"") -> 44277
A32: Drummond | B32: _600_Bousquet_NSA | C32: 374 | D32: =IFERROR(VLOOKUP(C32,Chambres,3,FALSE),"") ->  | E32: =IF(AND(Tableau1[[#This Row],[Date d''admission]]<>"",Tableau1[[#This Row],[Date congé]]=""),"Occupée",IF(Tableau1[[#This Row],[Date congé]]<>"","Congé","Libre")) -> Congé | H32: P087445 | I32: 11741 | J32: =(IF(Tableau1[[#This Row],[Date de naissance]]<>"",DATEDIF(Tableau1[[#This Row],[Date de naissance]],TODAY(),"Y"),"")) -> 89 | K32: =IF(Tableau1[[#This Row],[Âge]]<=60,"60 et -",IF(Tableau1[[#This Row],[Âge]]<=65,"61-65",IF(Tableau1[[#This Row],[Âge]]<=70,"66-70",IF(Tableau1[[#This Row],[Âge]]<=75,"71-75",IF(Tableau1[[#This Row],[Âge]]<=80,"76-80",IF(Tableau1[[#This Row],[Âge]]<=85,"81-85",IF(Tableau1[[#This Row],[Âge]]<=110,"86 et +",""))))))) -> 86 et + | L32: 44113 | M32: =IFERROR(VLOOKUP(Tableau1[[#This Row],[Date dépôt demande]],Tableau1618[],4,1),"") -> P07 | N32: =IFERROR(VLOOKUP(Tableau1[[#This Row],[Date dépôt demande]],Tableau1618[],5,1),"") -> 2020-2021 | O32: Éval-ori | P32: HSC | Q32: 44118 | R32: =IFERROR(VLOOKUP(Tableau1[[#This Row],[Date d''admission]],Tableau1618[],4,1),"") -> P08 | S32: =IFERROR(VLOOKUP(Tableau1[[#This Row],[Date d''admission]],Tableau1618[],5,1),"") -> 2020-2021 | T32: =CONCATENATE(Tableau1[[#This Row],[Période (admission)]]," ",Tableau1[[#This Row],[Année (admission)]]) -> P08 2020-2021 | U32: =IFERROR(VLOOKUP(Tableau1[[#This Row],[Période/année (admission)]],Tableau1618[[Période année]:[Fin]],3,0),"") -> 44142 | V32: =IF(AND(Tableau1[[#This Row],[Statut]]="Congé",Tableau1[[#This Row],[Date d''admission]]<>""),IF(Tableau1[[#This Row],[Date congé]]<=Tableau1[[#This Row],[Fin période (admission)]],Tableau1[[#This Row],[Date congé]]-Tableau1[[#This Row],[Date d''admission]],Tableau1[[#This Row],[Fin période (admission)]]-Tableau1[[#This Row],[Date d''admission]]),0) -> 24 | W32: =IFERROR(IF(Tableau1[[#This Row],[Date d''admission]]<>"",IF(Tableau1[[#This Row],[Site]]="René_Léosa",Tableau1[[#This Row],[Date d''admission]]+45,"")),"") ->  | Y32: 710 | AA32: Non | AD32: =IF(Tableau1[[#This Row],[Date rencontre familiale]]="","Non","Oui") -> Non | AE32: =IF(Tableau1[[#This Row],[Date rencontre familiale]]="","",Tableau1[[#This Row],[Date rencontre familiale]]-Tableau1[[#This Row],[Date d''admission]]) ->  | AF32: =IF(Tableau1[[#This Row],[Date congé]]<>"",Tableau1[[#This Row],[Date congé]],"") -> 44175 | AG32: =IF(Tableau1[[#This Row],[Date de fin Soins actifs]]<>"","Non","Oui") -> Non | AI32: 44175 | AJ32: =IFERROR(VLOOKUP(Tableau1[[#This Row],[Date congé]],Tableau1618[],4,1),"") -> P10 | AK32: =IFERROR(VLOOKUP(Tableau1[[#This Row],[Date congé]],Tableau1618[],5,1),"") -> 2020-2021 | AL32: =CONCATENATE(Tableau1[[#This Row],[Période (congé)]]," ",Tableau1[[#This Row],[Année (congé)]]) -> P10 2020-2021 | AM32: =IFERROR(VLOOKUP(Tableau1[[#This Row],[Période/année (congé)]],Tableau1618[[Période année]:[Fin]],3,0),"") -> 44198 | AN32: =IF(AND(Tableau1[[#This Row],[Statut]]="Congé",Tableau1[[#This Row],[Date d''admission]]<>""),IF(Tableau1[[#This Row],[Date congé]]>=Tableau1[[#This Row],[Fin période (admission)]],Tableau1[[#This Row],[Date congé]]-Tableau1[[#This Row],[Fin période (admission)]],0),0) -> 33 | AO32: =IF(AND(Tableau1[[#This Row],[Date congé prévu]]<>"",Tableau1[[#This Row],[Date congé]]<>""),Tableau1[[#This Row],[Date congé]]-Tableau1[[#This Row],[Date congé prévu]],"") ->  | AP32: =SUM(Tableau1[[#This Row],[Séjour 1]]+Tableau1[[#This Row],[Séjour 2]]) -> 57 | AQ32: =IF(AND(Tableau1[[#This Row],[Date de fin Soins actifs]]<>"",Tableau1[[#This Row],[Date congé]]<>""),IF(Tableau1[[#This Row],[Date de fin Soins actifs]]<>Tableau1[[#This Row],[Date congé]],"Devient NSA durant séjour","Quitte avant de devenir NSA"),"") -> Quitte avant de devenir NSA | AR32: =IF(Tableau1[[#This Row],[NSA]]="Devient NSA durant PEC",Tableau1[[#This Row],[Date congé]]-Tableau1[[#This Row],[Date de fin Soins actifs]],"") ->  | AS32: Relocalisation RPA | AT32: 710 | AV32: Service social | AY32: =IFERROR(DATEDIF(Tableau1[[#This Row],[Date dépôt demande]],Tableau1[[#This Row],[Date d''admission]],"D"),"") -> 5 | AZ32: =IFERROR(IF(AND(Tableau1[[#This Row],[Date de fin Soins actifs]]<>"",Tableau1[[#This Row],[Date congé]]<>""),DATEDIF(Tableau1[[#This Row],[Date de fin Soins actifs]],Tableau1[[#This Row],[Date congé]],"D"),""),"") -> 0 | BB32: =IF(Tableau1[[#This Row],[Date dépôt MAH]]="","",Tableau1[[#This Row],[Date dépôt MAH]]-Tableau1[[#This Row],[Date d''admission]]) ->  | BC32: =IF(Tableau1[[#This Row],[Date dépôt MAH]]="","",Tableau1[[#This Row],[Date congé]]-Tableau1[[#This Row],[Date dépôt MAH]]) ->  | BE32: =IFERROR(DATEDIF(Tableau1[[#This Row],[Date orientation]],Tableau1[[#This Row],[Date congé]],"D"),"") -> 44175
A33: Drummond | B33: CFGH | C33: 1058 | D33: =IFERROR(VLOOKUP(C33,Chambres,3,FALSE),"") -> 1NC | E33: =IF(AND(Tableau1[[#This Row],[Date d''admission]]<>"",Tableau1[[#This Row],[Date congé]]=""),"Occupée",IF(Tableau1[[#This Row],[Date congé]]<>"","Congé","Libre")) -> Congé | H33: P162529 | I33: 13337 | J33: =(IF(Tableau1[[#This Row],[Date de naissance]]<>"",DATEDIF(Tableau1[[#This Row],[Date de naissance]],TODAY(),"Y"),"")) -> 85 | K33: =IF(Tableau1[[#This Row],[Âge]]<=60,"60 et -",IF(Tableau1[[#This Row],[Âge]]<=65,"61-65",IF(Tableau1[[#This Row],[Âge]]<=70,"66-70",IF(Tableau1[[#This Row],[Âge]]<=75,"71-75",IF(Tableau1[[#This Row],[Âge]]<=80,"76-80",IF(Tableau1[[#This Row],[Âge]]<=85,"81-85",IF(Tableau1[[#This Row],[Âge]]<=110,"86 et +",""))))))) -> 81-85 | L33: 44029 | M33: =IFERROR(VLOOKUP(Tableau1[[#This Row],[Date dépôt demande]],Tableau1618[],4,1),"") -> P04 | N33: =IFERROR(VLOOKUP(Tableau1[[#This Row],[Date dépôt demande]],Tableau1618[],5,1),"") -> 2020-2021 | O33: Éval-ori | P33: HSC | Q33: 44035 | R33: =IFERROR(VLOOKUP(Tableau1[[#This Row],[Date d''admission]],Tableau1618[],4,1),"") -> P05 | S33: =IFERROR(VLOOKUP(Tableau1[[#This Row],[Date d''admission]],Tableau1618[],5,1),"") -> 2020-2021 | T33: =CONCATENATE(Tableau1[[#This Row],[Période (admission)]]," ",Tableau1[[#This Row],[Année (admission)]]) -> P05 2020-2021 | U33: =IFERROR(VLOOKUP(Tableau1[[#This Row],[Période/année (admission)]],Tableau1618[[Période année]:[Fin]],3,0),"") -> 44058 | V33: =IF(AND(Tableau1[[#This Row],[Statut]]="Congé",Tableau1[[#This Row],[Date d''admission]]<>""),IF(Tableau1[[#This Row],[Date congé]]<=Tableau1[[#This Row],[Fin période (admission)]],Tableau1[[#This Row],[Date congé]]-Tableau1[[#This Row],[Date d''admission]],Tableau1[[#This Row],[Fin période (admission)]]-Tableau1[[#This Row],[Date d''admission]]),0) -> 23 | W33: =IFERROR(IF(Tableau1[[#This Row],[Date d''admission]]<>"",IF(Tableau1[[#This Row],[Site]]="René_Léosa",Tableau1[[#This Row],[Date d''admission]]+45,"")),"") ->  | Y33: 710 | AA33: Oui | AD33: =IF(Tableau1[[#This Row],[Date rencontre familiale]]="","Non","Oui") -> Non | AE33: =IF(Tableau1[[#This Row],[Date rencontre familiale]]="","",Tableau1[[#This Row],[Date rencontre familiale]]-Tableau1[[#This Row],[Date d''admission]]) ->  | AF33: =IF(Tableau1[[#This Row],[Date congé]]<>"",Tableau1[[#This Row],[Date congé]],"") -> 44109 | AG33: =IF(Tableau1[[#This Row],[Date de fin Soins actifs]]<>"","Non","Oui") -> Non | AI33: 44109 | AJ33: =IFERROR(VLOOKUP(Tableau1[[#This Row],[Date congé]],Tableau1618[],4,1),"") -> P07 | AK33: =IFERROR(VLOOKUP(Tableau1[[#This Row],[Date congé]],Tableau1618[],5,1),"") -> 2020-2021 | AL33: =CONCATENATE(Tableau1[[#This Row],[Période (congé)]]," ",Tableau1[[#This Row],[Année (congé)]]) -> P07 2020-2021 | AM33: =IFERROR(VLOOKUP(Tableau1[[#This Row],[Période/année (congé)]],Tableau1618[[Période année]:[Fin]],3,0),"") -> 44114 | AN33: =IF(AND(Tableau1[[#This Row],[Statut]]="Congé",Tableau1[[#This Row],[Date d''admission]]<>""),IF(Tableau1[[#This Row],[Date congé]]>=Tableau1[[#This Row],[Fin période (admission)]],Tableau1[[#This Row],[Date congé]]-Tableau1[[#This Row],[Fin période (admission)]],0),0) -> 51 | AO33: =IF(AND(Tableau1[[#This Row],[Date congé prévu]]<>"",Tableau1[[#This Row],[Date congé]]<>""),Tableau1[[#This Row],[Date congé]]-Tableau1[[#This Row],[Date congé prévu]],"") ->  | AP33: =SUM(Tableau1[[#This Row],[Séjour 1]]+Tableau1[[#This Row],[Séjour 2]]) -> 74 | AQ33: =IF(AND(Tableau1[[#This Row],[Date de fin Soins actifs]]<>"",Tableau1[[#This Row],[Date congé]]<>""),IF(Tableau1[[#This Row],[Date de fin Soins actifs]]<>Tableau1[[#This Row],[Date congé]],"Devient NSA durant séjour","Quitte avant de devenir NSA"),"") -> Quitte avant de devenir NSA | AR33: =IF(Tableau1[[#This Row],[NSA]]="Devient NSA durant PEC",Tableau1[[#This Row],[Date congé]]-Tableau1[[#This Row],[Date de fin Soins actifs]],"") ->  | AS33: CHSLD | AT33: 710 | AU33: 4 | AV33: Service social | AY33: =IFERROR(DATEDIF(Tableau1[[#This Row],[Date dépôt demande]],Tableau1[[#This Row],[Date d''admission]],"D"),"") -> 6 | AZ33: =IFERROR(IF(AND(Tableau1[[#This Row],[Date de fin Soins actifs]]<>"",Tableau1[[#This Row],[Date congé]]<>""),DATEDIF(Tableau1[[#This Row],[Date de fin Soins actifs]],Tableau1[[#This Row],[Date congé]],"D"),""),"") -> 0 | BA33: 44082 | BB33: =IF(Tableau1[[#This Row],[Date dépôt MAH]]="","",Tableau1[[#This Row],[Date dépôt MAH]]-Tableau1[[#This Row],[Date d''admission]]) -> 47 | BC33: =IF(Tableau1[[#This Row],[Date dépôt MAH]]="","",Tableau1[[#This Row],[Date congé]]-Tableau1[[#This Row],[Date dépôt MAH]]) -> 27 | BD33: 44102 | BE33: =IFERROR(DATEDIF(Tableau1[[#This Row],[Date orientation]],Tableau1[[#This Row],[Date congé]],"D"),"") -> 7
A34: Drummond | B34: _600_Bousquet_NSA | C34: 279 | D34: =IFERROR(VLOOKUP(C34,Chambres,3,FALSE),"") -> Prothétique | E34: =IF(AND(Tableau1[[#This Row],[Date d''admission]]<>"",Tableau1[[#This Row],[Date congé]]=""),"Occupée",IF(Tableau1[[#This Row],[Date congé]]<>"","Congé","Libre")) -> Occupée | H34: P033170 | I34: 12301 | J34: =(IF(Tableau1[[#This Row],[Date de naissance]]<>"",DATEDIF(Tableau1[[#This Row],[Date de naissance]],TODAY(),"Y"),"")) -> 87 | K34: =IF(Tableau1[[#This Row],[Âge]]<=60,"60 et -",IF(Tableau1[[#This Row],[Âge]]<=65,"61-65",IF(Tableau1[[#This Row],[Âge]]<=70,"66-70",IF(Tableau1[[#This Row],[Âge]]<=75,"71-75",IF(Tableau1[[#This Row],[Âge]]<=80,"76-80",IF(Tableau1[[#This Row],[Âge]]<=85,"81-85",IF(Tableau1[[#This Row],[Âge]]<=110,"86 et +",""))))))) -> 86 et + | L34: 44398 | M34: =IFERROR(VLOOKUP(Tableau1[[#This Row],[Date dépôt demande]],Tableau1618[],4,1),"") -> P05 | N34: =IFERROR(VLOOKUP(Tableau1[[#This Row],[Date dépôt demande]],Tableau1618[],5,1),"") -> 2021-2022 | O34: Éval-ori | P34: HSC | Q34: 44408 | R34: =IFERROR(VLOOKUP(Tableau1[[#This Row],[Date d''admission]],Tableau1618[],4,1),"") -> P05 | S34: =IFERROR(VLOOKUP(Tableau1[[#This Row],[Date d''admission]],Tableau1618[],5,1),"") -> 2021-2022 | T34: =CONCATENATE(Tableau1[[#This Row],[Période (admission)]]," ",Tableau1[[#This Row],[Année (admission)]]) -> P05 2021-2022 | U34: =IFERROR(VLOOKUP(Tableau1[[#This Row],[Période/année (admission)]],Tableau1618[[Période année]:[Fin]],3,0),"") -> 44422 | V34: =IF(AND(Tableau1[[#This Row],[Statut]]="Congé",Tableau1[[#This Row],[Date d''admission]]<>""),IF(Tableau1[[#This Row],[Date congé]]<=Tableau1[[#This Row],[Fin période (admission)]],Tableau1[[#This Row],[Date congé]]-Tableau1[[#This Row],[Date d''admission]],Tableau1[[#This Row],[Fin période (admission)]]-Tableau1[[#This Row],[Date d''admission]]),0) -> 0 | W34: =IFERROR(IF(Tableau1[[#This Row],[Date d''admission]]<>"",IF(Tableau1[[#This Row],[Site]]="René_Léosa",Tableau1[[#This Row],[Date d''admission]]+45,"")),"") ->  | Y34: 710 | AA34: Oui | AD34: =IF(Tableau1[[#This Row],[Date rencontre familiale]]="","Non","Oui") -> Non | AE34: =IF(Tableau1[[#This Row],[Date rencontre familiale]]="","",Tableau1[[#This Row],[Date rencontre familiale]]-Tableau1[[#This Row],[Date d''admission]]) ->  | AF34: =IF(Tableau1[[#This Row],[Date congé]]<>"",Tableau1[[#This Row],[Date congé]],"") ->  | AG34: =IF(Tableau1[[#This Row],[Date de fin Soins actifs]]<>"","Non","Oui") -> Oui | AJ34: =IFERROR(VLOOKUP(Tableau1[[#This Row],[Date congé]],Tableau1618[],4,1),"") ->  | AK34: =IFERROR(VLOOKUP(Tableau1[[#This Row],[Date congé]],Tableau1618[],5,1),"") ->  | AL34: =CONCATENATE(Tableau1[[#This Row],[Période (congé)]]," ",Tableau1[[#This Row],[Année (congé)]]) ->  | AM34: =IFERROR(VLOOKUP(Tableau1[[#This Row],[Période/année (congé)]],Tableau1618[[Période année]:[Fin]],3,0),"") ->  | AN34: =IF(AND(Tableau1[[#This Row],[Statut]]="Congé",Tableau1[[#This Row],[Date d''admission]]<>""),IF(Tableau1[[#This Row],[Date congé]]>=Tableau1[[#This Row],[Fin période (admission)]],Tableau1[[#This Row],[Date congé]]-Tableau1[[#This Row],[Fin période (admission)]],0),0) -> 0 | AO34: =IF(AND(Tableau1[[#This Row],[Date congé prévu]]<>"",Tableau1[[#This Row],[Date congé]]<>""),Tableau1[[#This Row],[Date congé]]-Tableau1[[#This Row],[Date congé prévu]],"") ->  | AP34: =IFERROR(IF(AND(Tableau1[[#This Row],[Date d''admission]]<>"",Tableau1[[#This Row],[Date congé]]<>""),DATEDIF(Tableau1[[#This Row],[Date d''admission]],Tableau1[[#This Row],[Date congé]],"D"),""),"") ->  | AQ34: =IF(AND(Tableau1[[#This Row],[Date de fin Soins actifs]]<>"",Tableau1[[#This Row],[Date congé]]<>""),IF(Tableau1[[#This Row],[Date de fin Soins actifs]]<>Tableau1[[#This Row],[Date congé]],"Devient NSA durant séjour","Quitte avant de devenir NSA"),"") ->  | AR34: =IF(Tableau1[[#This Row],[NSA]]="Devient NSA durant PEC",Tableau1[[#This Row],[Date congé]]-Tableau1[[#This Row],[Date de fin Soins actifs]],"") ->  | AY34: =IFERROR(DATEDIF(Tableau1[[#This Row],[Date dépôt demande]],Tableau1[[#This Row],[Date d''admission]],"D"),"") -> 10 | AZ34: =IFERROR(IF(AND(Tableau1[[#This Row],[Date de fin Soins actifs]]<>"",Tableau1[[#This Row],[Date congé]]<>""),DATEDIF(Tableau1[[#This Row],[Date de fin Soins actifs]],Tableau1[[#This Row],[Date congé]],"D"),""),"") ->  | BB34: =IF(Tableau1[[#This Row],[Date dépôt MAH]]="","",Tableau1[[#This Row],[Date dépôt MAH]]-Tableau1[[#This Row],[Date d''admission]]) ->  | BC34: =IF(Tableau1[[#This Row],[Date dépôt MAH]]="","",Tableau1[[#This Row],[Date congé]]-Tableau1[[#This Row],[Date dépôt MAH]]) ->  | BE34: =IFERROR(DATEDIF(Tableau1[[#This Row],[Date orientation]],Tableau1[[#This Row],[Date congé]],"D"),"") -> 0
A35: Drummond | B35: _600_Bousquet_NSA | C35: 277 | D35: =IFERROR(VLOOKUP(C35,Chambres,3,FALSE),"") -> Prothétique | E35: =IF(AND(Tableau1[[#This Row],[Date d''admission]]<>"",Tableau1[[#This Row],[Date congé]]=""),"Occupée",IF(Tableau1[[#This Row],[Date congé]]<>"","Congé","Libre")) -> Congé | H35: P067260 | I35: 17399 | J35: =(IF(Tableau1[[#This Row],[Date de naissance]]<>"",DATEDIF(Tableau1[[#This Row],[Date de naissance]],TODAY(),"Y"),"")) -> 73 | K35: =IF(Tableau1[[#This Row],[Âge]]<=60,"60 et -",IF(Tableau1[[#This Row],[Âge]]<=65,"61-65",IF(Tableau1[[#This Row],[Âge]]<=70,"66-70",IF(Tableau1[[#This Row],[Âge]]<=75,"71-75",IF(Tableau1[[#This Row],[Âge]]<=80,"76-80",IF(Tableau1[[#This Row],[Âge]]<=85,"81-85",IF(Tableau1[[#This Row],[Âge]]<=110,"86 et +",""))))))) -> 71-75 | L35: 44111 | M35: =IFERROR(VLOOKUP(Tableau1[[#This Row],[Date dépôt demande]],Tableau1618[],4,1),"") -> P07 | N35: =IFERROR(VLOOKUP(Tableau1[[#This Row],[Date dépôt demande]],Tableau1618[],5,1),"") -> 2020-2021 | O35: Conval | P35: HSC | Q35: 44115 | R35: =IFERROR(VLOOKUP(Tableau1[[#This Row],[Date d''admission]],Tableau1618[],4,1),"") -> P08 | S35: =IFERROR(VLOOKUP(Tableau1[[#This Row],[Date d''admission]],Tableau1618[],5,1),"") -> 2020-2021 | T35: =CONCATENATE(Tableau1[[#This Row],[Période (admission)]]," ",Tableau1[[#This Row],[Année (admission)]]) -> P08 2020-2021 | U35: =IFERROR(VLOOKUP(Tableau1[[#This Row],[Période/année (admission)]],Tableau1618[[Période année]:[Fin]],3,0),"") -> 44142 | V35: =IF(AND(Tableau1[[#This Row],[Statut]]="Congé",Tableau1[[#This Row],[Date d''admission]]<>""),IF(Tableau1[[#This Row],[Date congé]]<=Tableau1[[#This Row],[Fin période (admission)]],Tableau1[[#This Row],[Date congé]]-Tableau1[[#This Row],[Date d''admission]],Tableau1[[#This Row],[Fin période (admission)]]-Tableau1[[#This Row],[Date d''admission]]),0) -> 27 | W35: =IFERROR(IF(Tableau1[[#This Row],[Date d''admission]]<>"",IF(Tableau1[[#This Row],[Site]]="René_Léosa",Tableau1[[#This Row],[Date d''admission]]+45,"")),"") ->  | Y35: 191 | AA35: Non | AD35: =IF(Tableau1[[#This Row],[Date rencontre familiale]]="","Non","Oui") -> Non | AE35: =IF(Tableau1[[#This Row],[Date rencontre familiale]]="","",Tableau1[[#This Row],[Date rencontre familiale]]-Tableau1[[#This Row],[Date d''admission]]) ->  | AF35: =IF(Tableau1[[#This Row],[Date congé]]<>"",Tableau1[[#This Row],[Date congé]],"") -> 44148 | AG35: =IF(Tableau1[[#This Row],[Date de fin Soins actifs]]<>"","Non","Oui") -> Non | AI35: 44148 | AJ35: =IFERROR(VLOOKUP(Tableau1[[#This Row],[Date congé]],Tableau1618[],4,1),"") -> P09 | AK35: =IFERROR(VLOOKUP(Tableau1[[#This Row],[Date congé]],Tableau1618[],5,1),"") -> 2020-2021 | AL35: =CONCATENATE(Tableau1[[#This Row],[Période (congé)]]," ",Tableau1[[#This Row],[Année (congé)]]) -> P09 2020-2021 | AM35: =IFERROR(VLOOKUP(Tableau1[[#This Row],[Période/année (congé)]],Tableau1618[[Période année]:[Fin]],3,0),"") -> 44170 | AN35: =IF(AND(Tableau1[[#This Row],[Statut]]="Congé",Tableau1[[#This Row],[Date d''admission]]<>""),IF(Tableau1[[#This Row],[Date congé]]>=Tableau1[[#This Row],[Fin période (admission)]],Tableau1[[#This Row],[Date congé]]-Tableau1[[#This Row],[Fin période (admission)]],0),0) -> 6 | AO35: =IF(AND(Tableau1[[#This Row],[Date congé prévu]]<>"",Tableau1[[#This Row],[Date congé]]<>""),Tableau1[[#This Row],[Date congé]]-Tableau1[[#This Row],[Date congé prévu]],"") ->  | AP35: =SUM(Tableau1[[#This Row],[Séjour 1]]+Tableau1[[#This Row],[Séjour 2]]) -> 33 | AQ35: =IF(AND(Tableau1[[#This Row],[Date de fin Soins actifs]]<>"",Tableau1[[#This Row],[Date congé]]<>""),IF(Tableau1[[#This Row],[Date de fin Soins actifs]]<>Tableau1[[#This Row],[Date congé]],"Devient NSA durant séjour","Quitte avant de devenir NSA"),"") -> Quitte avant de devenir NSA | AR35: =IF(Tableau1[[#This Row],[NSA]]="Devient NSA durant PEC",Tableau1[[#This Row],[Date congé]]-Tableau1[[#This Row],[Date de fin Soins actifs]],"") ->  | AS35: Retour à domicile | AV35: Physiothérapie | AY35: =IFERROR(DATEDIF(Tableau1[[#This Row],[Date dépôt demande]],Tableau1[[#This Row],[Date d''admission]],"D"),"") -> 4 | AZ35: =IFERROR(IF(AND(Tableau1[[#This Row],[Date de fin Soins actifs]]<>"",Tableau1[[#This Row],[Date congé]]<>""),DATEDIF(Tableau1[[#This Row],[Date de fin Soins actifs]],Tableau1[[#This Row],[Date congé]],"D"),""),"") -> 0 | BB35: =IF(Tableau1[[#This Row],[Date dépôt MAH]]="","",Tableau1[[#This Row],[Date dépôt MAH]]-Tableau1[[#This Row],[Date d''admission]]) ->  | BC35: =IF(Tableau1[[#This Row],[Date dépôt MAH]]="","",Tableau1[[#This Row],[Date congé]]-Tableau1[[#This Row],[Date dépôt MAH]]) ->  | BE35: =IFERROR(DATEDIF(Tableau1[[#This Row],[Date orientation]],Tableau1[[#This Row],[Date congé]],"D"),"") -> 44148
A36: Drummond | B36: René_Léosa | C36: 15 | D36: =IFERROR(VLOOKUP(C36,Chambres,3,FALSE),"") -> Régulière | E36: =IF(AND(Tableau1[[#This Row],[Date d''admission]]<>"",Tableau1[[#This Row],[Date congé]]=""),"Occupée",IF(Tableau1[[#This Row],[Date congé]]<>"","Congé","Libre")) -> Congé | H36: P050941 | I36: 21273 | J36: =(IF(Tableau1[[#This Row],[Date de naissance]]<>"",DATEDIF(Tableau1[[#This Row],[Date de naissance]],TODAY(),"Y"),"")) -> 63 | K36: =IF(Tableau1[[#This Row],[Âge]]<=60,"60 et -",IF(Tableau1[[#This Row],[Âge]]<=65,"61-65",IF(Tableau1[[#This Row],[Âge]]<=70,"66-70",IF(Tableau1[[#This Row],[Âge]]<=75,"71-75",IF(Tableau1[[#This Row],[Âge]]<=80,"76-80",IF(Tableau1[[#This Row],[Âge]]<=85,"81-85",IF(Tableau1[[#This Row],[Âge]]<=110,"86 et +",""))))))) -> 61-65 | L36: 44277 | M36: =IFERROR(VLOOKUP(Tableau1[[#This Row],[Date dépôt demande]],Tableau1618[],4,1),"") -> P13 | N36: =IFERROR(VLOOKUP(Tableau1[[#This Row],[Date dépôt demande]],Tableau1618[],5,1),"") -> 2020-2021 | O36: Éval-ori | P36: HSC | Q36: 44279 | R36: =IFERROR(VLOOKUP(Tableau1[[#This Row],[Date d''admission]],Tableau1618[],4,1),"") -> P13 | S36: =IFERROR(VLOOKUP(Tableau1[[#This Row],[Date d''admission]],Tableau1618[],5,1),"") -> 2020-2021 | T36: =CONCATENATE(Tableau1[[#This Row],[Période (admission)]]," ",Tableau1[[#This Row],[Année (admission)]]) -> P13 2020-2021 | U36: =IFERROR(VLOOKUP(Tableau1[[#This Row],[Période/année (admission)]],Tableau1618[[Période année]:[Fin]],3,0),"") -> 44286 | V36: =IF(AND(Tableau1[[#This Row],[Statut]]="Congé",Tableau1[[#This Row],[Date d''admission]]<>""),IF(Tableau1[[#This Row],[Date congé]]<=Tableau1[[#This Row],[Fin période (admission)]],Tableau1[[#This Row],[Date congé]]-Tableau1[[#This Row],[Date d''admission]],Tableau1[[#This Row],[Fin période (admission)]]-Tableau1[[#This Row],[Date d''admission]]),0) -> 7 | W36: =IFERROR(IF(Tableau1[[#This Row],[Date d''admission]]<>"",IF(Tableau1[[#This Row],[Site]]="René_Léosa",Tableau1[[#This Row],[Date d''admission]]+45,"")),"") -> 44324 | Y36: 191 | AD36: =IF(Tableau1[[#This Row],[Date rencontre familiale]]="","Non","Oui") -> Non | AE36: =IF(Tableau1[[#This Row],[Date rencontre familiale]]="","",Tableau1[[#This Row],[Date rencontre familiale]]-Tableau1[[#This Row],[Date d''admission]]) ->  | AF36: =IF(Tableau1[[#This Row],[Date congé]]<>"",Tableau1[[#This Row],[Date congé]],"") -> 44302 | AG36: =IF(Tableau1[[#This Row],[Date de fin Soins actifs]]<>"","Non","Oui") -> Non | AI36: 44302 | AJ36: =IFERROR(VLOOKUP(Tableau1[[#This Row],[Date congé]],Tableau1618[],4,1),"") -> P01 | AK36: =IFERROR(VLOOKUP(Tableau1[[#This Row],[Date congé]],Tableau1618[],5,1),"") -> 2021-2022 | AL36: =CONCATENATE(Tableau1[[#This Row],[Période (congé)]]," ",Tableau1[[#This Row],[Année (congé)]]) -> P01 2021-2022 | AM36: =IFERROR(VLOOKUP(Tableau1[[#This Row],[Période/année (congé)]],Tableau1618[[Période année]:[Fin]],3,0),"") -> 44310 | AN36: =IF(AND(Tableau1[[#This Row],[Statut]]="Congé",Tableau1[[#This Row],[Date d''admission]]<>""),IF(Tableau1[[#This Row],[Date congé]]>=Tableau1[[#This Row],[Fin période (admission)]],Tableau1[[#This Row],[Date congé]]-Tableau1[[#This Row],[Fin période (admission)]],0),0) -> 16 | AO36: =IF(AND(Tableau1[[#This Row],[Date congé prévu]]<>"",Tableau1[[#This Row],[Date congé]]<>""),Tableau1[[#This Row],[Date congé]]-Tableau1[[#This Row],[Date congé prévu]],"") ->  | AP36: =SUM(Tableau1[[#This Row],[Séjour 1]]+Tableau1[[#This Row],[Séjour 2]]) -> 23 | AQ36: =IF(AND(Tableau1[[#This Row],[Date de fin Soins actifs]]<>"",Tableau1[[#This Row],[Date congé]]<>""),IF(Tableau1[[#This Row],[Date de fin Soins actifs]]<>Tableau1[[#This Row],[Date congé]],"Devient NSA durant séjour","Quitte avant de devenir NSA"),"") -> Quitte avant de devenir NSA | AR36: =IF(Tableau1[[#This Row],[NSA]]="Devient NSA durant PEC",Tableau1[[#This Row],[Date congé]]-Tableau1[[#This Row],[Date de fin Soins actifs]],"") ->  | AS36: Retour à domicile | AT36: 710 | AU36: 1 | AV36: Service social | AY36: =IFERROR(DATEDIF(Tableau1[[#This Row],[Date dépôt demande]],Tableau1[[#This Row],[Date d''admission]],"D"),"") -> 2 | AZ36: =IFERROR(IF(AND(Tableau1[[#This Row],[Date de fin Soins actifs]]<>"",Tableau1[[#This Row],[Date congé]]<>""),DATEDIF(Tableau1[[#This Row],[Date de fin Soins actifs]],Tableau1[[#This Row],[Date congé]],"D"),""),"") -> 0 | BB36: =IF(Tableau1[[#This Row],[Date dépôt MAH]]="","",Tableau1[[#This Row],[Date dépôt MAH]]-Tableau1[[#This Row],[Date d''admission]]) ->  | BC36: =IF(Tableau1[[#This Row],[Date dépôt MAH]]="","",Tableau1[[#This Row],[Date congé]]-Tableau1[[#This Row],[Date dépôt MAH]]) ->  | BE36: =IFERROR(DATEDIF(Tableau1[[#This Row],[Date orientation]],Tableau1[[#This Row],[Date congé]],"D"),"") -> 44302
A37: Drummond | B37: René_Léosa | C37: 15 | D37: =IFERROR(VLOOKUP(C37,Chambres,3,FALSE),"") -> Régulière | E37: =IF(AND(Tableau1[[#This Row],[Date d''admission]]<>"",Tableau1[[#This Row],[Date congé]]=""),"Occupée",IF(Tableau1[[#This Row],[Date congé]]<>"","Congé","Libre")) -> Congé | H37: P120911 | I37: 19260 | J37: =(IF(Tableau1[[#This Row],[Date de naissance]]<>"",DATEDIF(Tableau1[[#This Row],[Date de naissance]],TODAY(),"Y"),"")) -> 68 | K37: =IF(Tableau1[[#This Row],[Âge]]<=60,"60 et -",IF(Tableau1[[#This Row],[Âge]]<=65,"61-65",IF(Tableau1[[#This Row],[Âge]]<=70,"66-70",IF(Tableau1[[#This Row],[Âge]]<=75,"71-75",IF(Tableau1[[#This Row],[Âge]]<=80,"76-80",IF(Tableau1[[#This Row],[Âge]]<=85,"81-85",IF(Tableau1[[#This Row],[Âge]]<=110,"86 et +",""))))))) -> 66-70 | L37: 44302 | M37: =IFERROR(VLOOKUP(Tableau1[[#This Row],[Date dépôt demande]],Tableau1618[],4,1),"") -> P01 | N37: =IFERROR(VLOOKUP(Tableau1[[#This Row],[Date dépôt demande]],Tableau1618[],5,1),"") -> 2021-2022 | O37: Conval | P37: HSC | Q37: 44308 | R37: =IFERROR(VLOOKUP(Tableau1[[#This Row],[Date d''admission]],Tableau1618[],4,1),"") -> P01 | S37: =IFERROR(VLOOKUP(Tableau1[[#This Row],[Date d''admission]],Tableau1618[],5,1),"") -> 2021-2022 | T37: =CONCATENATE(Tableau1[[#This Row],[Période (admission)]]," ",Tableau1[[#This Row],[Année (admission)]]) -> P01 2021-2022 | U37: =IFERROR(VLOOKUP(Tableau1[[#This Row],[Période/année (admission)]],Tableau1618[[Période année]:[Fin]],3,0),"") -> 44310 | V37: =IF(AND(Tableau1[[#This Row],[Statut]]="Congé",Tableau1[[#This Row],[Date d''admission]]<>""),IF(Tableau1[[#This Row],[Date congé]]<=Tableau1[[#This Row],[Fin période (admission)]],Tableau1[[#This Row],[Date congé]]-Tableau1[[#This Row],[Date d''admission]],Tableau1[[#This Row],[Fin période (admission)]]-Tableau1[[#This Row],[Date d''admission]]),0) -> 2 | W37: =IFERROR(IF(Tableau1[[#This Row],[Date d''admission]]<>"",IF(Tableau1[[#This Row],[Site]]="René_Léosa",Tableau1[[#This Row],[Date d''admission]]+45,"")),"") -> 44353 | Y37: 191 | AA37: Oui | AD37: =IF(Tableau1[[#This Row],[Date rencontre familiale]]="","Non","Oui") -> Non | AE37: =IF(Tableau1[[#This Row],[Date rencontre familiale]]="","",Tableau1[[#This Row],[Date rencontre familiale]]-Tableau1[[#This Row],[Date d''admission]]) ->  | AF37: =IF(Tableau1[[#This Row],[Date congé]]<>"",Tableau1[[#This Row],[Date congé]],"") -> 44337 | AG37: =IF(Tableau1[[#This Row],[Date de fin Soins actifs]]<>"","Non","Oui") -> Non | AI37: 44337 | AJ37: =IFERROR(VLOOKUP(Tableau1[[#This Row],[Date congé]],Tableau1618[],4,1),"") -> P02 | AK37: =IFERROR(VLOOKUP(Tableau1[[#This Row],[Date congé]],Tableau1618[],5,1),"") -> 2021-2022 | AL37: =CONCATENATE(Tableau1[[#This Row],[Période (congé)]]," ",Tableau1[[#This Row],[Année (congé)]]) -> P02 2021-2022 | AM37: =IFERROR(VLOOKUP(Tableau1[[#This Row],[Période/année (congé)]],Tableau1618[[Période année]:[Fin]],3,0),"") -> 44338 | AN37: =IF(AND(Tableau1[[#This Row],[Statut]]="Congé",Tableau1[[#This Row],[Date d''admission]]<>""),IF(Tableau1[[#This Row],[Date congé]]>=Tableau1[[#This Row],[Fin période (admission)]],Tableau1[[#This Row],[Date congé]]-Tableau1[[#This Row],[Fin période (admission)]],0),0) -> 27 | AO37: =IF(AND(Tableau1[[#This Row],[Date congé prévu]]<>"",Tableau1[[#This Row],[Date congé]]<>""),Tableau1[[#This Row],[Date congé]]-Tableau1[[#This Row],[Date congé prévu]],"") ->  | AP37: =SUM(Tableau1[[#This Row],[Séjour 1]]+Tableau1[[#This Row],[Séjour 2]]) -> 29 | AQ37: =IF(AND(Tableau1[[#This Row],[Date de fin Soins actifs]]<>"",Tableau1[[#This Row],[Date congé]]<>""),IF(Tableau1[[#This Row],[Date de fin Soins actifs]]<>Tableau1[[#This Row],[Date congé]],"Devient NSA durant séjour","Quitte avant de devenir NSA"),"") -> Quitte avant de devenir NSA | AR37: =IF(Tableau1[[#This Row],[NSA]]="Devient NSA durant PEC",Tableau1[[#This Row],[Date congé]]-Tableau1[[#This Row],[Date de fin Soins actifs]],"") ->  | AS37: Retour à domicile | AV37: Service social | AY37: =IFERROR(DATEDIF(Tableau1[[#This Row],[Date dépôt demande]],Tableau1[[#This Row],[Date d''admission]],"D"),"") -> 6 | AZ37: =IFERROR(IF(AND(Tableau1[[#This Row],[Date de fin Soins actifs]]<>"",Tableau1[[#This Row],[Date congé]]<>""),DATEDIF(Tableau1[[#This Row],[Date de fin Soins actifs]],Tableau1[[#This Row],[Date congé]],"D"),""),"") -> 0 | BB37: =IF(Tableau1[[#This Row],[Date dépôt MAH]]="","",Tableau1[[#This Row],[Date dépôt MAH]]-Tableau1[[#This Row],[Date d''admission]]) ->  | BC37: =IF(Tableau1[[#This Row],[Date dépôt MAH]]="","",Tableau1[[#This Row],[Date congé]]-Tableau1[[#This Row],[Date dépôt MAH]]) ->  | BE37: =IFERROR(DATEDIF(Tableau1[[#This Row],[Date orientation]],Tableau1[[#This Row],[Date congé]],"D"),"") -> 44337
A38: Drummond | B38: CFGH | C38: 1079A | D38: =IFERROR(VLOOKUP(C38,Chambres,3,FALSE),"") -> 1NP | E38: =IF(AND(Tableau1[[#This Row],[Date d''admission]]<>"",Tableau1[[#This Row],[Date congé]]=""),"Occupée",IF(Tableau1[[#This Row],[Date congé]]<>"","Congé","Libre")) -> Occupée | H38: P125729 | I38: 9622 | J38: =(IF(Tableau1[[#This Row],[Date de naissance]]<>"",DATEDIF(Tableau1[[#This Row],[Date de naissance]],TODAY(),"Y"),"")) -> 95 | K38: =IF(Tableau1[[#This Row],[Âge]]<=60,"60 et -",IF(Tableau1[[#This Row],[Âge]]<=65,"61-65",IF(Tableau1[[#This Row],[Âge]]<=70,"66-70",IF(Tableau1[[#This Row],[Âge]]<=75,"71-75",IF(Tableau1[[#This Row],[Âge]]<=80,"76-80",IF(Tableau1[[#This Row],[Âge]]<=85,"81-85",IF(Tableau1[[#This Row],[Âge]]<=110,"86 et +",""))))))) -> 86 et + | L38: 44328 | M38: =IFERROR(VLOOKUP(Tableau1[[#This Row],[Date dépôt demande]],Tableau1618[],4,1),"") -> P02 | N38: =IFERROR(VLOOKUP(Tableau1[[#This Row],[Date dépôt demande]],Tableau1618[],5,1),"") -> 2021-2022 | O38: Éval-ori | P38: HSC | Q38: 44351 | R38: =IFERROR(VLOOKUP(Tableau1[[#This Row],[Date d''admission]],Tableau1618[],4,1),"") -> P03 | S38: =IFERROR(VLOOKUP(Tableau1[[#This Row],[Date d''admission]],Tableau1618[],5,1),"") -> 2021-2022 | T38: =CONCATENATE(Tableau1[[#This Row],[Période (admission)]]," ",Tableau1[[#This Row],[Année (admission)]]) -> P03 2021-2022 | U38: =IFERROR(VLOOKUP(Tableau1[[#This Row],[Période/année (admission)]],Tableau1618[[Période année]:[Fin]],3,0),"") -> 44366 | V38: =IF(AND(Tableau1[[#This Row],[Statut]]="Congé",Tableau1[[#This Row],[Date d''admission]]<>""),IF(Tableau1[[#This Row],[Date congé]]<=Tableau1[[#This Row],[Fin période (admission)]],Tableau1[[#This Row],[Date congé]]-Tableau1[[#This Row],[Date d''admission]],Tableau1[[#This Row],[Fin période (admission)]]-Tableau1[[#This Row],[Date d''admission]]),0) -> 0 | W38: =IFERROR(IF(Tableau1[[#This Row],[Date d''admission]]<>"",IF(Tableau1[[#This Row],[Site]]="René_Léosa",Tableau1[[#This Row],[Date d''admission]]+45,"")),"") ->  | Y38: 710 | AA38: Oui | AD38: =IF(Tableau1[[#This Row],[Date rencontre familiale]]="","Non","Oui") -> Non | AE38: =IF(Tableau1[[#This Row],[Date rencontre familiale]]="","",Tableau1[[#This Row],[Date rencontre familiale]]-Tableau1[[#This Row],[Date d''admission]]) ->  | AF38: =IF(Tableau1[[#This Row],[Date congé]]<>"",Tableau1[[#This Row],[Date congé]],"") ->  | AG38: =IF(Tableau1[[#This Row],[Date de fin Soins actifs]]<>"","Non","Oui") -> Oui | AJ38: =IFERROR(VLOOKUP(Tableau1[[#This Row],[Date congé]],Tableau1618[],4,1),"") ->  | AK38: =IFERROR(VLOOKUP(Tableau1[[#This Row],[Date congé]],Tableau1618[],5,1),"") ->  | AL38: =CONCATENATE(Tableau1[[#This Row],[Période (congé)]]," ",Tableau1[[#This Row],[Année (congé)]]) ->  | AM38: =IFERROR(VLOOKUP(Tableau1[[#This Row],[Période/année (congé)]],Tableau1618[[Période année]:[Fin]],3,0),"") ->  | AN38: =IF(AND(Tableau1[[#This Row],[Statut]]="Congé",Tableau1[[#This Row],[Date d''admission]]<>""),IF(Tableau1[[#This Row],[Date congé]]>=Tableau1[[#This Row],[Fin période (admission)]],Tableau1[[#This Row],[Date congé]]-Tableau1[[#This Row],[Fin période (admission)]],0),0) -> 0 | AO38: =IF(AND(Tableau1[[#This Row],[Date congé prévu]]<>"",Tableau1[[#This Row],[Date congé]]<>""),Tableau1[[#This Row],[Date congé]]-Tableau1[[#This Row],[Date congé prévu]],"") ->  | AP38: =SUM(Tableau1[[#This Row],[Séjour 1]]+Tableau1[[#This Row],[Séjour 2]]) -> 0 | AQ38: =IF(AND(Tableau1[[#This Row],[Date de fin Soins actifs]]<>"",Tableau1[[#This Row],[Date congé]]<>""),IF(Tableau1[[#This Row],[Date de fin Soins actifs]]<>Tableau1[[#This Row],[Date congé]],"Devient NSA durant séjour","Quitte avant de devenir NSA"),"") ->  | AR38: =IF(Tableau1[[#This Row],[NSA]]="Devient NSA durant PEC",Tableau1[[#This Row],[Date congé]]-Tableau1[[#This Row],[Date de fin Soins actifs]],"") ->  | AU38: 9 | AY38: =IFERROR(DATEDIF(Tableau1[[#This Row],[Date dépôt demande]],Tableau1[[#This Row],[Date d''admission]],"D"),"") -> 23 | AZ38: =IFERROR(IF(AND(Tableau1[[#This Row],[Date de fin Soins actifs]]<>"",Tableau1[[#This Row],[Date congé]]<>""),DATEDIF(Tableau1[[#This Row],[Date de fin Soins actifs]],Tableau1[[#This Row],[Date congé]],"D"),""),"") ->  | BA38: 44398 | BB38: =IF(Tableau1[[#This Row],[Date dépôt MAH]]="","",Tableau1[[#This Row],[Date dépôt MAH]]-Tableau1[[#This Row],[Date d''admission]]) -> 47 | BC38: =IF(Tableau1[[#This Row],[Date dépôt MAH]]="","",Tableau1[[#This Row],[Date congé]]-Tableau1[[#This Row],[Date dépôt MAH]]) -> -44398 | BD38: 44399 | BE38: =IFERROR(DATEDIF(Tableau1[[#This Row],[Date orientation]],Tableau1[[#This Row],[Date congé]],"D"),"") -> 
A39: Drummond | B39: CFGH | C39: 1079B | D39: =IFERROR(VLOOKUP(C39,Chambres,3,FALSE),"") -> 1NP | E39: =IF(AND(Tableau1[[#This Row],[Date d''admission]]<>"",Tableau1[[#This Row],[Date congé]]=""),"Occupée",IF(Tableau1[[#This Row],[Date congé]]<>"","Congé","Libre")) -> Congé | H39: P101905 | I39: 9544 | J39: =(IF(Tableau1[[#This Row],[Date de naissance]]<>"",DATEDIF(Tableau1[[#This Row],[Date de naissance]],TODAY(),"Y"),"")) -> 95 | K39: =IF(Tableau1[[#This Row],[Âge]]<=60,"60 et -",IF(Tableau1[[#This Row],[Âge]]<=65,"61-65",IF(Tableau1[[#This Row],[Âge]]<=70,"66-70",IF(Tableau1[[#This Row],[Âge]]<=75,"71-75",IF(Tableau1[[#This Row],[Âge]]<=80,"76-80",IF(Tableau1[[#This Row],[Âge]]<=85,"81-85",IF(Tableau1[[#This Row],[Âge]]<=110,"86 et +",""))))))) -> 86 et + | L39: 44119 | M39: =IFERROR(VLOOKUP(Tableau1[[#This Row],[Date dépôt demande]],Tableau1618[],4,1),"") -> P08 | N39: =IFERROR(VLOOKUP(Tableau1[[#This Row],[Date dépôt demande]],Tableau1618[],5,1),"") -> 2020-2021 | O39: Éval-ori | P39: HSC | Q39: 44160 | R39: =IFERROR(VLOOKUP(Tableau1[[#This Row],[Date d''admission]],Tableau1618[],4,1),"") -> P09 | S39: =IFERROR(VLOOKUP(Tableau1[[#This Row],[Date d''admission]],Tableau1618[],5,1),"") -> 2020-2021 | T39: =CONCATENATE(Tableau1[[#This Row],[Période (admission)]]," ",Tableau1[[#This Row],[Année (admission)]]) -> P09 2020-2021 | U39: =IFERROR(VLOOKUP(Tableau1[[#This Row],[Période/année (admission)]],Tableau1618[[Période année]:[Fin]],3,0),"") -> 44170 | V39: =IF(AND(Tableau1[[#This Row],[Statut]]="Congé",Tableau1[[#This Row],[Date d''admission]]<>""),IF(Tableau1[[#This Row],[Date congé]]<=Tableau1[[#This Row],[Fin période (admission)]],Tableau1[[#This Row],[Date congé]]-Tableau1[[#This Row],[Date d''admission]],Tableau1[[#This Row],[Fin période (admission)]]-Tableau1[[#This Row],[Date d''admission]]),0) -> 10 | W39: =IFERROR(IF(Tableau1[[#This Row],[Date d''admission]]<>"",IF(Tableau1[[#This Row],[Site]]="René_Léosa",Tableau1[[#This Row],[Date d''admission]]+45,"")),"") ->  | Y39: 710 | AA39: Oui | AD39: =IF(Tableau1[[#This Row],[Date rencontre familiale]]="","Non","Oui") -> Non | AE39: =IF(Tableau1[[#This Row],[Date rencontre familiale]]="","",Tableau1[[#This Row],[Date rencontre familiale]]-Tableau1[[#This Row],[Date d''admission]]) ->  | AF39: =IF(Tableau1[[#This Row],[Date congé]]<>"",Tableau1[[#This Row],[Date congé]],"") -> 44200 | AG39: =IF(Tableau1[[#This Row],[Date de fin Soins actifs]]<>"","Non","Oui") -> Non | AI39: 44200 | AJ39: =IFERROR(VLOOKUP(Tableau1[[#This Row],[Date congé]],Tableau1618[],4,1),"") -> P11 | AK39: =IFERROR(VLOOKUP(Tableau1[[#This Row],[Date congé]],Tableau1618[],5,1),"") -> 2020-2021 | AL39: =CONCATENATE(Tableau1[[#This Row],[Période (congé)]]," ",Tableau1[[#This Row],[Année (congé)]]) -> P11 2020-2021 | AM39: =IFERROR(VLOOKUP(Tableau1[[#This Row],[Période/année (congé)]],Tableau1618[[Période année]:[Fin]],3,0),"") -> 44226 | AN39: =IF(AND(Tableau1[[#This Row],[Statut]]="Congé",Tableau1[[#This Row],[Date d''admission]]<>""),IF(Tableau1[[#This Row],[Date congé]]>=Tableau1[[#This Row],[Fin période (admission)]],Tableau1[[#This Row],[Date congé]]-Tableau1[[#This Row],[Fin période (admission)]],0),0) -> 30 | AO39: =IF(AND(Tableau1[[#This Row],[Date congé prévu]]<>"",Tableau1[[#This Row],[Date congé]]<>""),Tableau1[[#This Row],[Date congé]]-Tableau1[[#This Row],[Date congé prévu]],"") ->  | AP39: =IFERROR(IF(AND(Tableau1[[#This Row],[Date d''admission]]<>"",Tableau1[[#This Row],[Date congé]]<>""),DATEDIF(Tableau1[[#This Row],[Date d''admission]],Tableau1[[#This Row],[Date congé]],"D"),""),"") -> 40 | AQ39: =IF(AND(Tableau1[[#This Row],[Date de fin Soins actifs]]<>"",Tableau1[[#This Row],[Date congé]]<>""),IF(Tableau1[[#This Row],[Date de fin Soins actifs]]<>Tableau1[[#This Row],[Date congé]],"Devient NSA durant séjour","Quitte avant de devenir NSA"),"") -> Quitte avant de devenir NSA | AR39: =IF(Tableau1[[#This Row],[NSA]]="Devient NSA durant PEC",Tableau1[[#This Row],[Date congé]]-Tableau1[[#This Row],[Date de fin Soins actifs]],"") ->  | AS39: Retour à domicile | AT39: 710 | AU39: 8 | AV39: Service social | AY39: =IFERROR(DATEDIF(Tableau1[[#This Row],[Date dépôt demande]],Tableau1[[#This Row],[Date d''admission]],"D"),"") -> 41 | AZ39: =IFERROR(IF(AND(Tableau1[[#This Row],[Date de fin Soins actifs]]<>"",Tableau1[[#This Row],[Date congé]]<>""),DATEDIF(Tableau1[[#This Row],[Date de fin Soins actifs]],Tableau1[[#This Row],[Date congé]],"D"),""),"") -> 0 | BB39: =IF(Tableau1[[#This Row],[Date dépôt MAH]]="","",Tableau1[[#This Row],[Date dépôt MAH]]-Tableau1[[#This Row],[Date d''admission]]) ->  | BC39: =IF(Tableau1[[#This Row],[Date dépôt MAH]]="","",Tableau1[[#This Row],[Date congé]]-Tableau1[[#This Row],[Date dépôt MAH]]) ->  | BE39: =IFERROR(DATEDIF(Tableau1[[#This Row],[Date orientation]],Tableau1[[#This Row],[Date congé]],"D"),"") -> 44200
A40: Drummond | B40: CFGH | C40: 1050 | D40: =IFERROR(VLOOKUP(C40,Chambres,3,FALSE),"") -> 1NC | E40: =IF(AND(Tableau1[[#This Row],[Date d''admission]]<>"",Tableau1[[#This Row],[Date congé]]=""),"Occupée",IF(Tableau1[[#This Row],[Date congé]]<>"","Congé","Libre")) -> Occupée | H40: P082714 | I40: 16394 | J40: =(IF(Tableau1[[#This Row],[Date de naissance]]<>"",DATEDIF(Tableau1[[#This Row],[Date de naissance]],TODAY(),"Y"),"")) -> 76 | K40: =IF(Tableau1[[#This Row],[Âge]]<=60,"60 et -",IF(Tableau1[[#This Row],[Âge]]<=65,"61-65",IF(Tableau1[[#This Row],[Âge]]<=70,"66-70",IF(Tableau1[[#This Row],[Âge]]<=75,"71-75",IF(Tableau1[[#This Row],[Âge]]<=80,"76-80",IF(Tableau1[[#This Row],[Âge]]<=85,"81-85",IF(Tableau1[[#This Row],[Âge]]<=110,"86 et +",""))))))) -> 76-80 | L40: 44384 | M40: =IFERROR(VLOOKUP(Tableau1[[#This Row],[Date dépôt demande]],Tableau1618[],4,1),"") -> P04 | N40: =IFERROR(VLOOKUP(Tableau1[[#This Row],[Date dépôt demande]],Tableau1618[],5,1),"") -> 2021-2022 | O40: Éval-ori | P40: HSC | Q40: 44389 | R40: =IFERROR(VLOOKUP(Tableau1[[#This Row],[Date d''admission]],Tableau1618[],4,1),"") -> P04 | S40: =IFERROR(VLOOKUP(Tableau1[[#This Row],[Date d''admission]],Tableau1618[],5,1),"") -> 2021-2022 | T40: =CONCATENATE(Tableau1[[#This Row],[Période (admission)]]," ",Tableau1[[#This Row],[Année (admission)]]) -> P04 2021-2022 | U40: =IFERROR(VLOOKUP(Tableau1[[#This Row],[Période/année (admission)]],Tableau1618[[Période année]:[Fin]],3,0),"") -> 44394 | V40: =IF(AND(Tableau1[[#This Row],[Statut]]="Congé",Tableau1[[#This Row],[Date d''admission]]<>""),IF(Tableau1[[#This Row],[Date congé]]<=Tableau1[[#This Row],[Fin période (admission)]],Tableau1[[#This Row],[Date congé]]-Tableau1[[#This Row],[Date d''admission]],Tableau1[[#This Row],[Fin période (admission)]]-Tableau1[[#This Row],[Date d''admission]]),0) -> 0 | W40: =IFERROR(IF(Tableau1[[#This Row],[Date d''admission]]<>"",IF(Tableau1[[#This Row],[Site]]="René_Léosa",Tableau1[[#This Row],[Date d''admission]]+45,"")),"") ->  | Y40: 710 | AA40: Oui | AD40: =IF(Tableau1[[#This Row],[Date rencontre familiale]]="","Non","Oui") -> Non | AE40: =IF(Tableau1[[#This Row],[Date rencontre familiale]]="","",Tableau1[[#This Row],[Date rencontre familiale]]-Tableau1[[#This Row],[Date d''admission]]) ->  | AF40: =IF(Tableau1[[#This Row],[Date congé]]<>"",Tableau1[[#This Row],[Date congé]],"") ->  | AG40: =IF(Tableau1[[#This Row],[Date de fin Soins actifs]]<>"","Non","Oui") -> Oui | AJ40: =IFERROR(VLOOKUP(Tableau1[[#This Row],[Date congé]],Tableau1618[],4,1),"") ->  | AK40: =IFERROR(VLOOKUP(Tableau1[[#This Row],[Date congé]],Tableau1618[],5,1),"") ->  | AL40: =CONCATENATE(Tableau1[[#This Row],[Période (congé)]]," ",Tableau1[[#This Row],[Année (congé)]]) ->  | AM40: =IFERROR(VLOOKUP(Tableau1[[#This Row],[Période/année (congé)]],Tableau1618[[Période année]:[Fin]],3,0),"") ->  | AN40: =IF(AND(Tableau1[[#This Row],[Statut]]="Congé",Tableau1[[#This Row],[Date d''admission]]<>""),IF(Tableau1[[#This Row],[Date congé]]>=Tableau1[[#This Row],[Fin période (admission)]],Tableau1[[#This Row],[Date congé]]-Tableau1[[#This Row],[Fin période (admission)]],0),0) -> 0 | AO40: =IF(AND(Tableau1[[#This Row],[Date congé prévu]]<>"",Tableau1[[#This Row],[Date congé]]<>""),Tableau1[[#This Row],[Date congé]]-Tableau1[[#This Row],[Date congé prévu]],"") ->  | AP40: =IFERROR(IF(AND(Tableau1[[#This Row],[Date d''admission]]<>"",Tableau1[[#This Row],[Date congé]]<>""),DATEDIF(Tableau1[[#This Row],[Date d''admission]],Tableau1[[#This Row],[Date congé]],"D"),""),"") ->  | AQ40: =IF(AND(Tableau1[[#This Row],[Date de fin Soins actifs]]<>"",Tableau1[[#This Row],[Date congé]]<>""),IF(Tableau1[[#This Row],[Date de fin Soins actifs]]<>Tableau1[[#This Row],[Date congé]],"Devient NSA durant séjour","Quitte avant de devenir NSA"),"") ->  | AR40: =IF(Tableau1[[#This Row],[NSA]]="Devient NSA durant PEC",Tableau1[[#This Row],[Date congé]]-Tableau1[[#This Row],[Date de fin Soins actifs]],"") ->  | AW40: 2021-05-20 | AX40: aucun | AY40: =IFERROR(DATEDIF(Tableau1[[#This Row],[Date dépôt demande]],Tableau1[[#This Row],[Date d''admission]],"D"),"") -> 5 | AZ40: =IFERROR(IF(AND(Tableau1[[#This Row],[Date de fin Soins actifs]]<>"",Tableau1[[#This Row],[Date congé]]<>""),DATEDIF(Tableau1[[#This Row],[Date de fin Soins actifs]],Tableau1[[#This Row],[Date congé]],"D"),""),"") ->  | BB40: =IF(Tableau1[[#This Row],[Date dépôt MAH]]="","",Tableau1[[#This Row],[Date dépôt MAH]]-Tableau1[[#This Row],[Date d''admission]]) ->  | BC40: =IF(Tableau1[[#This Row],[Date dépôt MAH]]="","",Tableau1[[#This Row],[Date congé]]-Tableau1[[#This Row],[Date dépôt MAH]]) ->  | BE40: =IFERROR(DATEDIF(Tableau1[[#This Row],[Date orientation]],Tableau1[[#This Row],[Date congé]],"D"),"") -> 0
A41: Drummond | B41: René_Léosa | C41: 18 | D41: =IFERROR(VLOOKUP(C41,Chambres,3,FALSE),"") ->  | E41: =IF(AND(Tableau1[[#This Row],[Date d''admission]]<>"",Tableau1[[#This Row],[Date congé]]=""),"Occupée",IF(Tableau1[[#This Row],[Date congé]]<>"","Congé","Libre")) -> Congé | H41: P082714 | I41: 16394 | J41: =(IF(Tableau1[[#This Row],[Date de naissance]]<>"",DATEDIF(Tableau1[[#This Row],[Date de naissance]],TODAY(),"Y"),"")) -> 76 | K41: =IF(Tableau1[[#This Row],[Âge]]<=60,"60 et -",IF(Tableau1[[#This Row],[Âge]]<=65,"61-65",IF(Tableau1[[#This Row],[Âge]]<=70,"66-70",IF(Tableau1[[#This Row],[Âge]]<=75,"71-75",IF(Tableau1[[#This Row],[Âge]]<=80,"76-80",IF(Tableau1[[#This Row],[Âge]]<=85,"81-85",IF(Tableau1[[#This Row],[Âge]]<=110,"86 et +",""))))))) -> 76-80 | L41: 44265 | M41: =IFERROR(VLOOKUP(Tableau1[[#This Row],[Date dépôt demande]],Tableau1618[],4,1),"") -> P13 | N41: =IFERROR(VLOOKUP(Tableau1[[#This Row],[Date dépôt demande]],Tableau1618[],5,1),"") -> 2020-2021 | O41: Éval-ori | P41: HSC | Q41: 44270 | R41: =IFERROR(VLOOKUP(Tableau1[[#This Row],[Date d''admission]],Tableau1618[],4,1),"") -> P13 | S41: =IFERROR(VLOOKUP(Tableau1[[#This Row],[Date d''admission]],Tableau1618[],5,1),"") -> 2020-2021 | T41: =CONCATENATE(Tableau1[[#This Row],[Période (admission)]]," ",Tableau1[[#This Row],[Année (admission)]]) -> P13 2020-2021 | U41: =IFERROR(VLOOKUP(Tableau1[[#This Row],[Période/année (admission)]],Tableau1618[[Période année]:[Fin]],3,0),"") -> 44286 | V41: =IF(AND(Tableau1[[#This Row],[Statut]]="Congé",Tableau1[[#This Row],[Date d''admission]]<>""),IF(Tableau1[[#This Row],[Date congé]]<=Tableau1[[#This Row],[Fin période (admission)]],Tableau1[[#This Row],[Date congé]]-Tableau1[[#This Row],[Date d''admission]],Tableau1[[#This Row],[Fin période (admission)]]-Tableau1[[#This Row],[Date d''admission]]),0) -> 15 | W41: =IFERROR(IF(Tableau1[[#This Row],[Date d''admission]]<>"",IF(Tableau1[[#This Row],[Site]]="René_Léosa",Tableau1[[#This Row],[Date d''admission]]+45,"")),"") -> 44315 | Y41: 710 | AA41: Oui | AD41: =IF(Tableau1[[#This Row],[Date rencontre familiale]]="","Non","Oui") -> Non | AE41: =IF(Tableau1[[#This Row],[Date rencontre familiale]]="","",Tableau1[[#This Row],[Date rencontre familiale]]-Tableau1[[#This Row],[Date d''admission]]) ->  | AF41: =IF(Tableau1[[#This Row],[Date congé]]<>"",Tableau1[[#This Row],[Date congé]],"") -> 44285 | AG41: =IF(Tableau1[[#This Row],[Date de fin Soins actifs]]<>"","Non","Oui") -> Non | AI41: 44285 | AJ41: =IFERROR(VLOOKUP(Tableau1[[#This Row],[Date congé]],Tableau1618[],4,1),"") -> P13 | AK41: =IFERROR(VLOOKUP(Tableau1[[#This Row],[Date congé]],Tableau1618[],5,1),"") -> 2020-2021 | AL41: =CONCATENATE(Tableau1[[#This Row],[Période (congé)]]," ",Tableau1[[#This Row],[Année (congé)]]) -> P13 2020-2021 | AM41: =IFERROR(VLOOKUP(Tableau1[[#This Row],[Période/année (congé)]],Tableau1618[[Période année]:[Fin]],3,0),"") -> 44286 | AN41: =IF(AND(Tableau1[[#This Row],[Statut]]="Congé",Tableau1[[#This Row],[Date d''admission]]<>""),IF(Tableau1[[#This Row],[Date congé]]>=Tableau1[[#This Row],[Fin période (admission)]],Tableau1[[#This Row],[Date congé]]-Tableau1[[#This Row],[Fin période (admission)]],0),0) -> 0 | AO41: =IF(AND(Tableau1[[#This Row],[Date congé prévu]]<>"",Tableau1[[#This Row],[Date congé]]<>""),Tableau1[[#This Row],[Date congé]]-Tableau1[[#This Row],[Date congé prévu]],"") ->  | AP41: =SUM(Tableau1[[#This Row],[Séjour 1]]+Tableau1[[#This Row],[Séjour 2]]) -> 15 | AQ41: =IF(AND(Tableau1[[#This Row],[Date de fin Soins actifs]]<>"",Tableau1[[#This Row],[Date congé]]<>""),IF(Tableau1[[#This Row],[Date de fin Soins actifs]]<>Tableau1[[#This Row],[Date congé]],"Devient NSA durant séjour","Quitte avant de devenir NSA"),"") -> Quitte avant de devenir NSA | AR41: =IF(Tableau1[[#This Row],[NSA]]="Devient NSA durant PEC",Tableau1[[#This Row],[Date congé]]-Tableau1[[#This Row],[Date de fin Soins actifs]],"") ->  | AY41: =IFERROR(DATEDIF(Tableau1[[#This Row],[Date dépôt demande]],Tableau1[[#This Row],[Date d''admission]],"D"),"") -> 5 | AZ41: =IFERROR(IF(AND(Tableau1[[#This Row],[Date de fin Soins actifs]]<>"",Tableau1[[#This Row],[Date congé]]<>""),DATEDIF(Tableau1[[#This Row],[Date de fin Soins actifs]],Tableau1[[#This Row],[Date congé]],"D"),""),"") -> 0 | BB41: =IF(Tableau1[[#This Row],[Date dépôt MAH]]="","",Tableau1[[#This Row],[Date dépôt MAH]]-Tableau1[[#This Row],[Date d''admission]]) ->  | BC41: =IF(Tableau1[[#This Row],[Date dépôt MAH]]="","",Tableau1[[#This Row],[Date congé]]-Tableau1[[#This Row],[Date dépôt MAH]]) ->  | BE41: =IFERROR(DATEDIF(Tableau1[[#This Row],[Date orientation]],Tableau1[[#This Row],[Date congé]],"D"),"") -> 44285
A42: Drummond | B42: _600_Bousquet_NSA | C42: 218 | D42: =IFERROR(VLOOKUP(C42,Chambres,3,FALSE),"") -> Régulière | E42: =IF(AND(Tableau1[[#This Row],[Date d''admission]]<>"",Tableau1[[#This Row],[Date congé]]=""),"Occupée",IF(Tableau1[[#This Row],[Date congé]]<>"","Congé","Libre")) -> Congé | H42: P082714 | I42: 16394 | J42: =(IF(Tableau1[[#This Row],[Date de naissance]]<>"",DATEDIF(Tableau1[[#This Row],[Date de naissance]],TODAY(),"Y"),"")) -> 76 | K42: =IF(Tableau1[[#This Row],[Âge]]<=60,"60 et -",IF(Tableau1[[#This Row],[Âge]]<=65,"61-65",IF(Tableau1[[#This Row],[Âge]]<=70,"66-70",IF(Tableau1[[#This Row],[Âge]]<=75,"71-75",IF(Tableau1[[#This Row],[Âge]]<=80,"76-80",IF(Tableau1[[#This Row],[Âge]]<=85,"81-85",IF(Tableau1[[#This Row],[Âge]]<=110,"86 et +",""))))))) -> 76-80 | L42: 44370 | M42: =IFERROR(VLOOKUP(Tableau1[[#This Row],[Date dépôt demande]],Tableau1618[],4,1),"") -> P04 | N42: =IFERROR(VLOOKUP(Tableau1[[#This Row],[Date dépôt demande]],Tableau1618[],5,1),"") -> 2021-2022 | O42: Conval | P42: Autre | Q42: 44370 | R42: =IFERROR(VLOOKUP(Tableau1[[#This Row],[Date d''admission]],Tableau1618[],4,1),"") -> P04 | S42: =IFERROR(VLOOKUP(Tableau1[[#This Row],[Date d''admission]],Tableau1618[],5,1),"") -> 2021-2022 | T42: =CONCATENATE(Tableau1[[#This Row],[Période (admission)]]," ",Tableau1[[#This Row],[Année (admission)]]) -> P04 2021-2022 | U42: =IFERROR(VLOOKUP(Tableau1[[#This Row],[Période/année (admission)]],Tableau1618[[Période année]:[Fin]],3,0),"") -> 44394 | V42: =IF(AND(Tableau1[[#This Row],[Statut]]="Congé",Tableau1[[#This Row],[Date d''admission]]<>""),IF(Tableau1[[#This Row],[Date congé]]<=Tableau1[[#This Row],[Fin période (admission)]],Tableau1[[#This Row],[Date congé]]-Tableau1[[#This Row],[Date d''admission]],Tableau1[[#This Row],[Fin période (admission)]]-Tableau1[[#This Row],[Date d''admission]]),0) -> 8 | W42: =IFERROR(IF(Tableau1[[#This Row],[Date d''admission]]<>"",IF(Tableau1[[#This Row],[Site]]="René_Léosa",Tableau1[[#This Row],[Date d''admission]]+45,"")),"") ->  | Y42: 710 | AA42: Oui | AD42: =IF(Tableau1[[#This Row],[Date rencontre familiale]]="","Non","Oui") -> Non | AE42: =IF(Tableau1[[#This Row],[Date rencontre familiale]]="","",Tableau1[[#This Row],[Date rencontre familiale]]-Tableau1[[#This Row],[Date d''admission]]) ->  | AF42: =IF(Tableau1[[#This Row],[Date congé]]<>"",Tableau1[[#This Row],[Date congé]],"") -> 44378 | AG42: =IF(Tableau1[[#This Row],[Date de fin Soins actifs]]<>"","Non","Oui") -> Non | AI42: 44378 | AJ42: =IFERROR(VLOOKUP(Tableau1[[#This Row],[Date congé]],Tableau1618[],4,1),"") -> P04 | AK42: =IFERROR(VLOOKUP(Tableau1[[#This Row],[Date congé]],Tableau1618[],5,1),"") -> 2021-2022 | AL42: =CONCATENATE(Tableau1[[#This Row],[Période (congé)]]," ",Tableau1[[#This Row],[Année (congé)]]) -> P04 2021-2022 | AM42: =IFERROR(VLOOKUP(Tableau1[[#This Row],[Période/année (congé)]],Tableau1618[[Période année]:[Fin]],3,0),"") -> 44394 | AN42: =IF(AND(Tableau1[[#This Row],[Statut]]="Congé",Tableau1[[#This Row],[Date d''admission]]<>""),IF(Tableau1[[#This Row],[Date congé]]>=Tableau1[[#This Row],[Fin période (admission)]],Tableau1[[#This Row],[Date congé]]-Tableau1[[#This Row],[Fin période (admission)]],0),0) -> 0 | AO42: =IF(AND(Tableau1[[#This Row],[Date congé prévu]]<>"",Tableau1[[#This Row],[Date congé]]<>""),Tableau1[[#This Row],[Date congé]]-Tableau1[[#This Row],[Date congé prévu]],"") ->  | AP42: =IFERROR(IF(AND(Tableau1[[#This Row],[Date d''admission]]<>"",Tableau1[[#This Row],[Date congé]]<>""),DATEDIF(Tableau1[[#This Row],[Date d''admission]],Tableau1[[#This Row],[Date congé]],"D"),""),"") -> 8 | AQ42: =IF(AND(Tableau1[[#This Row],[Date de fin Soins actifs]]<>"",Tableau1[[#This Row],[Date congé]]<>""),IF(Tableau1[[#This Row],[Date de fin Soins actifs]]<>Tableau1[[#This Row],[Date congé]],"Devient NSA durant séjour","Quitte avant de devenir NSA"),"") -> Quitte avant de devenir NSA | AR42: =IF(Tableau1[[#This Row],[NSA]]="Devient NSA durant PEC",Tableau1[[#This Row],[Date congé]]-Tableau1[[#This Row],[Date de fin Soins actifs]],"") ->  | AS42: Retour au CH | AT42: 710 | AW42: 2021-05-20 | AY42: =IFERROR(DATEDIF(Tableau1[[#This Row],[Date dépôt demande]],Tableau1[[#This Row],[Date d''admission]],"D"),"") -> 0 | AZ42: =IFERROR(IF(AND(Tableau1[[#This Row],[Date de fin Soins actifs]]<>"",Tableau1[[#This Row],[Date congé]]<>""),DATEDIF(Tableau1[[#This Row],[Date de fin Soins actifs]],Tableau1[[#This Row],[Date congé]],"D"),""),"") -> 0 | BB42: =IF(Tableau1[[#This Row],[Date dépôt MAH]]="","",Tableau1[[#This Row],[Date dépôt MAH]]-Tableau1[[#This Row],[Date d''admission]]) ->  | BC42: =IF(Tableau1[[#This Row],[Date dépôt MAH]]="","",Tableau1[[#This Row],[Date congé]]-Tableau1[[#This Row],[Date dépôt MAH]]) ->  | BE42: =IFERROR(DATEDIF(Tableau1[[#This Row],[Date orientation]],Tableau1[[#This Row],[Date congé]],"D"),"") -> 44378
A43: Drummond | B43: _600_Bousquet_NSA | C43: 279 | D43: =IFERROR(VLOOKUP(C43,Chambres,3,FALSE),"") -> Prothétique | E43: =IF(AND(Tableau1[[#This Row],[Date d''admission]]<>"",Tableau1[[#This Row],[Date congé]]=""),"Occupée",IF(Tableau1[[#This Row],[Date congé]]<>"","Congé","Libre")) -> Congé | H43: P170931 | I43: 13985 | J43: =(IF(Tableau1[[#This Row],[Date de naissance]]<>"",DATEDIF(Tableau1[[#This Row],[Date de naissance]],TODAY(),"Y"),"")) -> 83 | K43: =IF(Tableau1[[#This Row],[Âge]]<=60,"60 et -",IF(Tableau1[[#This Row],[Âge]]<=65,"61-65",IF(Tableau1[[#This Row],[Âge]]<=70,"66-70",IF(Tableau1[[#This Row],[Âge]]<=75,"71-75",IF(Tableau1[[#This Row],[Âge]]<=80,"76-80",IF(Tableau1[[#This Row],[Âge]]<=85,"81-85",IF(Tableau1[[#This Row],[Âge]]<=110,"86 et +",""))))))) -> 81-85 | L43: 44391 | M43: =IFERROR(VLOOKUP(Tableau1[[#This Row],[Date dépôt demande]],Tableau1618[],4,1),"") -> P04 | N43: =IFERROR(VLOOKUP(Tableau1[[#This Row],[Date dépôt demande]],Tableau1618[],5,1),"") -> 2021-2022 | O43: Urgence sociale | P43: Autre | Q43: 44392 | R43: =IFERROR(VLOOKUP(Tableau1[[#This Row],[Date d''admission]],Tableau1618[],4,1),"") -> P04 | S43: =IFERROR(VLOOKUP(Tableau1[[#This Row],[Date d''admission]],Tableau1618[],5,1),"") -> 2021-2022 | T43: =CONCATENATE(Tableau1[[#This Row],[Période (admission)]]," ",Tableau1[[#This Row],[Année (admission)]]) -> P04 2021-2022 | U43: =IFERROR(VLOOKUP(Tableau1[[#This Row],[Période/année (admission)]],Tableau1618[[Période année]:[Fin]],3,0),"") -> 44394 | V43: =IF(AND(Tableau1[[#This Row],[Statut]]="Congé",Tableau1[[#This Row],[Date d''admission]]<>""),IF(Tableau1[[#This Row],[Date congé]]<=Tableau1[[#This Row],[Fin période (admission)]],Tableau1[[#This Row],[Date congé]]-Tableau1[[#This Row],[Date d''admission]],Tableau1[[#This Row],[Fin période (admission)]]-Tableau1[[#This Row],[Date d''admission]]),0) -> 2 | W43: =IFERROR(IF(Tableau1[[#This Row],[Date d''admission]]<>"",IF(Tableau1[[#This Row],[Site]]="René_Léosa",Tableau1[[#This Row],[Date d''admission]]+45,"")),"") ->  | Y43: 710 | AA43: Oui | AD43: =IF(Tableau1[[#This Row],[Date rencontre familiale]]="","Non","Oui") -> Non | AE43: =IF(Tableau1[[#This Row],[Date rencontre familiale]]="","",Tableau1[[#This Row],[Date rencontre familiale]]-Tableau1[[#This Row],[Date d''admission]]) ->  | AF43: =IF(Tableau1[[#This Row],[Date congé]]<>"",Tableau1[[#This Row],[Date congé]],"") -> 44406 | AG43: =IF(Tableau1[[#This Row],[Date de fin Soins actifs]]<>"","Non","Oui") -> Non | AI43: 44406 | AJ43: =IFERROR(VLOOKUP(Tableau1[[#This Row],[Date congé]],Tableau1618[],4,1),"") -> P05 | AK43: =IFERROR(VLOOKUP(Tableau1[[#This Row],[Date congé]],Tableau1618[],5,1),"") -> 2021-2022 | AL43: =CONCATENATE(Tableau1[[#This Row],[Période (congé)]]," ",Tableau1[[#This Row],[Année (congé)]]) -> P05 2021-2022 | AM43: =IFERROR(VLOOKUP(Tableau1[[#This Row],[Période/année (congé)]],Tableau1618[[Période année]:[Fin]],3,0),"") -> 44422 | AN43: =IF(AND(Tableau1[[#This Row],[Statut]]="Congé",Tableau1[[#This Row],[Date d''admission]]<>""),IF(Tableau1[[#This Row],[Date congé]]>=Tableau1[[#This Row],[Fin période (admission)]],Tableau1[[#This Row],[Date congé]]-Tableau1[[#This Row],[Fin période (admission)]],0),0) -> 12 | AO43: =IF(AND(Tableau1[[#This Row],[Date congé prévu]]<>"",Tableau1[[#This Row],[Date congé]]<>""),Tableau1[[#This Row],[Date congé]]-Tableau1[[#This Row],[Date congé prévu]],"") ->  | AP43: =IFERROR(IF(AND(Tableau1[[#This Row],[Date d''admission]]<>"",Tableau1[[#This Row],[Date congé]]<>""),DATEDIF(Tableau1[[#This Row],[Date d''admission]],Tableau1[[#This Row],[Date congé]],"D"),""),"") -> 14 | AQ43: =IF(AND(Tableau1[[#This Row],[Date de fin Soins actifs]]<>"",Tableau1[[#This Row],[Date congé]]<>""),IF(Tableau1[[#This Row],[Date de fin Soins actifs]]<>Tableau1[[#This Row],[Date congé]],"Devient NSA durant séjour","Quitte avant de devenir NSA"),"") -> Quitte avant de devenir NSA | AR43: =IF(Tableau1[[#This Row],[NSA]]="Devient NSA durant PEC",Tableau1[[#This Row],[Date congé]]-Tableau1[[#This Row],[Date de fin Soins actifs]],"") ->  | AS43: CHSLD | AW43: 2021-02-27 | AX43: 2021-05-24 | AY43: =IFERROR(DATEDIF(Tableau1[[#This Row],[Date dépôt demande]],Tableau1[[#This Row],[Date d''admission]],"D"),"") -> 1 | AZ43: =IFERROR(IF(AND(Tableau1[[#This Row],[Date de fin Soins actifs]]<>"",Tableau1[[#This Row],[Date congé]]<>""),DATEDIF(Tableau1[[#This Row],[Date de fin Soins actifs]],Tableau1[[#This Row],[Date congé]],"D"),""),"") -> 0 | BB43: =IF(Tableau1[[#This Row],[Date dépôt MAH]]="","",Tableau1[[#This Row],[Date dépôt MAH]]-Tableau1[[#This Row],[Date d''admission]]) ->  | BC43: =IF(Tableau1[[#This Row],[Date dépôt MAH]]="","",Tableau1[[#This Row],[Date congé]]-Tableau1[[#This Row],[Date dépôt MAH]]) ->  | BE43: =IFERROR(DATEDIF(Tableau1[[#This Row],[Date orientation]],Tableau1[[#This Row],[Date congé]],"D"),"") -> 44406
A44: Drummond | B44: _600_Bousquet_NSA | C44: 279 | D44: =IFERROR(VLOOKUP(C44,Chambres,3,FALSE),"") -> Prothétique | E44: =IF(AND(Tableau1[[#This Row],[Date d''admission]]<>"",Tableau1[[#This Row],[Date congé]]=""),"Occupée",IF(Tableau1[[#This Row],[Date congé]]<>"","Congé","Libre")) -> Congé | H44: P081888 | I44: 12475 | J44: =(IF(Tableau1[[#This Row],[Date de naissance]]<>"",DATEDIF(Tableau1[[#This Row],[Date de naissance]],TODAY(),"Y"),"")) -> 87 | K44: =IF(Tableau1[[#This Row],[Âge]]<=60,"60 et -",IF(Tableau1[[#This Row],[Âge]]<=65,"61-65",IF(Tableau1[[#This Row],[Âge]]<=70,"66-70",IF(Tableau1[[#This Row],[Âge]]<=75,"71-75",IF(Tableau1[[#This Row],[Âge]]<=80,"76-80",IF(Tableau1[[#This Row],[Âge]]<=85,"81-85",IF(Tableau1[[#This Row],[Âge]]<=110,"86 et +",""))))))) -> 86 et + | L44: 44204 | M44: =IFERROR(VLOOKUP(Tableau1[[#This Row],[Date dépôt demande]],Tableau1618[],4,1),"") -> P11 | N44: =IFERROR(VLOOKUP(Tableau1[[#This Row],[Date dépôt demande]],Tableau1618[],5,1),"") -> 2020-2021 | O44: Éval-ori | P44: Autre | Q44: 44204 | R44: =IFERROR(VLOOKUP(Tableau1[[#This Row],[Date d''admission]],Tableau1618[],4,1),"") -> P11 | S44: =IFERROR(VLOOKUP(Tableau1[[#This Row],[Date d''admission]],Tableau1618[],5,1),"") -> 2020-2021 | T44: =CONCATENATE(Tableau1[[#This Row],[Période (admission)]]," ",Tableau1[[#This Row],[Année (admission)]]) -> P11 2020-2021 | U44: =IFERROR(VLOOKUP(Tableau1[[#This Row],[Période/année (admission)]],Tableau1618[[Période année]:[Fin]],3,0),"") -> 44226 | V44: =IF(AND(Tableau1[[#This Row],[Statut]]="Congé",Tableau1[[#This Row],[Date d''admission]]<>""),IF(Tableau1[[#This Row],[Date congé]]<=Tableau1[[#This Row],[Fin période (admission)]],Tableau1[[#This Row],[Date congé]]-Tableau1[[#This Row],[Date d''admission]],Tableau1[[#This Row],[Fin période (admission)]]-Tableau1[[#This Row],[Date d''admission]]),0) -> 22 | W44: =IFERROR(IF(Tableau1[[#This Row],[Date d''admission]]<>"",IF(Tableau1[[#This Row],[Site]]="René_Léosa",Tableau1[[#This Row],[Date d''admission]]+45,"")),"") ->  | Y44: 710 | AA44: Oui | AD44: =IF(Tableau1[[#This Row],[Date rencontre familiale]]="","Non","Oui") -> Non | AE44: =IF(Tableau1[[#This Row],[Date rencontre familiale]]="","",Tableau1[[#This Row],[Date rencontre familiale]]-Tableau1[[#This Row],[Date d''admission]]) ->  | AF44: =IF(Tableau1[[#This Row],[Date congé]]<>"",Tableau1[[#This Row],[Date congé]],"") -> 44229 | AG44: =IF(Tableau1[[#This Row],[Date de fin Soins actifs]]<>"","Non","Oui") -> Non | AI44: 44229 | AJ44: =IFERROR(VLOOKUP(Tableau1[[#This Row],[Date congé]],Tableau1618[],4,1),"") -> P12 | AK44: =IFERROR(VLOOKUP(Tableau1[[#This Row],[Date congé]],Tableau1618[],5,1),"") -> 2020-2021 | AL44: =CONCATENATE(Tableau1[[#This Row],[Période (congé)]]," ",Tableau1[[#This Row],[Année (congé)]]) -> P12 2020-2021 | AM44: =IFERROR(VLOOKUP(Tableau1[[#This Row],[Période/année (congé)]],Tableau1618[[Période année]:[Fin]],3,0),"") -> 44254 | AN44: =IF(AND(Tableau1[[#This Row],[Statut]]="Congé",Tableau1[[#This Row],[Date d''admission]]<>""),IF(Tableau1[[#This Row],[Date congé]]>=Tableau1[[#This Row],[Fin période (admission)]],Tableau1[[#This Row],[Date congé]]-Tableau1[[#This Row],[Fin période (admission)]],0),0) -> 3 | AO44: =IF(AND(Tableau1[[#This Row],[Date congé prévu]]<>"",Tableau1[[#This Row],[Date congé]]<>""),Tableau1[[#This Row],[Date congé]]-Tableau1[[#This Row],[Date congé prévu]],"") ->  | AP44: =SUM(Tableau1[[#This Row],[Séjour 1]]+Tableau1[[#This Row],[Séjour 2]]) -> 25 | AQ44: =IF(AND(Tableau1[[#This Row],[Date de fin Soins actifs]]<>"",Tableau1[[#This Row],[Date congé]]<>""),IF(Tableau1[[#This Row],[Date de fin Soins actifs]]<>Tableau1[[#This Row],[Date congé]],"Devient NSA durant séjour","Quitte avant de devenir NSA"),"") -> Quitte avant de devenir NSA | AR44: =IF(Tableau1[[#This Row],[NSA]]="Devient NSA durant PEC",Tableau1[[#This Row],[Date congé]]-Tableau1[[#This Row],[Date de fin Soins actifs]],"") ->  | AS44: Relocalisation RPA | AT44: 710 | AV44: Soins infirmiers | AY44: =IFERROR(DATEDIF(Tableau1[[#This Row],[Date dépôt demande]],Tableau1[[#This Row],[Date d''admission]],"D"),"") -> 0 | AZ44: =IFERROR(IF(AND(Tableau1[[#This Row],[Date de fin Soins actifs]]<>"",Tableau1[[#This Row],[Date congé]]<>""),DATEDIF(Tableau1[[#This Row],[Date de fin Soins actifs]],Tableau1[[#This Row],[Date congé]],"D"),""),"") -> 0 | BB44: =IF(Tableau1[[#This Row],[Date dépôt MAH]]="","",Tableau1[[#This Row],[Date dépôt MAH]]-Tableau1[[#This Row],[Date d''admission]]) ->  | BC44: =IF(Tableau1[[#This Row],[Date dépôt MAH]]="","",Tableau1[[#This Row],[Date congé]]-Tableau1[[#This Row],[Date dépôt MAH]]) ->  | BE44: =IFERROR(DATEDIF(Tableau1[[#This Row],[Date orientation]],Tableau1[[#This Row],[Date congé]],"D"),"") -> 44229
A45: Drummond | B45: CFGH | C45: 1059 | D45: =IFERROR(VLOOKUP(C45,Chambres,3,FALSE),"") -> 1NC | E45: =IF(AND(Tableau1[[#This Row],[Date d''admission]]<>"",Tableau1[[#This Row],[Date congé]]=""),"Occupée",IF(Tableau1[[#This Row],[Date congé]]<>"","Congé","Libre")) -> Congé | H45: P035155 | I45: 9399 | J45: =(IF(Tableau1[[#This Row],[Date de naissance]]<>"",DATEDIF(Tableau1[[#This Row],[Date de naissance]],TODAY(),"Y"),"")) -> 95 | K45: =IF(Tableau1[[#This Row],[Âge]]<=60,"60 et -",IF(Tableau1[[#This Row],[Âge]]<=65,"61-65",IF(Tableau1[[#This Row],[Âge]]<=70,"66-70",IF(Tableau1[[#This Row],[Âge]]<=75,"71-75",IF(Tableau1[[#This Row],[Âge]]<=80,"76-80",IF(Tableau1[[#This Row],[Âge]]<=85,"81-85",IF(Tableau1[[#This Row],[Âge]]<=110,"86 et +",""))))))) -> 86 et + | L45: 44102 | M45: =IFERROR(VLOOKUP(Tableau1[[#This Row],[Date dépôt demande]],Tableau1618[],4,1),"") -> P07 | N45: =IFERROR(VLOOKUP(Tableau1[[#This Row],[Date dépôt demande]],Tableau1618[],5,1),"") -> 2020-2021 | O45: Conval | P45: HSC | Q45: 44105 | R45: =IFERROR(VLOOKUP(Tableau1[[#This Row],[Date d''admission]],Tableau1618[],4,1),"") -> P07 | S45: =IFERROR(VLOOKUP(Tableau1[[#This Row],[Date d''admission]],Tableau1618[],5,1),"") -> 2020-2021 | T45: =CONCATENATE(Tableau1[[#This Row],[Période (admission)]]," ",Tableau1[[#This Row],[Année (admission)]]) -> P07 2020-2021 | U45: =IFERROR(VLOOKUP(Tableau1[[#This Row],[Période/année (admission)]],Tableau1618[[Période année]:[Fin]],3,0),"") -> 44114 | V45: =IF(AND(Tableau1[[#This Row],[Statut]]="Congé",Tableau1[[#This Row],[Date d''admission]]<>""),IF(Tableau1[[#This Row],[Date congé]]<=Tableau1[[#This Row],[Fin période (admission)]],Tableau1[[#This Row],[Date congé]]-Tableau1[[#This Row],[Date d''admission]],Tableau1[[#This Row],[Fin période (admission)]]-Tableau1[[#This Row],[Date d''admission]]),0) -> 9 | W45: =IFERROR(IF(Tableau1[[#This Row],[Date d''admission]]<>"",IF(Tableau1[[#This Row],[Site]]="René_Léosa",Tableau1[[#This Row],[Date d''admission]]+45,"")),"") ->  | Y45: 710 | AA45: Oui | AD45: =IF(Tableau1[[#This Row],[Date rencontre familiale]]="","Non","Oui") -> Non | AE45: =IF(Tableau1[[#This Row],[Date rencontre familiale]]="","",Tableau1[[#This Row],[Date rencontre familiale]]-Tableau1[[#This Row],[Date d''admission]]) ->  | AF45: =IF(Tableau1[[#This Row],[Date congé]]<>"",Tableau1[[#This Row],[Date congé]],"") -> 44118 | AG45: =IF(Tableau1[[#This Row],[Date de fin Soins actifs]]<>"","Non","Oui") -> Non | AI45: 44118 | AJ45: =IFERROR(VLOOKUP(Tableau1[[#This Row],[Date congé]],Tableau1618[],4,1),"") -> P08 | AK45: =IFERROR(VLOOKUP(Tableau1[[#This Row],[Date congé]],Tableau1618[],5,1),"") -> 2020-2021 | AL45: =CONCATENATE(Tableau1[[#This Row],[Période (congé)]]," ",Tableau1[[#This Row],[Année (congé)]]) -> P08 2020-2021 | AM45: =IFERROR(VLOOKUP(Tableau1[[#This Row],[Période/année (congé)]],Tableau1618[[Période année]:[Fin]],3,0),"") -> 44142 | AN45: =IF(AND(Tableau1[[#This Row],[Statut]]="Congé",Tableau1[[#This Row],[Date d''admission]]<>""),IF(Tableau1[[#This Row],[Date congé]]>=Tableau1[[#This Row],[Fin période (admission)]],Tableau1[[#This Row],[Date congé]]-Tableau1[[#This Row],[Fin période (admission)]],0),0) -> 4 | AO45: =IF(AND(Tableau1[[#This Row],[Date congé prévu]]<>"",Tableau1[[#This Row],[Date congé]]<>""),Tableau1[[#This Row],[Date congé]]-Tableau1[[#This Row],[Date congé prévu]],"") ->  | AP45: =SUM(Tableau1[[#This Row],[Séjour 1]]+Tableau1[[#This Row],[Séjour 2]]) -> 13 | AQ45: =IF(AND(Tableau1[[#This Row],[Date de fin Soins actifs]]<>"",Tableau1[[#This Row],[Date congé]]<>""),IF(Tableau1[[#This Row],[Date de fin Soins actifs]]<>Tableau1[[#This Row],[Date congé]],"Devient NSA durant séjour","Quitte avant de devenir NSA"),"") -> Quitte avant de devenir NSA | AR45: =IF(Tableau1[[#This Row],[NSA]]="Devient NSA durant PEC",Tableau1[[#This Row],[Date congé]]-Tableau1[[#This Row],[Date de fin Soins actifs]],"") ->  | AS45: Retour au CH | AY45: =IFERROR(DATEDIF(Tableau1[[#This Row],[Date dépôt demande]],Tableau1[[#This Row],[Date d''admission]],"D"),"") -> 3 | AZ45: =IFERROR(IF(AND(Tableau1[[#This Row],[Date de fin Soins actifs]]<>"",Tableau1[[#This Row],[Date congé]]<>""),DATEDIF(Tableau1[[#This Row],[Date de fin Soins actifs]],Tableau1[[#This Row],[Date congé]],"D"),""),"") -> 0 | BB45: =IF(Tableau1[[#This Row],[Date dépôt MAH]]="","",Tableau1[[#This Row],[Date dépôt MAH]]-Tableau1[[#This Row],[Date d''admission]]) ->  | BC45: =IF(Tableau1[[#This Row],[Date dépôt MAH]]="","",Tableau1[[#This Row],[Date congé]]-Tableau1[[#This Row],[Date dépôt MAH]]) ->  | BE45: =IFERROR(DATEDIF(Tableau1[[#This Row],[Date orientation]],Tableau1[[#This Row],[Date congé]],"D"),"") -> 44118
A46: Drummond | B46: CFGH | C46: 1058 | D46: =IFERROR(VLOOKUP(C46,Chambres,3,FALSE),"") -> 1NC | E46: =IF(AND(Tableau1[[#This Row],[Date d''admission]]<>"",Tableau1[[#This Row],[Date congé]]=""),"Occupée",IF(Tableau1[[#This Row],[Date congé]]<>"","Congé","Libre")) -> Congé | H46: P102182 | I46: 12618 | J46: =(IF(Tableau1[[#This Row],[Date de naissance]]<>"",DATEDIF(Tableau1[[#This Row],[Date de naissance]],TODAY(),"Y"),"")) -> 87 | K46: =IF(Tableau1[[#This Row],[Âge]]<=60,"60 et -",IF(Tableau1[[#This Row],[Âge]]<=65,"61-65",IF(Tableau1[[#This Row],[Âge]]<=70,"66-70",IF(Tableau1[[#This Row],[Âge]]<=75,"71-75",IF(Tableau1[[#This Row],[Âge]]<=80,"76-80",IF(Tableau1[[#This Row],[Âge]]<=85,"81-85",IF(Tableau1[[#This Row],[Âge]]<=110,"86 et +",""))))))) -> 86 et + | L46: 44266 | M46: =IFERROR(VLOOKUP(Tableau1[[#This Row],[Date dépôt demande]],Tableau1618[],4,1),"") -> P13 | N46: =IFERROR(VLOOKUP(Tableau1[[#This Row],[Date dépôt demande]],Tableau1618[],5,1),"") -> 2020-2021 | O46: Éval-ori | P46: HSC | Q46: 44267 | R46: =IFERROR(VLOOKUP(Tableau1[[#This Row],[Date d''admission]],Tableau1618[],4,1),"") -> P13 | S46: =IFERROR(VLOOKUP(Tableau1[[#This Row],[Date d''admission]],Tableau1618[],5,1),"") -> 2020-2021 | T46: =CONCATENATE(Tableau1[[#This Row],[Période (admission)]]," ",Tableau1[[#This Row],[Année (admission)]]) -> P13 2020-2021 | U46: =IFERROR(VLOOKUP(Tableau1[[#This Row],[Période/année (admission)]],Tableau1618[[Période année]:[Fin]],3,0),"") -> 44286 | V46: =IF(AND(Tableau1[[#This Row],[Statut]]="Congé",Tableau1[[#This Row],[Date d''admission]]<>""),IF(Tableau1[[#This Row],[Date congé]]<=Tableau1[[#This Row],[Fin période (admission)]],Tableau1[[#This Row],[Date congé]]-Tableau1[[#This Row],[Date d''admission]],Tableau1[[#This Row],[Fin période (admission)]]-Tableau1[[#This Row],[Date d''admission]]),0) -> 19 | W46: =IFERROR(IF(Tableau1[[#This Row],[Date d''admission]]<>"",IF(Tableau1[[#This Row],[Site]]="René_Léosa",Tableau1[[#This Row],[Date d''admission]]+45,"")),"") ->  | Y46: 710 | AA46: Oui | AD46: =IF(Tableau1[[#This Row],[Date rencontre familiale]]="","Non","Oui") -> Non | AE46: =IF(Tableau1[[#This Row],[Date rencontre familiale]]="","",Tableau1[[#This Row],[Date rencontre familiale]]-Tableau1[[#This Row],[Date d''admission]]) ->  | AF46: =IF(Tableau1[[#This Row],[Date congé]]<>"",Tableau1[[#This Row],[Date congé]],"") -> 44315 | AG46: =IF(Tableau1[[#This Row],[Date de fin Soins actifs]]<>"","Non","Oui") -> Non | AI46: 44315 | AJ46: =IFERROR(VLOOKUP(Tableau1[[#This Row],[Date congé]],Tableau1618[],4,1),"") -> P02 | AK46: =IFERROR(VLOOKUP(Tableau1[[#This Row],[Date congé]],Tableau1618[],5,1),"") -> 2021-2022 | AL46: =CONCATENATE(Tableau1[[#This Row],[Période (congé)]]," ",Tableau1[[#This Row],[Année (congé)]]) -> P02 2021-2022 | AM46: =IFERROR(VLOOKUP(Tableau1[[#This Row],[Période/année (congé)]],Tableau1618[[Période année]:[Fin]],3,0),"") -> 44338 | AN46: =IF(AND(Tableau1[[#This Row],[Statut]]="Congé",Tableau1[[#This Row],[Date d''admission]]<>""),IF(Tableau1[[#This Row],[Date congé]]>=Tableau1[[#This Row],[Fin période (admission)]],Tableau1[[#This Row],[Date congé]]-Tableau1[[#This Row],[Fin période (admission)]],0),0) -> 29 | AO46: =IF(AND(Tableau1[[#This Row],[Date congé prévu]]<>"",Tableau1[[#This Row],[Date congé]]<>""),Tableau1[[#This Row],[Date congé]]-Tableau1[[#This Row],[Date congé prévu]],"") ->  | AP46: =SUM(Tableau1[[#This Row],[Séjour 1]]+Tableau1[[#This Row],[Séjour 2]]) -> 48 | AQ46: =IF(AND(Tableau1[[#This Row],[Date de fin Soins actifs]]<>"",Tableau1[[#This Row],[Date congé]]<>""),IF(Tableau1[[#This Row],[Date de fin Soins actifs]]<>Tableau1[[#This Row],[Date congé]],"Devient NSA durant séjour","Quitte avant de devenir NSA"),"") -> Quitte avant de devenir NSA | AR46: =IF(Tableau1[[#This Row],[NSA]]="Devient NSA durant PEC",Tableau1[[#This Row],[Date congé]]-Tableau1[[#This Row],[Date de fin Soins actifs]],"") ->  | AS46: CHSLD | AT46: 710 | AU46: 13 | AY46: =IFERROR(DATEDIF(Tableau1[[#This Row],[Date dépôt demande]],Tableau1[[#This Row],[Date d''admission]],"D"),"") -> 1 | AZ46: =IFERROR(IF(AND(Tableau1[[#This Row],[Date de fin Soins actifs]]<>"",Tableau1[[#This Row],[Date congé]]<>""),DATEDIF(Tableau1[[#This Row],[Date de fin Soins actifs]],Tableau1[[#This Row],[Date congé]],"D"),""),"") -> 0 | BA46: 44312 | BB46: =IF(Tableau1[[#This Row],[Date dépôt MAH]]="","",Tableau1[[#This Row],[Date dépôt MAH]]-Tableau1[[#This Row],[Date d''admission]]) -> 45 | BC46: =IF(Tableau1[[#This Row],[Date dépôt MAH]]="","",Tableau1[[#This Row],[Date congé]]-Tableau1[[#This Row],[Date dépôt MAH]]) -> 3 | BD46: 44313 | BE46: =IFERROR(DATEDIF(Tableau1[[#This Row],[Date orientation]],Tableau1[[#This Row],[Date congé]],"D"),"") -> 2
A47: Drummond | B47: _600_Bousquet_NSA | C47: 370 | D47: =IFERROR(VLOOKUP(C47,Chambres,3,FALSE),"") -> Prothétique | E47: =IF(AND(Tableau1[[#This Row],[Date d''admission]]<>"",Tableau1[[#This Row],[Date congé]]=""),"Occupée",IF(Tableau1[[#This Row],[Date congé]]<>"","Congé","Libre")) -> Congé | H47: P115102 | I47: 15416 | J47: =(IF(Tableau1[[#This Row],[Date de naissance]]<>"",DATEDIF(Tableau1[[#This Row],[Date de naissance]],TODAY(),"Y"),"")) -> 79 | K47: =IF(Tableau1[[#This Row],[Âge]]<=60,"60 et -",IF(Tableau1[[#This Row],[Âge]]<=65,"61-65",IF(Tableau1[[#This Row],[Âge]]<=70,"66-70",IF(Tableau1[[#This Row],[Âge]]<=75,"71-75",IF(Tableau1[[#This Row],[Âge]]<=80,"76-80",IF(Tableau1[[#This Row],[Âge]]<=85,"81-85",IF(Tableau1[[#This Row],[Âge]]<=110,"86 et +",""))))))) -> 76-80 | L47: 44110 | M47: =IFERROR(VLOOKUP(Tableau1[[#This Row],[Date dépôt demande]],Tableau1618[],4,1),"") -> P07 | N47: =IFERROR(VLOOKUP(Tableau1[[#This Row],[Date dépôt demande]],Tableau1618[],5,1),"") -> 2020-2021 | O47: Conval | P47: HSC | Q47: 44117 | R47: =IFERROR(VLOOKUP(Tableau1[[#This Row],[Date d''admission]],Tableau1618[],4,1),"") -> P08 | S47: =IFERROR(VLOOKUP(Tableau1[[#This Row],[Date d''admission]],Tableau1618[],5,1),"") -> 2020-2021 | T47: =CONCATENATE(Tableau1[[#This Row],[Période (admission)]]," ",Tableau1[[#This Row],[Année (admission)]]) -> P08 2020-2021 | U47: =IFERROR(VLOOKUP(Tableau1[[#This Row],[Période/année (admission)]],Tableau1618[[Période année]:[Fin]],3,0),"") -> 44142 | V47: =IF(AND(Tableau1[[#This Row],[Statut]]="Congé",Tableau1[[#This Row],[Date d''admission]]<>""),IF(Tableau1[[#This Row],[Date congé]]<=Tableau1[[#This Row],[Fin période (admission)]],Tableau1[[#This Row],[Date congé]]-Tableau1[[#This Row],[Date d''admission]],Tableau1[[#This Row],[Fin période (admission)]]-Tableau1[[#This Row],[Date d''admission]]),0) -> 16 | W47: =IFERROR(IF(Tableau1[[#This Row],[Date d''admission]]<>"",IF(Tableau1[[#This Row],[Site]]="René_Léosa",Tableau1[[#This Row],[Date d''admission]]+45,"")),"") ->  | Y47: 191 | AA47: Non | AD47: =IF(Tableau1[[#This Row],[Date rencontre familiale]]="","Non","Oui") -> Non | AE47: =IF(Tableau1[[#This Row],[Date rencontre familiale]]="","",Tableau1[[#This Row],[Date rencontre familiale]]-Tableau1[[#This Row],[Date d''admission]]) ->  | AF47: =IF(Tableau1[[#This Row],[Date congé]]<>"",Tableau1[[#This Row],[Date congé]],"") -> 44133 | AG47: =IF(Tableau1[[#This Row],[Date de fin Soins actifs]]<>"","Non","Oui") -> Non | AI47: 44133 | AJ47: =IFERROR(VLOOKUP(Tableau1[[#This Row],[Date congé]],Tableau1618[],4,1),"") -> P08 | AK47: =IFERROR(VLOOKUP(Tableau1[[#This Row],[Date congé]],Tableau1618[],5,1),"") -> 2020-2021 | AL47: =CONCATENATE(Tableau1[[#This Row],[Période (congé)]]," ",Tableau1[[#This Row],[Année (congé)]]) -> P08 2020-2021 | AM47: =IFERROR(VLOOKUP(Tableau1[[#This Row],[Période/année (congé)]],Tableau1618[[Période année]:[Fin]],3,0),"") -> 44142 | AN47: =IF(AND(Tableau1[[#This Row],[Statut]]="Congé",Tableau1[[#This Row],[Date d''admission]]<>""),IF(Tableau1[[#This Row],[Date congé]]>=Tableau1[[#This Row],[Fin période (admission)]],Tableau1[[#This Row],[Date congé]]-Tableau1[[#This Row],[Fin période (admission)]],0),0) -> 0 | AO47: =IF(AND(Tableau1[[#This Row],[Date congé prévu]]<>"",Tableau1[[#This Row],[Date congé]]<>""),Tableau1[[#This Row],[Date congé]]-Tableau1[[#This Row],[Date congé prévu]],"") ->  | AP47: =SUM(Tableau1[[#This Row],[Séjour 1]]+Tableau1[[#This Row],[Séjour 2]]) -> 16 | AQ47: =IF(AND(Tableau1[[#This Row],[Date de fin Soins actifs]]<>"",Tableau1[[#This Row],[Date congé]]<>""),IF(Tableau1[[#This Row],[Date de fin Soins actifs]]<>Tableau1[[#This Row],[Date congé]],"Devient NSA durant séjour","Quitte avant de devenir NSA"),"") -> Quitte avant de devenir NSA | AR47: =IF(Tableau1[[#This Row],[NSA]]="Devient NSA durant PEC",Tableau1[[#This Row],[Date congé]]-Tableau1[[#This Row],[Date de fin Soins actifs]],"") ->  | AY47: =IFERROR(DATEDIF(Tableau1[[#This Row],[Date dépôt demande]],Tableau1[[#This Row],[Date d''admission]],"D"),"") -> 7 | AZ47: =IFERROR(IF(AND(Tableau1[[#This Row],[Date de fin Soins actifs]]<>"",Tableau1[[#This Row],[Date congé]]<>""),DATEDIF(Tableau1[[#This Row],[Date de fin Soins actifs]],Tableau1[[#This Row],[Date congé]],"D"),""),"") -> 0 | BB47: =IF(Tableau1[[#This Row],[Date dépôt MAH]]="","",Tableau1[[#This Row],[Date dépôt MAH]]-Tableau1[[#This Row],[Date d''admission]]) ->  | BC47: =IF(Tableau1[[#This Row],[Date dépôt MAH]]="","",Tableau1[[#This Row],[Date congé]]-Tableau1[[#This Row],[Date dépôt MAH]]) ->  | BE47: =IFERROR(DATEDIF(Tableau1[[#This Row],[Date orientation]],Tableau1[[#This Row],[Date congé]],"D"),"") -> 44133
A48: Drummond | B48: CFGH | C48: 1054 | D48: =IFERROR(VLOOKUP(C48,Chambres,3,FALSE),"") -> 1NC | E48: =IF(AND(Tableau1[[#This Row],[Date d''admission]]<>"",Tableau1[[#This Row],[Date congé]]=""),"Occupée",IF(Tableau1[[#This Row],[Date congé]]<>"","Congé","Libre")) -> Congé | H48: P109296 | I48: 9701 | J48: =(IF(Tableau1[[#This Row],[Date de naissance]]<>"",DATEDIF(Tableau1[[#This Row],[Date de naissance]],TODAY(),"Y"),"")) -> 95 | K48: =IF(Tableau1[[#This Row],[Âge]]<=60,"60 et -",IF(Tableau1[[#This Row],[Âge]]<=65,"61-65",IF(Tableau1[[#This Row],[Âge]]<=70,"66-70",IF(Tableau1[[#This Row],[Âge]]<=75,"71-75",IF(Tableau1[[#This Row],[Âge]]<=80,"76-80",IF(Tableau1[[#This Row],[Âge]]<=85,"81-85",IF(Tableau1[[#This Row],[Âge]]<=110,"86 et +",""))))))) -> 86 et + | L48: 44074 | M48: =IFERROR(VLOOKUP(Tableau1[[#This Row],[Date dépôt demande]],Tableau1618[],4,1),"") -> P06 | N48: =IFERROR(VLOOKUP(Tableau1[[#This Row],[Date dépôt demande]],Tableau1618[],5,1),"") -> 2020-2021 | O48: Éval-ori | P48: HSC | Q48: 44082 | R48: =IFERROR(VLOOKUP(Tableau1[[#This Row],[Date d''admission]],Tableau1618[],4,1),"") -> P06 | S48: =IFERROR(VLOOKUP(Tableau1[[#This Row],[Date d''admission]],Tableau1618[],5,1),"") -> 2020-2021 | T48: =CONCATENATE(Tableau1[[#This Row],[Période (admission)]]," ",Tableau1[[#This Row],[Année (admission)]]) -> P06 2020-2021 | U48: =IFERROR(VLOOKUP(Tableau1[[#This Row],[Période/année (admission)]],Tableau1618[[Période année]:[Fin]],3,0),"") -> 44086 | V48: =IF(AND(Tableau1[[#This Row],[Statut]]="Congé",Tableau1[[#This Row],[Date d''admission]]<>""),IF(Tableau1[[#This Row],[Date congé]]<=Tableau1[[#This Row],[Fin période (admission)]],Tableau1[[#This Row],[Date congé]]-Tableau1[[#This Row],[Date d''admission]],Tableau1[[#This Row],[Fin période (admission)]]-Tableau1[[#This Row],[Date d''admission]]),0) -> 4 | W48: =IFERROR(IF(Tableau1[[#This Row],[Date d''admission]]<>"",IF(Tableau1[[#This Row],[Site]]="René_Léosa",Tableau1[[#This Row],[Date d''admission]]+45,"")),"") ->  | Y48: 710 | Z48: 11 | AA48: oui | AD48: =IF(Tableau1[[#This Row],[Date rencontre familiale]]="","Non","Oui") -> Non | AE48: =IF(Tableau1[[#This Row],[Date rencontre familiale]]="","",Tableau1[[#This Row],[Date rencontre familiale]]-Tableau1[[#This Row],[Date d''admission]]) ->  | AF48: =IF(Tableau1[[#This Row],[Date congé]]<>"",Tableau1[[#This Row],[Date congé]],"") -> 44181 | AG48: =IF(Tableau1[[#This Row],[Date de fin Soins actifs]]<>"","Non","Oui") -> Non | AI48: 44181 | AJ48: =IFERROR(VLOOKUP(Tableau1[[#This Row],[Date congé]],Tableau1618[],4,1),"") -> P10 | AK48: =IFERROR(VLOOKUP(Tableau1[[#This Row],[Date congé]],Tableau1618[],5,1),"") -> 2020-2021 | AL48: =CONCATENATE(Tableau1[[#This Row],[Période (congé)]]," ",Tableau1[[#This Row],[Année (congé)]]) -> P10 2020-2021 | AM48: =IFERROR(VLOOKUP(Tableau1[[#This Row],[Période/année (congé)]],Tableau1618[[Période année]:[Fin]],3,0),"") -> 44198 | AN48: =IF(AND(Tableau1[[#This Row],[Statut]]="Congé",Tableau1[[#This Row],[Date d''admission]]<>""),IF(Tableau1[[#This Row],[Date congé]]>=Tableau1[[#This Row],[Fin période (admission)]],Tableau1[[#This Row],[Date congé]]-Tableau1[[#This Row],[Fin période (admission)]],0),0) -> 95 | AO48: =IF(AND(Tableau1[[#This Row],[Date congé prévu]]<>"",Tableau1[[#This Row],[Date congé]]<>""),Tableau1[[#This Row],[Date congé]]-Tableau1[[#This Row],[Date congé prévu]],"") ->  | AP48: =SUM(Tableau1[[#This Row],[Séjour 1]]+Tableau1[[#This Row],[Séjour 2]]) -> 99 | AQ48: =IF(AND(Tableau1[[#This Row],[Date de fin Soins actifs]]<>"",Tableau1[[#This Row],[Date congé]]<>""),IF(Tableau1[[#This Row],[Date de fin Soins actifs]]<>Tableau1[[#This Row],[Date congé]],"Devient NSA durant séjour","Quitte avant de devenir NSA"),"") -> Quitte avant de devenir NSA | AR48: =IF(Tableau1[[#This Row],[NSA]]="Devient NSA durant PEC",Tableau1[[#This Row],[Date congé]]-Tableau1[[#This Row],[Date de fin Soins actifs]],"") ->  | AS48: CHSLD | AT48: 710 | AU48: 11 | AY48: =IFERROR(DATEDIF(Tableau1[[#This Row],[Date dépôt demande]],Tableau1[[#This Row],[Date d''admission]],"D"),"") -> 8 | AZ48: =IFERROR(IF(AND(Tableau1[[#This Row],[Date de fin Soins actifs]]<>"",Tableau1[[#This Row],[Date congé]]<>""),DATEDIF(Tableau1[[#This Row],[Date de fin Soins actifs]],Tableau1[[#This Row],[Date congé]],"D"),""),"") -> 0 | BA48: 44162 | BB48: =IF(Tableau1[[#This Row],[Date dépôt MAH]]="","",Tableau1[[#This Row],[Date dépôt MAH]]-Tableau1[[#This Row],[Date d''admission]]) -> 80 | BC48: =IF(Tableau1[[#This Row],[Date dépôt MAH]]="","",Tableau1[[#This Row],[Date congé]]-Tableau1[[#This Row],[Date dépôt MAH]]) -> 19 | BD48: 44167 | BE48: =IFERROR(DATEDIF(Tableau1[[#This Row],[Date orientation]],Tableau1[[#This Row],[Date congé]],"D"),"") -> 14
A49: Drummond | B49: CFGH | C49: 1064 | D49: =IFERROR(VLOOKUP(C49,Chambres,3,FALSE),"") -> 1NC | E49: =IF(AND(Tableau1[[#This Row],[Date d''admission]]<>"",Tableau1[[#This Row],[Date congé]]=""),"Occupée",IF(Tableau1[[#This Row],[Date congé]]<>"","Congé","Libre")) -> Congé | H49: P132387 | I49: 11617 | J49: =(IF(Tableau1[[#This Row],[Date de naissance]]<>"",DATEDIF(Tableau1[[#This Row],[Date de naissance]],TODAY(),"Y"),"")) -> 89 | K49: =IF(Tableau1[[#This Row],[Âge]]<=60,"60 et -",IF(Tableau1[[#This Row],[Âge]]<=65,"61-65",IF(Tableau1[[#This Row],[Âge]]<=70,"66-70",IF(Tableau1[[#This Row],[Âge]]<=75,"71-75",IF(Tableau1[[#This Row],[Âge]]<=80,"76-80",IF(Tableau1[[#This Row],[Âge]]<=85,"81-85",IF(Tableau1[[#This Row],[Âge]]<=110,"86 et +",""))))))) -> 86 et + | L49: 43928 | M49: =IFERROR(VLOOKUP(Tableau1[[#This Row],[Date dépôt demande]],Tableau1618[],4,1),"") -> P01 | N49: =IFERROR(VLOOKUP(Tableau1[[#This Row],[Date dépôt demande]],Tableau1618[],5,1),"") -> 2020-2021 | O49: Éval-ori | P49: HSC | Q49: 43929 | R49: =IFERROR(VLOOKUP(Tableau1[[#This Row],[Date d''admission]],Tableau1618[],4,1),"") -> P01 | S49: =IFERROR(VLOOKUP(Tableau1[[#This Row],[Date d''admission]],Tableau1618[],5,1),"") -> 2020-2021 | T49: =CONCATENATE(Tableau1[[#This Row],[Période (admission)]]," ",Tableau1[[#This Row],[Année (admission)]]) -> P01 2020-2021 | U49: =IFERROR(VLOOKUP(Tableau1[[#This Row],[Période/année (admission)]],Tableau1618[[Période année]:[Fin]],3,0),"") -> 43946 | V49: =IF(AND(Tableau1[[#This Row],[Statut]]="Congé",Tableau1[[#This Row],[Date d''admission]]<>""),IF(Tableau1[[#This Row],[Date congé]]<=Tableau1[[#This Row],[Fin période (admission)]],Tableau1[[#This Row],[Date congé]]-Tableau1[[#This Row],[Date d''admission]],Tableau1[[#This Row],[Fin période (admission)]]-Tableau1[[#This Row],[Date d''admission]]),0) -> 17 | W49: =IFERROR(IF(Tableau1[[#This Row],[Date d''admission]]<>"",IF(Tableau1[[#This Row],[Site]]="René_Léosa",Tableau1[[#This Row],[Date d''admission]]+45,"")),"") ->  | Y49: 710 | AA49: Oui | AD49: =IF(Tableau1[[#This Row],[Date rencontre familiale]]="","Non","Oui") -> Non | AE49: =IF(Tableau1[[#This Row],[Date rencontre familiale]]="","",Tableau1[[#This Row],[Date rencontre familiale]]-Tableau1[[#This Row],[Date d''admission]]) ->  | AF49: =IF(Tableau1[[#This Row],[Date congé]]<>"",Tableau1[[#This Row],[Date congé]],"") -> 43948 | AG49: =IF(Tableau1[[#This Row],[Date de fin Soins actifs]]<>"","Non","Oui") -> Non | AI49: 43948 | AJ49: =IFERROR(VLOOKUP(Tableau1[[#This Row],[Date congé]],Tableau1618[],4,1),"") -> P02 | AK49: =IFERROR(VLOOKUP(Tableau1[[#This Row],[Date congé]],Tableau1618[],5,1),"") -> 2020-2021 | AL49: =CONCATENATE(Tableau1[[#This Row],[Période (congé)]]," ",Tableau1[[#This Row],[Année (congé)]]) -> P02 2020-2021 | AM49: =IFERROR(VLOOKUP(Tableau1[[#This Row],[Période/année (congé)]],Tableau1618[[Période année]:[Fin]],3,0),"") -> 43974 | AN49: =IF(AND(Tableau1[[#This Row],[Statut]]="Congé",Tableau1[[#This Row],[Date d''admission]]<>""),IF(Tableau1[[#This Row],[Date congé]]>=Tableau1[[#This Row],[Fin période (admission)]],Tableau1[[#This Row],[Date congé]]-Tableau1[[#This Row],[Fin période (admission)]],0),0) -> 2 | AO49: =IF(AND(Tableau1[[#This Row],[Date congé prévu]]<>"",Tableau1[[#This Row],[Date congé]]<>""),Tableau1[[#This Row],[Date congé]]-Tableau1[[#This Row],[Date congé prévu]],"") ->  | AP49: =SUM(Tableau1[[#This Row],[Séjour 1]]+Tableau1[[#This Row],[Séjour 2]]) -> 19 | AQ49: =IF(AND(Tableau1[[#This Row],[Date de fin Soins actifs]]<>"",Tableau1[[#This Row],[Date congé]]<>""),IF(Tableau1[[#This Row],[Date de fin Soins actifs]]<>Tableau1[[#This Row],[Date congé]],"Devient NSA durant séjour","Quitte avant de devenir NSA"),"") -> Quitte avant de devenir NSA | AR49: =IF(Tableau1[[#This Row],[NSA]]="Devient NSA durant PEC",Tableau1[[#This Row],[Date congé]]-Tableau1[[#This Row],[Date de fin Soins actifs]],"") ->  | AS49: CHSLD | AT49: 710 | AU49: 10 | AY49: =IFERROR(DATEDIF(Tableau1[[#This Row],[Date dépôt demande]],Tableau1[[#This Row],[Date d''admission]],"D"),"") -> 1 | AZ49: =IFERROR(IF(AND(Tableau1[[#This Row],[Date de fin Soins actifs]]<>"",Tableau1[[#This Row],[Date congé]]<>""),DATEDIF(Tableau1[[#This Row],[Date de fin Soins actifs]],Tableau1[[#This Row],[Date congé]],"D"),""),"") -> 0 | BA49: 43929 | BB49: =IF(Tableau1[[#This Row],[Date dépôt MAH]]="","",Tableau1[[#This Row],[Date dépôt MAH]]-Tableau1[[#This Row],[Date d''admission]]) -> 0 | BC49: =IF(Tableau1[[#This Row],[Date dépôt MAH]]="","",Tableau1[[#This Row],[Date congé]]-Tableau1[[#This Row],[Date dépôt MAH]]) -> 19 | BD49: 43945 | BE49: =IFERROR(DATEDIF(Tableau1[[#This Row],[Date orientation]],Tableau1[[#This Row],[Date congé]],"D"),"") -> 3
A50: Drummond | B50: René_Léosa | C50: 15 | D50: =IFERROR(VLOOKUP(C50,Chambres,3,FALSE),"") -> Régulière | E50: =IF(AND(Tableau1[[#This Row],[Date d''admission]]<>"",Tableau1[[#This Row],[Date congé]]=""),"Occupée",IF(Tableau1[[#This Row],[Date congé]]<>"","Congé","Libre")) -> Congé | H50: P114701 | I50: 16744 | J50: =(IF(Tableau1[[#This Row],[Date de naissance]]<>"",DATEDIF(Tableau1[[#This Row],[Date de naissance]],TODAY(),"Y"),"")) -> 75 | K50: =IF(Tableau1[[#This Row],[Âge]]<=60,"60 et -",IF(Tableau1[[#This Row],[Âge]]<=65,"61-65",IF(Tableau1[[#This Row],[Âge]]<=70,"66-70",IF(Tableau1[[#This Row],[Âge]]<=75,"71-75",IF(Tableau1[[#This Row],[Âge]]<=80,"76-80",IF(Tableau1[[#This Row],[Âge]]<=85,"81-85",IF(Tableau1[[#This Row],[Âge]]<=110,"86 et +",""))))))) -> 71-75 | L50: 44208 | M50: =IFERROR(VLOOKUP(Tableau1[[#This Row],[Date dépôt demande]],Tableau1618[],4,1),"") -> P11 | N50: =IFERROR(VLOOKUP(Tableau1[[#This Row],[Date dépôt demande]],Tableau1618[],5,1),"") -> 2020-2021 | O50: Éval-ori | P50: HSC | Q50: 44209 | R50: =IFERROR(VLOOKUP(Tableau1[[#This Row],[Date d''admission]],Tableau1618[],4,1),"") -> P11 | S50: =IFERROR(VLOOKUP(Tableau1[[#This Row],[Date d''admission]],Tableau1618[],5,1),"") -> 2020-2021 | T50: =CONCATENATE(Tableau1[[#This Row],[Période (admission)]]," ",Tableau1[[#This Row],[Année (admission)]]) -> P11 2020-2021 | U50: =IFERROR(VLOOKUP(Tableau1[[#This Row],[Période/année (admission)]],Tableau1618[[Période année]:[Fin]],3,0),"") -> 44226 | V50: =IF(AND(Tableau1[[#This Row],[Statut]]="Congé",Tableau1[[#This Row],[Date d''admission]]<>""),IF(Tableau1[[#This Row],[Date congé]]<=Tableau1[[#This Row],[Fin période (admission)]],Tableau1[[#This Row],[Date congé]]-Tableau1[[#This Row],[Date d''admission]],Tableau1[[#This Row],[Fin période (admission)]]-Tableau1[[#This Row],[Date d''admission]]),0) -> 17 | W50: =IFERROR(IF(Tableau1[[#This Row],[Date d''admission]]<>"",IF(Tableau1[[#This Row],[Site]]="René_Léosa",Tableau1[[#This Row],[Date d''admission]]+45,"")),"") -> 44254 | Y50: 710 | AA50: Oui | AD50: =IF(Tableau1[[#This Row],[Date rencontre familiale]]="","Non","Oui") -> Non | AE50: =IF(Tableau1[[#This Row],[Date rencontre familiale]]="","",Tableau1[[#This Row],[Date rencontre familiale]]-Tableau1[[#This Row],[Date d''admission]]) ->  | AF50: =IF(Tableau1[[#This Row],[Date congé]]<>"",Tableau1[[#This Row],[Date congé]],"") -> 44239 | AG50: =IF(Tableau1[[#This Row],[Date de fin Soins actifs]]<>"","Non","Oui") -> Non | AI50: 44239 | AJ50: =IFERROR(VLOOKUP(Tableau1[[#This Row],[Date congé]],Tableau1618[],4,1),"") -> P12 | AK50: =IFERROR(VLOOKUP(Tableau1[[#This Row],[Date congé]],Tableau1618[],5,1),"") -> 2020-2021 | AL50: =CONCATENATE(Tableau1[[#This Row],[Période (congé)]]," ",Tableau1[[#This Row],[Année (congé)]]) -> P12 2020-2021 | AM50: =IFERROR(VLOOKUP(Tableau1[[#This Row],[Période/année (congé)]],Tableau1618[[Période année]:[Fin]],3,0),"") -> 44254 | AN50: =IF(AND(Tableau1[[#This Row],[Statut]]="Congé",Tableau1[[#This Row],[Date d''admission]]<>""),IF(Tableau1[[#This Row],[Date congé]]>=Tableau1[[#This Row],[Fin période (admission)]],Tableau1[[#This Row],[Date congé]]-Tableau1[[#This Row],[Fin période (admission)]],0),0) -> 13 | AO50: =IF(AND(Tableau1[[#This Row],[Date congé prévu]]<>"",Tableau1[[#This Row],[Date congé]]<>""),Tableau1[[#This Row],[Date congé]]-Tableau1[[#This Row],[Date congé prévu]],"") ->  | AP50: =SUM(Tableau1[[#This Row],[Séjour 1]]+Tableau1[[#This Row],[Séjour 2]]) -> 30 | AQ50: =IF(AND(Tableau1[[#This Row],[Date de fin Soins actifs]]<>"",Tableau1[[#This Row],[Date congé]]<>""),IF(Tableau1[[#This Row],[Date de fin Soins actifs]]<>Tableau1[[#This Row],[Date congé]],"Devient NSA durant séjour","Quitte avant de devenir NSA"),"") -> Quitte avant de devenir NSA | AR50: =IF(Tableau1[[#This Row],[NSA]]="Devient NSA durant PEC",Tableau1[[#This Row],[Date congé]]-Tableau1[[#This Row],[Date de fin Soins actifs]],"") ->  | AS50: Retour à domicile | AT50: 710 | AV50: Service social | AY50: =IFERROR(DATEDIF(Tableau1[[#This Row],[Date dépôt demande]],Tableau1[[#This Row],[Date d''admission]],"D"),"") -> 1 | AZ50: =IFERROR(IF(AND(Tableau1[[#This Row],[Date de fin Soins actifs]]<>"",Tableau1[[#This Row],[Date congé]]<>""),DATEDIF(Tableau1[[#This Row],[Date de fin Soins actifs]],Tableau1[[#This Row],[Date congé]],"D"),""),"") -> 0 | BB50: =IF(Tableau1[[#This Row],[Date dépôt MAH]]="","",Tableau1[[#This Row],[Date dépôt MAH]]-Tableau1[[#This Row],[Date d''admission]]) ->  | BC50: =IF(Tableau1[[#This Row],[Date dépôt MAH]]="","",Tableau1[[#This Row],[Date congé]]-Tableau1[[#This Row],[Date dépôt MAH]]) ->  | BE50: =IFERROR(DATEDIF(Tableau1[[#This Row],[Date orientation]],Tableau1[[#This Row],[Date congé]],"D"),"") -> 44239
A51: Drummond | B51: CFGH | C51: 1053 | D51: =IFERROR(VLOOKUP(C51,Chambres,3,FALSE),"") -> 1NC | E51: =IF(AND(Tableau1[[#This Row],[Date d''admission]]<>"",Tableau1[[#This Row],[Date congé]]=""),"Occupée",IF(Tableau1[[#This Row],[Date congé]]<>"","Congé","Libre")) -> Congé | H51: P031373 | I51: 15021 | J51: =(IF(Tableau1[[#This Row],[Date de naissance]]<>"",DATEDIF(Tableau1[[#This Row],[Date de naissance]],TODAY(),"Y"),"")) -> 80 | K51: =IF(Tableau1[[#This Row],[Âge]]<=60,"60 et -",IF(Tableau1[[#This Row],[Âge]]<=65,"61-65",IF(Tableau1[[#This Row],[Âge]]<=70,"66-70",IF(Tableau1[[#This Row],[Âge]]<=75,"71-75",IF(Tableau1[[#This Row],[Âge]]<=80,"76-80",IF(Tableau1[[#This Row],[Âge]]<=85,"81-85",IF(Tableau1[[#This Row],[Âge]]<=110,"86 et +",""))))))) -> 76-80 | L51: 44092 | M51: =IFERROR(VLOOKUP(Tableau1[[#This Row],[Date dépôt demande]],Tableau1618[],4,1),"") -> P07 | N51: =IFERROR(VLOOKUP(Tableau1[[#This Row],[Date dépôt demande]],Tableau1618[],5,1),"") -> 2020-2021 | O51: Éval-ori | P51: HSC | Q51: 44095 | R51: =IFERROR(VLOOKUP(Tableau1[[#This Row],[Date d''admission]],Tableau1618[],4,1),"") -> P07 | S51: =IFERROR(VLOOKUP(Tableau1[[#This Row],[Date d''admission]],Tableau1618[],5,1),"") -> 2020-2021 | T51: =CONCATENATE(Tableau1[[#This Row],[Période (admission)]]," ",Tableau1[[#This Row],[Année (admission)]]) -> P07 2020-2021 | U51: =IFERROR(VLOOKUP(Tableau1[[#This Row],[Période/année (admission)]],Tableau1618[[Période année]:[Fin]],3,0),"") -> 44114 | V51: =IF(AND(Tableau1[[#This Row],[Statut]]="Congé",Tableau1[[#This Row],[Date d''admission]]<>""),IF(Tableau1[[#This Row],[Date congé]]<=Tableau1[[#This Row],[Fin période (admission)]],Tableau1[[#This Row],[Date congé]]-Tableau1[[#This Row],[Date d''admission]],Tableau1[[#This Row],[Fin période (admission)]]-Tableau1[[#This Row],[Date d''admission]]),0) -> 19 | W51: =IFERROR(IF(Tableau1[[#This Row],[Date d''admission]]<>"",IF(Tableau1[[#This Row],[Site]]="René_Léosa",Tableau1[[#This Row],[Date d''admission]]+45,"")),"") ->  | Y51: 710 | AA51: Oui | AD51: =IF(Tableau1[[#This Row],[Date rencontre familiale]]="","Non","Oui") -> Non | AE51: =IF(Tableau1[[#This Row],[Date rencontre familiale]]="","",Tableau1[[#This Row],[Date rencontre familiale]]-Tableau1[[#This Row],[Date d''admission]]) ->  | AF51: =IF(Tableau1[[#This Row],[Date congé]]<>"",Tableau1[[#This Row],[Date congé]],"") -> 44151 | AG51: =IF(Tableau1[[#This Row],[Date de fin Soins actifs]]<>"","Non","Oui") -> Non | AI51: 44151 | AJ51: =IFERROR(VLOOKUP(Tableau1[[#This Row],[Date congé]],Tableau1618[],4,1),"") -> P09 | AK51: =IFERROR(VLOOKUP(Tableau1[[#This Row],[Date congé]],Tableau1618[],5,1),"") -> 2020-2021 | AL51: =CONCATENATE(Tableau1[[#This Row],[Période (congé)]]," ",Tableau1[[#This Row],[Année (congé)]]) -> P09 2020-2021 | AM51: =IFERROR(VLOOKUP(Tableau1[[#This Row],[Période/année (congé)]],Tableau1618[[Période année]:[Fin]],3,0),"") -> 44170 | AN51: =IF(AND(Tableau1[[#This Row],[Statut]]="Congé",Tableau1[[#This Row],[Date d''admission]]<>""),IF(Tableau1[[#This Row],[Date congé]]>=Tableau1[[#This Row],[Fin période (admission)]],Tableau1[[#This Row],[Date congé]]-Tableau1[[#This Row],[Fin période (admission)]],0),0) -> 37 | AO51: =IF(AND(Tableau1[[#This Row],[Date congé prévu]]<>"",Tableau1[[#This Row],[Date congé]]<>""),Tableau1[[#This Row],[Date congé]]-Tableau1[[#This Row],[Date congé prévu]],"") ->  | AP51: =SUM(Tableau1[[#This Row],[Séjour 1]]+Tableau1[[#This Row],[Séjour 2]]) -> 56 | AQ51: =IF(AND(Tableau1[[#This Row],[Date de fin Soins actifs]]<>"",Tableau1[[#This Row],[Date congé]]<>""),IF(Tableau1[[#This Row],[Date de fin Soins actifs]]<>Tableau1[[#This Row],[Date congé]],"Devient NSA durant séjour","Quitte avant de devenir NSA"),"") -> Quitte avant de devenir NSA | AR51: =IF(Tableau1[[#This Row],[NSA]]="Devient NSA durant PEC",Tableau1[[#This Row],[Date congé]]-Tableau1[[#This Row],[Date de fin Soins actifs]],"") ->  | AS51: Relocalisation RPA | AT51: 710 | AU51: 7 | AV51: Service social | AY51: =IFERROR(DATEDIF(Tableau1[[#This Row],[Date dépôt demande]],Tableau1[[#This Row],[Date d''admission]],"D"),"") -> 3 | AZ51: =IFERROR(IF(AND(Tableau1[[#This Row],[Date de fin Soins actifs]]<>"",Tableau1[[#This Row],[Date congé]]<>""),DATEDIF(Tableau1[[#This Row],[Date de fin Soins actifs]],Tableau1[[#This Row],[Date congé]],"D"),""),"") -> 0 | BA51: 44134 | BB51: =IF(Tableau1[[#This Row],[Date dépôt MAH]]="","",Tableau1[[#This Row],[Date dépôt MAH]]-Tableau1[[#This Row],[Date d''admission]]) -> 39 | BC51: =IF(Tableau1[[#This Row],[Date dépôt MAH]]="","",Tableau1[[#This Row],[Date congé]]-Tableau1[[#This Row],[Date dépôt MAH]]) -> 17 | BD51: 44138 | BE51: =IFERROR(DATEDIF(Tableau1[[#This Row],[Date orientation]],Tableau1[[#This Row],[Date congé]],"D"),"") -> 13
A52: Drummond | B52: _600_Bousquet_NSA | C52: 370 | D52: =IFERROR(VLOOKUP(C52,Chambres,3,FALSE),"") -> Prothétique | E52: =IF(AND(Tableau1[[#This Row],[Date d''admission]]<>"",Tableau1[[#This Row],[Date congé]]=""),"Occupée",IF(Tableau1[[#This Row],[Date congé]]<>"","Congé","Libre")) -> Congé | H52: P031373 | I52: 15021 | J52: =(IF(Tableau1[[#This Row],[Date de naissance]]<>"",DATEDIF(Tableau1[[#This Row],[Date de naissance]],TODAY(),"Y"),"")) -> 80 | K52: =IF(Tableau1[[#This Row],[Âge]]<=60,"60 et -",IF(Tableau1[[#This Row],[Âge]]<=65,"61-65",IF(Tableau1[[#This Row],[Âge]]<=70,"66-70",IF(Tableau1[[#This Row],[Âge]]<=75,"71-75",IF(Tableau1[[#This Row],[Âge]]<=80,"76-80",IF(Tableau1[[#This Row],[Âge]]<=85,"81-85",IF(Tableau1[[#This Row],[Âge]]<=110,"86 et +",""))))))) -> 76-80 | L52: 44082 | M52: =IFERROR(VLOOKUP(Tableau1[[#This Row],[Date dépôt demande]],Tableau1618[],4,1),"") -> P06 | N52: =IFERROR(VLOOKUP(Tableau1[[#This Row],[Date dépôt demande]],Tableau1618[],5,1),"") -> 2020-2021 | O52: Éval-ori | P52: HSC | Q52: 44082 | R52: =IFERROR(VLOOKUP(Tableau1[[#This Row],[Date d''admission]],Tableau1618[],4,1),"") -> P06 | S52: =IFERROR(VLOOKUP(Tableau1[[#This Row],[Date d''admission]],Tableau1618[],5,1),"") -> 2020-2021 | T52: =CONCATENATE(Tableau1[[#This Row],[Période (admission)]]," ",Tableau1[[#This Row],[Année (admission)]]) -> P06 2020-2021 | U52: =IFERROR(VLOOKUP(Tableau1[[#This Row],[Période/année (admission)]],Tableau1618[[Période année]:[Fin]],3,0),"") -> 44086 | V52: =IF(AND(Tableau1[[#This Row],[Statut]]="Congé",Tableau1[[#This Row],[Date d''admission]]<>""),IF(Tableau1[[#This Row],[Date congé]]<=Tableau1[[#This Row],[Fin période (admission)]],Tableau1[[#This Row],[Date congé]]-Tableau1[[#This Row],[Date d''admission]],Tableau1[[#This Row],[Fin période (admission)]]-Tableau1[[#This Row],[Date d''admission]]),0) -> 3 | W52: =IFERROR(IF(Tableau1[[#This Row],[Date d''admission]]<>"",IF(Tableau1[[#This Row],[Site]]="René_Léosa",Tableau1[[#This Row],[Date d''admission]]+45,"")),"") ->  | Y52: 710 | AA52: oui | AD52: =IF(Tableau1[[#This Row],[Date rencontre familiale]]="","Non","Oui") -> Non | AE52: =IF(Tableau1[[#This Row],[Date rencontre familiale]]="","",Tableau1[[#This Row],[Date rencontre familiale]]-Tableau1[[#This Row],[Date d''admission]]) ->  | AF52: =IF(Tableau1[[#This Row],[Date congé]]<>"",Tableau1[[#This Row],[Date congé]],"") -> 44085 | AG52: =IF(Tableau1[[#This Row],[Date de fin Soins actifs]]<>"","Non","Oui") -> Non | AI52: 44085 | AJ52: =IFERROR(VLOOKUP(Tableau1[[#This Row],[Date congé]],Tableau1618[],4,1),"") -> P06 | AK52: =IFERROR(VLOOKUP(Tableau1[[#This Row],[Date congé]],Tableau1618[],5,1),"") -> 2020-2021 | AL52: =CONCATENATE(Tableau1[[#This Row],[Période (congé)]]," ",Tableau1[[#This Row],[Année (congé)]]) -> P06 2020-2021 | AM52: =IFERROR(VLOOKUP(Tableau1[[#This Row],[Période/année (congé)]],Tableau1618[[Période année]:[Fin]],3,0),"") -> 44086 | AN52: =IF(AND(Tableau1[[#This Row],[Statut]]="Congé",Tableau1[[#This Row],[Date d''admission]]<>""),IF(Tableau1[[#This Row],[Date congé]]>=Tableau1[[#This Row],[Fin période (admission)]],Tableau1[[#This Row],[Date congé]]-Tableau1[[#This Row],[Fin période (admission)]],0),0) -> 0 | AO52: =IF(AND(Tableau1[[#This Row],[Date congé prévu]]<>"",Tableau1[[#This Row],[Date congé]]<>""),Tableau1[[#This Row],[Date congé]]-Tableau1[[#This Row],[Date congé prévu]],"") ->  | AP52: =SUM(Tableau1[[#This Row],[Séjour 1]]+Tableau1[[#This Row],[Séjour 2]]) -> 3 | AQ52: =IF(AND(Tableau1[[#This Row],[Date de fin Soins actifs]]<>"",Tableau1[[#This Row],[Date congé]]<>""),IF(Tableau1[[#This Row],[Date de fin Soins actifs]]<>Tableau1[[#This Row],[Date congé]],"Devient NSA durant séjour","Quitte avant de devenir NSA"),"") -> Quitte avant de devenir NSA | AR52: =IF(Tableau1[[#This Row],[NSA]]="Devient NSA durant PEC",Tableau1[[#This Row],[Date congé]]-Tableau1[[#This Row],[Date de fin Soins actifs]],"") ->  | AS52: Retour à domicile | AY52: =IFERROR(DATEDIF(Tableau1[[#This Row],[Date dépôt demande]],Tableau1[[#This Row],[Date d''admission]],"D"),"") -> 0 | AZ52: =IFERROR(IF(AND(Tableau1[[#This Row],[Date de fin Soins actifs]]<>"",Tableau1[[#This Row],[Date congé]]<>""),DATEDIF(Tableau1[[#This Row],[Date de fin Soins actifs]],Tableau1[[#This Row],[Date congé]],"D"),""),"") -> 0 | BB52: =IF(Tableau1[[#This Row],[Date dépôt MAH]]="","",Tableau1[[#This Row],[Date dépôt MAH]]-Tableau1[[#This Row],[Date d''admission]]) ->  | BC52: =IF(Tableau1[[#This Row],[Date dépôt MAH]]="","",Tableau1[[#This Row],[Date congé]]-Tableau1[[#This Row],[Date dépôt MAH]]) ->  | BE52: =IFERROR(DATEDIF(Tableau1[[#This Row],[Date orientation]],Tableau1[[#This Row],[Date congé]],"D"),"") -> 44085
A53: Drummond | B53: _600_Bousquet_NSA | C53: 370 | D53: =IFERROR(VLOOKUP(C53,Chambres,3,FALSE),"") -> Prothétique | E53: =IF(AND(Tableau1[[#This Row],[Date d''admission]]<>"",Tableau1[[#This Row],[Date congé]]=""),"Occupée",IF(Tableau1[[#This Row],[Date congé]]<>"","Congé","Libre")) -> Congé | H53: P081699 | I53: 15404 | J53: =(IF(Tableau1[[#This Row],[Date de naissance]]<>"",DATEDIF(Tableau1[[#This Row],[Date de naissance]],TODAY(),"Y"),"")) -> 79 | K53: =IF(Tableau1[[#This Row],[Âge]]<=60,"60 et -",IF(Tableau1[[#This Row],[Âge]]<=65,"61-65",IF(Tableau1[[#This Row],[Âge]]<=70,"66-70",IF(Tableau1[[#This Row],[Âge]]<=75,"71-75",IF(Tableau1[[#This Row],[Âge]]<=80,"76-80",IF(Tableau1[[#This Row],[Âge]]<=85,"81-85",IF(Tableau1[[#This Row],[Âge]]<=110,"86 et +",""))))))) -> 76-80 | L53: 44328 | M53: =IFERROR(VLOOKUP(Tableau1[[#This Row],[Date dépôt demande]],Tableau1618[],4,1),"") -> P02 | N53: =IFERROR(VLOOKUP(Tableau1[[#This Row],[Date dépôt demande]],Tableau1618[],5,1),"") -> 2021-2022 | O53: Éval-ori | P53: HSC | Q53: 44334 | R53: =IFERROR(VLOOKUP(Tableau1[[#This Row],[Date d''admission]],Tableau1618[],4,1),"") -> P02 | S53: =IFERROR(VLOOKUP(Tableau1[[#This Row],[Date d''admission]],Tableau1618[],5,1),"") -> 2021-2022 | T53: =CONCATENATE(Tableau1[[#This Row],[Période (admission)]]," ",Tableau1[[#This Row],[Année (admission)]]) -> P02 2021-2022 | U53: =IFERROR(VLOOKUP(Tableau1[[#This Row],[Période/année (admission)]],Tableau1618[[Période année]:[Fin]],3,0),"") -> 44338 | V53: =IF(AND(Tableau1[[#This Row],[Statut]]="Congé",Tableau1[[#This Row],[Date d''admission]]<>""),IF(Tableau1[[#This Row],[Date congé]]<=Tableau1[[#This Row],[Fin période (admission)]],Tableau1[[#This Row],[Date congé]]-Tableau1[[#This Row],[Date d''admission]],Tableau1[[#This Row],[Fin période (admission)]]-Tableau1[[#This Row],[Date d''admission]]),0) -> 4 | W53: =IFERROR(IF(Tableau1[[#This Row],[Date d''admission]]<>"",IF(Tableau1[[#This Row],[Site]]="René_Léosa",Tableau1[[#This Row],[Date d''admission]]+45,"")),"") ->  | X53: 30 jours | Y53: 710 | AA53: Oui | AD53: =IF(Tableau1[[#This Row],[Date rencontre familiale]]="","Non","Oui") -> Non | AE53: =IF(Tableau1[[#This Row],[Date rencontre familiale]]="","",Tableau1[[#This Row],[Date rencontre familiale]]-Tableau1[[#This Row],[Date d''admission]]) ->  | AF53: =IF(Tableau1[[#This Row],[Date congé]]<>"",Tableau1[[#This Row],[Date congé]],"") -> 44367 | AG53: =IF(Tableau1[[#This Row],[Date de fin Soins actifs]]<>"","Non","Oui") -> Non | AH53: 44357 | AI53: 44367 | AJ53: =IFERROR(VLOOKUP(Tableau1[[#This Row],[Date congé]],Tableau1618[],4,1),"") -> P04 | AK53: =IFERROR(VLOOKUP(Tableau1[[#This Row],[Date congé]],Tableau1618[],5,1),"") -> 2021-2022 | AL53: =CONCATENATE(Tableau1[[#This Row],[Période (congé)]]," ",Tableau1[[#This Row],[Année (congé)]]) -> P04 2021-2022 | AM53: =IFERROR(VLOOKUP(Tableau1[[#This Row],[Période/année (congé)]],Tableau1618[[Période année]:[Fin]],3,0),"") -> 44394 | AN53: =IF(AND(Tableau1[[#This Row],[Statut]]="Congé",Tableau1[[#This Row],[Date d''admission]]<>""),IF(Tableau1[[#This Row],[Date congé]]>=Tableau1[[#This Row],[Fin période (admission)]],Tableau1[[#This Row],[Date congé]]-Tableau1[[#This Row],[Fin période (admission)]],0),0) -> 29 | AO53: =IF(AND(Tableau1[[#This Row],[Date congé prévu]]<>"",Tableau1[[#This Row],[Date congé]]<>""),Tableau1[[#This Row],[Date congé]]-Tableau1[[#This Row],[Date congé prévu]],"") -> 10 | AP53: =SUM(Tableau1[[#This Row],[Séjour 1]]+Tableau1[[#This Row],[Séjour 2]]) -> 33 | AQ53: =IF(AND(Tableau1[[#This Row],[Date de fin Soins actifs]]<>"",Tableau1[[#This Row],[Date congé]]<>""),IF(Tableau1[[#This Row],[Date de fin Soins actifs]]<>Tableau1[[#This Row],[Date congé]],"Devient NSA durant séjour","Quitte avant de devenir NSA"),"") -> Quitte avant de devenir NSA | AR53: =IF(Tableau1[[#This Row],[NSA]]="Devient NSA durant PEC",Tableau1[[#This Row],[Date congé]]-Tableau1[[#This Row],[Date de fin Soins actifs]],"") ->  | AS53: Relocalisation RPA | AT53: 710 | AU53: 1 | AV53: Soins infirmiers | AW53: 2021-04-16 | AY53: =IFERROR(DATEDIF(Tableau1[[#This Row],[Date dépôt demande]],Tableau1[[#This Row],[Date d''admission]],"D"),"") -> 6 | AZ53: =IFERROR(IF(AND(Tableau1[[#This Row],[Date de fin Soins actifs]]<>"",Tableau1[[#This Row],[Date congé]]<>""),DATEDIF(Tableau1[[#This Row],[Date de fin Soins actifs]],Tableau1[[#This Row],[Date congé]],"D"),""),"") -> 0 | BB53: =IF(Tableau1[[#This Row],[Date dépôt MAH]]="","",Tableau1[[#This Row],[Date dépôt MAH]]-Tableau1[[#This Row],[Date d''admission]]) ->  | BC53: =IF(Tableau1[[#This Row],[Date dépôt MAH]]="","",Tableau1[[#This Row],[Date congé]]-Tableau1[[#This Row],[Date dépôt MAH]]) ->  | BE53: =IFERROR(DATEDIF(Tableau1[[#This Row],[Date orientation]],Tableau1[[#This Row],[Date congé]],"D"),"") -> 44367 | BF53: culture. Cuisine
A54: Drummond | B54: _600_Bousquet_NSA | C54: 232 | D54: =IFERROR(VLOOKUP(C54,Chambres,3,FALSE),"") ->  | E54: =IF(AND(Tableau1[[#This Row],[Date d''admission]]<>"",Tableau1[[#This Row],[Date congé]]=""),"Occupée",IF(Tableau1[[#This Row],[Date congé]]<>"","Congé","Libre")) -> Congé | H54: P073515 | I54: 12971 | J54: =(IF(Tableau1[[#This Row],[Date de naissance]]<>"",DATEDIF(Tableau1[[#This Row],[Date de naissance]],TODAY(),"Y"),"")) -> 86 | K54: =IF(Tableau1[[#This Row],[Âge]]<=60,"60 et -",IF(Tableau1[[#This Row],[Âge]]<=65,"61-65",IF(Tableau1[[#This Row],[Âge]]<=70,"66-70",IF(Tableau1[[#This Row],[Âge]]<=75,"71-75",IF(Tableau1[[#This Row],[Âge]]<=80,"76-80",IF(Tableau1[[#This Row],[Âge]]<=85,"81-85",IF(Tableau1[[#This Row],[Âge]]<=110,"86 et +",""))))))) -> 86 et + | L54: 44166 | M54: =IFERROR(VLOOKUP(Tableau1[[#This Row],[Date dépôt demande]],Tableau1618[],4,1),"") -> P09 | N54: =IFERROR(VLOOKUP(Tableau1[[#This Row],[Date dépôt demande]],Tableau1618[],5,1),"") -> 2020-2021 | O54: Autre | P54: Autre | Q54: 44168 | R54: =IFERROR(VLOOKUP(Tableau1[[#This Row],[Date d''admission]],Tableau1618[],4,1),"") -> P09 | S54: =IFERROR(VLOOKUP(Tableau1[[#This Row],[Date d''admission]],Tableau1618[],5,1),"") -> 2020-2021 | T54: =CONCATENATE(Tableau1[[#This Row],[Période (admission)]]," ",Tableau1[[#This Row],[Année (admission)]]) -> P09 2020-2021 | U54: =IFERROR(VLOOKUP(Tableau1[[#This Row],[Période/année (admission)]],Tableau1618[[Période année]:[Fin]],3,0),"") -> 44170 | V54: =IF(AND(Tableau1[[#This Row],[Statut]]="Congé",Tableau1[[#This Row],[Date d''admission]]<>""),IF(Tableau1[[#This Row],[Date congé]]<=Tableau1[[#This Row],[Fin période (admission)]],Tableau1[[#This Row],[Date congé]]-Tableau1[[#This Row],[Date d''admission]],Tableau1[[#This Row],[Fin période (admission)]]-Tableau1[[#This Row],[Date d''admission]]),0) -> 2 | W54: =IFERROR(IF(Tableau1[[#This Row],[Date d''admission]]<>"",IF(Tableau1[[#This Row],[Site]]="René_Léosa",Tableau1[[#This Row],[Date d''admission]]+45,"")),"") ->  | Y54: 710 | Z54: 11 | AA54: Oui | AD54: =IF(Tableau1[[#This Row],[Date rencontre familiale]]="","Non","Oui") -> Non | AE54: =IF(Tableau1[[#This Row],[Date rencontre familiale]]="","",Tableau1[[#This Row],[Date rencontre familiale]]-Tableau1[[#This Row],[Date d''admission]]) ->  | AF54: =IF(Tableau1[[#This Row],[Date congé]]<>"",Tableau1[[#This Row],[Date congé]],"") -> 44232 | AG54: =IF(Tableau1[[#This Row],[Date de fin Soins actifs]]<>"","Non","Oui") -> Non | AI54: 44232 | AJ54: =IFERROR(VLOOKUP(Tableau1[[#This Row],[Date congé]],Tableau1618[],4,1),"") -> P12 | AK54: =IFERROR(VLOOKUP(Tableau1[[#This Row],[Date congé]],Tableau1618[],5,1),"") -> 2020-2021 | AL54: =CONCATENATE(Tableau1[[#This Row],[Période (congé)]]," ",Tableau1[[#This Row],[Année (congé)]]) -> P12 2020-2021 | AM54: =IFERROR(VLOOKUP(Tableau1[[#This Row],[Période/année (congé)]],Tableau1618[[Période année]:[Fin]],3,0),"") -> 44254 | AN54: =IF(AND(Tableau1[[#This Row],[Statut]]="Congé",Tableau1[[#This Row],[Date d''admission]]<>""),IF(Tableau1[[#This Row],[Date congé]]>=Tableau1[[#This Row],[Fin période (admission)]],Tableau1[[#This Row],[Date congé]]-Tableau1[[#This Row],[Fin période (admission)]],0),0) -> 62 | AO54: =IF(AND(Tableau1[[#This Row],[Date congé prévu]]<>"",Tableau1[[#This Row],[Date congé]]<>""),Tableau1[[#This Row],[Date congé]]-Tableau1[[#This Row],[Date congé prévu]],"") ->  | AP54: =SUM(Tableau1[[#This Row],[Séjour 1]]+Tableau1[[#This Row],[Séjour 2]]) -> 64 | AQ54: =IF(AND(Tableau1[[#This Row],[Date de fin Soins actifs]]<>"",Tableau1[[#This Row],[Date congé]]<>""),IF(Tableau1[[#This Row],[Date de fin Soins actifs]]<>Tableau1[[#This Row],[Date congé]],"Devient NSA durant séjour","Quitte avant de devenir NSA"),"") -> Quitte avant de devenir NSA | AR54: =IF(Tableau1[[#This Row],[NSA]]="Devient NSA durant PEC",Tableau1[[#This Row],[Date congé]]-Tableau1[[#This Row],[Date de fin Soins actifs]],"") ->  | AS54: Relocalisation RPA | AT54: 710 | AV54: Soins infirmiers | AY54: =IFERROR(DATEDIF(Tableau1[[#This Row],[Date dépôt demande]],Tableau1[[#This Row],[Date d''admission]],"D"),"") -> 2 | AZ54: =IFERROR(IF(AND(Tableau1[[#This Row],[Date de fin Soins actifs]]<>"",Tableau1[[#This Row],[Date congé]]<>""),DATEDIF(Tableau1[[#This Row],[Date de fin Soins actifs]],Tableau1[[#This Row],[Date congé]],"D"),""),"") -> 0 | BB54: =IF(Tableau1[[#This Row],[Date dépôt MAH]]="","",Tableau1[[#This Row],[Date dépôt MAH]]-Tableau1[[#This Row],[Date d''admission]]) ->  | BC54: =IF(Tableau1[[#This Row],[Date dépôt MAH]]="","",Tableau1[[#This Row],[Date congé]]-Tableau1[[#This Row],[Date dépôt MAH]]) ->  | BE54: =IFERROR(DATEDIF(Tableau1[[#This Row],[Date orientation]],Tableau1[[#This Row],[Date congé]],"D"),"") -> 44232
A55: Drummond | B55: CFGH | C55: 1079A | D55: =IFERROR(VLOOKUP(C55,Chambres,3,FALSE),"") -> 1NP | E55: =IF(AND(Tableau1[[#This Row],[Date d''admission]]<>"",Tableau1[[#This Row],[Date congé]]=""),"Occupée",IF(Tableau1[[#This Row],[Date congé]]<>"","Congé","Libre")) -> Congé | H55: P075315 | I55: 12971 | J55: =(IF(Tableau1[[#This Row],[Date de naissance]]<>"",DATEDIF(Tableau1[[#This Row],[Date de naissance]],TODAY(),"Y"),"")) -> 86 | K55: =IF(Tableau1[[#This Row],[Âge]]<=60,"60 et -",IF(Tableau1[[#This Row],[Âge]]<=65,"61-65",IF(Tableau1[[#This Row],[Âge]]<=70,"66-70",IF(Tableau1[[#This Row],[Âge]]<=75,"71-75",IF(Tableau1[[#This Row],[Âge]]<=80,"76-80",IF(Tableau1[[#This Row],[Âge]]<=85,"81-85",IF(Tableau1[[#This Row],[Âge]]<=110,"86 et +",""))))))) -> 86 et + | L55: 44050 | M55: =IFERROR(VLOOKUP(Tableau1[[#This Row],[Date dépôt demande]],Tableau1618[],4,1),"") -> P05 | N55: =IFERROR(VLOOKUP(Tableau1[[#This Row],[Date dépôt demande]],Tableau1618[],5,1),"") -> 2020-2021 | O55: Éval-ori | P55: HSC | Q55: 44055 | R55: =IFERROR(VLOOKUP(Tableau1[[#This Row],[Date d''admission]],Tableau1618[],4,1),"") -> P05 | S55: =IFERROR(VLOOKUP(Tableau1[[#This Row],[Date d''admission]],Tableau1618[],5,1),"") -> 2020-2021 | T55: =CONCATENATE(Tableau1[[#This Row],[Période (admission)]]," ",Tableau1[[#This Row],[Année (admission)]]) -> P05 2020-2021 | U55: =IFERROR(VLOOKUP(Tableau1[[#This Row],[Période/année (admission)]],Tableau1618[[Période année]:[Fin]],3,0),"") -> 44058 | V55: =IF(AND(Tableau1[[#This Row],[Statut]]="Congé",Tableau1[[#This Row],[Date d''admission]]<>""),IF(Tableau1[[#This Row],[Date congé]]<=Tableau1[[#This Row],[Fin période (admission)]],Tableau1[[#This Row],[Date congé]]-Tableau1[[#This Row],[Date d''admission]],Tableau1[[#This Row],[Fin période (admission)]]-Tableau1[[#This Row],[Date d''admission]]),0) -> 3 | W55: =IFERROR(IF(Tableau1[[#This Row],[Date d''admission]]<>"",IF(Tableau1[[#This Row],[Site]]="René_Léosa",Tableau1[[#This Row],[Date d''admission]]+45,"")),"") ->  | Y55: 710 | AA55: Oui | AD55: =IF(Tableau1[[#This Row],[Date rencontre familiale]]="","Non","Oui") -> Non | AE55: =IF(Tableau1[[#This Row],[Date rencontre familiale]]="","",Tableau1[[#This Row],[Date rencontre familiale]]-Tableau1[[#This Row],[Date d''admission]]) ->  | AF55: =IF(Tableau1[[#This Row],[Date congé]]<>"",Tableau1[[#This Row],[Date congé]],"") -> 44168 | AG55: =IF(Tableau1[[#This Row],[Date de fin Soins actifs]]<>"","Non","Oui") -> Non | AI55: 44168 | AJ55: =IFERROR(VLOOKUP(Tableau1[[#This Row],[Date congé]],Tableau1618[],4,1),"") -> P09 | AK55: =IFERROR(VLOOKUP(Tableau1[[#This Row],[Date congé]],Tableau1618[],5,1),"") -> 2020-2021 | AL55: =CONCATENATE(Tableau1[[#This Row],[Période (congé)]]," ",Tableau1[[#This Row],[Année (congé)]]) -> P09 2020-2021 | AM55: =IFERROR(VLOOKUP(Tableau1[[#This Row],[Période/année (congé)]],Tableau1618[[Période année]:[Fin]],3,0),"") -> 44170 | AN55: =IF(AND(Tableau1[[#This Row],[Statut]]="Congé",Tableau1[[#This Row],[Date d''admission]]<>""),IF(Tableau1[[#This Row],[Date congé]]>=Tableau1[[#This Row],[Fin période (admission)]],Tableau1[[#This Row],[Date congé]]-Tableau1[[#This Row],[Fin période (admission)]],0),0) -> 110 | AO55: =IF(AND(Tableau1[[#This Row],[Date congé prévu]]<>"",Tableau1[[#This Row],[Date congé]]<>""),Tableau1[[#This Row],[Date congé]]-Tableau1[[#This Row],[Date congé prévu]],"") ->  | AP55: =SUM(Tableau1[[#This Row],[Séjour 1]]+Tableau1[[#This Row],[Séjour 2]]) -> 113 | AQ55: =IF(AND(Tableau1[[#This Row],[Date de fin Soins actifs]]<>"",Tableau1[[#This Row],[Date congé]]<>""),IF(Tableau1[[#This Row],[Date de fin Soins actifs]]<>Tableau1[[#This Row],[Date congé]],"Devient NSA durant séjour","Quitte avant de devenir NSA"),"") -> Quitte avant de devenir NSA | AR55: =IF(Tableau1[[#This Row],[NSA]]="Devient NSA durant PEC",Tableau1[[#This Row],[Date congé]]-Tableau1[[#This Row],[Date de fin Soins actifs]],"") ->  | AS55: Relocalisation RPA | AT55: 710 | AU55: 11 | AV55: Soins infirmiers | AY55: =IFERROR(DATEDIF(Tableau1[[#This Row],[Date dépôt demande]],Tableau1[[#This Row],[Date d''admission]],"D"),"") -> 5 | AZ55: =IFERROR(IF(AND(Tableau1[[#This Row],[Date de fin Soins actifs]]<>"",Tableau1[[#This Row],[Date congé]]<>""),DATEDIF(Tableau1[[#This Row],[Date de fin Soins actifs]],Tableau1[[#This Row],[Date congé]],"D"),""),"") -> 0 | BB55: =IF(Tableau1[[#This Row],[Date dépôt MAH]]="","",Tableau1[[#This Row],[Date dépôt MAH]]-Tableau1[[#This Row],[Date d''admission]]) ->  | BC55: =IF(Tableau1[[#This Row],[Date dépôt MAH]]="","",Tableau1[[#This Row],[Date congé]]-Tableau1[[#This Row],[Date dépôt MAH]]) ->  | BE55: =IFERROR(DATEDIF(Tableau1[[#This Row],[Date orientation]],Tableau1[[#This Row],[Date congé]],"D"),"") -> 44168
A56: Drummond | B56: _600_Bousquet_NSA | C56: 219-220 | D56: =IFERROR(VLOOKUP(C56,Chambres,3,FALSE),"") ->  | E56: =IF(AND(Tableau1[[#This Row],[Date d''admission]]<>"",Tableau1[[#This Row],[Date congé]]=""),"Occupée",IF(Tableau1[[#This Row],[Date congé]]<>"","Congé","Libre")) -> Congé | H56: P075315 | I56: 12971 | J56: =(IF(Tableau1[[#This Row],[Date de naissance]]<>"",DATEDIF(Tableau1[[#This Row],[Date de naissance]],TODAY(),"Y"),"")) -> 86 | K56: =IF(Tableau1[[#This Row],[Âge]]<=60,"60 et -",IF(Tableau1[[#This Row],[Âge]]<=65,"61-65",IF(Tableau1[[#This Row],[Âge]]<=70,"66-70",IF(Tableau1[[#This Row],[Âge]]<=75,"71-75",IF(Tableau1[[#This Row],[Âge]]<=80,"76-80",IF(Tableau1[[#This Row],[Âge]]<=85,"81-85",IF(Tableau1[[#This Row],[Âge]]<=110,"86 et +",""))))))) -> 86 et + | L56: 44008 | M56: =IFERROR(VLOOKUP(Tableau1[[#This Row],[Date dépôt demande]],Tableau1618[],4,1),"") -> P04 | N56: =IFERROR(VLOOKUP(Tableau1[[#This Row],[Date dépôt demande]],Tableau1618[],5,1),"") -> 2020-2021 | O56: Éval-ori | P56: HSC | Q56: 44011 | R56: =IFERROR(VLOOKUP(Tableau1[[#This Row],[Date d''admission]],Tableau1618[],4,1),"") -> P04 | S56: =IFERROR(VLOOKUP(Tableau1[[#This Row],[Date d''admission]],Tableau1618[],5,1),"") -> 2020-2021 | T56: =CONCATENATE(Tableau1[[#This Row],[Période (admission)]]," ",Tableau1[[#This Row],[Année (admission)]]) -> P04 2020-2021 | U56: =IFERROR(VLOOKUP(Tableau1[[#This Row],[Période/année (admission)]],Tableau1618[[Période année]:[Fin]],3,0),"") -> 44030 | V56: =IF(AND(Tableau1[[#This Row],[Statut]]="Congé",Tableau1[[#This Row],[Date d''admission]]<>""),IF(Tableau1[[#This Row],[Date congé]]<=Tableau1[[#This Row],[Fin période (admission)]],Tableau1[[#This Row],[Date congé]]-Tableau1[[#This Row],[Date d''admission]],Tableau1[[#This Row],[Fin période (admission)]]-Tableau1[[#This Row],[Date d''admission]]),0) -> 19 | W56: =IFERROR(IF(Tableau1[[#This Row],[Date d''admission]]<>"",IF(Tableau1[[#This Row],[Site]]="René_Léosa",Tableau1[[#This Row],[Date d''admission]]+45,"")),"") ->  | Y56: 710 | AA56: oui | AD56: =IF(Tableau1[[#This Row],[Date rencontre familiale]]="","Non","Oui") -> Non | AE56: =IF(Tableau1[[#This Row],[Date rencontre familiale]]="","",Tableau1[[#This Row],[Date rencontre familiale]]-Tableau1[[#This Row],[Date d''admission]]) ->  | AF56: =IF(Tableau1[[#This Row],[Date congé]]<>"",Tableau1[[#This Row],[Date congé]],"") -> 44054 | AG56: =IF(Tableau1[[#This Row],[Date de fin Soins actifs]]<>"","Non","Oui") -> Non | AI56: 44054 | AJ56: =IFERROR(VLOOKUP(Tableau1[[#This Row],[Date congé]],Tableau1618[],4,1),"") -> P05 | AK56: =IFERROR(VLOOKUP(Tableau1[[#This Row],[Date congé]],Tableau1618[],5,1),"") -> 2020-2021 | AL56: =CONCATENATE(Tableau1[[#This Row],[Période (congé)]]," ",Tableau1[[#This Row],[Année (congé)]]) -> P05 2020-2021 | AM56: =IFERROR(VLOOKUP(Tableau1[[#This Row],[Période/année (congé)]],Tableau1618[[Période année]:[Fin]],3,0),"") -> 44058 | AN56: =IF(AND(Tableau1[[#This Row],[Statut]]="Congé",Tableau1[[#This Row],[Date d''admission]]<>""),IF(Tableau1[[#This Row],[Date congé]]>=Tableau1[[#This Row],[Fin période (admission)]],Tableau1[[#This Row],[Date congé]]-Tableau1[[#This Row],[Fin période (admission)]],0),0) -> 24 | AO56: =IF(AND(Tableau1[[#This Row],[Date congé prévu]]<>"",Tableau1[[#This Row],[Date congé]]<>""),Tableau1[[#This Row],[Date congé]]-Tableau1[[#This Row],[Date congé prévu]],"") ->  | AP56: =SUM(Tableau1[[#This Row],[Séjour 1]]+Tableau1[[#This Row],[Séjour 2]]) -> 43 | AQ56: =IF(AND(Tableau1[[#This Row],[Date de fin Soins actifs]]<>"",Tableau1[[#This Row],[Date congé]]<>""),IF(Tableau1[[#This Row],[Date de fin Soins actifs]]<>Tableau1[[#This Row],[Date congé]],"Devient NSA durant séjour","Quitte avant de devenir NSA"),"") -> Quitte avant de devenir NSA | AR56: =IF(Tableau1[[#This Row],[NSA]]="Devient NSA durant PEC",Tableau1[[#This Row],[Date congé]]-Tableau1[[#This Row],[Date de fin Soins actifs]],"") ->  | AY56: =IFERROR(DATEDIF(Tableau1[[#This Row],[Date dépôt demande]],Tableau1[[#This Row],[Date d''admission]],"D"),"") -> 3 | AZ56: =IFERROR(IF(AND(Tableau1[[#This Row],[Date de fin Soins actifs]]<>"",Tableau1[[#This Row],[Date congé]]<>""),DATEDIF(Tableau1[[#This Row],[Date de fin Soins actifs]],Tableau1[[#This Row],[Date congé]],"D"),""),"") -> 0 | BB56: =IF(Tableau1[[#This Row],[Date dépôt MAH]]="","",Tableau1[[#This Row],[Date dépôt MAH]]-Tableau1[[#This Row],[Date d''admission]]) ->  | BC56: =IF(Tableau1[[#This Row],[Date dépôt MAH]]="","",Tableau1[[#This Row],[Date congé]]-Tableau1[[#This Row],[Date dépôt MAH]]) ->  | BE56: =IFERROR(DATEDIF(Tableau1[[#This Row],[Date orientation]],Tableau1[[#This Row],[Date congé]],"D"),"") -> 44054
A57: Drummond | B57: CFGH | C57: 1048 | D57: =IFERROR(VLOOKUP(C57,Chambres,3,FALSE),"") -> 1NC | E57: Annulée | H57: P068046 | I57: 11181 | J57: =(IF(Tableau1[[#This Row],[Date de naissance]]<>"",DATEDIF(Tableau1[[#This Row],[Date de naissance]],TODAY(),"Y"),"")) -> 90 | K57: =IF(Tableau1[[#This Row],[Âge]]<=60,"60 et -",IF(Tableau1[[#This Row],[Âge]]<=65,"61-65",IF(Tableau1[[#This Row],[Âge]]<=70,"66-70",IF(Tableau1[[#This Row],[Âge]]<=75,"71-75",IF(Tableau1[[#This Row],[Âge]]<=80,"76-80",IF(Tableau1[[#This Row],[Âge]]<=85,"81-85",IF(Tableau1[[#This Row],[Âge]]<=110,"86 et +",""))))))) -> 86 et + | L57: 43977 | M57: =IFERROR(VLOOKUP(Tableau1[[#This Row],[Date dépôt demande]],Tableau1618[],4,1),"") -> P03 | N57: =IFERROR(VLOOKUP(Tableau1[[#This Row],[Date dépôt demande]],Tableau1618[],5,1),"") -> 2020-2021 | O57: Éval-ori | P57: Autre | Q57: 43979 | R57: =IFERROR(VLOOKUP(Tableau1[[#This Row],[Date d''admission]],Tableau1618[],4,1),"") -> P03 | S57: =IFERROR(VLOOKUP(Tableau1[[#This Row],[Date d''admission]],Tableau1618[],5,1),"") -> 2020-2021 | T57: =CONCATENATE(Tableau1[[#This Row],[Période (admission)]]," ",Tableau1[[#This Row],[Année (admission)]]) -> P03 2020-2021 | U57: =IFERROR(VLOOKUP(Tableau1[[#This Row],[Période/année (admission)]],Tableau1618[[Période année]:[Fin]],3,0),"") -> 44002 | V57: =IF(AND(Tableau1[[#This Row],[Statut]]="Congé",Tableau1[[#This Row],[Date d''admission]]<>""),IF(Tableau1[[#This Row],[Date congé]]<=Tableau1[[#This Row],[Fin période (admission)]],Tableau1[[#This Row],[Date congé]]-Tableau1[[#This Row],[Date d''admission]],Tableau1[[#This Row],[Fin période (admission)]]-Tableau1[[#This Row],[Date d''admission]]),0) -> 0 | W57: =IFERROR(IF(Tableau1[[#This Row],[Date d''admission]]<>"",IF(Tableau1[[#This Row],[Site]]="René_Léosa",Tableau1[[#This Row],[Date d''admission]]+45,"")),"") ->  | Y57: 121 | AA57: Oui | AB57: Mme n'a pas entrée. Chang. Dans son état | AD57: =IF(Tableau1[[#This Row],[Date rencontre familiale]]="","Non","Oui") -> Non | AE57: =IF(Tableau1[[#This Row],[Date rencontre familiale]]="","",Tableau1[[#This Row],[Date rencontre familiale]]-Tableau1[[#This Row],[Date d''admission]]) ->  | AF57: =IF(Tableau1[[#This Row],[Date congé]]<>"",Tableau1[[#This Row],[Date congé]],"") -> 43979 | AG57: =IF(Tableau1[[#This Row],[Date de fin Soins actifs]]<>"","Non","Oui") -> Non | AI57: 43979 | AJ57: =IFERROR(VLOOKUP(Tableau1[[#This Row],[Date congé]],Tableau1618[],4,1),"") -> P03 | AK57: =IFERROR(VLOOKUP(Tableau1[[#This Row],[Date congé]],Tableau1618[],5,1),"") -> 2020-2021 | AL57: =CONCATENATE(Tableau1[[#This Row],[Période (congé)]]," ",Tableau1[[#This Row],[Année (congé)]]) -> P03 2020-2021 | AM57: =IFERROR(VLOOKUP(Tableau1[[#This Row],[Période/année (congé)]],Tableau1618[[Période année]:[Fin]],3,0),"") -> 44002 | AN57: =IF(AND(Tableau1[[#This Row],[Statut]]="Congé",Tableau1[[#This Row],[Date d''admission]]<>""),IF(Tableau1[[#This Row],[Date congé]]>=Tableau1[[#This Row],[Fin période (admission)]],Tableau1[[#This Row],[Date congé]]-Tableau1[[#This Row],[Fin période (admission)]],0),0) -> 0 | AO57: =IF(AND(Tableau1[[#This Row],[Date congé prévu]]<>"",Tableau1[[#This Row],[Date congé]]<>""),Tableau1[[#This Row],[Date congé]]-Tableau1[[#This Row],[Date congé prévu]],"") ->  | AP57: =SUM(Tableau1[[#This Row],[Séjour 1]]+Tableau1[[#This Row],[Séjour 2]]) -> 0 | AQ57: =IF(AND(Tableau1[[#This Row],[Date de fin Soins actifs]]<>"",Tableau1[[#This Row],[Date congé]]<>""),IF(Tableau1[[#This Row],[Date de fin Soins actifs]]<>Tableau1[[#This Row],[Date congé]],"Devient NSA durant séjour","Quitte avant de devenir NSA"),"") -> Quitte avant de devenir NSA | AR57: =IF(Tableau1[[#This Row],[NSA]]="Devient NSA durant PEC",Tableau1[[#This Row],[Date congé]]-Tableau1[[#This Row],[Date de fin Soins actifs]],"") ->  | AY57: =IFERROR(DATEDIF(Tableau1[[#This Row],[Date dépôt demande]],Tableau1[[#This Row],[Date d''admission]],"D"),"") -> 2 | AZ57: =IFERROR(IF(AND(Tableau1[[#This Row],[Date de fin Soins actifs]]<>"",Tableau1[[#This Row],[Date congé]]<>""),DATEDIF(Tableau1[[#This Row],[Date de fin Soins actifs]],Tableau1[[#This Row],[Date congé]],"D"),""),"") -> 0 | BB57: =IF(Tableau1[[#This Row],[Date dépôt MAH]]="","",Tableau1[[#This Row],[Date dépôt MAH]]-Tableau1[[#This Row],[Date d''admission]]) ->  | BC57: =IF(Tableau1[[#This Row],[Date dépôt MAH]]="","",Tableau1[[#This Row],[Date congé]]-Tableau1[[#This Row],[Date dépôt MAH]]) ->  | BE57: =IFERROR(DATEDIF(Tableau1[[#This Row],[Date orientation]],Tableau1[[#This Row],[Date congé]],"D"),"") -> 43979
A58: Drummond | B58: René_Léosa | C58: 13 | D58: =IFERROR(VLOOKUP(C58,Chambres,3,FALSE),"") -> Régulière | E58: =IF(AND(Tableau1[[#This Row],[Date d''admission]]<>"",Tableau1[[#This Row],[Date congé]]=""),"Occupée",IF(Tableau1[[#This Row],[Date congé]]<>"","Congé","Libre")) -> Congé | H58: P028221 | I58: 18715 | J58: =(IF(Tableau1[[#This Row],[Date de naissance]]<>"",DATEDIF(Tableau1[[#This Row],[Date de naissance]],TODAY(),"Y"),"")) -> 70 | K58: =IF(Tableau1[[#This Row],[Âge]]<=60,"60 et -",IF(Tableau1[[#This Row],[Âge]]<=65,"61-65",IF(Tableau1[[#This Row],[Âge]]<=70,"66-70",IF(Tableau1[[#This Row],[Âge]]<=75,"71-75",IF(Tableau1[[#This Row],[Âge]]<=80,"76-80",IF(Tableau1[[#This Row],[Âge]]<=85,"81-85",IF(Tableau1[[#This Row],[Âge]]<=110,"86 et +",""))))))) -> 66-70 | L58: 44221 | M58: =IFERROR(VLOOKUP(Tableau1[[#This Row],[Date dépôt demande]],Tableau1618[],4,1),"") -> P11 | N58: =IFERROR(VLOOKUP(Tableau1[[#This Row],[Date dépôt demande]],Tableau1618[],5,1),"") -> 2020-2021 | O58: UTRF | P58: HSC | Q58: 44223 | R58: =IFERROR(VLOOKUP(Tableau1[[#This Row],[Date d''admission]],Tableau1618[],4,1),"") -> P11 | S58: =IFERROR(VLOOKUP(Tableau1[[#This Row],[Date d''admission]],Tableau1618[],5,1),"") -> 2020-2021 | T58: =CONCATENATE(Tableau1[[#This Row],[Période (admission)]]," ",Tableau1[[#This Row],[Année (admission)]]) -> P11 2020-2021 | U58: =IFERROR(VLOOKUP(Tableau1[[#This Row],[Période/année (admission)]],Tableau1618[[Période année]:[Fin]],3,0),"") -> 44226 | V58: =IF(AND(Tableau1[[#This Row],[Statut]]="Congé",Tableau1[[#This Row],[Date d''admission]]<>""),IF(Tableau1[[#This Row],[Date congé]]<=Tableau1[[#This Row],[Fin période (admission)]],Tableau1[[#This Row],[Date congé]]-Tableau1[[#This Row],[Date d''admission]],Tableau1[[#This Row],[Fin période (admission)]]-Tableau1[[#This Row],[Date d''admission]]),0) -> 3 | W58: =IFERROR(IF(Tableau1[[#This Row],[Date d''admission]]<>"",IF(Tableau1[[#This Row],[Site]]="René_Léosa",Tableau1[[#This Row],[Date d''admission]]+45,"")),"") -> 44268 | Y58: 110 | AA58: Oui | AD58: =IF(Tableau1[[#This Row],[Date rencontre familiale]]="","Non","Oui") -> Non | AE58: =IF(Tableau1[[#This Row],[Date rencontre familiale]]="","",Tableau1[[#This Row],[Date rencontre familiale]]-Tableau1[[#This Row],[Date d''admission]]) ->  | AF58: =IF(Tableau1[[#This Row],[Date congé]]<>"",Tableau1[[#This Row],[Date congé]],"") -> 44270 | AG58: =IF(Tableau1[[#This Row],[Date de fin Soins actifs]]<>"","Non","Oui") -> Non | AI58: 44270 | AJ58: =IFERROR(VLOOKUP(Tableau1[[#This Row],[Date congé]],Tableau1618[],4,1),"") -> P13 | AK58: =IFERROR(VLOOKUP(Tableau1[[#This Row],[Date congé]],Tableau1618[],5,1),"") -> 2020-2021 | AL58: =CONCATENATE(Tableau1[[#This Row],[Période (congé)]]," ",Tableau1[[#This Row],[Année (congé)]]) -> P13 2020-2021 | AM58: =IFERROR(VLOOKUP(Tableau1[[#This Row],[Période/année (congé)]],Tableau1618[[Période année]:[Fin]],3,0),"") -> 44286 | AN58: =IF(AND(Tableau1[[#This Row],[Statut]]="Congé",Tableau1[[#This Row],[Date d''admission]]<>""),IF(Tableau1[[#This Row],[Date congé]]>=Tableau1[[#This Row],[Fin période (admission)]],Tableau1[[#This Row],[Date congé]]-Tableau1[[#This Row],[Fin période (admission)]],0),0) -> 44 | AO58: =IF(AND(Tableau1[[#This Row],[Date congé prévu]]<>"",Tableau1[[#This Row],[Date congé]]<>""),Tableau1[[#This Row],[Date congé]]-Tableau1[[#This Row],[Date congé prévu]],"") ->  | AP58: =SUM(Tableau1[[#This Row],[Séjour 1]]+Tableau1[[#This Row],[Séjour 2]]) -> 47 | AQ58: =IF(AND(Tableau1[[#This Row],[Date de fin Soins actifs]]<>"",Tableau1[[#This Row],[Date congé]]<>""),IF(Tableau1[[#This Row],[Date de fin Soins actifs]]<>Tableau1[[#This Row],[Date congé]],"Devient NSA durant séjour","Quitte avant de devenir NSA"),"") -> Quitte avant de devenir NSA | AR58: =IF(Tableau1[[#This Row],[NSA]]="Devient NSA durant PEC",Tableau1[[#This Row],[Date congé]]-Tableau1[[#This Row],[Date de fin Soins actifs]],"") ->  | AS58: Retour à domicile | AV58: Soins infirmiers | AY58: =IFERROR(DATEDIF(Tableau1[[#This Row],[Date dépôt demande]],Tableau1[[#This Row],[Date d''admission]],"D"),"") -> 2 | AZ58: =IFERROR(IF(AND(Tableau1[[#This Row],[Date de fin Soins actifs]]<>"",Tableau1[[#This Row],[Date congé]]<>""),DATEDIF(Tableau1[[#This Row],[Date de fin Soins actifs]],Tableau1[[#This Row],[Date congé]],"D"),""),"") -> 0 | BB58: =IF(Tableau1[[#This Row],[Date dépôt MAH]]="","",Tableau1[[#This Row],[Date dépôt MAH]]-Tableau1[[#This Row],[Date d''admission]]) ->  | BC58: =IF(Tableau1[[#This Row],[Date dépôt MAH]]="","",Tableau1[[#This Row],[Date congé]]-Tableau1[[#This Row],[Date dépôt MAH]]) ->  | BE58: =IFERROR(DATEDIF(Tableau1[[#This Row],[Date orientation]],Tableau1[[#This Row],[Date congé]],"D"),"") -> 44270
A59: Drummond | B59: CFGH | C59: 1064 | D59: =IFERROR(VLOOKUP(C59,Chambres,3,FALSE),"") -> 1NC | E59: Annulée | H59: P068046 | I59: 11181 | J59: =(IF(Tableau1[[#This Row],[Date de naissance]]<>"",DATEDIF(Tableau1[[#This Row],[Date de naissance]],TODAY(),"Y"),"")) -> 90 | K59: =IF(Tableau1[[#This Row],[Âge]]<=60,"60 et -",IF(Tableau1[[#This Row],[Âge]]<=65,"61-65",IF(Tableau1[[#This Row],[Âge]]<=70,"66-70",IF(Tableau1[[#This Row],[Âge]]<=75,"71-75",IF(Tableau1[[#This Row],[Âge]]<=80,"76-80",IF(Tableau1[[#This Row],[Âge]]<=85,"81-85",IF(Tableau1[[#This Row],[Âge]]<=110,"86 et +",""))))))) -> 86 et + | L59: 43977 | M59: =IFERROR(VLOOKUP(Tableau1[[#This Row],[Date dépôt demande]],Tableau1618[],4,1),"") -> P03 | N59: =IFERROR(VLOOKUP(Tableau1[[#This Row],[Date dépôt demande]],Tableau1618[],5,1),"") -> 2020-2021 | O59: Éval-ori | P59: Autre | Q59: 43990 | R59: =IFERROR(VLOOKUP(Tableau1[[#This Row],[Date d''admission]],Tableau1618[],4,1),"") -> P03 | S59: =IFERROR(VLOOKUP(Tableau1[[#This Row],[Date d''admission]],Tableau1618[],5,1),"") -> 2020-2021 | T59: =CONCATENATE(Tableau1[[#This Row],[Période (admission)]]," ",Tableau1[[#This Row],[Année (admission)]]) -> P03 2020-2021 | U59: =IFERROR(VLOOKUP(Tableau1[[#This Row],[Période/année (admission)]],Tableau1618[[Période année]:[Fin]],3,0),"") -> 44002 | V59: =IF(AND(Tableau1[[#This Row],[Statut]]="Congé",Tableau1[[#This Row],[Date d''admission]]<>""),IF(Tableau1[[#This Row],[Date congé]]<=Tableau1[[#This Row],[Fin période (admission)]],Tableau1[[#This Row],[Date congé]]-Tableau1[[#This Row],[Date d''admission]],Tableau1[[#This Row],[Fin période (admission)]]-Tableau1[[#This Row],[Date d''admission]]),0) -> 0 | W59: =IFERROR(IF(Tableau1[[#This Row],[Date d''admission]]<>"",IF(Tableau1[[#This Row],[Site]]="René_Léosa",Tableau1[[#This Row],[Date d''admission]]+45,"")),"") ->  | Y59: 121 | AA59: Oui | AB59: Jamais admise - DCD | AD59: =IF(Tableau1[[#This Row],[Date rencontre familiale]]="","Non","Oui") -> Non | AE59: =IF(Tableau1[[#This Row],[Date rencontre familiale]]="","",Tableau1[[#This Row],[Date rencontre familiale]]-Tableau1[[#This Row],[Date d''admission]]) ->  | AF59: =IF(Tableau1[[#This Row],[Date congé]]<>"",Tableau1[[#This Row],[Date congé]],"") -> 43990 | AG59: =IF(Tableau1[[#This Row],[Date de fin Soins actifs]]<>"","Non","Oui") -> Non | AI59: 43990 | AJ59: =IFERROR(VLOOKUP(Tableau1[[#This Row],[Date congé]],Tableau1618[],4,1),"") -> P03 | AK59: =IFERROR(VLOOKUP(Tableau1[[#This Row],[Date congé]],Tableau1618[],5,1),"") -> 2020-2021 | AL59: =CONCATENATE(Tableau1[[#This Row],[Période (congé)]]," ",Tableau1[[#This Row],[Année (congé)]]) -> P03 2020-2021 | AM59: =IFERROR(VLOOKUP(Tableau1[[#This Row],[Période/année (congé)]],Tableau1618[[Période année]:[Fin]],3,0),"") -> 44002 | AN59: =IF(AND(Tableau1[[#This Row],[Statut]]="Congé",Tableau1[[#This Row],[Date d''admission]]<>""),IF(Tableau1[[#This Row],[Date congé]]>=Tableau1[[#This Row],[Fin période (admission)]],Tableau1[[#This Row],[Date congé]]-Tableau1[[#This Row],[Fin période (admission)]],0),0) -> 0 | AO59: =IF(AND(Tableau1[[#This Row],[Date congé prévu]]<>"",Tableau1[[#This Row],[Date congé]]<>""),Tableau1[[#This Row],[Date congé]]-Tableau1[[#This Row],[Date congé prévu]],"") ->  | AP59: =SUM(Tableau1[[#This Row],[Séjour 1]]+Tableau1[[#This Row],[Séjour 2]]) -> 0 | AQ59: =IF(AND(Tableau1[[#This Row],[Date de fin Soins actifs]]<>"",Tableau1[[#This Row],[Date congé]]<>""),IF(Tableau1[[#This Row],[Date de fin Soins actifs]]<>Tableau1[[#This Row],[Date congé]],"Devient NSA durant séjour","Quitte avant de devenir NSA"),"") -> Quitte avant de devenir NSA | AR59: =IF(Tableau1[[#This Row],[NSA]]="Devient NSA durant PEC",Tableau1[[#This Row],[Date congé]]-Tableau1[[#This Row],[Date de fin Soins actifs]],"") ->  | AS59: Décès | AY59: =IFERROR(DATEDIF(Tableau1[[#This Row],[Date dépôt demande]],Tableau1[[#This Row],[Date d''admission]],"D"),"") -> 13 | AZ59: =IFERROR(IF(AND(Tableau1[[#This Row],[Date de fin Soins actifs]]<>"",Tableau1[[#This Row],[Date congé]]<>""),DATEDIF(Tableau1[[#This Row],[Date de fin Soins actifs]],Tableau1[[#This Row],[Date congé]],"D"),""),"") -> 0 | BB59: =IF(Tableau1[[#This Row],[Date dépôt MAH]]="","",Tableau1[[#This Row],[Date dépôt MAH]]-Tableau1[[#This Row],[Date d''admission]]) ->  | BC59: =IF(Tableau1[[#This Row],[Date dépôt MAH]]="","",Tableau1[[#This Row],[Date congé]]-Tableau1[[#This Row],[Date dépôt MAH]]) ->  | BE59: =IFERROR(DATEDIF(Tableau1[[#This Row],[Date orientation]],Tableau1[[#This Row],[Date congé]],"D"),"") -> 43990
A60: Drummond | B60: CFGH | C60: 1079A | D60: =IFERROR(VLOOKUP(C60,Chambres,3,FALSE),"") -> 1NP | E60: =IF(AND(Tableau1[[#This Row],[Date d''admission]]<>"",Tableau1[[#This Row],[Date congé]]=""),"Occupée",IF(Tableau1[[#This Row],[Date congé]]<>"","Congé","Libre")) -> Congé | H60: P090324 | I60: 11301 | J60: =(IF(Tableau1[[#This Row],[Date de naissance]]<>"",DATEDIF(Tableau1[[#This Row],[Date de naissance]],TODAY(),"Y"),"")) -> 90 | K60: =IF(Tableau1[[#This Row],[Âge]]<=60,"60 et -",IF(Tableau1[[#This Row],[Âge]]<=65,"61-65",IF(Tableau1[[#This Row],[Âge]]<=70,"66-70",IF(Tableau1[[#This Row],[Âge]]<=75,"71-75",IF(Tableau1[[#This Row],[Âge]]<=80,"76-80",IF(Tableau1[[#This Row],[Âge]]<=85,"81-85",IF(Tableau1[[#This Row],[Âge]]<=110,"86 et +",""))))))) -> 86 et + | L60: 44302 | M60: =IFERROR(VLOOKUP(Tableau1[[#This Row],[Date dépôt demande]],Tableau1618[],4,1),"") -> P01 | N60: =IFERROR(VLOOKUP(Tableau1[[#This Row],[Date dépôt demande]],Tableau1618[],5,1),"") -> 2021-2022 | O60: Éval-ori | P60: HSC | Q60: 44314 | R60: =IFERROR(VLOOKUP(Tableau1[[#This Row],[Date d''admission]],Tableau1618[],4,1),"") -> P02 | S60: =IFERROR(VLOOKUP(Tableau1[[#This Row],[Date d''admission]],Tableau1618[],5,1),"") -> 2021-2022 | T60: =CONCATENATE(Tableau1[[#This Row],[Période (admission)]]," ",Tableau1[[#This Row],[Année (admission)]]) -> P02 2021-2022 | U60: =IFERROR(VLOOKUP(Tableau1[[#This Row],[Période/année (admission)]],Tableau1618[[Période année]:[Fin]],3,0),"") -> 44338 | V60: =IF(AND(Tableau1[[#This Row],[Statut]]="Congé",Tableau1[[#This Row],[Date d''admission]]<>""),IF(Tableau1[[#This Row],[Date congé]]<=Tableau1[[#This Row],[Fin période (admission)]],Tableau1[[#This Row],[Date congé]]-Tableau1[[#This Row],[Date d''admission]],Tableau1[[#This Row],[Fin période (admission)]]-Tableau1[[#This Row],[Date d''admission]]),0) -> 24 | W60: =IFERROR(IF(Tableau1[[#This Row],[Date d''admission]]<>"",IF(Tableau1[[#This Row],[Site]]="René_Léosa",Tableau1[[#This Row],[Date d''admission]]+45,"")),"") ->  | Y60: 710 | AA60: Oui | AD60: =IF(Tableau1[[#This Row],[Date rencontre familiale]]="","Non","Oui") -> Non | AE60: =IF(Tableau1[[#This Row],[Date rencontre familiale]]="","",Tableau1[[#This Row],[Date rencontre familiale]]-Tableau1[[#This Row],[Date d''admission]]) ->  | AF60: =IF(Tableau1[[#This Row],[Date congé]]<>"",Tableau1[[#This Row],[Date congé]],"") -> 44378 | AG60: =IF(Tableau1[[#This Row],[Date de fin Soins actifs]]<>"","Non","Oui") -> Non | AI60: 44378 | AJ60: =IFERROR(VLOOKUP(Tableau1[[#This Row],[Date congé]],Tableau1618[],4,1),"") -> P04 | AK60: =IFERROR(VLOOKUP(Tableau1[[#This Row],[Date congé]],Tableau1618[],5,1),"") -> 2021-2022 | AL60: =CONCATENATE(Tableau1[[#This Row],[Période (congé)]]," ",Tableau1[[#This Row],[Année (congé)]]) -> P04 2021-2022 | AM60: =IFERROR(VLOOKUP(Tableau1[[#This Row],[Période/année (congé)]],Tableau1618[[Période année]:[Fin]],3,0),"") -> 44394 | AN60: =IF(AND(Tableau1[[#This Row],[Statut]]="Congé",Tableau1[[#This Row],[Date d''admission]]<>""),IF(Tableau1[[#This Row],[Date congé]]>=Tableau1[[#This Row],[Fin période (admission)]],Tableau1[[#This Row],[Date congé]]-Tableau1[[#This Row],[Fin période (admission)]],0),0) -> 40 | AO60: =IF(AND(Tableau1[[#This Row],[Date congé prévu]]<>"",Tableau1[[#This Row],[Date congé]]<>""),Tableau1[[#This Row],[Date congé]]-Tableau1[[#This Row],[Date congé prévu]],"") ->  | AP60: =SUM(Tableau1[[#This Row],[Séjour 1]]+Tableau1[[#This Row],[Séjour 2]]) -> 64 | AQ60: =IF(AND(Tableau1[[#This Row],[Date de fin Soins actifs]]<>"",Tableau1[[#This Row],[Date congé]]<>""),IF(Tableau1[[#This Row],[Date de fin Soins actifs]]<>Tableau1[[#This Row],[Date congé]],"Devient NSA durant séjour","Quitte avant de devenir NSA"),"") -> Quitte avant de devenir NSA | AR60: =IF(Tableau1[[#This Row],[NSA]]="Devient NSA durant PEC",Tableau1[[#This Row],[Date congé]]-Tableau1[[#This Row],[Date de fin Soins actifs]],"") ->  | AS60: CHSLD | AU60: 11 | AW60: 2021-02-25 | AY60: =IFERROR(DATEDIF(Tableau1[[#This Row],[Date dépôt demande]],Tableau1[[#This Row],[Date d''admission]],"D"),"") -> 12 | AZ60: =IFERROR(IF(AND(Tableau1[[#This Row],[Date de fin Soins actifs]]<>"",Tableau1[[#This Row],[Date congé]]<>""),DATEDIF(Tableau1[[#This Row],[Date de fin Soins actifs]],Tableau1[[#This Row],[Date congé]],"D"),""),"") -> 0 | BA60: 44377 | BB60: =IF(Tableau1[[#This Row],[Date dépôt MAH]]="","",Tableau1[[#This Row],[Date dépôt MAH]]-Tableau1[[#This Row],[Date d''admission]]) -> 63 | BC60: =IF(Tableau1[[#This Row],[Date dépôt MAH]]="","",Tableau1[[#This Row],[Date congé]]-Tableau1[[#This Row],[Date dépôt MAH]]) -> 1 | BD60: 44378 | BE60: =IFERROR(DATEDIF(Tableau1[[#This Row],[Date orientation]],Tableau1[[#This Row],[Date congé]],"D"),"") -> 0
A61: Drummond | B61: _600_Bousquet_NSA | C61: 258 | D61: =IFERROR(VLOOKUP(C61,Chambres,3,FALSE),"") ->  | E61: =IF(AND(Tableau1[[#This Row],[Date d''admission]]<>"",Tableau1[[#This Row],[Date congé]]=""),"Occupée",IF(Tableau1[[#This Row],[Date congé]]<>"","Congé","Libre")) -> Congé | H61: P051025 | I61: 13655 | J61: =(IF(Tableau1[[#This Row],[Date de naissance]]<>"",DATEDIF(Tableau1[[#This Row],[Date de naissance]],TODAY(),"Y"),"")) -> 84 | K61: =IF(Tableau1[[#This Row],[Âge]]<=60,"60 et -",IF(Tableau1[[#This Row],[Âge]]<=65,"61-65",IF(Tableau1[[#This Row],[Âge]]<=70,"66-70",IF(Tableau1[[#This Row],[Âge]]<=75,"71-75",IF(Tableau1[[#This Row],[Âge]]<=80,"76-80",IF(Tableau1[[#This Row],[Âge]]<=85,"81-85",IF(Tableau1[[#This Row],[Âge]]<=110,"86 et +",""))))))) -> 81-85 | L61: 44082 | M61: =IFERROR(VLOOKUP(Tableau1[[#This Row],[Date dépôt demande]],Tableau1618[],4,1),"") -> P06 | N61: =IFERROR(VLOOKUP(Tableau1[[#This Row],[Date dépôt demande]],Tableau1618[],5,1),"") -> 2020-2021 | O61: Éval-ori | Q61: 44084 | R61: =IFERROR(VLOOKUP(Tableau1[[#This Row],[Date d''admission]],Tableau1618[],4,1),"") -> P06 | S61: =IFERROR(VLOOKUP(Tableau1[[#This Row],[Date d''admission]],Tableau1618[],5,1),"") -> 2020-2021 | T61: =CONCATENATE(Tableau1[[#This Row],[Période (admission)]]," ",Tableau1[[#This Row],[Année (admission)]]) -> P06 2020-2021 | U61: =IFERROR(VLOOKUP(Tableau1[[#This Row],[Période/année (admission)]],Tableau1618[[Période année]:[Fin]],3,0),"") -> 44086 | V61: =IF(AND(Tableau1[[#This Row],[Statut]]="Congé",Tableau1[[#This Row],[Date d''admission]]<>""),IF(Tableau1[[#This Row],[Date congé]]<=Tableau1[[#This Row],[Fin période (admission)]],Tableau1[[#This Row],[Date congé]]-Tableau1[[#This Row],[Date d''admission]],Tableau1[[#This Row],[Fin période (admission)]]-Tableau1[[#This Row],[Date d''admission]]),0) -> 2 | W61: =IFERROR(IF(Tableau1[[#This Row],[Date d''admission]]<>"",IF(Tableau1[[#This Row],[Site]]="René_Léosa",Tableau1[[#This Row],[Date d''admission]]+45,"")),"") ->  | Y61: 710 | AA61: non | AD61: =IF(Tableau1[[#This Row],[Date rencontre familiale]]="","Non","Oui") -> Non | AE61: =IF(Tableau1[[#This Row],[Date rencontre familiale]]="","",Tableau1[[#This Row],[Date rencontre familiale]]-Tableau1[[#This Row],[Date d''admission]]) ->  | AF61: =IF(Tableau1[[#This Row],[Date congé]]<>"",Tableau1[[#This Row],[Date congé]],"") -> 44096 | AG61: =IF(Tableau1[[#This Row],[Date de fin Soins actifs]]<>"","Non","Oui") -> Non | AI61: 44096 | AJ61: =IFERROR(VLOOKUP(Tableau1[[#This Row],[Date congé]],Tableau1618[],4,1),"") -> P07 | AK61: =IFERROR(VLOOKUP(Tableau1[[#This Row],[Date congé]],Tableau1618[],5,1),"") -> 2020-2021 | AL61: =CONCATENATE(Tableau1[[#This Row],[Période (congé)]]," ",Tableau1[[#This Row],[Année (congé)]]) -> P07 2020-2021 | AM61: =IFERROR(VLOOKUP(Tableau1[[#This Row],[Période/année (congé)]],Tableau1618[[Période année]:[Fin]],3,0),"") -> 44114 | AN61: =IF(AND(Tableau1[[#This Row],[Statut]]="Congé",Tableau1[[#This Row],[Date d''admission]]<>""),IF(Tableau1[[#This Row],[Date congé]]>=Tableau1[[#This Row],[Fin période (admission)]],Tableau1[[#This Row],[Date congé]]-Tableau1[[#This Row],[Fin période (admission)]],0),0) -> 10 | AO61: =IF(AND(Tableau1[[#This Row],[Date congé prévu]]<>"",Tableau1[[#This Row],[Date congé]]<>""),Tableau1[[#This Row],[Date congé]]-Tableau1[[#This Row],[Date congé prévu]],"") ->  | AP61: =SUM(Tableau1[[#This Row],[Séjour 1]]+Tableau1[[#This Row],[Séjour 2]]) -> 12 | AQ61: =IF(AND(Tableau1[[#This Row],[Date de fin Soins actifs]]<>"",Tableau1[[#This Row],[Date congé]]<>""),IF(Tableau1[[#This Row],[Date de fin Soins actifs]]<>Tableau1[[#This Row],[Date congé]],"Devient NSA durant séjour","Quitte avant de devenir NSA"),"") -> Quitte avant de devenir NSA | AR61: =IF(Tableau1[[#This Row],[NSA]]="Devient NSA durant PEC",Tableau1[[#This Row],[Date congé]]-Tableau1[[#This Row],[Date de fin Soins actifs]],"") ->  | AS61: Retour à domicile | AT61: 710 | AY61: =IFERROR(DATEDIF(Tableau1[[#This Row],[Date dépôt demande]],Tableau1[[#This Row],[Date d''admission]],"D"),"") -> 2 | AZ61: =IFERROR(IF(AND(Tableau1[[#This Row],[Date de fin Soins actifs]]<>"",Tableau1[[#This Row],[Date congé]]<>""),DATEDIF(Tableau1[[#This Row],[Date de fin Soins actifs]],Tableau1[[#This Row],[Date congé]],"D"),""),"") -> 0 | BB61: =IF(Tableau1[[#This Row],[Date dépôt MAH]]="","",Tableau1[[#This Row],[Date dépôt MAH]]-Tableau1[[#This Row],[Date d''admission]]) ->  | BC61: =IF(Tableau1[[#This Row],[Date dépôt MAH]]="","",Tableau1[[#This Row],[Date congé]]-Tableau1[[#This Row],[Date dépôt MAH]]) ->  | BE61: =IFERROR(DATEDIF(Tableau1[[#This Row],[Date orientation]],Tableau1[[#This Row],[Date congé]],"D"),"") -> 44096
A62: Drummond | B62: CFGH | C62: 1049 | D62: =IFERROR(VLOOKUP(C62,Chambres,3,FALSE),"") -> 1NC | E62: =IF(AND(Tableau1[[#This Row],[Date d''admission]]<>"",Tableau1[[#This Row],[Date congé]]=""),"Occupée",IF(Tableau1[[#This Row],[Date congé]]<>"","Congé","Libre")) -> Congé | H62: P162462 | I62: 12758 | J62: =(IF(Tableau1[[#This Row],[Date de naissance]]<>"",DATEDIF(Tableau1[[#This Row],[Date de naissance]],TODAY(),"Y"),"")) -> 86 | K62: =IF(Tableau1[[#This Row],[Âge]]<=60,"60 et -",IF(Tableau1[[#This Row],[Âge]]<=65,"61-65",IF(Tableau1[[#This Row],[Âge]]<=70,"66-70",IF(Tableau1[[#This Row],[Âge]]<=75,"71-75",IF(Tableau1[[#This Row],[Âge]]<=80,"76-80",IF(Tableau1[[#This Row],[Âge]]<=85,"81-85",IF(Tableau1[[#This Row],[Âge]]<=110,"86 et +",""))))))) -> 86 et + | L62: 44234 | M62: =IFERROR(VLOOKUP(Tableau1[[#This Row],[Date dépôt demande]],Tableau1618[],4,1),"") -> P12 | N62: =IFERROR(VLOOKUP(Tableau1[[#This Row],[Date dépôt demande]],Tableau1618[],5,1),"") -> 2020-2021 | O62: Éval-ori | P62: Autre | Q62: 44236 | R62: =IFERROR(VLOOKUP(Tableau1[[#This Row],[Date d''admission]],Tableau1618[],4,1),"") -> P12 | S62: =IFERROR(VLOOKUP(Tableau1[[#This Row],[Date d''admission]],Tableau1618[],5,1),"") -> 2020-2021 | T62: =CONCATENATE(Tableau1[[#This Row],[Période (admission)]]," ",Tableau1[[#This Row],[Année (admission)]]) -> P12 2020-2021 | U62: =IFERROR(VLOOKUP(Tableau1[[#This Row],[Période/année (admission)]],Tableau1618[[Période année]:[Fin]],3,0),"") -> 44254 | V62: =IF(AND(Tableau1[[#This Row],[Statut]]="Congé",Tableau1[[#This Row],[Date d''admission]]<>""),IF(Tableau1[[#This Row],[Date congé]]<=Tableau1[[#This Row],[Fin période (admission)]],Tableau1[[#This Row],[Date congé]]-Tableau1[[#This Row],[Date d''admission]],Tableau1[[#This Row],[Fin période (admission)]]-Tableau1[[#This Row],[Date d''admission]]),0) -> 18 | W62: =IFERROR(IF(Tableau1[[#This Row],[Date d''admission]]<>"",IF(Tableau1[[#This Row],[Site]]="René_Léosa",Tableau1[[#This Row],[Date d''admission]]+45,"")),"") ->  | AD62: =IF(Tableau1[[#This Row],[Date rencontre familiale]]="","Non","Oui") -> Non | AE62: =IF(Tableau1[[#This Row],[Date rencontre familiale]]="","",Tableau1[[#This Row],[Date rencontre familiale]]-Tableau1[[#This Row],[Date d''admission]]) ->  | AF62: =IF(Tableau1[[#This Row],[Date congé]]<>"",Tableau1[[#This Row],[Date congé]],"") -> 44270 | AG62: =IF(Tableau1[[#This Row],[Date de fin Soins actifs]]<>"","Non","Oui") -> Non | AI62: 44270 | AJ62: =IFERROR(VLOOKUP(Tableau1[[#This Row],[Date congé]],Tableau1618[],4,1),"") -> P13 | AK62: =IFERROR(VLOOKUP(Tableau1[[#This Row],[Date congé]],Tableau1618[],5,1),"") -> 2020-2021 | AL62: =CONCATENATE(Tableau1[[#This Row],[Période (congé)]]," ",Tableau1[[#This Row],[Année (congé)]]) -> P13 2020-2021 | AM62: =IFERROR(VLOOKUP(Tableau1[[#This Row],[Période/année (congé)]],Tableau1618[[Période année]:[Fin]],3,0),"") -> 44286 | AN62: =IF(AND(Tableau1[[#This Row],[Statut]]="Congé",Tableau1[[#This Row],[Date d''admission]]<>""),IF(Tableau1[[#This Row],[Date congé]]>=Tableau1[[#This Row],[Fin période (admission)]],Tableau1[[#This Row],[Date congé]]-Tableau1[[#This Row],[Fin période (admission)]],0),0) -> 16 | AO62: =IF(AND(Tableau1[[#This Row],[Date congé prévu]]<>"",Tableau1[[#This Row],[Date congé]]<>""),Tableau1[[#This Row],[Date congé]]-Tableau1[[#This Row],[Date congé prévu]],"") ->  | AP62: =SUM(Tableau1[[#This Row],[Séjour 1]]+Tableau1[[#This Row],[Séjour 2]]) -> 34 | AQ62: =IF(AND(Tableau1[[#This Row],[Date de fin Soins actifs]]<>"",Tableau1[[#This Row],[Date congé]]<>""),IF(Tableau1[[#This Row],[Date de fin Soins actifs]]<>Tableau1[[#This Row],[Date congé]],"Devient NSA durant séjour","Quitte avant de devenir NSA"),"") -> Quitte avant de devenir NSA | AR62: =IF(Tableau1[[#This Row],[NSA]]="Devient NSA durant PEC",Tableau1[[#This Row],[Date congé]]-Tableau1[[#This Row],[Date de fin Soins actifs]],"") ->  | AS62: Relocalisation RI cognitive | AU62: 7 | AV62: Service social | AY62: =IFERROR(DATEDIF(Tableau1[[#This Row],[Date dépôt demande]],Tableau1[[#This Row],[Date d''admission]],"D"),"") -> 2 | AZ62: =IFERROR(IF(AND(Tableau1[[#This Row],[Date de fin Soins actifs]]<>"",Tableau1[[#This Row],[Date congé]]<>""),DATEDIF(Tableau1[[#This Row],[Date de fin Soins actifs]],Tableau1[[#This Row],[Date congé]],"D"),""),"") -> 0 | BA62: 44260 | BB62: =IF(Tableau1[[#This Row],[Date dépôt MAH]]="","",Tableau1[[#This Row],[Date dépôt MAH]]-Tableau1[[#This Row],[Date d''admission]]) -> 24 | BC62: =IF(Tableau1[[#This Row],[Date dépôt MAH]]="","",Tableau1[[#This Row],[Date congé]]-Tableau1[[#This Row],[Date dépôt MAH]]) -> 10 | BE62: =IFERROR(DATEDIF(Tableau1[[#This Row],[Date orientation]],Tableau1[[#This Row],[Date congé]],"D"),"") -> 44270
A63: Drummond | B63: René_Léosa | C63: 13 | D63: =IFERROR(VLOOKUP(C63,Chambres,3,FALSE),"") -> Régulière | E63: =IF(AND(Tableau1[[#This Row],[Date d''admission]]<>"",Tableau1[[#This Row],[Date congé]]=""),"Occupée",IF(Tableau1[[#This Row],[Date congé]]<>"","Congé","Libre")) -> Congé | H63: P146003 | I63: 19722 | J63: =(IF(Tableau1[[#This Row],[Date de naissance]]<>"",DATEDIF(Tableau1[[#This Row],[Date de naissance]],TODAY(),"Y"),"")) -> 67 | K63: =IF(Tableau1[[#This Row],[Âge]]<=60,"60 et -",IF(Tableau1[[#This Row],[Âge]]<=65,"61-65",IF(Tableau1[[#This Row],[Âge]]<=70,"66-70",IF(Tableau1[[#This Row],[Âge]]<=75,"71-75",IF(Tableau1[[#This Row],[Âge]]<=80,"76-80",IF(Tableau1[[#This Row],[Âge]]<=85,"81-85",IF(Tableau1[[#This Row],[Âge]]<=110,"86 et +",""))))))) -> 66-70 | L63: 43964 | M63: =IFERROR(VLOOKUP(Tableau1[[#This Row],[Date dépôt demande]],Tableau1618[],4,1),"") -> P02 | N63: =IFERROR(VLOOKUP(Tableau1[[#This Row],[Date dépôt demande]],Tableau1618[],5,1),"") -> 2020-2021 | O63: Éval-ori | P63: HSC | Q63: 43966 | R63: =IFERROR(VLOOKUP(Tableau1[[#This Row],[Date d''admission]],Tableau1618[],4,1),"") -> P02 | S63: =IFERROR(VLOOKUP(Tableau1[[#This Row],[Date d''admission]],Tableau1618[],5,1),"") -> 2020-2021 | T63: =CONCATENATE(Tableau1[[#This Row],[Période (admission)]]," ",Tableau1[[#This Row],[Année (admission)]]) -> P02 2020-2021 | U63: =IFERROR(VLOOKUP(Tableau1[[#This Row],[Période/année (admission)]],Tableau1618[[Période année]:[Fin]],3,0),"") -> 43974 | V63: =IF(AND(Tableau1[[#This Row],[Statut]]="Congé",Tableau1[[#This Row],[Date d''admission]]<>""),IF(Tableau1[[#This Row],[Date congé]]<=Tableau1[[#This Row],[Fin période (admission)]],Tableau1[[#This Row],[Date congé]]-Tableau1[[#This Row],[Date d''admission]],Tableau1[[#This Row],[Fin période (admission)]]-Tableau1[[#This Row],[Date d''admission]]),0) -> 7 | W63: =IFERROR(IF(Tableau1[[#This Row],[Date d''admission]]<>"",IF(Tableau1[[#This Row],[Site]]="René_Léosa",Tableau1[[#This Row],[Date d''admission]]+45,"")),"") -> 44011 | Y63: 710 | AA63: Non | AD63: =IF(Tableau1[[#This Row],[Date rencontre familiale]]="","Non","Oui") -> Non | AE63: =IF(Tableau1[[#This Row],[Date rencontre familiale]]="","",Tableau1[[#This Row],[Date rencontre familiale]]-Tableau1[[#This Row],[Date d''admission]]) ->  | AF63: =IF(Tableau1[[#This Row],[Date congé]]<>"",Tableau1[[#This Row],[Date congé]],"") -> 43973 | AG63: =IF(Tableau1[[#This Row],[Date de fin Soins actifs]]<>"","Non","Oui") -> Non | AI63: 43973 | AJ63: =IFERROR(VLOOKUP(Tableau1[[#This Row],[Date congé]],Tableau1618[],4,1),"") -> P02 | AK63: =IFERROR(VLOOKUP(Tableau1[[#This Row],[Date congé]],Tableau1618[],5,1),"") -> 2020-2021 | AL63: =CONCATENATE(Tableau1[[#This Row],[Période (congé)]]," ",Tableau1[[#This Row],[Année (congé)]]) -> P02 2020-2021 | AM63: =IFERROR(VLOOKUP(Tableau1[[#This Row],[Période/année (congé)]],Tableau1618[[Période année]:[Fin]],3,0),"") -> 43974 | AN63: =IF(AND(Tableau1[[#This Row],[Statut]]="Congé",Tableau1[[#This Row],[Date d''admission]]<>""),IF(Tableau1[[#This Row],[Date congé]]>=Tableau1[[#This Row],[Fin période (admission)]],Tableau1[[#This Row],[Date congé]]-Tableau1[[#This Row],[Fin période (admission)]],0),0) -> 0 | AO63: =IF(AND(Tableau1[[#This Row],[Date congé prévu]]<>"",Tableau1[[#This Row],[Date congé]]<>""),Tableau1[[#This Row],[Date congé]]-Tableau1[[#This Row],[Date congé prévu]],"") ->  | AP63: =SUM(Tableau1[[#This Row],[Séjour 1]]+Tableau1[[#This Row],[Séjour 2]]) -> 7 | AQ63: =IF(AND(Tableau1[[#This Row],[Date de fin Soins actifs]]<>"",Tableau1[[#This Row],[Date congé]]<>""),IF(Tableau1[[#This Row],[Date de fin Soins actifs]]<>Tableau1[[#This Row],[Date congé]],"Devient NSA durant séjour","Quitte avant de devenir NSA"),"") -> Quitte avant de devenir NSA | AR63: =IF(Tableau1[[#This Row],[NSA]]="Devient NSA durant PEC",Tableau1[[#This Row],[Date congé]]-Tableau1[[#This Row],[Date de fin Soins actifs]],"") ->  | AS63: Retour à domicile | AT63: 710 | AV63: Ergothérapie | AY63: =IFERROR(DATEDIF(Tableau1[[#This Row],[Date dépôt demande]],Tableau1[[#This Row],[Date d''admission]],"D"),"") -> 2 | AZ63: =IFERROR(IF(AND(Tableau1[[#This Row],[Date de fin Soins actifs]]<>"",Tableau1[[#This Row],[Date congé]]<>""),DATEDIF(Tableau1[[#This Row],[Date de fin Soins actifs]],Tableau1[[#This Row],[Date congé]],"D"),""),"") -> 0 | BB63: =IF(Tableau1[[#This Row],[Date dépôt MAH]]="","",Tableau1[[#This Row],[Date dépôt MAH]]-Tableau1[[#This Row],[Date d''admission]]) ->  | BC63: =IF(Tableau1[[#This Row],[Date dépôt MAH]]="","",Tableau1[[#This Row],[Date congé]]-Tableau1[[#This Row],[Date dépôt MAH]]) ->  | BE63: =IFERROR(DATEDIF(Tableau1[[#This Row],[Date orientation]],Tableau1[[#This Row],[Date congé]],"D"),"") -> 43973
A64: Drummond | B64: CFGH | C64: 1056 | D64: =IFERROR(VLOOKUP(C64,Chambres,3,FALSE),"") -> 1NC | E64: =IF(AND(Tableau1[[#This Row],[Date d''admission]]<>"",Tableau1[[#This Row],[Date congé]]=""),"Occupée",IF(Tableau1[[#This Row],[Date congé]]<>"","Congé","Libre")) -> Congé | H64: P008886 | I64: 12177 | J64: =(IF(Tableau1[[#This Row],[Date de naissance]]<>"",DATEDIF(Tableau1[[#This Row],[Date de naissance]],TODAY(),"Y"),"")) -> 88 | K64: =IF(Tableau1[[#This Row],[Âge]]<=60,"60 et -",IF(Tableau1[[#This Row],[Âge]]<=65,"61-65",IF(Tableau1[[#This Row],[Âge]]<=70,"66-70",IF(Tableau1[[#This Row],[Âge]]<=75,"71-75",IF(Tableau1[[#This Row],[Âge]]<=80,"76-80",IF(Tableau1[[#This Row],[Âge]]<=85,"81-85",IF(Tableau1[[#This Row],[Âge]]<=110,"86 et +",""))))))) -> 86 et + | L64: 44048 | M64: =IFERROR(VLOOKUP(Tableau1[[#This Row],[Date dépôt demande]],Tableau1618[],4,1),"") -> P05 | N64: =IFERROR(VLOOKUP(Tableau1[[#This Row],[Date dépôt demande]],Tableau1618[],5,1),"") -> 2020-2021 | O64: Conval | P64: HSC | Q64: 44050 | R64: =IFERROR(VLOOKUP(Tableau1[[#This Row],[Date d''admission]],Tableau1618[],4,1),"") -> P05 | S64: =IFERROR(VLOOKUP(Tableau1[[#This Row],[Date d''admission]],Tableau1618[],5,1),"") -> 2020-2021 | T64: =CONCATENATE(Tableau1[[#This Row],[Période (admission)]]," ",Tableau1[[#This Row],[Année (admission)]]) -> P05 2020-2021 | U64: =IFERROR(VLOOKUP(Tableau1[[#This Row],[Période/année (admission)]],Tableau1618[[Période année]:[Fin]],3,0),"") -> 44058 | V64: =IF(AND(Tableau1[[#This Row],[Statut]]="Congé",Tableau1[[#This Row],[Date d''admission]]<>""),IF(Tableau1[[#This Row],[Date congé]]<=Tableau1[[#This Row],[Fin période (admission)]],Tableau1[[#This Row],[Date congé]]-Tableau1[[#This Row],[Date d''admission]],Tableau1[[#This Row],[Fin période (admission)]]-Tableau1[[#This Row],[Date d''admission]]),0) -> 8 | W64: =IFERROR(IF(Tableau1[[#This Row],[Date d''admission]]<>"",IF(Tableau1[[#This Row],[Site]]="René_Léosa",Tableau1[[#This Row],[Date d''admission]]+45,"")),"") ->  | Y64: 710 | AA64: Oui | AD64: =IF(Tableau1[[#This Row],[Date rencontre familiale]]="","Non","Oui") -> Non | AE64: =IF(Tableau1[[#This Row],[Date rencontre familiale]]="","",Tableau1[[#This Row],[Date rencontre familiale]]-Tableau1[[#This Row],[Date d''admission]]) ->  | AF64: =IF(Tableau1[[#This Row],[Date congé]]<>"",Tableau1[[#This Row],[Date congé]],"") -> 44102 | AG64: =IF(Tableau1[[#This Row],[Date de fin Soins actifs]]<>"","Non","Oui") -> Non | AI64: 44102 | AJ64: =IFERROR(VLOOKUP(Tableau1[[#This Row],[Date congé]],Tableau1618[],4,1),"") -> P07 | AK64: =IFERROR(VLOOKUP(Tableau1[[#This Row],[Date congé]],Tableau1618[],5,1),"") -> 2020-2021 | AL64: =CONCATENATE(Tableau1[[#This Row],[Période (congé)]]," ",Tableau1[[#This Row],[Année (congé)]]) -> P07 2020-2021 | AM64: =IFERROR(VLOOKUP(Tableau1[[#This Row],[Période/année (congé)]],Tableau1618[[Période année]:[Fin]],3,0),"") -> 44114 | AN64: =IF(AND(Tableau1[[#This Row],[Statut]]="Congé",Tableau1[[#This Row],[Date d''admission]]<>""),IF(Tableau1[[#This Row],[Date congé]]>=Tableau1[[#This Row],[Fin période (admission)]],Tableau1[[#This Row],[Date congé]]-Tableau1[[#This Row],[Fin période (admission)]],0),0) -> 44 | AO64: =IF(AND(Tableau1[[#This Row],[Date congé prévu]]<>"",Tableau1[[#This Row],[Date congé]]<>""),Tableau1[[#This Row],[Date congé]]-Tableau1[[#This Row],[Date congé prévu]],"") ->  | AP64: =SUM(Tableau1[[#This Row],[Séjour 1]]+Tableau1[[#This Row],[Séjour 2]]) -> 52 | AQ64: =IF(AND(Tableau1[[#This Row],[Date de fin Soins actifs]]<>"",Tableau1[[#This Row],[Date congé]]<>""),IF(Tableau1[[#This Row],[Date de fin Soins actifs]]<>Tableau1[[#This Row],[Date congé]],"Devient NSA durant séjour","Quitte avant de devenir NSA"),"") -> Quitte avant de devenir NSA | AR64: =IF(Tableau1[[#This Row],[NSA]]="Devient NSA durant PEC",Tableau1[[#This Row],[Date congé]]-Tableau1[[#This Row],[Date de fin Soins actifs]],"") ->  | AS64: Retour au CH | AY64: =IFERROR(DATEDIF(Tableau1[[#This Row],[Date dépôt demande]],Tableau1[[#This Row],[Date d''admission]],"D"),"") -> 2 | AZ64: =IFERROR(IF(AND(Tableau1[[#This Row],[Date de fin Soins actifs]]<>"",Tableau1[[#This Row],[Date congé]]<>""),DATEDIF(Tableau1[[#This Row],[Date de fin Soins actifs]],Tableau1[[#This Row],[Date congé]],"D"),""),"") -> 0 | BB64: =IF(Tableau1[[#This Row],[Date dépôt MAH]]="","",Tableau1[[#This Row],[Date dépôt MAH]]-Tableau1[[#This Row],[Date d''admission]]) ->  | BC64: =IF(Tableau1[[#This Row],[Date dépôt MAH]]="","",Tableau1[[#This Row],[Date congé]]-Tableau1[[#This Row],[Date dépôt MAH]]) ->  | BE64: =IFERROR(DATEDIF(Tableau1[[#This Row],[Date orientation]],Tableau1[[#This Row],[Date congé]],"D"),"") -> 44102
A65: Drummond | B65: _600_Bousquet_NSA | C65: 370 | D65: =IFERROR(VLOOKUP(C65,Chambres,3,FALSE),"") -> Prothétique | E65: =IF(AND(Tableau1[[#This Row],[Date d''admission]]<>"",Tableau1[[#This Row],[Date congé]]=""),"Occupée",IF(Tableau1[[#This Row],[Date congé]]<>"","Congé","Libre")) -> Occupée | H65: P041720 | I65: 19350226 | J65: =(IF(Tableau1[[#This Row],[Date de naissance]]<>"",DATEDIF(Tableau1[[#This Row],[Date de naissance]],TODAY(),"Y"),"")) ->  | K65: =IF(Tableau1[[#This Row],[Âge]]<=60,"60 et -",IF(Tableau1[[#This Row],[Âge]]<=65,"61-65",IF(Tableau1[[#This Row],[Âge]]<=70,"66-70",IF(Tableau1[[#This Row],[Âge]]<=75,"71-75",IF(Tableau1[[#This Row],[Âge]]<=80,"76-80",IF(Tableau1[[#This Row],[Âge]]<=85,"81-85",IF(Tableau1[[#This Row],[Âge]]<=110,"86 et +",""))))))) ->  | L65: 44403 | M65: =IFERROR(VLOOKUP(Tableau1[[#This Row],[Date dépôt demande]],Tableau1618[],4,1),"") -> P05 | N65: =IFERROR(VLOOKUP(Tableau1[[#This Row],[Date dépôt demande]],Tableau1618[],5,1),"") -> 2021-2022 | O65: Éval-ori | P65: HSC | Q65: 44405 | R65: =IFERROR(VLOOKUP(Tableau1[[#This Row],[Date d''admission]],Tableau1618[],4,1),"") -> P05 | S65: =IFERROR(VLOOKUP(Tableau1[[#This Row],[Date d''admission]],Tableau1618[],5,1),"") -> 2021-2022 | T65: =CONCATENATE(Tableau1[[#This Row],[Période (admission)]]," ",Tableau1[[#This Row],[Année (admission)]]) -> P05 2021-2022 | U65: =IFERROR(VLOOKUP(Tableau1[[#This Row],[Période/année (admission)]],Tableau1618[[Période année]:[Fin]],3,0),"") -> 44422 | V65: =IF(AND(Tableau1[[#This Row],[Statut]]="Congé",Tableau1[[#This Row],[Date d''admission]]<>""),IF(Tableau1[[#This Row],[Date congé]]<=Tableau1[[#This Row],[Fin période (admission)]],Tableau1[[#This Row],[Date congé]]-Tableau1[[#This Row],[Date d''admission]],Tableau1[[#This Row],[Fin période (admission)]]-Tableau1[[#This Row],[Date d''admission]]),0) -> 0 | W65: =IFERROR(IF(Tableau1[[#This Row],[Date d''admission]]<>"",IF(Tableau1[[#This Row],[Site]]="René_Léosa",Tableau1[[#This Row],[Date d''admission]]+45,"")),"") ->  | Y65: 710 | AA65: Non | AD65: =IF(Tableau1[[#This Row],[Date rencontre familiale]]="","Non","Oui") -> Non | AE65: =IF(Tableau1[[#This Row],[Date rencontre familiale]]="","",Tableau1[[#This Row],[Date rencontre familiale]]-Tableau1[[#This Row],[Date d''admission]]) ->  | AF65: =IF(Tableau1[[#This Row],[Date congé]]<>"",Tableau1[[#This Row],[Date congé]],"") ->  | AG65: =IF(Tableau1[[#This Row],[Date de fin Soins actifs]]<>"","Non","Oui") -> Oui | AH65: 44438 | AJ65: =IFERROR(VLOOKUP(Tableau1[[#This Row],[Date congé]],Tableau1618[],4,1),"") ->  | AK65: =IFERROR(VLOOKUP(Tableau1[[#This Row],[Date congé]],Tableau1618[],5,1),"") ->  | AL65: =CONCATENATE(Tableau1[[#This Row],[Période (congé)]]," ",Tableau1[[#This Row],[Année (congé)]]) ->  | AM65: =IFERROR(VLOOKUP(Tableau1[[#This Row],[Période/année (congé)]],Tableau1618[[Période année]:[Fin]],3,0),"") ->  | AN65: =IF(AND(Tableau1[[#This Row],[Statut]]="Congé",Tableau1[[#This Row],[Date d''admission]]<>""),IF(Tableau1[[#This Row],[Date congé]]>=Tableau1[[#This Row],[Fin période (admission)]],Tableau1[[#This Row],[Date congé]]-Tableau1[[#This Row],[Fin période (admission)]],0),0) -> 0 | AO65: =IF(AND(Tableau1[[#This Row],[Date congé prévu]]<>"",Tableau1[[#This Row],[Date congé]]<>""),Tableau1[[#This Row],[Date congé]]-Tableau1[[#This Row],[Date congé prévu]],"") ->  | AP65: =IFERROR(IF(AND(Tableau1[[#This Row],[Date d''admission]]<>"",Tableau1[[#This Row],[Date congé]]<>""),DATEDIF(Tableau1[[#This Row],[Date d''admission]],Tableau1[[#This Row],[Date congé]],"D"),""),"") ->  | AQ65: =IF(AND(Tableau1[[#This Row],[Date de fin Soins actifs]]<>"",Tableau1[[#This Row],[Date congé]]<>""),IF(Tableau1[[#This Row],[Date de fin Soins actifs]]<>Tableau1[[#This Row],[Date congé]],"Devient NSA durant séjour","Quitte avant de devenir NSA"),"") ->  | AR65: =IF(Tableau1[[#This Row],[NSA]]="Devient NSA durant PEC",Tableau1[[#This Row],[Date congé]]-Tableau1[[#This Row],[Date de fin Soins actifs]],"") ->  | AY65: =IFERROR(DATEDIF(Tableau1[[#This Row],[Date dépôt demande]],Tableau1[[#This Row],[Date d''admission]],"D"),"") -> 2 | AZ65: =IFERROR(IF(AND(Tableau1[[#This Row],[Date de fin Soins actifs]]<>"",Tableau1[[#This Row],[Date congé]]<>""),DATEDIF(Tableau1[[#This Row],[Date de fin Soins actifs]],Tableau1[[#This Row],[Date congé]],"D"),""),"") ->  | BB65: =IF(Tableau1[[#This Row],[Date dépôt MAH]]="","",Tableau1[[#This Row],[Date dépôt MAH]]-Tableau1[[#This Row],[Date d''admission]]) ->  | BC65: =IF(Tableau1[[#This Row],[Date dépôt MAH]]="","",Tableau1[[#This Row],[Date congé]]-Tableau1[[#This Row],[Date dépôt MAH]]) ->  | BE65: =IFERROR(DATEDIF(Tableau1[[#This Row],[Date orientation]],Tableau1[[#This Row],[Date congé]],"D"),"") -> 0
